Workbook

Sheet RESUMO MODULO TOTAL
B1: CONTRATAÇÃO DE SERVIÇOS DE EXECUÇÃO DE PAVIMENTAÇÃO EM BLOCO INTERTRAVADO DE CONCRETO EM VIAS DE DIVERSOS MUNICÍPIOS INSERIDOS NA ÁREA DE ATUAÇÃO DA 13ª SUPERINTENDÊNCIA REGIONAL DA CODEVASF, NO ESTADO DA PARAÍBA - REGIÃO LITORAL | N1: xxxxxxx
M2: SICRO: | N2: ='SINTÉTICO SICRO'!B2 -> Paraíba - Abril/2024
M3: SINAPI: | N3: =RIGHT('INSUMOS SINAPI'!A3,7) -> 08/2024
M4: Data base orçamento: | N4: 2024-04-01
B5: =B1 -> CONTRATAÇÃO DE SERVIÇOS DE EXECUÇÃO DE PAVIMENTAÇÃO EM BLOCO INTERTRAVADO DE CONCRETO EM VIAS DE DIVERSOS MUNICÍPIOS INSERIDOS NA ÁREA DE ATUAÇÃO DA 13ª SUPERINTENDÊNCIA REGIONAL DA CODEVASF, NO ESTADO DA PARAÍBA - REGIÃO LITORAL
B6: ITEM | C6: ORIGEM COMPOSIÇÃO | D6: CÓDIGO COMPOSIÇÃO | E6: DISCRIMINAÇÃO DOS SERVIÇOS | I6: BDI % = | J6: =BDI!C17 -> 0.2339 | K6: BDI DIFERENCIADO% = | L6: =BDI!C72 -> 0.15 | M6: R$/m² = | N6: =N49/I8 -> 173.1295037
I7: Total de m² | J7: Encargos Sociais: | K7: Horista (%) | L7: Mensalista (%) | M7: PREÇO UNITÁRIO COM BDI | N7: PREÇO TOTAL COM BDI
I8: ='MC MODULO'!G1*'MC MODULO'!C1*'MC MODULO'!C2 -> 47830 | K8: ='ENC. SOCIAIS'!$E$51 -> 0 | L8: ='ENC. SOCIAIS'!$F$51 -> 0
I9: UND | J9: QTDE. | K9: BDI | L9: PREÇO UNITÁRIO | AB9: TOTAL
E10: MOBILIZAÇÃO/DESMOBILIZAÇÃO
B11: 1 | C11: Codevasf | D11: Mob | E11: Mobilização | I11: kmxfrente | J11: =Mob!B65*Mob!H6 -> 430.47 | K11: =(M11/L11-1) -> 0.2339 | L11: =Mob!B62 -> 226.0520233 | M11: =Mob!B64 -> 278.9255916 | N11: =ROUND(ROUND(J11,2)*ROUND(M11,6),2) -> 120069.1 | O11: =N11/$N$49 -> 0.01449972583 | AA11: 57163.47
B12: 2 | C12: Codevasf | D12: Mob | E12: Desmobilização | I12: kmxfrente | J12: =Mob!B65*Mob!H6 -> 430.47 | K12: =(M12/L12-1) -> 0.2339 | L12: =Mob!B62 -> 226.0520233 | M12: =Mob!B64 -> 278.9255916 | N12: =ROUND(ROUND(J12,2)*ROUND(M12,6),2) -> 120069.1 | O12: =N12/$N$49 -> 0.01449972583 | AA12: 57163.47
E13: INSTALAÇÃO DE CANTEIRO
B14: 3 | C14: Codevasf | D14: Canteiro | E14: Canteiro de Obras | I14: frente | J14: ='MC MODULO'!G1 -> 3.416428571 | K14: =(M14/L14-1) -> 0.2339 | L14: =' Canteiro'!F11 -> 19147.44 | M14: =' Canteiro'!F13 -> 23626.02622 | N14: =ROUND(ROUND(J14,2)*ROUND(M14,6),2) -> 80801.01 | AA14: 190291.53
B15: 4 | C15: SICRO | D15: 903808 | E15: =VLOOKUP(D15,'SINTÉTICO SICRO'!$A$4:$D$1048576,2,0) -> Instalação da usina misturadora de solos com capacidade de 300 t/h | I15: und | J15: =INT('MC MODULO'!G1) -> 3 | K15: =(M15/L15-1) -> 0.2339 | L15: =ROUND(IF(C15="CODEVASF",VLOOKUP(D15,'CPU CODEVASF'!E:I,5,FALSE),VLOOKUP(D15,'SINTÉTICO SICRO'!A:D,4,FALSE)),6) -> 107064.9 | M15: =ROUND(IF(C15="CODEVASF",VLOOKUP(D15,'CPU CODEVASF'!E:H,4,FALSE),VLOOKUP(D15,'SINTÉTICO SICRO'!A:D,4,FALSE)*(1+$J$6)),6) -> 132107.3801 | N15: =ROUND(ROUND(J15,2)*ROUND(M15,6),2) -> 396322.14 | AA15: 190291.53
B16: 5 | C16: SINAPI | D16: 103689 | E16: Fornecimento e instalação de placa de obra com chapa galvanizada e estrutura de madeira. af_03/2022_ps | I16: m² | J16: ='MC MODULO'!H25 -> 54.66285714 | K16: =(M16/L16-1) -> 0.2339 | L16: =VLOOKUP(D16,'COMP Sint. Sinapi'!$G$7:$K$7524,5,0) -> 463.03 | M16: =L16*(1+$J$6) -> 571.332717 | N16: =ROUND(ROUND(J16,2)*ROUND(M16,6),2) -> 31229.05
E17: ADMINISTRAÇÃO LOCAL DA OBRA
B18: 6 | C18: Codevasf | D18: Adm Local | E18: Administração Local da Obra | I18: und | J18: 1 | K18: =(M18/L18-1) -> 0.2339 | L18: ='Adm Local'!J248 -> 835410.409 | M18: ='Adm Local'!I250 -> 1030812.904 | N18: =ROUND(ROUND(J18,2)*ROUND(M18,6),2) -> 1030812.9 | O18: =N18/N49 -> 0.1244825224
E19: TERRAPLANAGEM
B20: 7 | C20: SICRO | D20: 5502114 | E20: =VLOOKUP(D20,'SINTÉTICO SICRO'!$A$4:$D$1048576,2,0) -> Escavação, carga e transporte de material de 1ª categoria - DMT de 1.000 a 1.200 m - caminho de serviço em leito natural - com escavadeira e caminhão basculante de 14 m³ | I20: m³ | J20: ='MC MODULO'!H37 -> 12914.1 | K20: =M20/L20-1 -> 0.2339 | L20: =ROUND(IF(C20="CODEVASF",VLOOKUP(D20,'CPU CODEVASF'!E:I,5,FALSE),VLOOKUP(D20,'SINTÉTICO SICRO'!A:D,4,FALSE)),6) -> 7.65 | M20: =ROUND(IF(C20="CODEVASF",VLOOKUP(D20,'CPU CODEVASF'!E:H,4,FALSE),VLOOKUP(D20,'SINTÉTICO SICRO'!A:D,4,FALSE)*(1+$J$6)),6) -> 9.439335 | N20: =ROUND(ROUND(J20,2)*ROUND(M20,6),2) -> 121900.52 | AB20: 366912
B21: 8 | C21: SICRO | D21: 4413942 | E21: =VLOOKUP(D21,'SINTÉTICO SICRO'!$A$4:$D$1048576,2,0) -> Espalhamento de material em bota-fora | I21: m³ | J21: ='MC MODULO'!H44 -> 4783 | K21: 0.2339 | L21: =ROUND(IF(C21="CODEVASF",VLOOKUP(D21,'CPU CODEVASF'!E:I,5,FALSE),VLOOKUP(D21,'SINTÉTICO SICRO'!A:D,4,FALSE)),6) -> 1.94 | M21: =ROUND(IF(C21="CODEVASF",VLOOKUP(D21,'CPU CODEVASF'!E:H,4,FALSE),VLOOKUP(D21,'SINTÉTICO SICRO'!A:D,4,FALSE)*(1+$J$6)),6) -> 2.393766 | N21: 11449.38 | AB21: 84084 | AG21: 1
E22: PAVIMENTAÇÃO
B23: 9 | C23: SINAPI | D23: 36170 | E23: bloquete/piso intertravado de concreto - modelo onda/16 faces/retangular/t ijolinho/paver/holandes/paralelepipedo, *22 cm x 11* cm, e = 8 cm, resistencia de 35 mpa (nbr 9781), cor natural | I23: m² | J23: =J24*'CPU SINAPI'!E8 -> 48021.32 | K23: =M23/L23-1 -> 0.15 | L23: =ROUND(VLOOKUP(D23,'INSUMOS SINAPI'!A:E,5,0),6) -> 52.4 | M23: =ROUND(VLOOKUP(D23,'INSUMOS SINAPI'!A:E,5,0)*(1+$L$6),6) -> 60.26 | N23: =ROUND(ROUND(J23,2)*ROUND(M23,6),2) -> 2893764.74
B24: 10 | C24: SINAPI | D24: ='CPU SINAPI'!B5 -> 92404 ADAPTADA | E24: execução de pavimento em piso intertravado, com bloco 16 faces de 22 x 11 cm, espessura 8 cm. af_10/2022 - exclusive fornecimento de bloquete | I24: m² | J24: ='MC MODULO'!H51 -> 47830 | K24: 0.2340546697 | L24: =ROUND('CPU SINAPI'!G15,6) -> 17.56 | M24: =ROUND('CPU SINAPI'!G17,6) -> 21.67 | N24: 1036476.1 | AB24: 13037300.31
B25: 11 | C25: SICRO | D25: 5915014 | E25: =VLOOKUP(D25,'SINTÉTICO SICRO'!$A$4:$D$1048576,2,0) -> Transporte com caminhão carroceria com capacidade de 11 t e com guindauto de 45 t.m - rodovia pavimentada | I25: tkm | J25: ='MC MODULO'!H56 -> 252542.4 | K25: 0.2339 | L25: =ROUND(IF(C25="CODEVASF",VLOOKUP(D25,'CPU CODEVASF'!E:I,5,FALSE),VLOOKUP(D25,'SINTÉTICO SICRO'!A:D,4,FALSE)),6) -> 1.38 | M25: =L25+(L25*J6) -> 1.702782 | N25: 430024.65
B26: 12 | C26: SICRO | D26: 5915321 | E26: Transporte com caminhão basculante de 14 m³ - rodovia pavimentada (areia) | I26: tkm | J26: ='MC MODULO'!H62 -> 86094 | K26: =M26/L26-1 -> 0.2339 | L26: =ROUND(IF(C26="CODEVASF",VLOOKUP(D26,'CPU CODEVASF'!E:I,5,FALSE),VLOOKUP(D26,'SINTÉTICO SICRO'!A:D,4,FALSE)),6) -> 0.63 | M26: =L26+(L26*J6) -> 0.777357 | N26: =ROUND(ROUND(J26,2)*ROUND(M26,6),2) -> 66925.77
B27: 13 | C27: SICRO | D27: 5915321 | E27: Transporte com caminhão basculante de 14 m³ - rodovia pavimentada (pó de pedra) | I27: tkm | J27: ='MC MODULO'!H67 -> 19371.15 | K27: =M27/L27-1 -> 0.2339 | L27: =ROUND(IF(C27="CODEVASF",VLOOKUP(D27,'CPU CODEVASF'!E:I,5,FALSE),VLOOKUP(D27,'SINTÉTICO SICRO'!A:D,4,FALSE)),6) -> 0.63 | M27: =L27+(L27*J6) -> 0.777357 | N27: =ROUND(ROUND(J27,2)*ROUND(M27,6),2) -> 15058.3
B28: 14 | C28: SICRO | D28: 4011256 | E28: =VLOOKUP(D28,'SINTÉTICO SICRO'!$A$4:$D$1048576,2,0) -> Base estabilizada granulometricamente com mistura solo brita (70% - 30%) na pista com material de jazida e brita comercial | I28: m³ | J28: ='MC MODULO'!H72 -> 7174.5 | K28: 0.2339 | L28: =ROUND(IF(C28="CODEVASF",VLOOKUP(D28,'CPU CODEVASF'!E:I,5,FALSE),VLOOKUP(D28,'SINTÉTICO SICRO'!A:D,4,FALSE)),6) -> 72.71 | M28: =ROUND(IF(C28="CODEVASF",VLOOKUP(D28,'CPU CODEVASF'!E:H,4,FALSE),VLOOKUP(D28,'SINTÉTICO SICRO'!A:D,4,FALSE)*(1+$J$6)),6) -> 89.716869 | N28: 643673.68 | AB28: 15919722
B29: 15 | C29: SICRO | D29: 4011209 | E29: =VLOOKUP(D29,'SINTÉTICO SICRO'!$A$4:$D$1048576,2,0) -> Regularização do subleito | I29: m² | J29: ='MC MODULO'!H77 -> 47830 | K29: 0.2339 | L29: =ROUND(IF(C29="CODEVASF",VLOOKUP(D29,'CPU CODEVASF'!E:I,5,FALSE),VLOOKUP(D29,'SINTÉTICO SICRO'!A:D,4,FALSE)),6) -> 1.13 | M29: =ROUND(IF(C29="CODEVASF",VLOOKUP(D29,'CPU CODEVASF'!E:H,4,FALSE),VLOOKUP(D29,'SINTÉTICO SICRO'!A:D,4,FALSE)*(1+$J$6)),6) -> 1.394307 | N29: 66689.7 | AB29: 540540
E30: SINALIZAÇÃO
B31: 16 | C31: SICRO | D31: 5213440 | E31: =VLOOKUP(D31,'SINTÉTICO SICRO'!$A$4:$D$1048576,2,0) -> Placa de regulamentação em aço D = 0,60 m - película retrorrefletiva tipo I + SI - fornecimento e implantação | I31: und | J31: ='MC MODULO'!H84 -> 20.49857143 | K31: =M31/L31-1 -> 0.2339 | L31: =ROUND(IF(C31="CODEVASF",VLOOKUP(D31,'CPU CODEVASF'!E:I,5,FALSE),VLOOKUP(D31,'SINTÉTICO SICRO'!A:D,4,FALSE)),6) -> 254.02 | M31: =ROUND(IF(C31="CODEVASF",VLOOKUP(D31,'CPU CODEVASF'!E:H,4,FALSE),VLOOKUP(D31,'SINTÉTICO SICRO'!A:D,4,FALSE)*(1+$J$6)),6) -> 313.435278 | N31: =ROUND(ROUND(J31,2)*ROUND(M31,6),2) -> 6425.42 | AB31: 9985.95
B32: 17 | C32: SICRO | D32: 5213464 | E32: =VLOOKUP(D32,'SINTÉTICO SICRO'!$A$4:$D$1048576,2,0) -> Placa de advertência em aço, lado de 0,60 m - película retrorrefletiva tipo I + SI - fornecimento e implantação | I32: und | J32: ='MC MODULO'!H89 -> 20.49857143 | K32: 0.2339 | L32: =ROUND(IF(C32="CODEVASF",VLOOKUP(D32,'CPU CODEVASF'!E:I,5,FALSE),VLOOKUP(D32,'SINTÉTICO SICRO'!A:D,4,FALSE)),6) -> 254.06 | M32: =ROUND(IF(C32="CODEVASF",VLOOKUP(D32,'CPU CODEVASF'!E:H,4,FALSE),VLOOKUP(D32,'SINTÉTICO SICRO'!A:D,4,FALSE)*(1+$J$6)),6) -> 313.484634 | N32: 6426.43
B33: 18 | C33: SICRO | D33: 5213863 | E33: Suporte metálico galvanizado para placa de advertência ou regulamentação - lado ou diâmetro de 0,60 m - fornecimento e implantação | I33: und | J33: ='MC MODULO'!H95 -> 40.99714286 | K33: 0.2339 | L33: =ROUND(IF(C33="CODEVASF",VLOOKUP(D33,'CPU CODEVASF'!E:I,5,FALSE),VLOOKUP(D33,'SINTÉTICO SICRO'!A:D,4,FALSE)),6) -> 451.85 | M33: =ROUND(IF(C33="CODEVASF",VLOOKUP(D33,'CPU CODEVASF'!E:H,4,FALSE),VLOOKUP(D33,'SINTÉTICO SICRO'!A:D,4,FALSE)*(1+$J$6)),6) -> 557.537715 | N33: 22859.05 | AB33: 13086.06
B34: 19 | C34: SICRO | D34: 5213400 | E34: Pintura de faixa com tinta acrílica - espessura de 0,4 mm | I34: m² | J34: ='MC MODULO'!H100+'MC MODULO'!H105 -> 1639.885714 | K34: 0.2339 | L34: =ROUND(IF(C34="CODEVASF",VLOOKUP(D34,'CPU CODEVASF'!E:I,5,FALSE),VLOOKUP(D34,'SINTÉTICO SICRO'!A:D,4,FALSE)),6) -> 24.57 | M34: =ROUND(IF(C34="CODEVASF",VLOOKUP(D34,'CPU CODEVASF'!E:H,4,FALSE),VLOOKUP(D34,'SINTÉTICO SICRO'!A:D,4,FALSE)*(1+$J$6)),6) -> 30.316923 | N34: 49716.42
E35: DRENAGEM
B36: 20 | C36: SICRO | D36: 2003943 | E36: =VLOOKUP(D36,'SINTÉTICO SICRO'!$A$4:$D$1048576,2,0) -> Meio-fio de concreto - MFC 03 moldado no local com extrusora e concreto usinado - areia e brita comerciais | I36: m | J36: ='MC MODULO'!H112 -> 13665.71429 | K36: =M36/L36-1 -> 0.2339 | L36: =ROUND(IF(C36="CODEVASF",VLOOKUP(D36,'CPU CODEVASF'!E:I,5,FALSE),VLOOKUP(D36,'SINTÉTICO SICRO'!A:D,4,FALSE)),6) -> 29.13 | M36: =ROUND(IF(C36="CODEVASF",VLOOKUP(D36,'CPU CODEVASF'!E:H,4,FALSE),VLOOKUP(D36,'SINTÉTICO SICRO'!A:D,4,FALSE)*(1+$J$6)),6) -> 35.943507 | N36: =ROUND(ROUND(J36,2)*ROUND(M36,6),2) -> 491193.54 | AB36: 4514640
B37: 21 | C37: SICRO | D37: 4915724 | E37: =VLOOKUP(D37,'SINTÉTICO SICRO'!$A$4:$D$1048576,2,0) -> Caiação mecanizada com fixador de cal | I37: m² | J37: ='MC MODULO'!H117 -> 1639.885714 | K37: =(M37/L37-1) -> 0.2339 | L37: =ROUND(IF(C37="CODEVASF",VLOOKUP(D37,'CPU CODEVASF'!E:I,5,FALSE),VLOOKUP(D37,'SINTÉTICO SICRO'!A:D,4,FALSE)),6) -> 1.85 | M37: =ROUND(IF(C37="CODEVASF",VLOOKUP(D37,'CPU CODEVASF'!E:H,4,FALSE),VLOOKUP(D37,'SINTÉTICO SICRO'!A:D,4,FALSE)*(1+$J$6)),6) -> 2.282715 | N37: =ROUND(ROUND(J37,2)*ROUND(M37,6),2) -> 3743.4 | Y37: 4514640
E38: SERVIÇOS COMPLEMENTARES
B39: 22 | C39: Codevasf | D39: CPU-02 | E39: Conserto de quebra no ramal na rua sem pavimento com fornecimento de material hidráulico | I39: m | J39: ='MC MODULO'!H124 -> 683.2857143 | K39: =M39/L39-1 -> 0.2338999955 | L39: =ROUND(IF(C39="CODEVASF",VLOOKUP(D39,'CPU CODEVASF'!E:I,5,FALSE),VLOOKUP(D39,'SINTÉTICO SICRO'!A:D,4,FALSE)),6) -> 15.44071 | M39: =ROUND(IF(C39="CODEVASF",VLOOKUP(D39,'CPU CODEVASF'!E:H,4,FALSE),VLOOKUP(D39,'SINTÉTICO SICRO'!A:D,4,FALSE)*(1+$J$6)),6) -> 19.052292 | N39: =ROUND(ROUND(J39,2)*ROUND(M39,6),2) -> 13018.24 | AB39: 139854
E40: PROJETO EXECUTIVO
B41: 23 | C41: Codevasf | D41: Composição Própria | E41: Projeto Executivo | I41: m² | J41: ='MC MODULO'!H131 -> 47830 | K41: =M41/L41-1 -> 0.233899972 | L41: =ROUND(('Projeto Executivo'!G29)/(1+$J$6),6) -> 2.340861 | M41: ='Projeto Executivo'!G29 -> 2.888388322 | N41: =ROUND(ROUND(J41,2)*ROUND(M41,6),2) -> 138151.6 | AB41: 763671.38
E42: MOMENTO DE TRANSPORTE
B43: 24 | C43: SICRO | D43: 5914359 | E43: =VLOOKUP(D43,'SINTÉTICO SICRO'!$A$4:$D$1048576,2,0) -> Transporte com caminhão basculante de 10 m³ - rodovia em leito natural | I43: tkm | J43: =SUMIF('MOMENTO DE TRANSPORTE - PRINC'!A:A,'RESUMO MODULO TOTAL'!D43,'MOMENTO DE TRANSPORTE - PRINC'!K:K)+SUMIF('MOMENTO DE TRANSPORTE - AUX'!A:A,'RESUMO MODULO TOTAL'!D43,'MOMENTO DE TRANSPORTE - AUX'!K:K) -> 46254.6198 | K43: =M43/L43-1 -> 0.2339 | L43: =ROUND(IF(C43="CODEVASF",VLOOKUP(D43,'CPU CODEVASF'!E:I,5,FALSE),VLOOKUP(D43,'SINTÉTICO SICRO'!A:D,4,FALSE)),6) -> 1.2 | M43: =ROUND(IF(C43="CODEVASF",VLOOKUP(D43,'CPU CODEVASF'!E:H,4,FALSE),VLOOKUP(D43,'SINTÉTICO SICRO'!A:D,4,FALSE)*(1+$J$6)),6) -> 1.48068 | N43: =ROUND(ROUND(J43,2)*ROUND(M43,6),2) -> 68488.29
B44: 25 | C44: SICRO | D44: 5914374 | E44: =VLOOKUP(D44,'SINTÉTICO SICRO'!$A$4:$D$1048576,2,0) -> Transporte com caminhão basculante de 10 m³ - rodovia em revestimento primário | I44: tkm | J44: =SUMIF('MOMENTO DE TRANSPORTE - PRINC'!A:A,'RESUMO MODULO TOTAL'!D44,'MOMENTO DE TRANSPORTE - PRINC'!K:K)+SUMIF('MOMENTO DE TRANSPORTE - AUX'!A:A,'RESUMO MODULO TOTAL'!D44,'MOMENTO DE TRANSPORTE - AUX'!K:K) -> 46254.6198 | K44: 0.2339 | L44: =ROUND(IF(C44="CODEVASF",VLOOKUP(D44,'CPU CODEVASF'!E:I,5,FALSE),VLOOKUP(D44,'SINTÉTICO SICRO'!A:D,4,FALSE)),6) -> 0.96 | M44: =ROUND(IF(C44="CODEVASF",VLOOKUP(D44,'CPU CODEVASF'!E:H,4,FALSE),VLOOKUP(D44,'SINTÉTICO SICRO'!A:D,4,FALSE)*(1+$J$6)),6) -> 1.184544 | N44: 54790.63
B45: 26 | C45: SICRO | D45: 5914389 | E45: =VLOOKUP(D45,'SINTÉTICO SICRO'!$A$4:$D$1048576,2,0) -> Transporte com caminhão basculante de 10 m³ - rodovia pavimentada | I45: tkm | J45: =SUMIF('MOMENTO DE TRANSPORTE - PRINC'!A:A,'RESUMO MODULO TOTAL'!D45,'MOMENTO DE TRANSPORTE - PRINC'!K:K)+SUMIF('MOMENTO DE TRANSPORTE - AUX'!A:A,'RESUMO MODULO TOTAL'!D45,'MOMENTO DE TRANSPORTE - AUX'!K:K) -> 370036.9584 | K45: 0.2339 | L45: =ROUND(IF(C45="CODEVASF",VLOOKUP(D45,'CPU CODEVASF'!E:I,5,FALSE),VLOOKUP(D45,'SINTÉTICO SICRO'!A:D,4,FALSE)),6) -> 0.79 | M45: =ROUND(IF(C45="CODEVASF",VLOOKUP(D45,'CPU CODEVASF'!E:H,4,FALSE),VLOOKUP(D45,'SINTÉTICO SICRO'!A:D,4,FALSE)*(1+$J$6)),6) -> 0.974781 | N45: 360705
B46: 27 | C46: SICRO | D46: 5914449 | E46: =VLOOKUP(D46,'SINTÉTICO SICRO'!$A$4:$D$1048576,2,0) -> Transporte com caminhão carroceria de 15 t - rodovia em leito natural | I46: tkm | J46: =SUMIF('MOMENTO DE TRANSPORTE - PRINC'!A:A,'RESUMO MODULO TOTAL'!D46,'MOMENTO DE TRANSPORTE - PRINC'!K:K)+SUMIF('MOMENTO DE TRANSPORTE - AUX'!A:A,'RESUMO MODULO TOTAL'!D46,'MOMENTO DE TRANSPORTE - AUX'!K:K) -> 0 | K46: 0.2339 | L46: =ROUND(IF(C46="CODEVASF",VLOOKUP(D46,'CPU CODEVASF'!E:I,5,FALSE),VLOOKUP(D46,'SINTÉTICO SICRO'!A:D,4,FALSE)),6) -> 1.06 | M46: =ROUND(IF(C46="CODEVASF",VLOOKUP(D46,'CPU CODEVASF'!E:H,4,FALSE),VLOOKUP(D46,'SINTÉTICO SICRO'!A:D,4,FALSE)*(1+$J$6)),6) -> 1.307934 | N46: 0
B47: 28 | C47: SICRO | D47: 5914464 | E47: =VLOOKUP(D47,'SINTÉTICO SICRO'!$A$4:$D$1048576,2,0) -> Transporte com caminhão carroceria de 15 t - rodovia em revestimento primário | I47: tkm | J47: =SUMIF('MOMENTO DE TRANSPORTE - PRINC'!A:A,'RESUMO MODULO TOTAL'!D47,'MOMENTO DE TRANSPORTE - PRINC'!K:K)+SUMIF('MOMENTO DE TRANSPORTE - AUX'!A:A,'RESUMO MODULO TOTAL'!D47,'MOMENTO DE TRANSPORTE - AUX'!K:K) -> 0 | K47: 0.2339 | L47: =ROUND(IF(C47="CODEVASF",VLOOKUP(D47,'CPU CODEVASF'!E:I,5,FALSE),VLOOKUP(D47,'SINTÉTICO SICRO'!A:D,4,FALSE)),6) -> 0.85 | M47: =ROUND(IF(C47="CODEVASF",VLOOKUP(D47,'CPU CODEVASF'!E:H,4,FALSE),VLOOKUP(D47,'SINTÉTICO SICRO'!A:D,4,FALSE)*(1+$J$6)),6) -> 1.048815 | N47: 0
B48: 29 | C48: SICRO | D48: 5914479 | E48: =VLOOKUP(D48,'SINTÉTICO SICRO'!$A$4:$D$1048576,2,0) -> Transporte com caminhão carroceria de 15 t - rodovia pavimentada | I48: tkm | J48: =SUMIF('MOMENTO DE TRANSPORTE - PRINC'!A:A,'RESUMO MODULO TOTAL'!D48,'MOMENTO DE TRANSPORTE - PRINC'!K:K)+SUMIF('MOMENTO DE TRANSPORTE - AUX'!A:A,'RESUMO MODULO TOTAL'!D48,'MOMENTO DE TRANSPORTE - AUX'!K:K) -> 0 | K48: 0.2339 | L48: =ROUND(IF(C48="CODEVASF",VLOOKUP(D48,'CPU CODEVASF'!E:I,5,FALSE),VLOOKUP(D48,'SINTÉTICO SICRO'!A:D,4,FALSE)),6) -> 0.7 | M48: =ROUND(IF(C48="CODEVASF",VLOOKUP(D48,'CPU CODEVASF'!E:H,4,FALSE),VLOOKUP(D48,'SINTÉTICO SICRO'!A:D,4,FALSE)*(1+$J$6)),6) -> 0.86373 | N48: 0
B49: VALOR TOTAL DO SRP | N49: =SUM(N10:N48) -> 8280784.16 | AB49: =SUM(AB19:AB41) -> 35389795.7
B50: Obs.: Os valores estão apresentados com apenas 2 casas decimais, mas os valores da presente planilha foram calculados utilizando a precisão de 6 casa decimais.
N54: 10149315.15
N55: =N54/J29 -> 212.1955917
N56: =N49/J29 -> 173.1295037

Sheet CRONOGRAMA TOTAL
A2: ='RESUMO MODULO TOTAL'!B1 -> CONTRATAÇÃO DE SERVIÇOS DE EXECUÇÃO DE PAVIMENTAÇÃO EM BLOCO INTERTRAVADO DE CONCRETO EM VIAS DE DIVERSOS MUNICÍPIOS INSERIDOS NA ÁREA DE ATUAÇÃO DA 13ª SUPERINTENDÊNCIA REGIONAL DA CODEVASF, NO ESTADO DA PARAÍBA - REGIÃO LITORAL
A3: Cronograma Físico e Financeiro
A4: Item | B4: Descrição | C4: Total Por Etapa | D4: 30 DIAS | E4: 60 DIAS | F4: 90 DIAS | G4: 120 DIAS | H4: 150 DIAS | I4: 180 DIAS | J4: 210 DIAS | K4: 240 DIAS | L4: 270 DIAS | M4: 300 DIAS | N4: 330 DIAS | O4: 360 DIAS
B5: ='RESUMO MODULO TOTAL'!E10 -> MOBILIZAÇÃO/DESMOBILIZAÇÃO | C5: =SUM(D5:O5) -> 1 | D5: 0.5 | O5: 0.5
C6: =SUM('RESUMO MODULO TOTAL'!N11:N12) -> 240138.2 | D6: =$C$6*D5 -> 120069.1 | O6: =$C$6*O5 -> 120069.1 | P6: =SUM(D6:O6) -> 240138.2 | Q6: =IF(P6=C6,"OK","") -> OK
B7: ='RESUMO MODULO TOTAL'!E13 -> INSTALAÇÃO DE CANTEIRO | C7: =SUM(D7:O7) -> 1 | D7: 0.1 | E7: 0.5 | F7: 0.4
C8: =SUM('RESUMO MODULO TOTAL'!N14:N16) -> 508352.2 | D8: =$C$8*D7 -> 50835.22 | E8: =$C$8*E7 -> 254176.1 | F8: 203340.88 | G8: 0 | H8: 0 | I8: 0 | J8: 0 | K8: 0 | L8: 0 | M8: 0 | N8: 0 | O8: 0 | P8: =SUM(D8:O8) -> 508352.2 | Q8: =IF(P8=C8,"OK","") -> OK
B9: ='RESUMO MODULO TOTAL'!E17 -> ADMINISTRAÇÃO LOCAL DA OBRA | C9: =SUM(D9:O9) -> 1 | D9: =(D6+D8+D12+D14+D16+D18+D20+D22+D24)/($O$31-$C$10) -> 0.0235731031 | E9: =(E6+E8+E12+E14+E16+E18+E20+E22+E24)/($O$31-$C$10) -> 0.03505891139 | F9: 0.03932108649 | G9: 0.01127395738 | H9: 0.0208016917 | I9: 0.1425908668 | J9: 0.1251270085 | K9: 0.1251270085 | L9: 0.1251270085 | M9: 0.1251270085 | N9: 0.1601585391 | O9: 0.06671381012
C10: =SUM('RESUMO MODULO TOTAL'!N18) -> 1030812.9 | D10: =$C$10*D9 -> 24299.45877 | E10: =$C$10*E9 -> 36139.17812 | F10: =$C$10*F9 -> 40532.6832 | G10: 11621.3407 | H10: 21442.65215 | I10: 146984.5049 | J10: 128982.5345 | K10: 128982.5345 | L10: 128982.5345 | M10: 128982.5345 | N10: 165093.4881 | O10: 68769.45608 | P10: =SUM(D10:O10) -> 1030812.9 | Q10: =IF(P10=C10,"OK","") -> OK
B11: ='RESUMO MODULO TOTAL'!E19 -> TERRAPLANAGEM | C11: =SUM(D11:O11) -> 1 | F11: =1/4 -> 0.25 | G11: =1/4 -> 0.25 | H11: =1/4 -> 0.25 | I11: =1/4 -> 0.25
C12: =SUM('RESUMO MODULO TOTAL'!N20:N21) -> 133349.9 | D12: =$C$14*D11 -> 0 | E12: =$C$12*E11 -> 0 | F12: 33337.475 | G12: 33337.475 | H12: 33337.475 | I12: 33337.475 | J12: 0 | K12: 0 | L12: 0 | M12: 0 | N12: 0 | O12: 0 | P12: =SUM(D12:O12) -> 133349.9 | Q12: =IF(P12=C12,"OK","") -> OK
B13: ='RESUMO MODULO TOTAL'!E22 -> PAVIMENTAÇÃO | C13: =SUM(D13:O13) -> 1 | I13: =1/6 -> 0.1666666667 | J13: =1/6 -> 0.1666666667 | K13: 0.1666666667 | L13: 0.1666666667 | M13: 0.1666666667 | N13: 0.1666666667
C14: =SUM('RESUMO MODULO TOTAL'!N23:N29) -> 5152612.94 | D14: =$C$14*D13 -> 0 | E14: =$C$14*E13 -> 0 | F14: 0 | G14: 0 | H14: 0 | I14: 858768.8233 | J14: 858768.8233 | K14: 858768.8233 | L14: 858768.8233 | M14: 858768.8233 | N14: 858768.8233 | O14: 0 | P14: =SUM(D14:O14) -> 5152612.94 | Q14: =IF(P14=C14,"OK","") -> OK
B15: ='RESUMO MODULO TOTAL'!E30 -> SINALIZAÇÃO | C15: =SUM(D15:O15) -> 1 | O15: 1
C16: =SUM('RESUMO MODULO TOTAL'!N31:N34) -> 85427.32 | D16: =$C$16*D15 -> 0 | E16: =$C$16*E15 -> 0 | F16: 0 | G16: 0 | H16: 0 | I16: 0 | J16: 0 | K16: 0 | L16: 0 | M16: 0 | N16: 0 | O16: 85427.32 | P16: =SUM(D16:O16) -> 85427.32 | Q16: =IF(P16=C16,"OK","") -> OK
B17: ='RESUMO MODULO TOTAL'!E35 -> DRENAGEM | C17: =SUM(D17:O17) -> 1 | N17: 0.5 | O17: 0.5
C18: =SUM('RESUMO MODULO TOTAL'!N36:N37) -> 494936.94 | D18: =$C$18*D17 -> 0 | E18: =$C$18*E17 -> 0 | F18: 0 | G18: 0 | H18: 0 | I18: 0 | J18: 0 | K18: 0 | L18: 0 | M18: 0 | N18: 247468.47 | O18: 247468.47 | P18: =SUM(D18:O18) -> 494936.94 | Q18: =IF(P18=C18,"OK","") -> OK
B19: ='RESUMO MODULO TOTAL'!E38 -> SERVIÇOS COMPLEMENTARES | C19: =SUM(D19:O19) -> 1 | N19: 0.5 | O19: 0.5
C20: =SUM('RESUMO MODULO TOTAL'!N39) -> 13018.24 | D20: =$C$20*D19 -> 0 | E20: =$C$20*E19 -> 0 | F20: 0 | G20: 0 | H20: 0 | I20: 0 | J20: 0 | K20: 0 | L20: 0 | M20: 0 | N20: 6509.12 | O20: 6509.12 | P20: =SUM(D20:O20) -> 13018.24 | Q20: =IF(P20=C20,"OK","") -> OK
B21: ='RESUMO MODULO TOTAL'!E40 -> PROJETO EXECUTIVO | C21: =SUM(D21:O21) -> 1 | H21: 0.5 | I21: 0.5
C22: =SUM('RESUMO MODULO TOTAL'!N41) -> 138151.6 | D22: =$C$22*D21 -> 0 | E22: =$C$22*E21 -> 0 | F22: 0 | G22: 0 | H22: 69075.8 | I22: 69075.8 | J22: 0 | K22: 0 | L22: 0 | M22: 0 | N22: 0 | O22: 0 | P22: =SUM(D22:O22) -> 138151.6 | Q22: =IF(P22=C22,"OK","") -> OK
B23: ='RESUMO MODULO TOTAL'!E42 -> MOMENTO DE TRANSPORTE | C23: =SUM(D23:O23) -> 1 | F23: 0.1 | G23: 0.1 | H23: 0.1 | I23: 0.15 | J23: 0.1 | K23: 0.1 | L23: 0.1 | M23: 0.1 | N23: 0.1 | O23: 0.05
C24: =SUM('RESUMO MODULO TOTAL'!N43:N48) -> 483983.92 | D24: =$C$24*D23 -> 0 | E24: =$C$24*E23 -> 0 | F24: 48398.392 | G24: 48398.392 | H24: 48398.392 | I24: 72597.588 | J24: 48398.392 | K24: 48398.392 | L24: 48398.392 | M24: 48398.392 | N24: 48398.392 | O24: 24199.196 | P24: =SUM(D24:O24) -> 483983.92 | Q24: =IF(P24=C24,"OK","") -> OK
A26: Porcentagem | D26: =SUM(D6+D8+D10+D12+D14+D16+D18+D20+D22+D24)/$O$31 -> 0.0235731031 | E26: =SUM(E6+E8+E10+E12+E14+E16+E18+E20+E22+E24)/$O$31 -> 0.03505891139 | F26: 0.03932108649 | G26: 0.01127395738 | H26: 0.0208016917 | I26: 0.1425908668 | J26: 0.1251270085 | K26: 0.1251270085 | L26: 0.1251270085 | M26: 0.1251270085 | N26: 0.1601585391 | O26: 0.06671381012
A27: Custo | D27: =$O$31*D26 -> 195203.7788 | E27: =$O$31*E26 -> 290315.2781 | F27: =$O$31*F26 -> 325609.4302 | G27: 93357.2077 | H27: 172254.3191 | I27: 1180764.191 | J27: 1036149.75 | K27: 1036149.75 | L27: 1036149.75 | M27: 1036149.75 | N27: 1326238.293 | O27: 552442.6621
A28: Porcentagem Acumulado | D28: =D26 -> 0.0235731031 | E28: =D28+E26 -> 0.05863201449 | F28: =E28+F26 -> 0.09795310099 | G28: 0.1092270584 | H28: 0.1300287501 | I28: 0.2726196169 | J28: 0.3977466254 | K28: 0.5228736338 | L28: 0.6480006423 | M28: 0.7731276508 | N28: 0.9332861899 | O28: =N28+O26 -> 1
A29: Custo Acumulado | D29: =D27 -> 195203.7788 | E29: =D29+E27 -> 485519.0569 | F29: 811128.4871 | G29: 904485.6948 | H29: 1076740.014 | I29: 2257504.205 | J29: 3293653.955 | K29: 4329803.705 | L29: 5365953.455 | M29: 6402103.204 | N29: 7728341.498 | O29: 8280784.16
D31: Total Geral | N31: R$ | O31: =C6+C8+C10+C12+C14+C16+C18+C20+C22+C24 -> 8280784.16
O34: =O29-O31 -> 0
O36: ='RESUMO MODULO TOTAL'!N49 -> 8280784.16

Sheet Mob
A4: ='RESUMO MODULO TOTAL'!B1 -> CONTRATAÇÃO DE SERVIÇOS DE EXECUÇÃO DE PAVIMENTAÇÃO EM BLOCO INTERTRAVADO DE CONCRETO EM VIAS DE DIVERSOS MUNICÍPIOS INSERIDOS NA ÁREA DE ATUAÇÃO DA 13ª SUPERINTENDÊNCIA REGIONAL DA CODEVASF, NO ESTADO DA PARAÍBA - REGIÃO LITORAL
A5: MOBILIZAÇÃO/DESMOBILIZAÇÃO (MOB) | F5: Frentes de serviços | H5: ='MC MODULO'!G1 -> 3.416428571
F6: Distância da Capital ao Canteiro: | H6: 126 | I6: Fica a cargo de cada SR colocar a distancia adequada de acordo com o historico de mobilização
F8: Velocidade média de transporte (pavim.): | H8: 60
A10: Transporte dos equipamentos
A11: CODIGO | B11: EQUIPAMENTO | C11: VEÍCULO TRANSPORTADOR | D11: QTDE | E11: K | F11: FU | G11: CUSTO DO TRANSPORTE
G12: (R$/h) | H12: (R$)/km
A13: E9524 | B13: =VLOOKUP(A13,Equipamentos!$A:$K,2,FALSE) -> Motoniveladora - 93 kW | C13: =IFERROR(INDEX('Tabelas 2 e 3 mob'!A:K,MATCH(A13,'Tabelas 2 e 3 mob'!A:A,0),9),"ERRO") -> E9665 | D13: 1 | E13: 2 | F13: 1 | G13: =IF(C13="Veículo(s) da própria frota.",0,INDEX(Equipamentos!B:K,MATCH(C13,Equipamentos!A:A,0),9)) -> 382.403 | H13: =((D13*E13*F13)/$H$8)*G13 -> 12.74676667
A14: E9526 | B14: =VLOOKUP(A14,Equipamentos!$A:$K,2,FALSE) -> Retroescavadeira de pneus - capacidade da caçamba da pá-carregadeira de 0,76 m³ e da retroescavadeira de 0,29 m³ - 58 kW | C14: =IFERROR(INDEX('Tabelas 2 e 3 mob'!A:K,MATCH(A14,'Tabelas 2 e 3 mob'!A:A,0),9),"ERRO") -> E9665 | D14: 1 | E14: 2 | F14: 1 | G14: =IF(C14="Veículo(s) da própria frota.",0,INDEX(Equipamentos!B:K,MATCH(C14,Equipamentos!A:A,0),9)) -> 382.403 | H14: =((D14*E14*F14)/$H$8)*G14 -> 12.74676667
A15: E9577 | B15: =VLOOKUP(A15,Equipamentos!$A:$K,2,FALSE) -> Trator agrícola sobre pneus - 77 kW | C15: =IFERROR(INDEX('Tabelas 2 e 3 mob'!A:K,MATCH(A15,'Tabelas 2 e 3 mob'!A:A,0),9),"ERRO") -> E9665 | D15: 1 | E15: 2 | F15: 0.5 | G15: =IF(C15="Veículo(s) da própria frota.",0,INDEX(Equipamentos!B:K,MATCH(C15,Equipamentos!A:A,0),9)) -> 382.403 | H15: 6.373383333
A16: E9518 | B16: =VLOOKUP(A16,Equipamentos!$A:$K,2,FALSE) -> Grade de 24 discos rebocável de D = 60 cm (24") | C16: =IFERROR(INDEX('Tabelas 2 e 3 mob'!A:K,MATCH(A16,'Tabelas 2 e 3 mob'!A:A,0),9),"ERRO") -> Veículo(s) da própria frota. | D16: 1 | E16: 2 | F16: 0 | G16: =IF(C16="Veículo(s) da própria frota.",0,INDEX(Equipamentos!B:K,MATCH(C16,Equipamentos!A:A,0),9)) -> 0 | H16: 0
A17: E9615 | B17: =VLOOKUP(A17,Equipamentos!$A:$K,2,FALSE) -> Usina misturadora de solos com capacidade de 300 t/h - 44 kW | C17: =IFERROR(INDEX('Tabelas 2 e 3 mob'!A:K,MATCH(A17,'Tabelas 2 e 3 mob'!A:A,0),9),"ERRO") -> E9018 | D17: 1 | E17: 2 | F17: 2 | G17: =IF(C17="Veículo(s) da própria frota.",0,INDEX(Equipamentos!B:K,MATCH(C17,Equipamentos!A:A,0),9)) -> 515.3559 | H17: 34.35706
A18: E9530 | B18: =VLOOKUP(A18,Equipamentos!$A:$K,2,FALSE) -> Rolo compactador liso vibratório autopropelido por pneus de 11 t - 97 kW | C18: =IFERROR(INDEX('Tabelas 2 e 3 mob'!A:K,MATCH(A18,'Tabelas 2 e 3 mob'!A:A,0),9),"ERRO") -> E9666 | D18: 1 | E18: 2 | F18: 0.5 | G18: =IF(C18="Veículo(s) da própria frota.",0,INDEX(Equipamentos!B:K,MATCH(C18,Equipamentos!A:A,0),9)) -> 409.3808 | H18: 6.823013333
A19: E9558 | B19: =VLOOKUP(A19,Equipamentos!$A:$K,2,FALSE) -> Tanque de estocagem de asfalto com capacidade de 30.000 l | C19: =IFERROR(INDEX('Tabelas 2 e 3 mob'!A:K,MATCH(A19,'Tabelas 2 e 3 mob'!A:A,0),9),"ERRO") -> E9665 | D19: 0 | E19: 2 | F19: 1 | G19: =IF(C19="Veículo(s) da própria frota.",0,INDEX(Equipamentos!B:K,MATCH(C19,Equipamentos!A:A,0),9)) -> 382.403 | H19: 0
A20: E9758 | B20: =VLOOKUP(A20,Equipamentos!$A:$K,2,FALSE) -> Vibroacabadora de asfalto sobre pneus - 82 kW | C20: =IFERROR(INDEX('Tabelas 2 e 3 mob'!A:K,MATCH(A20,'Tabelas 2 e 3 mob'!A:A,0),9),"ERRO") -> E9018 | D20: 0 | E20: 2 | F20: 0.5 | G20: =IF(C20="Veículo(s) da própria frota.",0,INDEX(Equipamentos!B:K,MATCH(C20,Equipamentos!A:A,0),9)) -> 515.3559 | H20: 0
A21: E9685 | B21: =VLOOKUP(A21,Equipamentos!$A:$K,2,FALSE) -> Rolo compactador pé de carneiro vibratório autopropelido por pneus de 11,6 t - 82 kW | C21: =IFERROR(INDEX('Tabelas 2 e 3 mob'!A:K,MATCH(A21,'Tabelas 2 e 3 mob'!A:A,0),9),"ERRO") -> E9666 | D21: 1 | E21: 2 | F21: 0.5 | G21: =IF(C21="Veículo(s) da própria frota.",0,INDEX(Equipamentos!B:K,MATCH(C21,Equipamentos!A:A,0),9)) -> 409.3808 | H21: 6.823013333
A22: E9605 | B22: =VLOOKUP(A22,Equipamentos!$A:$K,2,FALSE) -> Caminhão tanque com capacidade de 6.000 l - 136 kW | C22: =IFERROR(INDEX('Tabelas 2 e 3 mob'!A:K,MATCH(A22,'Tabelas 2 e 3 mob'!A:A,0),9),"ERRO") -> E9605 | D22: 1 | E22: 1 | F22: 1 | G22: =IF(C22="Veículo(s) da própria frota.",0,INDEX(Equipamentos!B:K,MATCH(C22,Equipamentos!A:A,0),9)) -> 243.1188 | H22: 4.05198
A23: E9579 | B23: =VLOOKUP(A23,Equipamentos!$A:$K,2,FALSE) -> Caminhão basculante com capacidade de 10 m³ - 210 kW | C23: =IFERROR(INDEX('Tabelas 2 e 3 mob'!A:K,MATCH(A23,'Tabelas 2 e 3 mob'!A:A,0),9),"ERRO") -> E9579 | D23: 5 | E23: 1 | F23: 1 | G23: =IF(C23="Veículo(s) da própria frota.",0,INDEX(Equipamentos!B:K,MATCH(C23,Equipamentos!A:A,0),9)) -> 293.1824 | H23: 24.43186667
A24: E9509 | B24: =VLOOKUP(A24,Equipamentos!$A:$K,2,FALSE) -> Caminhão tanque distribuidor de asfalto com capacidade de 6.000 l - 7 kW/136 kW | C24: =IFERROR(INDEX('Tabelas 2 e 3 mob'!A:K,MATCH(A24,'Tabelas 2 e 3 mob'!A:A,0),9),"ERRO") -> E9509 | D24: 0 | E24: 1 | F24: 1 | G24: =IF(C24="Veículo(s) da própria frota.",0,INDEX(Equipamentos!B:K,MATCH(C24,Equipamentos!A:A,0),9)) -> 254.2218 | H24: 0
A25: E9762 | B25: =VLOOKUP(A25,Equipamentos!$A:$K,2,FALSE) -> Rolo compactador de pneus autopropelido de 27 t - 85 kW | C25: =IFERROR(INDEX('Tabelas 2 e 3 mob'!A:K,MATCH(A25,'Tabelas 2 e 3 mob'!A:A,0),9),"ERRO") -> E9666 | D25: 1 | E25: 2 | F25: 0.5 | G25: =IF(C25="Veículo(s) da própria frota.",0,INDEX(Equipamentos!B:K,MATCH(C25,Equipamentos!A:A,0),9)) -> 409.3808 | H25: 6.823013333
A26: E9681 | B26: =VLOOKUP(A26,Equipamentos!$A:$K,2,FALSE) -> Rolo compactador liso tandem vibratório autopropelido de 10,4 t - 82 kW | C26: =IFERROR(INDEX('Tabelas 2 e 3 mob'!A:K,MATCH(A26,'Tabelas 2 e 3 mob'!A:A,0),9),"ERRO") -> E9666 | D26: 0 | E26: 2 | F26: 0.5 | G26: =IF(C26="Veículo(s) da própria frota.",0,INDEX(Equipamentos!B:K,MATCH(C26,Equipamentos!A:A,0),9)) -> 409.3808 | H26: 0
A27: E9545 | B27: =VLOOKUP(A27,Equipamentos!$A:$K,2,FALSE) -> Vibroacabadora de asfalto sobre esteiras - 82 kW | C27: =IFERROR(INDEX('Tabelas 2 e 3 mob'!A:K,MATCH(A27,'Tabelas 2 e 3 mob'!A:A,0),9),"ERRO") -> E9018 | D27: 0 | E27: 2 | F27: 0.5 | G27: =IF(C27="Veículo(s) da própria frota.",0,INDEX(Equipamentos!B:K,MATCH(C27,Equipamentos!A:A,0),9)) -> 515.3559 | H27: 0
A28: E9571 | B28: =VLOOKUP(A28,Equipamentos!$A:$K,2,FALSE) -> Caminhão tanque com capacidade de 10.000 l - 188 kW | C28: =IFERROR(INDEX('Tabelas 2 e 3 mob'!A:K,MATCH(A28,'Tabelas 2 e 3 mob'!A:A,0),9),"ERRO") -> E9571 | D28: 1 | E28: 1 | F28: 1 | G28: =IF(C28="Veículo(s) da própria frota.",0,INDEX(Equipamentos!B:K,MATCH(C28,Equipamentos!A:A,0),9)) -> 319.2068 | H28: 5.320113333
A29: E9514 | B29: =VLOOKUP(A29,Equipamentos!$A:$K,2,FALSE) -> Distribuidor de agregados sobre pneus autopropelido - 130 kW | C29: =IFERROR(INDEX('Tabelas 2 e 3 mob'!A:K,MATCH(A29,'Tabelas 2 e 3 mob'!A:A,0),9),"ERRO") -> E9665 | D29: 1 | E29: 2 | F29: 0.5 | G29: =IF(C29="Veículo(s) da própria frota.",0,INDEX(Equipamentos!B:K,MATCH(C29,Equipamentos!A:A,0),9)) -> 382.403 | H29: 6.373383333
A30: E9511 | B30: =VLOOKUP(A30,Equipamentos!$A:$K,2,FALSE) -> Carregadeira de pneus com capacidade de 3,40 m³ - 195 kW | C30: =IFERROR(INDEX('Tabelas 2 e 3 mob'!A:K,MATCH(A30,'Tabelas 2 e 3 mob'!A:A,0),9),"ERRO") -> E9665 | D30: 1 | E30: 2 | F30: 1 | G30: =IF(C30="Veículo(s) da própria frota.",0,INDEX(Equipamentos!B:K,MATCH(C30,Equipamentos!A:A,0),9)) -> 382.403 | H30: 12.74676667
A31: E9779 | B31: =VLOOKUP(A31,Equipamentos!$A:$K,2,FALSE) -> Grupo gerador - 113 kVA | C31: =IFERROR(INDEX('Tabelas 2 e 3 mob'!A:K,MATCH(A31,'Tabelas 2 e 3 mob'!A:A,0),9),"ERRO") -> Veículo(s) da própria frota. | D31: 1 | E31: 2 | F31: 0 | G31: =IF(C31="Veículo(s) da própria frota.",0,INDEX(Equipamentos!B:K,MATCH(C31,Equipamentos!A:A,0),9)) -> 0 | H31: 0
A32: E9559 | B32: =VLOOKUP(A32,Equipamentos!$A:$K,2,FALSE) -> Aquecedor de fluido térmico - 12 kW | C32: =IFERROR(INDEX('Tabelas 2 e 3 mob'!A:K,MATCH(A32,'Tabelas 2 e 3 mob'!A:A,0),9),"ERRO") -> Veículo(s) da própria frota. | D32: 1 | E32: 2 | F32: 0 | G32: =IF(C32="Veículo(s) da própria frota.",0,INDEX(Equipamentos!B:K,MATCH(C32,Equipamentos!A:A,0),9)) -> 0 | H32: 0
A33: E9584 | B33: =VLOOKUP(A33,Equipamentos!$A:$K,2,FALSE) -> Carregadeira de pneus com capacidade de 1,72 m³ - 113 kW | C33: =IFERROR(INDEX('Tabelas 2 e 3 mob'!A:K,MATCH(A33,'Tabelas 2 e 3 mob'!A:A,0),9),"ERRO") -> E9665 | D33: 1 | E33: 2 | F33: 1 | G33: =IF(C33="Veículo(s) da própria frota.",0,INDEX(Equipamentos!B:K,MATCH(C33,Equipamentos!A:A,0),9)) -> 382.403 | H33: 12.74676667
A34: E9021 | B34: =VLOOKUP(A34,Equipamentos!$A:$K,2,FALSE) -> Grupo gerador - 456 kVA | C34: =IFERROR(INDEX('Tabelas 2 e 3 mob'!A:K,MATCH(A34,'Tabelas 2 e 3 mob'!A:A,0),9),"ERRO") -> E9508 | D34: 1 | E34: 2 | F34: 1 | G34: =IF(C34="Veículo(s) da própria frota.",0,INDEX(Equipamentos!B:K,MATCH(C34,Equipamentos!A:A,0),9)) -> 179.4007 | H34: 5.980023333
A35: E9687 | B35: =VLOOKUP(A35,Equipamentos!$A:$K,2,FALSE) -> Caminhão carroceria com capacidade de 5 t - 115 kW | C35: =IFERROR(INDEX('Tabelas 2 e 3 mob'!A:K,MATCH(A35,'Tabelas 2 e 3 mob'!A:A,0),9),"ERRO") -> E9687 | D35: 1 | E35: 1 | F35: 1 | G35: =IF(C35="Veículo(s) da própria frota.",0,INDEX(Equipamentos!B:K,MATCH(C35,Equipamentos!A:A,0),9)) -> 146.7852 | H35: 2.44642
A36: E9667 | B36: =VLOOKUP(A36,Equipamentos!$A:$K,2,FALSE) -> Caminhão basculante com capacidade de 14 m³ - 210 kW | C36: =IFERROR(INDEX('Tabelas 2 e 3 mob'!A:K,MATCH(A36,'Tabelas 2 e 3 mob'!A:A,0),9),"ERRO") -> E9667 | D36: 1 | E36: 1 | F36: 1 | G36: =IF(C36="Veículo(s) da própria frota.",0,INDEX(Equipamentos!B:K,MATCH(C36,Equipamentos!A:A,0),9)) -> 294.2578 | H36: 4.904296667
A37: E9644 | B37: =VLOOKUP(A37,Equipamentos!$A:$K,2,FALSE) -> Caminhão demarcador de faixas com sistema de pintura a frio - 28 kW/115 kW | C37: =IFERROR(INDEX('Tabelas 2 e 3 mob'!A:K,MATCH(A37,'Tabelas 2 e 3 mob'!A:A,0),9),"ERRO") -> E9644 | D37: 1 | E37: 1 | F37: 1 | G37: =IF(C37="Veículo(s) da própria frota.",0,INDEX(Equipamentos!B:K,MATCH(C37,Equipamentos!A:A,0),9)) -> 366.5661 | H37: 6.109435
A38: E9592 | B38: =VLOOKUP(A38,Equipamentos!$A:$K,2,FALSE) -> Caminhão carroceria com capacidade de 15 t - 188 kW | C38: =IFERROR(INDEX('Tabelas 2 e 3 mob'!A:K,MATCH(A38,'Tabelas 2 e 3 mob'!A:A,0),9),"ERRO") -> E9592 | D38: 1 | E38: 1 | F38: 1 | G38: =IF(C38="Veículo(s) da própria frota.",0,INDEX(Equipamentos!B:K,MATCH(C38,Equipamentos!A:A,0),9)) -> 260.534 | H38: 4.342233333
A39: E9540 | B39: =VLOOKUP(A39,Equipamentos!$A:$K,2,FALSE) -> Trator sobre esteiras com lâmina - 127 kW | C39: =IFERROR(INDEX('Tabelas 2 e 3 mob'!A:K,MATCH(A39,'Tabelas 2 e 3 mob'!A:A,0),9),"ERRO") -> E9018 | D39: 1 | E39: 2 | F39: 0.5 | G39: =IF(C39="Veículo(s) da própria frota.",0,INDEX(Equipamentos!B:K,MATCH(C39,Equipamentos!A:A,0),9)) -> 515.3559 | H39: 8.589265
A40: E9515 | B40: =VLOOKUP(A40,Equipamentos!$A:$K,2,FALSE) -> Escavadeira hidráulica sobre esteiras com caçamba com capacidade de 1,56 m³ - 118 kW | C40: =IFERROR(INDEX('Tabelas 2 e 3 mob'!A:K,MATCH(A40,'Tabelas 2 e 3 mob'!A:A,0),9),"ERRO") -> E9666 | D40: 1 | E40: 2 | F40: 1 | G40: =IF(C40="Veículo(s) da própria frota.",0,INDEX(Equipamentos!B:K,MATCH(C40,Equipamentos!A:A,0),9)) -> 409.3808 | H40: 13.64602667
A41: E9506 | B41: =VLOOKUP(A41,Equipamentos!$A:$K,2,FALSE) -> Caminhão basculante com capacidade de 6 m³ - 136 kW | C41: =IFERROR(INDEX('Tabelas 2 e 3 mob'!A:K,MATCH(A41,'Tabelas 2 e 3 mob'!A:A,0),9),"ERRO") -> E9506 | D41: 1 | E41: 1 | F41: 1 | G41: =IF(C41="Veículo(s) da própria frota.",0,INDEX(Equipamentos!B:K,MATCH(C41,Equipamentos!A:A,0),9)) -> 180.057 | H41: 3.00095
A42: E9256 | B42: =VLOOKUP(A42,Equipamentos!$A:$K,2,FALSE) -> Equipamento para pintura com cal rebocável com dois bicos aplicadores e capacidade de 2.200 l | C42: =IFERROR(INDEX('Tabelas 2 e 3 mob'!A:K,MATCH(A42,'Tabelas 2 e 3 mob'!A:A,0),9),"ERRO") -> Veículo(s) da própria frota. | D42: 1 | E42: 2 | F42: 0 | G42: =IF(C42="Veículo(s) da própria frota.",0,INDEX(Equipamentos!B:K,MATCH(C42,Equipamentos!A:A,0),9)) -> 0 | H42: 0
A43: E9156 | B43: =VLOOKUP(A43,Equipamentos!$A:$K,2,FALSE) -> Soprador de ar costal - 2,6 kW | C43: =IFERROR(INDEX('Tabelas 2 e 3 mob'!A:K,MATCH(A43,'Tabelas 2 e 3 mob'!A:A,0),9),"ERRO") -> Veículo(s) da própria frota. | D43: 1 | E43: 2 | F43: 0 | G43: =IF(C43="Veículo(s) da própria frota.",0,INDEX(Equipamentos!B:K,MATCH(C43,Equipamentos!A:A,0),9)) -> 0 | H43: 0
A44: E9146 | B44: =VLOOKUP(A44,Equipamentos!$A:$K,2,FALSE) -> Caminhão silo com capacidade de 30 m³ - 265 kW | C44: =IFERROR(INDEX('Tabelas 2 e 3 mob'!A:K,MATCH(A44,'Tabelas 2 e 3 mob'!A:A,0),9),"ERRO") -> E9146 | D44: 1 | E44: 1 | F44: 1 | G44: =IF(C44="Veículo(s) da própria frota.",0,INDEX(Equipamentos!B:K,MATCH(C44,Equipamentos!A:A,0),9)) -> 449.457 | H44: 7.49095
A45: E9599 | B45: =VLOOKUP(A45,Equipamentos!$A:$K,2,FALSE) -> Central de concreto com capacidade de 30 m³/h - dosadora RS | C45: =IFERROR(INDEX('Tabelas 2 e 3 mob'!A:K,MATCH(A45,'Tabelas 2 e 3 mob'!A:A,0),9),"ERRO") -> E9018 | D45: 1 | E45: 2 | F45: 1 | G45: =IF(C45="Veículo(s) da própria frota.",0,INDEX(Equipamentos!B:K,MATCH(C45,Equipamentos!A:A,0),9)) -> 515.3559 | H45: 17.17853
A46: E9103 | B46: =VLOOKUP(A46,Equipamentos!$A:$K,2,FALSE) -> Extrusora para meio-fio de concreto - 10,44 kW | C46: =IFERROR(INDEX('Tabelas 2 e 3 mob'!A:K,MATCH(A46,'Tabelas 2 e 3 mob'!A:A,0),9),"ERRO") -> Veículo(s) da própria frota. | D46: 1 | E46: 2 | F46: 0 | G46: =IF(C46="Veículo(s) da própria frota.",0,INDEX(Equipamentos!B:K,MATCH(C46,Equipamentos!A:A,0),9)) -> 0 | H46: 0
A47: E9071 | B47: =VLOOKUP(A47,Equipamentos!$A:$K,2,FALSE) -> Transportador manual carrinho de mão com capacidade de 80 l | C47: =IFERROR(INDEX('Tabelas 2 e 3 mob'!A:K,MATCH(A47,'Tabelas 2 e 3 mob'!A:A,0),9),"ERRO") -> Veículo(s) da própria frota. | D47: 0 | E47: 2 | F47: 0 | G47: =IF(C47="Veículo(s) da própria frota.",0,INDEX(Equipamentos!B:K,MATCH(C47,Equipamentos!A:A,0),9)) -> 0 | H47: 0
A48: E9064 | B48: =VLOOKUP(A48,Equipamentos!$A:$K,2,FALSE) -> Transportador manual gerica com capacidade de 180 l | C48: =IFERROR(INDEX('Tabelas 2 e 3 mob'!A:K,MATCH(A48,'Tabelas 2 e 3 mob'!A:A,0),9),"ERRO") -> Veículo(s) da própria frota. | D48: 0 | E48: 2 | F48: 0 | G48: =IF(C48="Veículo(s) da própria frota.",0,INDEX(Equipamentos!B:K,MATCH(C48,Equipamentos!A:A,0),9)) -> 0 | H48: 0
A49: E9066 | B49: =VLOOKUP(A49,Equipamentos!$A:$K,2,FALSE) -> Grupo gerador - 14 kVA | C49: =IFERROR(INDEX('Tabelas 2 e 3 mob'!A:K,MATCH(A49,'Tabelas 2 e 3 mob'!A:A,0),9),"ERRO") -> Veículo(s) da própria frota. | D49: 0 | E49: 2 | F49: 0 | G49: =IF(C49="Veículo(s) da própria frota.",0,INDEX(Equipamentos!B:K,MATCH(C49,Equipamentos!A:A,0),9)) -> 0 | H49: 0
A50: E9535 | B50: =VLOOKUP(A50,Equipamentos!$A:$K,2,FALSE) -> Serra circular com bancada - D = 30 cm - 4 kW | C50: =IFERROR(INDEX('Tabelas 2 e 3 mob'!A:K,MATCH(A50,'Tabelas 2 e 3 mob'!A:A,0),9),"ERRO") -> Veículo(s) da própria frota. | D50: 0 | E50: 2 | F50: 0 | G50: =IF(C50="Veículo(s) da própria frota.",0,INDEX(Equipamentos!B:K,MATCH(C50,Equipamentos!A:A,0),9)) -> 0 | H50: 0
A51: E9507 | B51: =VLOOKUP(A51,Equipamentos!$A:$K,2,FALSE) -> Plotadora de recorte com computador e programa computacional | C51: =IFERROR(INDEX('Tabelas 2 e 3 mob'!A:K,MATCH(A51,'Tabelas 2 e 3 mob'!A:A,0),9),"ERRO") -> Veículo(s) da própria frota. | D51: 0 | E51: 2 | F51: 0 | G51: =IF(C51="Veículo(s) da própria frota.",0,INDEX(Equipamentos!B:K,MATCH(C51,Equipamentos!A:A,0),9)) -> 0 | H51: 0
A52: E9568 | B52: =VLOOKUP(A52,Equipamentos!$A:$K,2,FALSE) -> Furadeira de impacto de 12,5 mm - 0,80 kW | C52: =IFERROR(INDEX('Tabelas 2 e 3 mob'!A:K,MATCH(A52,'Tabelas 2 e 3 mob'!A:A,0),9),"ERRO") -> Veículo(s) da própria frota. | D52: 0 | E52: 2 | F52: 0 | G52: =IF(C52="Veículo(s) da própria frota.",0,INDEX(Equipamentos!B:K,MATCH(C52,Equipamentos!A:A,0),9)) -> 0 | H52: 0
A53: E9753 | B53: =VLOOKUP(A53,Equipamentos!$A:$K,2,FALSE) -> Grupo gerador - 23 kVA | C53: =IFERROR(INDEX('Tabelas 2 e 3 mob'!A:K,MATCH(A53,'Tabelas 2 e 3 mob'!A:A,0),9),"ERRO") -> Veículo(s) da própria frota. | D53: 0 | E53: 2 | F53: 0 | G53: =IF(C53="Veículo(s) da própria frota.",0,INDEX(Equipamentos!B:K,MATCH(C53,Equipamentos!A:A,0),9)) -> 0 | H53: 0
A54: E9623 | B54: =VLOOKUP(A54,Equipamentos!$A:$K,2,FALSE) -> Máquina de bancada guilhotina - 4,00 kW | C54: =IFERROR(INDEX('Tabelas 2 e 3 mob'!A:K,MATCH(A54,'Tabelas 2 e 3 mob'!A:A,0),9),"ERRO") -> Veículo(s) da própria frota. | D54: 0 | E54: 2 | F54: 0 | G54: =IF(C54="Veículo(s) da própria frota.",0,INDEX(Equipamentos!B:K,MATCH(C54,Equipamentos!A:A,0),9)) -> 0 | H54: 0
A55: E9622 | B55: =VLOOKUP(A55,Equipamentos!$A:$K,2,FALSE) -> Máquina de bancada universal para corte de chapa - 1,50 kW | C55: =IFERROR(INDEX('Tabelas 2 e 3 mob'!A:K,MATCH(A55,'Tabelas 2 e 3 mob'!A:A,0),9),"ERRO") -> Veículo(s) da própria frota. | D55: 0 | E55: 2 | F55: 0 | G55: =IF(C55="Veículo(s) da própria frota.",0,INDEX(Equipamentos!B:K,MATCH(C55,Equipamentos!A:A,0),9)) -> 0 | H55: 0
A56: E9678 | B56: =VLOOKUP(A56,Equipamentos!$A:$K,2,FALSE) -> Fresadora a frio - 455 kW | C56: =IFERROR(INDEX('Tabelas 2 e 3 mob'!A:K,MATCH(A56,'Tabelas 2 e 3 mob'!A:A,0),9),"ERRO") -> E9666 | D56: 0 | E56: 2 | F56: 1 | G56: =IF(C56="Veículo(s) da própria frota.",0,INDEX(Equipamentos!B:K,MATCH(C56,Equipamentos!A:A,0),9)) -> 409.3808 | H56: 0
G57: TOTAL | H57: =SUM(H13:H56) -> 226.0520233
A60: CUSTO TOTAL MOBILIZAÇÃO E DESMOBILIZAÇÃO
A61: DESCRIÇÃO | B61: VALOR
A62: Custo Mobilização (km) | B62: =H57 -> 226.0520233
A63: BDI (%) | B63: =BDI!C17 -> 0.2339
A64: Custo Mobilização (R$/km) com BDI | B64: =B62+(B62*B63) -> 278.9255916
A65: Total de Frentes | B65: ='MC MODULO'!G1 -> 3.416428571
A66: Custo Mobilização (frentes x distancia) | B66: =B64*H6*B65 -> 120069.0994

Sheet Canteiro
A4: CANTEIRO DE OBRAS PARA CONSTRUÇAO RODOVIÁRIA
A5: Descrição dos serviços | B5: Tipo de container | C5: Unidade | D5: Quantidade | E5: Preço unitário (R$) | F5: Total (R$)
A6: Escritório e seção técnica
A7: =VLOOKUP(B7,'INSUMOS SINAPI'!A:E,2,0) -> LOCACAO DE CONTAINER 2,30 X 6,00 M, ALT. 2,50 M, PARA ESCRITORIO, SEM DIVISORIAS INTERNAS E SEM SANITARIO (NAO INCLUI MOBILIZACAO/DESMOBILIZACAO) | B7: 10776 | C7: und | D7: 1 | E7: =VLOOKUP(B7,'INSUMOS SINAPI'!A:E,5,0) -> 650.39 | F7: =TRUNC(D7*E7,2) -> 650.39
A8: Banheiro e vestiário
A9: =VLOOKUP(B9,'INSUMOS SINAPI'!A:E,2,0) -> LOCACAO DE CONTAINER 2,30 X 4,30 M, ALT. 2,50 M, PARA SANITARIO, COM 3 BACIAS, 4 CHUVEIROS, 1 LAVATORIO E 1 MICTORIO (NAO INCLUI MOBILIZACAO/DESMOBILIZACAO) | B9: 10777 | C9: und | D9: 1 | E9: =VLOOKUP(B9,'INSUMOS SINAPI'!A:E,5,0) -> 945.23 | F9: =TRUNC(D9*E9,2) -> 945.23
D10: TOTAL DO CANTEIRO | F10: =SUM(F7:F9) -> 1595.62
D11: DURAÇÃO (MESES) | E11: 12 | F11: =F10*E11 -> 19147.44
D12: BDI | F12: =BDI!C17 -> 0.2339
D13: TOTAL DO CANTEIRO (com BDI) | F13: =F11+(F11*F12) -> 23626.02622

Sheet MOMENTO DE TRANSPORTE - PRINC
B5: ='RESUMO MODULO TOTAL'!B1 -> CONTRATAÇÃO DE SERVIÇOS DE EXECUÇÃO DE PAVIMENTAÇÃO EM BLOCO INTERTRAVADO DE CONCRETO EM VIAS DE DIVERSOS MUNICÍPIOS INSERIDOS NA ÁREA DE ATUAÇÃO DA 13ª SUPERINTENDÊNCIA REGIONAL DA CODEVASF, NO ESTADO DA PARAÍBA - REGIÃO LITORAL
B6: DATA BASE: | C6: ='RESUMO MODULO TOTAL'!N2 -> Paraíba - Abril/2024
C8: RESUMO DO TRANSPORTE PRINCIPAL
B9: CODIGO | C9: DESCRIÇÃO | D9: TKM
B10: 5914359 | C10: =VLOOKUP(B10,'SINTÉTICO SICRO'!$A:$D,2,0) -> Transporte com caminhão basculante de 10 m³ - rodovia em leito natural | D10: =ROUND(SUMIF('MOMENTO DE TRANSPORTE - PRINC'!A:A,B10,'MOMENTO DE TRANSPORTE - PRINC'!K:K),2) -> 14801.07
B11: 5914374 | C11: =VLOOKUP(B11,'SINTÉTICO SICRO'!$A:$D,2,0) -> Transporte com caminhão basculante de 10 m³ - rodovia em revestimento primário | D11: =ROUND(SUMIF('MOMENTO DE TRANSPORTE - PRINC'!A:A,B11,'MOMENTO DE TRANSPORTE - PRINC'!K:K),2) -> 14801.07
B12: 5914389 | C12: =VLOOKUP(B12,'SINTÉTICO SICRO'!$A:$D,2,0) -> Transporte com caminhão basculante de 10 m³ - rodovia pavimentada | D12: =ROUND(SUMIF('MOMENTO DE TRANSPORTE - PRINC'!A:A,B12,'MOMENTO DE TRANSPORTE - PRINC'!K:K),2) -> 118408.52
B13: 5914539 | C13: =VLOOKUP(B13,'SINTÉTICO SICRO'!$A:$D,2,0) -> Transporte com caminhão betoneira - rodovia em leito natural | D13: =ROUND(SUMIF('MOMENTO DE TRANSPORTE - PRINC'!A:A,B13,'MOMENTO DE TRANSPORTE - PRINC'!K:K),2) -> 0
B14: 5914554 | C14: =VLOOKUP(B14,'SINTÉTICO SICRO'!$A:$D,2,0) -> Transporte com caminhão betoneira - rodovia em revestimento primário | D14: =ROUND(SUMIF('MOMENTO DE TRANSPORTE - PRINC'!A:A,B14,'MOMENTO DE TRANSPORTE - PRINC'!K:K),2) -> 0
B15: 5914569 | C15: =VLOOKUP(B15,'SINTÉTICO SICRO'!$A:$D,2,0) -> Transporte com caminhão betoneira - rodovia pavimentada | D15: =ROUND(SUMIF('MOMENTO DE TRANSPORTE - PRINC'!A:A,B15,'MOMENTO DE TRANSPORTE - PRINC'!K:K),2) -> 0
B17: TIPO (P, RP ou LN) | C17: DMT ESTIMADA (DISTRIBUIÇÃO DO ITEM NA PISTA
B18: P | C18: 10
B20: SISTEMA DE CUSTOS REFERENCIAIS DE OBRAS - SICRO
B21: Custo Unitário de Referência | D21: =$C$6 -> Paraíba - Abril/2024 | I21: Quantitativo | K21: un
B22: 4011256 | C22: Base estabilizada granulometricamente com mistura solo brita (70% - 30%) na pista com material de jazida e brita comercial | I22: =(SUMIF('RESUMO MODULO TOTAL'!D:D,B22,'RESUMO MODULO TOTAL'!J:J))*0.8 -> 5739.6
B23: D - ATIVIDADES AUXILIARES | D23: Quantidade | E23: Unidade
B24: 4016096 | C24: Escavação e carga de material de jazida com escavadeira hidráulica de 1,56 m³ | D24: 0.77019 | E24: m³
B26: F - MOMENTO DE TRANSPORTE | D26: Quantidade | E26: Unidade | F26: CÓDIGO TRANSPORTE
F27: LN | G27: RP | H27: P | I27: TIPO (P, RP ou LN) | J27: DMT ESTIMADA (km) | K27: QUANTITATIVO TOTAL DE TRANSPORTE (tkm)
A28: =IF(I28="P",H28,IF(I28="RP",G28,IF(I28="LN",F28,""))) -> 5914389 | B28: 4016096 | C28: Escavação e carga de material de jazida com escavadeira hidráulica de 1,56 m³ - Caminhão basculante 10 m³ | D28: 1.44411 | E28: tkm | F28: 5914359 | G28: 5914374 | H28: 5914389 | I28: =$B$18 -> P | J28: =$C$18 -> 10 | K28: =IF(ISBLANK(J28),"",J28*D28)*I22 -> 82886.13756
A29: =IF(I29="P",H29,IF(I29="RP",G29,IF(I29="LN",F29,""))) -> 5914389 | B29: M0191 | C29: Brita 1 - Caminhão basculante 10 m³ | D29: 0.6189 | E29: tkm | F29: 5914359 | G29: 5914374 | H29: 5914389 | I29: =$B$18 -> P | J29: =$C$18 -> 10 | K29: =IF(ISBLANK(J29),"",J29*D29)*I22 -> 35522.3844
B31: Obs.
B33: SISTEMA DE CUSTOS REFERENCIAIS DE OBRAS - SICRO
B34: Custo Unitário de Referência | D34: =$C$6 -> Paraíba - Abril/2024 | I34: Quantitativo | K34: m
B35: 2003943 | C35: =VLOOKUP(B35,'SINTÉTICO SICRO'!A:D,2,0) -> Meio-fio de concreto - MFC 03 moldado no local com extrusora e concreto usinado - areia e brita comerciais | I35: =(SUMIF('RESUMO MODULO TOTAL'!D:D,B35,'RESUMO MODULO TOTAL'!J:J))*0.8 -> 10932.57143
B36: D - ATIVIDADES AUXILIARES | D36: Quantidade | E36: Unidade
B37: 1107892 | C37: =VLOOKUP(B37,'SINTÉTICO SICRO'!A:D,2,0) -> Concreto fck = 20 MPa - confecção em betoneira e lançamento manual - areia e brita comerciais | D37: 0.042 | E37: m³
B38: 2003842 | C38: =VLOOKUP(B38,'SINTÉTICO SICRO'!A:D,2,0) -> Enchimento de junta de concreto com argamassa asfáltica de densidade 1.700 kg/m³ - espessura de 1 cm | D38: 0.0595 | E38: kg
B39: 4805750 | C39: =VLOOKUP(B39,'SINTÉTICO SICRO'!A:D,2,0) -> Escavação manual em material de 1ª categoria na profundidade de até 1 m | D39: 0.03 | E39: m³
B40: 3103302 | C40: =VLOOKUP(B40,'SINTÉTICO SICRO'!A:D,2,0) -> Fôrmas de tábuas de pinho para dispositivos de drenagem - utilização de 3 vezes - confecção, instalação e retirada | D40: 0.5475 | E40: m²
B42: F - MOMENTO DE TRANSPORTE | D42: Quantidade | E42: Unidade | F42: CÓDIGO TRANSPORTE
F43: LN | G43: RP | H43: P | I43: TIPO (P, RP ou LN) | J43: DMT ESTIMADA (km) | K43: QUANTITATIVO TOTAL DE TRANSPORTE (tkm)
B46: TIPO (P, RP ou LN) | C46: DMT ESTIMADA (DISTRIBUIÇÃO DO ITEM NA PISTA
B47: LN | C47: =C18 -> 10
B49: SISTEMA DE CUSTOS REFERENCIAIS DE OBRAS - SICRO
B50: Custo Unitário de Referência | D50: =$C$6 -> Paraíba - Abril/2024 | I50: Quantitativo | K50: un
B51: 4011256 | C51: Base estabilizada granulometricamente com mistura solo brita (70% - 30%) na pista com material de jazida e brita comercial | I51: =(SUMIF('RESUMO MODULO TOTAL'!D:D,B51,'RESUMO MODULO TOTAL'!J:J))*0.1 -> 717.45
B52: D - ATIVIDADES AUXILIARES | D52: Quantidade | E52: Unidade
B53: 4016096 | C53: Escavação e carga de material de jazida com escavadeira hidráulica de 1,56 m³ | D53: 0.77019 | E53: m³
B55: F - MOMENTO DE TRANSPORTE | D55: Quantidade | E55: Unidade | F55: CÓDIGO TRANSPORTE
F56: LN | G56: RP | H56: P | I56: TIPO (P, RP ou LN) | J56: DMT ESTIMADA (km) | K56: QUANTITATIVO TOTAL DE TRANSPORTE (tkm)
A57: =IF(I57="P",H57,IF(I57="RP",G57,IF(I57="LN",F57,""))) -> 5914359 | B57: 4016096 | C57: Escavação e carga de material de jazida com escavadeira hidráulica de 1,56 m³ - Caminhão basculante 10 m³ | D57: 1.44411 | E57: tkm | F57: 5914359 | G57: 5914374 | H57: 5914389 | I57: =$B$47 -> LN | J57: =$C$47 -> 10 | K57: =IF(ISBLANK(J57),"",J57*D57)*I51 -> 10360.7672
A58: =IF(I58="P",H58,IF(I58="RP",G58,IF(I58="LN",F58,""))) -> 5914359 | B58: M0191 | C58: Brita 1 - Caminhão basculante 10 m³ | D58: 0.6189 | E58: tkm | F58: 5914359 | G58: 5914374 | H58: 5914389 | I58: LN | J58: =$C$18 -> 10 | K58: =IF(ISBLANK(J58),"",J58*D58)*I51 -> 4440.29805
B60: Obs.
B61: SISTEMA DE CUSTOS REFERENCIAIS DE OBRAS - SICRO
B62: Custo Unitário de Referência | D62: =$C$6 -> Paraíba - Abril/2024 | I62: Quantitativo | K62: m
B63: 2003943 | C63: =VLOOKUP(B63,'SINTÉTICO SICRO'!A:D,2,0) -> Meio-fio de concreto - MFC 03 moldado no local com extrusora e concreto usinado - areia e brita comerciais | I63: =(SUMIF('RESUMO MODULO TOTAL'!D:D,B63,'RESUMO MODULO TOTAL'!J:J))*0.8 -> 10932.57143
B64: D - ATIVIDADES AUXILIARES | D64: Quantidade | E64: Unidade
B65: 1107892 | C65: =VLOOKUP(B65,'SINTÉTICO SICRO'!A:D,2,0) -> Concreto fck = 20 MPa - confecção em betoneira e lançamento manual - areia e brita comerciais | D65: 0.042 | E65: m³
B66: 2003842 | C66: =VLOOKUP(B66,'SINTÉTICO SICRO'!A:D,2,0) -> Enchimento de junta de concreto com argamassa asfáltica de densidade 1.700 kg/m³ - espessura de 1 cm | D66: 0.0595 | E66: kg
B67: 4805750 | C67: =VLOOKUP(B67,'SINTÉTICO SICRO'!A:D,2,0) -> Escavação manual em material de 1ª categoria na profundidade de até 1 m | D67: 0.03 | E67: m³
B68: 3103302 | C68: =VLOOKUP(B68,'SINTÉTICO SICRO'!A:D,2,0) -> Fôrmas de tábuas de pinho para dispositivos de drenagem - utilização de 3 vezes - confecção, instalação e retirada | D68: 0.5475 | E68: m²
B69: F - MOMENTO DE TRANSPORTE | D69: Quantidade | E69: Unidade | F69: CÓDIGO TRANSPORTE
F70: LN | G70: RP | H70: P | I70: TIPO (P, RP ou LN) | J70: DMT ESTIMADA (km) | K70: QUANTITATIVO TOTAL DE TRANSPORTE (tkm)
B73: TIPO (P, RP ou LN) | C73: DMT ESTIMADA (DISTRIBUIÇÃO DO ITEM NA PISTA
B74: RP | C74: =C18 -> 10
B76: SISTEMA DE CUSTOS REFERENCIAIS DE OBRAS - SICRO
B77: Custo Unitário de Referência | D77: =$C$6 -> Paraíba - Abril/2024 | I77: Quantitativo | K77: un
B78: 4011256 | C78: Base estabilizada granulometricamente com mistura solo brita (70% - 30%) na pista com material de jazida e brita comercial | I78: =(SUMIF('RESUMO MODULO TOTAL'!D:D,B78,'RESUMO MODULO TOTAL'!J:J))*0.1 -> 717.45
B79: D - ATIVIDADES AUXILIARES | D79: Quantidade | E79: Unidade
B80: 4016096 | C80: Escavação e carga de material de jazida com escavadeira hidráulica de 1,56 m³ | D80: 0.77019 | E80: m³
B82: F - MOMENTO DE TRANSPORTE | D82: Quantidade | E82: Unidade | F82: CÓDIGO TRANSPORTE
F83: LN | G83: RP | H83: P | I83: TIPO (P, RP ou LN) | J83: DMT ESTIMADA (km) | K83: QUANTITATIVO TOTAL DE TRANSPORTE (tkm)
A84: =IF(I84="P",H84,IF(I84="RP",G84,IF(I84="LN",F84,""))) -> 5914374 | B84: 4016096 | C84: Escavação e carga de material de jazida com escavadeira hidráulica de 1,56 m³ - Caminhão basculante 10 m³ | D84: 1.44411 | E84: tkm | F84: 5914359 | G84: 5914374 | H84: 5914389 | I84: =$B$74 -> RP | J84: =$C$74 -> 10 | K84: =IF(ISBLANK(J84),"",J84*D84)*I78 -> 10360.7672
A85: =IF(I85="P",H85,IF(I85="RP",G85,IF(I85="LN",F85,""))) -> 5914374 | B85: M0191 | C85: Brita 1 - Caminhão basculante 10 m³ | D85: 0.6189 | E85: tkm | F85: 5914359 | G85: 5914374 | H85: 5914389 | I85: RP | J85: =$C$18 -> 10 | K85: =IF(ISBLANK(J85),"",J85*D85)*I78 -> 4440.29805
B87: Obs.
B88: SISTEMA DE CUSTOS REFERENCIAIS DE OBRAS - SICRO
B89: Custo Unitário de Referência | D89: =$C$6 -> Paraíba - Abril/2024 | I89: Quantitativo | K89: m
B90: 2003943 | C90: =VLOOKUP(B90,'SINTÉTICO SICRO'!A:D,2,0) -> Meio-fio de concreto - MFC 03 moldado no local com extrusora e concreto usinado - areia e brita comerciais | I90: =(SUMIF('RESUMO MODULO TOTAL'!D:D,B90,'RESUMO MODULO TOTAL'!J:J))*0.8 -> 10932.57143
B91: D - ATIVIDADES AUXILIARES | D91: Quantidade | E91: Unidade
B92: 1107892 | C92: =VLOOKUP(B92,'SINTÉTICO SICRO'!A:D,2,0) -> Concreto fck = 20 MPa - confecção em betoneira e lançamento manual - areia e brita comerciais | D92: 0.042 | E92: m³
B93: 2003842 | C93: =VLOOKUP(B93,'SINTÉTICO SICRO'!A:D,2,0) -> Enchimento de junta de concreto com argamassa asfáltica de densidade 1.700 kg/m³ - espessura de 1 cm | D93: 0.0595 | E93: kg
B94: 4805750 | C94: =VLOOKUP(B94,'SINTÉTICO SICRO'!A:D,2,0) -> Escavação manual em material de 1ª categoria na profundidade de até 1 m | D94: 0.03 | E94: m³
B95: 3103302 | C95: =VLOOKUP(B95,'SINTÉTICO SICRO'!A:D,2,0) -> Fôrmas de tábuas de pinho para dispositivos de drenagem - utilização de 3 vezes - confecção, instalação e retirada | D95: 0.5475 | E95: m²
B96: F - MOMENTO DE TRANSPORTE | D96: Quantidade | E96: Unidade | F96: CÓDIGO TRANSPORTE
F97: LN | G97: RP | H97: P | I97: TIPO (P, RP ou LN) | J97: DMT ESTIMADA (km) | K97: QUANTITATIVO TOTAL DE TRANSPORTE (tkm)

Sheet MOMENTO DE TRANSPORTE - AUX
B5: ='RESUMO MODULO TOTAL'!B1 -> CONTRATAÇÃO DE SERVIÇOS DE EXECUÇÃO DE PAVIMENTAÇÃO EM BLOCO INTERTRAVADO DE CONCRETO EM VIAS DE DIVERSOS MUNICÍPIOS INSERIDOS NA ÁREA DE ATUAÇÃO DA 13ª SUPERINTENDÊNCIA REGIONAL DA CODEVASF, NO ESTADO DA PARAÍBA - REGIÃO LITORAL
B6: DATA BASE: | C6: ='RESUMO MODULO TOTAL'!N2 -> Paraíba - Abril/2024
C8: RESUMO DO TRANSPORTE AUXILIAR
B9: CODIGO | C9: DESCRIÇÃO | D9: TKM
B10: 5914359 | C10: =VLOOKUP(B10,'SINTÉTICO SICRO'!$A:$D,2,0) -> Transporte com caminhão basculante de 10 m³ - rodovia em leito natural | D10: =ROUND(SUMIF($A:$A,B10,$K:$K),2) -> 31453.55
B11: 5914374 | C11: =VLOOKUP(B11,'SINTÉTICO SICRO'!$A:$D,2,0) -> Transporte com caminhão basculante de 10 m³ - rodovia em revestimento primário | D11: 31453.55
B12: 5914389 | C12: =VLOOKUP(B12,'SINTÉTICO SICRO'!$A:$D,2,0) -> Transporte com caminhão basculante de 10 m³ - rodovia pavimentada | D12: 251628.44
B13: 5914449 | C13: =VLOOKUP(B13,'SINTÉTICO SICRO'!$A:$D,2,0) -> Transporte com caminhão carroceria de 15 t - rodovia em leito natural | D13: 0
B14: 5914464 | C14: =VLOOKUP(B14,'SINTÉTICO SICRO'!$A:$D,2,0) -> Transporte com caminhão carroceria de 15 t - rodovia em revestimento primário | D14: 0
B15: 5914479 | C15: =VLOOKUP(B15,'SINTÉTICO SICRO'!$A:$D,2,0) -> Transporte com caminhão carroceria de 15 t - rodovia pavimentada | D15: 0
B17: TIPO (P, RP ou LN) | C17: DMT ATÉ 50 KM NÃO DEVE SER PAGA | D17: SOMENTE DEVE SER ADICIONADO A DISTÂNCIA EXCEDENTE A 50 KM
B18: P | D18: 25
B20: SISTEMA DE CUSTOS REFERENCIAIS DE OBRAS - SICRO | I20: Quantitivo
B21: Custo Unitário de Referência | E21: =$C$6 -> Paraíba - Abril/2024 | I21: (Coeficiente na composição principal) x (quantidade da principal no orçamento) | K21: m³
B22: 1107892 | C22: Concreto fck = 20 MPa - confecção em betoneira e lançamento manual - areia e brita comerciais | I22: =('MOMENTO DE TRANSPORTE - PRINC'!$D$37*VLOOKUP(C31,'RESUMO MODULO TOTAL'!D:R,7,FALSE))*0.8 -> 459.168
B23: F - MOMENTO DE TRANSPORTE | D23: Quantidade | E23: Unidade | F23: DMT
F24: LN | G24: RP | H24: P | I24: TIPO (P, RP ou LN) | J24: DMT ESTIMADA (km) | K24: QUANTITATIVO TOTAL DE TRANSPORTE DE MATERIAL (tkm)
A25: =IF(I25="P",H25,IF(I25="RP",G25,IF(I25="LN",F25,""))) -> 5914479 | B25: M0030 | C25: Aditivo plastificante e retardador de pega para concreto e argamassa - Caminhão carroceria 15 t | D25: 0.00082 | E25: tkm | F25: 5914449 | G25: 5914464 | H25: 5914479 | I25: =$B$18 -> P | J25: 0 | K25: =IF(ISBLANK(J25),"",J25*(D25*$I$22)) -> 0
A26: =IF(I26="P",H26,IF(I26="RP",G26,IF(I26="LN",F26,""))) -> 5914389 | B26: M0082 | C26: Areia média lavada - Caminhão basculante 10 m³ | D26: 0.95639 | E26: tkm | F26: 5914359 | G26: 5914374 | H26: 5914389 | I26: =$B$18 -> P | J26: =$D$18 -> 25 | K26: =IF(ISBLANK(J26),"",J26*(D26*$I$22)) -> 10978.59209
A27: 5914389 | B27: M0191 | C27: Brita 1 - Caminhão basculante 10 m³ | D27: 0.55131 | E27: tkm | F27: 5914359 | G27: 5914374 | H27: 5914389 | I27: P | J27: 25 | K27: =IF(ISBLANK(J27),"",J27*(D27*$I$22)) -> 6328.597752
A28: 5914389 | B28: M0192 | C28: Brita 2 - Caminhão basculante 10 m³ | D28: 0.55131 | E28: tkm | F28: 5914359 | G28: 5914374 | H28: 5914389 | I28: P | J28: 25 | K28: =IF(ISBLANK(J28),"",J28*(D28*$I$22)) -> 6328.597752
A29: 5914479 | B29: M0424 | C29: Cimento Portland CP II - 32 - saco - Caminhão carroceria 15 t | D29: 0.27464 | E29: tkm | F29: 5914449 | G29: 5914464 | H29: 5914479 | I29: P | J29: 0 | K29: =IF(ISBLANK(J29),"",J29*(D29*$I$22)) -> 0
B31: PRINCIPAL: | C31: 2003943
B32: SISTEMA DE CUSTOS REFERENCIAIS DE OBRAS - SICRO | I32: Quantitivo
B33: Custo Unitário de Referência | E33: =$C$6 -> Paraíba - Abril/2024 | H33: m² | I33: (Coeficiente na composição principal) x (quantidade da principal no orçamento) | K33: kg
B34: 2003842 | C34: Enchimento de junta de concreto com argamassa asfáltica de densidade 1.700 kg/m³ - espessura de 1 cm | I34: =('MOMENTO DE TRANSPORTE - PRINC'!$D$38*VLOOKUP(C39,'RESUMO MODULO TOTAL'!D:R,7,FALSE))*0.8 -> 650.488
B35: F - MOMENTO DE TRANSPORTE | D35: Quantidade | E35: Unidade | F35: DMT
F36: LN | G36: RP | H36: P | I36: TIPO (P, RP ou LN) | J36: DMT ESTIMADA (km) | K36: QUANTITATIVO TOTAL DE TRANSPORTE DE MATERIAL (tkm)
A37: =IF(I37="P",H37,IF(I37="RP",G37,IF(I37="LN",F37,""))) -> 5914479 | B37: M2158 | C37: Argamassa asfáltica - Caminhão carroceria com capacidade de 15 t - 188 Kw | D37: 0.001 | E37: tkm | F37: 5914449 | G37: 5914464 | H37: 5914479 | I37: =$B$18 -> P | J37: 0 | K37: =IF(ISBLANK(J37),"",J37*(D37*$I$34)) -> 0
B39: PRINCIPAL: | C39: 2003943
B40: SISTEMA DE CUSTOS REFERENCIAIS DE OBRAS - SICRO | I40: Quantitivo
B41: Custo Unitário de Referência | E41: =$C$6 -> Paraíba - Abril/2024 | I41: (Coeficiente na composição principal) x (quantidade da principal no orçamento) | K41: m³
B42: 3103302 | C42: =VLOOKUP(B42,'SINTÉTICO SICRO'!A:D,2,0) -> Fôrmas de tábuas de pinho para dispositivos de drenagem - utilização de 3 vezes - confecção, instalação e retirada | I42: ='MOMENTO DE TRANSPORTE - PRINC'!D40*(VLOOKUP(C50,'RESUMO MODULO TOTAL'!D:O,7,FALSE)*0.8) -> 5985.582857
B43: F - MOMENTO DE TRANSPORTE | D43: Quantidade | E43: Unidade | F43: DMT
F44: LN | G44: RP | H44: P | I44: TIPO (P, RP ou LN) | J44: DMT ESTIMADA (km) | K44: QUANTITATIVO TOTAL DE TRANSPORTE DE MATERIAL (tkm)
A45: =IF(I45="P",H45,IF(I45="RP",G45,IF(I45="LN",F45,""))) -> 5914479 | B45: M0560 | C45: =VLOOKUP(B45,'Material Sicro'!$A$4:$D$1048576,2,0) -> Desmoldante para fôrmas de madeira | D45: 2e-05 | E45: tkm | F45: 5914449 | G45: 5914464 | H45: 5914479 | I45: =$B$18 -> P | J45: 0 | K45: =IF(ISBLANK(J45),"",J45*(D45*$I$42)) -> 0
A46: =IF(I46="P",H46,IF(I46="RP",G46,IF(I46="LN",F46,""))) -> 5914479 | B46: M1205 | C46: =VLOOKUP(B46,'Material Sicro'!$A$4:$D$1048576,2,0) -> Prego de ferro | D46: 2e-05 | E46: tkm | F46: 5914449 | G46: 5914464 | H46: 5914479 | I46: P | J46: 0 | K46: =IF(ISBLANK(J46),"",J46*(D46*$I$42)) -> 0
A47: 5914479 | B47: M0290 | C47: =VLOOKUP(B47,'Material Sicro'!$A$4:$D$1048576,2,0) -> Tábua - E = 2,5 cm e L = 10 cm | D47: 0.00304 | E47: tkm | F47: 5914449 | G47: 5914464 | H47: 5914479 | I47: P | J47: 0 | K47: 0
A48: 5914479 | B48: M1429 | C48: =VLOOKUP(B48,'Material Sicro'!$A$4:$D$1048576,2,0) -> Tábua de pinho de terceira - E = 2,5 cm | D48: 0.01011 | E48: tkm | F48: 5914449 | G48: 5914464 | H48: 5914479 | I48: P | J48: 0 | K48: 0
B50: PRINCIPAL: | C50: 2003943
A51: =IF(I51="P",H51,IF(I51="RP",G51,IF(I51="LN",F51,""))) ->  | B51: SISTEMA DE CUSTOS REFERENCIAIS DE OBRAS - SICRO | I51: Quantitivo
B52: Custo Unitário de Referência | E52: =$C$6 -> Paraíba - Abril/2024 | I52: (Coeficiente na composição principal) x (quantidade da principal no orçamento) | K52: m³
B53: 4016096 | C53: Escavação e carga de material de jazida com escavadeira hidráulica de 1,56 m³ | I53: =('MOMENTO DE TRANSPORTE - PRINC'!D24*VLOOKUP(C59,'RESUMO MODULO TOTAL'!D:Q,7,FALSE))*0.8 -> 4420.582524
B54: F - MOMENTO DE TRANSPORTE | D54: Quantidade | E54: Unidade | F54: DMT
F55: LN | G55: RP | H55: P | I55: TIPO (P, RP ou LN) | J55: DMT ESTIMADA (km) | K55: QUANTITATIVO TOTAL DE TRANSPORTE DE MATERIAL (tkm)
A56: 5914389 | B56: 4016096 | C56: Escavação e carga de material de jazida com escavadeira hidráulica de 1,56 m³ - Caminhão basculante 10 m³ | D56: 1.44411 | E56: tkm | F56: 5914359 | G56: 5914374 | H56: 5914389 | I56: =$B$18 -> P | J56: =$D$18 -> 25 | K56: =IF(ISBLANK(J56),"",J56*(D56*$I$53)) -> 159595.1857
A57: 5914389 | B57: M0191 | C57: Brita 1 - Caminhão basculante 10 m³ | D57: 0.6189 | E57: tkm | F57: 5914359 | G57: 5914374 | H57: 5914389 | I57: P | J57: 25 | K57: =IF(ISBLANK(J57),"",J57*(D57*$I$53)) -> 68397.4631
B59: PRINCIPAL: | C59: 4011256
B61: TIPO (P, RP ou LN) | C61: DMT ATÉ 50 KM NÃO DEVE SER PAGA | D61: SOMENTE DEVE SER ADICIONADO A DISTÂNCIA EXCEDENTE A 50 KM
B62: LN | D62: =D18 -> 25
B64: SISTEMA DE CUSTOS REFERENCIAIS DE OBRAS - SICRO | I64: Quantitivo
B65: Custo Unitário de Referência | E65: =$C$6 -> Paraíba - Abril/2024 | I65: (Coeficiente na composição principal) x (quantidade da principal no orçamento) | K65: m³
B66: 1107892 | C66: Concreto fck = 20 MPa - confecção em betoneira e lançamento manual - areia e brita comerciais | I66: =('MOMENTO DE TRANSPORTE - PRINC'!D65*VLOOKUP(C75,'RESUMO MODULO TOTAL'!D:R,7,FALSE))*0.1 -> 57.396
B67: F - MOMENTO DE TRANSPORTE | D67: Quantidade | E67: Unidade | F67: DMT
F68: LN | G68: RP | H68: P | I68: TIPO (P, RP ou LN) | J68: DMT ESTIMADA (km) | K68: QUANTITATIVO TOTAL DE TRANSPORTE DE MATERIAL (tkm)
A69: =IF(I69="P",H69,IF(I69="RP",G69,IF(I69="LN",F69,""))) -> 5914449 | B69: M0030 | C69: Aditivo plastificante e retardador de pega para concreto e argamassa - Caminhão carroceria 15 t | D69: 0.00082 | E69: tkm | F69: 5914449 | G69: 5914464 | H69: 5914479 | I69: =$B$62 -> LN | J69: 0 | K69: =IF(ISBLANK(J69),"",J69*(D69*$I$66)) -> 0
A70: =IF(I70="P",H70,IF(I70="RP",G70,IF(I70="LN",F70,""))) -> 5914359 | B70: M0082 | C70: Areia média lavada - Caminhão basculante 10 m³ | D70: 0.95639 | E70: tkm | F70: 5914359 | G70: 5914374 | H70: 5914389 | I70: =$B$62 -> LN | J70: =$D$62 -> 25 | K70: =IF(ISBLANK(J70),"",J70*(D70*$I$66)) -> 1372.324011
A71: 5914359 | B71: M0191 | C71: Brita 1 - Caminhão basculante 10 m³ | D71: 0.55131 | E71: tkm | F71: 5914359 | G71: 5914374 | H71: 5914389 | I71: LN | J71: 25 | K71: =IF(ISBLANK(J71),"",J71*(D71*$I$66)) -> 791.074719
A72: 5914359 | B72: M0192 | C72: Brita 2 - Caminhão basculante 10 m³ | D72: 0.55131 | E72: tkm | F72: 5914359 | G72: 5914374 | H72: 5914389 | I72: LN | J72: 25 | K72: 791.074719
A73: 5914449 | B73: M0424 | C73: Cimento Portland CP II - 32 - saco - Caminhão carroceria 15 t | D73: 0.27464 | E73: tkm | F73: 5914449 | G73: 5914464 | H73: 5914479 | I73: LN | J73: 0 | K73: 0
B75: PRINCIPAL: | C75: 2003943
B76: SISTEMA DE CUSTOS REFERENCIAIS DE OBRAS - SICRO | I76: Quantitivo
B77: Custo Unitário de Referência | E77: =$C$6 -> Paraíba - Abril/2024 | H77: m² | I77: (Coeficiente na composição principal) x (quantidade da principal no orçamento) | K77: kg
B78: 2003842 | C78: Enchimento de junta de concreto com argamassa asfáltica de densidade 1.700 kg/m³ - espessura de 1 cm | I78: =('MOMENTO DE TRANSPORTE - PRINC'!D66*VLOOKUP(C83,'RESUMO MODULO TOTAL'!D:R,7,FALSE))*0.1 -> 81.311
B79: F - MOMENTO DE TRANSPORTE | D79: Quantidade | E79: Unidade | F79: DMT
F80: LN | G80: RP | H80: P | I80: TIPO (P, RP ou LN) | J80: DMT ESTIMADA (km) | K80: QUANTITATIVO TOTAL DE TRANSPORTE DE MATERIAL (tkm)
A81: =IF(I81="P",H81,IF(I81="RP",G81,IF(I81="LN",F81,""))) -> 5914449 | B81: M2158 | C81: Argamassa asfáltica - Caminhão carroceria com capacidade de 15 t - 188 Kw | D81: 0.001 | E81: tkm | F81: 5914449 | G81: 5914464 | H81: 5914479 | I81: =$B$62 -> LN | J81: 0 | K81: =IF(ISBLANK(J81),"",J81*(D81*$I$78)) -> 0
B83: PRINCIPAL: | C83: 2003943
B84: SISTEMA DE CUSTOS REFERENCIAIS DE OBRAS - SICRO | I84: Quantitivo
B85: Custo Unitário de Referência | E85: =$C$6 -> Paraíba - Abril/2024 | I85: (Coeficiente na composição principal) x (quantidade da principal no orçamento) | K85: m³
B86: 3103302 | C86: =VLOOKUP(B86,'SINTÉTICO SICRO'!A:D,2,0) -> Fôrmas de tábuas de pinho para dispositivos de drenagem - utilização de 3 vezes - confecção, instalação e retirada | I86: ='MOMENTO DE TRANSPORTE - PRINC'!D68*(VLOOKUP(C94,'RESUMO MODULO TOTAL'!D:O,7,FALSE)*0.1) -> 748.1978571
B87: F - MOMENTO DE TRANSPORTE | D87: Quantidade | E87: Unidade | F87: DMT
F88: LN | G88: RP | H88: P | I88: TIPO (P, RP ou LN) | J88: DMT ESTIMADA (km) | K88: QUANTITATIVO TOTAL DE TRANSPORTE DE MATERIAL (tkm)
A89: =IF(I89="P",H89,IF(I89="RP",G89,IF(I89="LN",F89,""))) -> 5914449 | B89: M0560 | C89: =VLOOKUP(B89,'Material Sicro'!$A$4:$D$1048576,2,0) -> Desmoldante para fôrmas de madeira | D89: 2e-05 | E89: tkm | F89: 5914449 | G89: 5914464 | H89: 5914479 | I89: =$B$62 -> LN | J89: 0 | K89: =IF(ISBLANK(J89),"",J89*(D89*$I$86)) -> 0
A90: =IF(I90="P",H90,IF(I90="RP",G90,IF(I90="LN",F90,""))) -> 5914449 | B90: M1205 | C90: =VLOOKUP(B90,'Material Sicro'!$A$4:$D$1048576,2,0) -> Prego de ferro | D90: 2e-05 | E90: tkm | F90: 5914449 | G90: 5914464 | H90: 5914479 | I90: LN | J90: 0 | K90: =IF(ISBLANK(J90),"",J90*(D90*$I$86)) -> 0
A91: 5914449 | B91: M0290 | C91: =VLOOKUP(B91,'Material Sicro'!$A$4:$D$1048576,2,0) -> Tábua - E = 2,5 cm e L = 10 cm | D91: 0.00304 | E91: tkm | F91: 5914449 | G91: 5914464 | H91: 5914479 | I91: LN | J91: 0 | K91: 0
A92: 5914449 | B92: M1429 | C92: =VLOOKUP(B92,'Material Sicro'!$A$4:$D$1048576,2,0) -> Tábua de pinho de terceira - E = 2,5 cm | D92: 0.01011 | E92: tkm | F92: 5914449 | G92: 5914464 | H92: 5914479 | I92: LN | J92: 0 | K92: 0
B94: PRINCIPAL: | C94: 2003943
A95: =IF(I95="P",H95,IF(I95="RP",G95,IF(I95="LN",F95,""))) ->  | B95: SISTEMA DE CUSTOS REFERENCIAIS DE OBRAS - SICRO | I95: Quantitivo
B96: Custo Unitário de Referência | E96: =$C$6 -> Paraíba - Abril/2024 | I96: (Coeficiente na composição principal) x (quantidade da principal no orçamento) | K96: m³
B97: 4016096 | C97: Escavação e carga de material de jazida com escavadeira hidráulica de 1,56 m³ | I97: =('MOMENTO DE TRANSPORTE - PRINC'!D53*VLOOKUP(C103,'RESUMO MODULO TOTAL'!D:Q,7,FALSE))*0.1 -> 552.5728155
B98: F - MOMENTO DE TRANSPORTE | D98: Quantidade | E98: Unidade | F98: DMT
F99: LN | G99: RP | H99: P | I99: TIPO (P, RP ou LN) | J99: DMT ESTIMADA (km) | K99: QUANTITATIVO TOTAL DE TRANSPORTE DE MATERIAL (tkm)
A100: 5914359 | B100: 4016096 | C100: Escavação e carga de material de jazida com escavadeira hidráulica de 1,56 m³ - Caminhão basculante 10 m³ | D100: 1.44411 | E100: tkm | F100: 5914359 | G100: 5914374 | H100: 5914389 | I100: =$B$62 -> LN | J100: =$D$18 -> 25 | K100: =IF(ISBLANK(J100),"",J100*(D100*$I$97)) -> 19949.39821
A101: 5914359 | B101: M0191 | C101: Brita 1 - Caminhão basculante 10 m³ | D101: 0.6189 | E101: tkm | F101: 5914359 | G101: 5914374 | H101: 5914389 | I101: LN | J101: 25 | K101: =IF(ISBLANK(J101),"",J101*(D101*$I$97)) -> 8549.682888
B103: PRINCIPAL: | C103: 4011256
B104: TIPO (P, RP ou LN) | C104: DMT ATÉ 50 KM NÃO DEVE SER PAGA | D104: SOMENTE DEVE SER ADICIONADO A DISTÂNCIA EXCEDENTE A 50 KM
B105: RP | D105: 25
B107: SISTEMA DE CUSTOS REFERENCIAIS DE OBRAS - SICRO | I107: Quantitivo
B108: Custo Unitário de Referência | E108: =$C$6 -> Paraíba - Abril/2024 | I108: (Coeficiente na composição principal) x (quantidade da principal no orçamento) | K108: m³
B109: 1107892 | C109: Concreto fck = 20 MPa - confecção em betoneira e lançamento manual - areia e brita comerciais | I109: =('MOMENTO DE TRANSPORTE - PRINC'!D92*VLOOKUP(C118,'RESUMO MODULO TOTAL'!D:R,7,FALSE))*0.1 -> 57.396
B110: F - MOMENTO DE TRANSPORTE | D110: Quantidade | E110: Unidade | F110: DMT
F111: LN | G111: RP | H111: P | I111: TIPO (P, RP ou LN) | J111: DMT ESTIMADA (km) | K111: QUANTITATIVO TOTAL DE TRANSPORTE DE MATERIAL (tkm)
A112: =IF(I112="P",H112,IF(I112="RP",G112,IF(I112="LN",F112,""))) -> 5914464 | B112: M0030 | C112: Aditivo plastificante e retardador de pega para concreto e argamassa - Caminhão carroceria 15 t | D112: 0.00082 | E112: tkm | F112: 5914449 | G112: 5914464 | H112: 5914479 | I112: =$B$105 -> RP | J112: 0 | K112: =IF(ISBLANK(J112),"",J112*(D112*$I$109)) -> 0
A113: =IF(I113="P",H113,IF(I113="RP",G113,IF(I113="LN",F113,""))) -> 5914374 | B113: M0082 | C113: Areia média lavada - Caminhão basculante 10 m³ | D113: 0.95639 | E113: tkm | F113: 5914359 | G113: 5914374 | H113: 5914389 | I113: =$B$105 -> RP | J113: =$D$105 -> 25 | K113: =IF(ISBLANK(J113),"",J113*(D113*$I$109)) -> 1372.324011
A114: 5914374 | B114: M0191 | C114: Brita 1 - Caminhão basculante 10 m³ | D114: 0.55131 | E114: tkm | F114: 5914359 | G114: 5914374 | H114: 5914389 | I114: RP | J114: 25 | K114: 791.074719
A115: 5914374 | B115: M0192 | C115: Brita 2 - Caminhão basculante 10 m³ | D115: 0.55131 | E115: tkm | F115: 5914359 | G115: 5914374 | H115: 5914389 | I115: RP | J115: 25 | K115: 791.074719
A116: 5914464 | B116: M0424 | C116: Cimento Portland CP II - 32 - saco - Caminhão carroceria 15 t | D116: 0.27464 | E116: tkm | F116: 5914449 | G116: 5914464 | H116: 5914479 | I116: RP | J116: 0 | K116: 0
B118: PRINCIPAL: | C118: 2003943
B119: SISTEMA DE CUSTOS REFERENCIAIS DE OBRAS - SICRO | I119: Quantitivo
B120: Custo Unitário de Referência | E120: =$C$6 -> Paraíba - Abril/2024 | H120: m² | I120: (Coeficiente na composição principal) x (quantidade da principal no orçamento) | K120: kg
B121: 2003842 | C121: Enchimento de junta de concreto com argamassa asfáltica de densidade 1.700 kg/m³ - espessura de 1 cm | I121: =('MOMENTO DE TRANSPORTE - PRINC'!D93*VLOOKUP(C126,'RESUMO MODULO TOTAL'!D:R,7,FALSE))*0.1 -> 81.311
B122: F - MOMENTO DE TRANSPORTE | D122: Quantidade | E122: Unidade | F122: DMT
F123: LN | G123: RP | H123: P | I123: TIPO (P, RP ou LN) | J123: DMT ESTIMADA (km) | K123: QUANTITATIVO TOTAL DE TRANSPORTE DE MATERIAL (tkm)
A124: =IF(I124="P",H124,IF(I124="RP",G124,IF(I124="LN",F124,""))) -> 5914464 | B124: M2158 | C124: Argamassa asfáltica - Caminhão carroceria com capacidade de 15 t - 188 Kw | D124: 0.001 | E124: tkm | F124: 5914449 | G124: 5914464 | H124: 5914479 | I124: =$B$105 -> RP | J124: 0 | K124: =IF(ISBLANK(J124),"",J124*(D124*$I$121)) -> 0
B126: PRINCIPAL: | C126: 2003943
B127: SISTEMA DE CUSTOS REFERENCIAIS DE OBRAS - SICRO | I127: Quantitivo
B128: Custo Unitário de Referência | E128: =$C$6 -> Paraíba - Abril/2024 | I128: (Coeficiente na composição principal) x (quantidade da principal no orçamento) | K128: m³
B129: 3103302 | C129: =VLOOKUP(B129,'SINTÉTICO SICRO'!A:D,2,0) -> Fôrmas de tábuas de pinho para dispositivos de drenagem - utilização de 3 vezes - confecção, instalação e retirada | I129: ='MOMENTO DE TRANSPORTE - PRINC'!D95*(VLOOKUP(C137,'RESUMO MODULO TOTAL'!D:O,7,FALSE)*0.1) -> 748.1978571
B130: F - MOMENTO DE TRANSPORTE | D130: Quantidade | E130: Unidade | F130: DMT
F131: LN | G131: RP | H131: P | I131: TIPO (P, RP ou LN) | J131: DMT ESTIMADA (km) | K131: QUANTITATIVO TOTAL DE TRANSPORTE DE MATERIAL (tkm)
A132: =IF(I132="P",H132,IF(I132="RP",G132,IF(I132="LN",F132,""))) -> 5914464 | B132: M0560 | C132: =VLOOKUP(B132,'Material Sicro'!$A$4:$D$1048576,2,0) -> Desmoldante para fôrmas de madeira | D132: 2e-05 | E132: tkm | F132: 5914449 | G132: 5914464 | H132: 5914479 | I132: =$B$105 -> RP | J132: 0 | K132: =IF(ISBLANK(J132),"",J132*(D132*$I$129)) -> 0
A133: =IF(I133="P",H133,IF(I133="RP",G133,IF(I133="LN",F133,""))) -> 5914464 | B133: M1205 | C133: =VLOOKUP(B133,'Material Sicro'!$A$4:$D$1048576,2,0) -> Prego de ferro | D133: 2e-05 | E133: tkm | F133: 5914449 | G133: 5914464 | H133: 5914479 | I133: RP | J133: 0 | K133: =IF(ISBLANK(J133),"",J133*(D133*$I$129)) -> 0
A134: 5914464 | B134: M0290 | C134: =VLOOKUP(B134,'Material Sicro'!$A$4:$D$1048576,2,0) -> Tábua - E = 2,5 cm e L = 10 cm | D134: 0.00304 | E134: tkm | F134: 5914449 | G134: 5914464 | H134: 5914479 | I134: RP | J134: 0 | K134: 0
A135: 5914464 | B135: M1429 | C135: =VLOOKUP(B135,'Material Sicro'!$A$4:$D$1048576,2,0) -> Tábua de pinho de terceira - E = 2,5 cm | D135: 0.01011 | E135: tkm | F135: 5914449 | G135: 5914464 | H135: 5914479 | I135: RP | J135: 0 | K135: 0
B137: PRINCIPAL: | C137: 2003943
A138: =IF(I138="P",H138,IF(I138="RP",G138,IF(I138="LN",F138,""))) ->  | B138: SISTEMA DE CUSTOS REFERENCIAIS DE OBRAS - SICRO | I138: Quantitivo
B139: Custo Unitário de Referência | E139: =$C$6 -> Paraíba - Abril/2024 | I139: (Coeficiente na composição principal) x (quantidade da principal no orçamento) | K139: m³
B140: 4016096 | C140: Escavação e carga de material de jazida com escavadeira hidráulica de 1,56 m³ | I140: =('MOMENTO DE TRANSPORTE - PRINC'!D80*VLOOKUP(C146,'RESUMO MODULO TOTAL'!D:Q,7,FALSE))*0.1 -> 552.5728155
B141: F - MOMENTO DE TRANSPORTE | D141: Quantidade | E141: Unidade | F141: DMT
F142: LN | G142: RP | H142: P | I142: TIPO (P, RP ou LN) | J142: DMT ESTIMADA (km) | K142: QUANTITATIVO TOTAL DE TRANSPORTE DE MATERIAL (tkm)
A143: 5914374 | B143: 4016096 | C143: Escavação e carga de material de jazida com escavadeira hidráulica de 1,56 m³ - Caminhão basculante 10 m³ | D143: 1.44411 | E143: tkm | F143: 5914359 | G143: 5914374 | H143: 5914389 | I143: =$B$105 -> RP | J143: =$D$18 -> 25 | K143: =IF(ISBLANK(J143),"",J143*(D143*$I$140)) -> 19949.39821
A144: 5914374 | B144: M0191 | C144: Brita 1 - Caminhão basculante 10 m³ | D144: 0.6189 | E144: tkm | F144: 5914359 | G144: 5914374 | H144: 5914389 | I144: RP | J144: 25 | K144: =IF(ISBLANK(J144),"",J144*(D144*$I$140)) -> 8549.682888
B146: PRINCIPAL: | C146: 4011256
A148: =IF(I148="P",H148,IF(I148="RP",G148,IF(I148="LN",F148,""))) -> 

Sheet Adm Local
A4: parcela fixa da administração local (mão de obra)
A5: Código | B5: Discriminação | C5: Unidade | D5: Quantidade | F5: Custo Unitário (R$) | H5: Custo Total (R$)
B6: Mão de Obra
B7: Gerência Técnica
B8: Geral
A9: P9955 | B9: Engenheiro chefe | C9: mês | D9: 0.5 | F9: =VLOOKUP(A9,'Pessoal Sicro'!$A$6:$G$118,6,0) -> 30194.3931 | H9: =F9*D9 -> 15097.19655
A10: P9840 | B10: Encarregado geral | C10: mês | D10: 0.5 | F10: =VLOOKUP(A10,'Pessoal Sicro'!$A$6:$G$118,6,0) -> 10886.0712 | H10: =F10*D10 -> 5443.0356
A11: P9897 | B11: Técnico de meio ambiente | C11: mês | D11: 0 | F11: =VLOOKUP(A11,'Pessoal Sicro'!$A$6:$G$118,6,0) -> 7411.3113 | H11: =F11*D11 -> 0
A12: P9948 | B12: Motorista | C12: mês | D12: 0 | F12: =VLOOKUP(A12,'Pessoal Sicro'!$A$6:$G$118,6,0) -> 5209.5176 | H12: =F12*D12 -> 0
A13: P9878 | B13: Secretária | C13: mês | D13: 0 | F13: =VLOOKUP(A13,'Pessoal Sicro'!$A$6:$G$118,6,0) -> 5987.398 | H13: =F13*D13 -> 0
F14: Subtotal do Item 1.1 | H14: =SUM(H9:I13) -> 20540.23215
B15: Auxiliar
A16: P9946 | B16: Engenheiro auxiliar | C16: mês | D16: 1 | F16: =VLOOKUP(A16,'Pessoal Sicro'!$A$6:$G$118,6,0) -> 22124.8348 | H16: =D16*F16 -> 22124.8348
A17: P9903 | B17: Auxiliar técnico | C17: mês | D17: 0 | F17: =VLOOKUP(A17,'Pessoal Sicro'!$A$6:$G$118,6,0) -> 4172.7402 | H17: =D17*F17 -> 0
F18: Subtotal do Item 1.2 | H18: =SUM(H16:I17) -> 22124.8348
B19: Gerência Administrativa
B20: Geral
A21: P9883 | B21: Chefe do setor administrativo | C21: mês | D21: 1 | F21: =VLOOKUP(A21,'Pessoal Sicro'!$A$6:$G$118,6,0) -> 7535.107 | H21: =F21*D21 -> 7535.107
A22: P9809 | B22: Encarregado administrativo | C22: mês | D22: 0 | F22: =VLOOKUP(A22,'Pessoal Sicro'!$A$6:$G$118,6,0) -> 7535.3663 | H22: =F22*D22 -> 0
A23: P9896 | B23: Porteiro | C23: mês | D23: 0 | F23: =VLOOKUP(A23,'Pessoal Sicro'!$A$6:$G$118,6,0) -> 3609.4596 | H23: =F23*D23 -> 0
A24: P9827 | B24: Vigia | C24: mês | D24: 0 | F24: =VLOOKUP(A24,'Pessoal Sicro'!$A$6:$G$118,6,0) -> 4418.5473 | H24: =F24*D24 -> 0
A25: P9948 | B25: Motorista | C25: mês | D25: 0 | F25: =VLOOKUP(A25,'Pessoal Sicro'!$A$6:$G$118,6,0) -> 5209.5176 | H25: =F25*D25 -> 0
F26: Subtotal do Item 1.3 | H26: =SUM(H21:I25) -> 7535.107
B27: Auxiliar
A28: P9806 | B28: Auxiliar administrativo | C28: mês | D28: 1 | F28: =VLOOKUP(A28,'Pessoal Sicro'!$A$6:$G$118,6,0) -> 4520.7184 | H28: =F28*D28 -> 4520.7184
A29: P9842 | B29: Faxineiro | C29: mês | D29: 0 | F29: =VLOOKUP(A29,'Pessoal Sicro'!$A$6:$G$118,6,0) -> 3609.4901 | H29: =F29*D29 -> 0
F30: Subtotal do Item 1.4 | H30: =SUM(H28:I29) -> 4520.7184
H31: Total da Mão de Obra da Parcela Fixa | I31: =H30+H26+H18+H14 -> 54720.89235
A33: parcela fixa da administração local (veículos)
A34: Código | B34: Discriminação | C34: Unidade | D34: Quantidade | E34: Utilização Produtiva | F34: Utilização Improdutiva | G34: Custo Horário Produtivo (R$) | H34: Custo Horário Improdutivo (R$) | I34: Custo Total (R$)
A35: 2 | B35: Veículos
B36: Gerência Técnica
A37: 2.1 | B37: Geral
A38: E9093 | B38: Veículo Leve 53 kw | C38: mês | D38: 1 | E38: 44 | F38: 176 | G38: =VLOOKUP(A38,Equipamentos!$A$4:$K$541,10,0) -> 34.5382 | H38: =VLOOKUP(A38,Equipamentos!$A$4:$K$541,11,0) -> 6.148 | I38: =((E38*G38)+(F38*H38))*D38 -> 2601.7288
A39: E9560 | B39: Ônibus coletivo - 175 kw | C39: mês | D39: 0 | E39: 44 | F39: 176 | G39: =VLOOKUP(A39,Equipamentos!$A$4:$K$541,10,0) -> 345.2995 | H39: =VLOOKUP(A39,Equipamentos!$A$4:$K$541,11,0) -> 101.5804 | I39: =((E39*G39)+(F39*H39))*D39 -> 0
H40: Subtotal do Item 2 | I40: =SUM(I38:I39) -> 2601.7288
A41: 2.2 | B41: Auxiliar
A42: E9093 | B42: Veículo Leve 53 kw | C42: mês | D42: 0 | E42: 44 | F42: 176 | G42: =G38 -> 34.5382 | H42: =H38 -> 6.148 | I42: =((E42*G42)+(F42*H42))*D42 -> 0
H43: Subtotal do Item 2 | I43: =SUM(I42) -> 0
A44: 2.3 | B44: Gerência Administrativa
A45: E9093 | B45: Veículo Leve 53 kw | C45: mês | D45: 0 | E45: 44 | F45: 176 | G45: =G38 -> 34.5382 | H45: =H38 -> 6.148 | I45: =((E45*G45)+(F45*H45))*D45 -> 0
H46: Subtotal do Item 2 | I46: =I45 -> 0
H47: Total dos Veículos da Parcela Fixa | I47: =I46+I43+I40 -> 2601.7288
A49: Composição de custo da equipe de produção de terraplenagem
A50: Código | B50: Discriminação | C50: Unidade | D50: Quantidade | F50: Custo Unitário (R$) | H50: Custo Total (R$)
B51: Equipe de Produção de Terraplenagem
A52: 3.1 | B52: Mão de Obra
A53: ='Pessoal Sicro'!A65 -> P9892 | B53: Encarregado de produção | C53: mês | D53: 1 | F53: =VLOOKUP(A53,'Pessoal Sicro'!$A$6:$G$118,6,0) -> 32.6759 | H53: =F53*D53 -> 32.6759
F54: Subtotal do Item 3.1 | H54: =SUM(H53:H53) -> 32.6759
A55: Código | B55: Discriminação | C55: Unidade | D55: Quantidade | E55: Utilização Produtiva | F55: Utilização Improdutiva | G55: Custo Horário Produtivo (R$) | H55: Custo Horário Improdutivo (R$) | I55: Custo Total (R$)
A56: 3.2 | B56: Veículos
B57: Veículo Leve 53 kw | C57: mês | D57: 1 | E57: 44 | F57: 176 | G57: =G38 -> 34.5382 | H57: =H38 -> 6.148 | I57: =((E57*G57)+(F57*H57))*D57 -> 2601.7288
H58: Subtotal do Item 3.2 | I58: =SUM(I57:I57) -> 2601.7288
H59: Total da Equipe de Produção de Terraplenagem | I59: =I58+H54 -> 2634.4047
A61: Composição de custo da equipe de produção de pavimentação
A62: Código | B62: Discriminação | C62: Unidade | D62: Quantidade | F62: Custo Unitário (R$) | H62: Custo Total (R$)
B63: Equipe de Produção de Pavimentação
A64: 3.1 | B64: Mão de Obra
A65: ='Pessoal Sicro'!A70 -> P9901 | B65: Encarregado de produção | C65: mês | D65: 1 | F65: =VLOOKUP(A65,'Pessoal Sicro'!$A$6:$G$118,6,0) -> 6946.6394 | H65: =F65*D65 -> 6946.6394
F66: Subtotal do Item 3.1 | H66: =SUM(H65:H65) -> 6946.6394
A67: Código | B67: Discriminação | C67: Unidade | D67: Quantidade | E67: Utilização Produtiva | F67: Utilização Improdutiva | G67: Custo Horário Produtivo (R$) | H67: Custo Horário Improdutivo (R$) | I67: Custo Total (R$)
A68: 3.2 | B68: Veículos
B69: Veículo Leve 53 kw | C69: mês | D69: 1 | E69: 44 | F69: 176 | G69: =G38 -> 34.5382 | H69: =H38 -> 6.148 | I69: =((E69*G69)+(F69*H69))*D69 -> 2601.7288
H70: Subtotal do Item 3.2 | I70: =SUM(I69:I69) -> 2601.7288
H71: Total da Equipe de Produção de Pavimentação | I71: =I70+H66 -> 9548.3682
A73: Composição de custo da equipe de produção de drenagem
A74: Código | B74: Discriminação | C74: Unidade | D74: Quantidade | F74: Custo Unitário (R$) | H74: Custo Total (R$)
B75: Equipe de Produção de Pavimentação
A76: 3.1 | B76: Mão de Obra
A77: ='Pessoal Sicro'!A70 -> P9901 | B77: Encarregado de produção | C77: mês | D77: 1 | F77: =VLOOKUP(A77,'Pessoal Sicro'!$A$6:$G$118,6,0) -> 6946.6394 | H77: =F77*D77 -> 6946.6394
F78: Subtotal do Item 3.1 | H78: =SUM(H77:H77) -> 6946.6394
A79: Código | B79: Discriminação | C79: Unidade | D79: Quantidade | E79: Utilização Produtiva | F79: Utilização Improdutiva | G79: Custo Horário Produtivo (R$) | H79: Custo Horário Improdutivo (R$) | I79: Custo Total (R$)
A80: 3.2 | B80: Veículos
B81: Veículo Leve 53 kw | C81: mês | D81: 1 | E81: 44 | F81: 176 | G81: =G38 -> 34.5382 | H81: =H38 -> 6.148 | I81: =((E81*G81)+(F81*H81))*D81 -> 2601.7288
H82: Subtotal do Item 3.2 | I82: =SUM(I81:I81) -> 2601.7288
H83: Total da Equipe de Produção de Pavimentação | I83: =I82+H78 -> 9548.3682
A85: Composição de custo da equipe de produção de sinalização
A86: Código | B86: Discriminação | C86: Unidade | D86: Quantidade | F86: Custo Unitário (R$) | H86: Custo Total (R$)
B87: Equipe de Produção de Pavimentação
A88: 3.1 | B88: Mão de Obra
A89: ='Pessoal Sicro'!A70 -> P9901 | B89: Encarregado de produção | C89: mês | D89: 1 | F89: =VLOOKUP(A89,'Pessoal Sicro'!$A$6:$G$118,6,0) -> 6946.6394 | H89: =F89*D89 -> 6946.6394
F90: Subtotal do Item 3.1 | H90: =SUM(H89:H89) -> 6946.6394
A91: Código | B91: Discriminação | C91: Unidade | D91: Quantidade | E91: Utilização Produtiva | F91: Utilização Improdutiva | G91: Custo Horário Produtivo (R$) | H91: Custo Horário Improdutivo (R$) | I91: Custo Total (R$)
A92: 3.2 | B92: Veículos
B93: Veículo Leve 53 kw | C93: mês | D93: 1 | E93: 44 | F93: 176 | G93: =G38 -> 34.5382 | H93: =H38 -> 6.148 | I93: =((E93*G93)+(F93*H93))*D93 -> 2601.7288
H94: Subtotal do Item 3.2 | I94: =SUM(I93:I93) -> 2601.7288
H95: Total da Equipe de Produção de Pavimentação | I95: =I94+H90 -> 9548.3682
A97: Composição de custo da equipe topografia
A98: Código | B98: Discriminação | C98: Unidade | D98: Quantidade | F98: Custo Unitário (R$) | H98: Custo Total (R$)
B99: Equipe de Topografia
A100: 3.1 | B100: Mão de Obra
A101: P9949 | B101: Topográfo | C101: mês | D101: 1 | F101: =VLOOKUP(A101,'Pessoal Sicro'!$A$6:$G$118,6,0) -> 8222.1094 | H101: =F101*D101 -> 8222.1094
A102: P9950 | B102: Auxiliar de topografia | C102: mês | D102: 1 | F102: =VLOOKUP(A102,'Pessoal Sicro'!$A$6:$G$118,6,0) -> 5275.4998 | H102: =F102*D102 -> 5275.4998
F103: Subtotal do Item 3.1 | H103: =SUM(H101:I102) -> 13497.6092
A104: Código | B104: Discriminação | C104: Unidade | D104: Quantidade | E104: Utilização Produtiva | F104: Utilização Improdutiva | G104: Custo Horário Produtivo (R$) | H104: Custo Horário Improdutivo (R$) | I104: Custo Total (R$)
A105: 3.2 | B105: Veículos
B106: Veículo Leve 53 kw | C106: mês | D106: 1 | E106: 44 | F106: 176 | G106: =G38 -> 34.5382 | H106: =H38 -> 6.148 | I106: =((E106*G106)+(F106*H106))*D106 -> 2601.7288
H107: Subtotal do Item 3.2 | I107: =SUM(I106:I106) -> 2601.7288
H108: Total da Equipe de Produção de Topografia | I108: =I107+H103 -> 16099.338
A110: Composição de custo do setor de medicina e segurança do trabalho
A111: Código | B111: Discriminação | C111: Unidade | D111: Quantidade | F111: Custo Unitário (R$) | H111: Custo Total (R$)
A112: 4 | B112: Setor de Medicina e Segurança do Trabalho
A113: P9876 | B113: Técnico de segurança do trabalho | C113: mês | D113: 1 | F113: =VLOOKUP(A113,'Pessoal Sicro'!$A$6:$G$118,6,0) -> 6795.4183 | H113: =F113*D113 -> 6795.4183
A114: P9864 | B114: Engenheiro de segurança do trabalho | C114: mês | D114: 0 | F114: =VLOOKUP(A114,'Pessoal Sicro'!$A$6:$G$118,6,0) -> 22647.217 | H114: =F114*D114 -> 0
A115: P9851 | B115: Médico do trabalho | C115: mês | D115: 0 | F115: =VLOOKUP(A115,'Pessoal Sicro'!$A$6:$G$118,6,0) -> 18066.2978 | H115: =F115*D115 -> 0
A116: P9951 | B116: Médico de câmara hiperbárica | C116: mês | D116: 0 | F116: =VLOOKUP(A116,'Pessoal Sicro'!$A$6:$G$118,6,0) -> 20015.0152 | H116: =F116*D116 -> 0
F117: Subtotal do Item 4 | H117: =SUM(H113:I116) -> 6795.4183
A119: Parcela Variável - Composição de custo da equipe de frente de serviço
A120: Código | B120: Discriminação | C120: Unidade | D120: Quantidade | F120: Custo Unitário (R$) | H120: Custo Total (R$)
A121: 5 | B121: Equipe de Frente de Serviço | C121: equipexmês
A122: P9875 | B122: Encarregado de Turma | C122: mês | D122: 1 | F122: =VLOOKUP(A122,'Pessoal Sicro'!$A$6:$G$118,6,0) -> 4663.6602 | H122: =F122*D122 -> 4663.6602
A123: P9804 | B123: Apontador | C123: mês | D123: 0.5 | F123: =VLOOKUP(A123,'Pessoal Sicro'!$A$6:$G$118,6,0) -> 4235.6238 | H123: =F123*D123 -> 2117.8119
F124: Subtotal do Item 5 | H124: =SUM(H122:I123) -> 6781.4721
A126: Parcela Variável - Composição de custo da equipe de frente de serviço (Terraplenagem) - Somente Compactação
A127: Código | B127: Discriminação | C127: Unidade | D127: Quantidade | F127: Produção Horária (und/h) | H127: Efs
A128: 5.1 | B128: Equipe de Frente de Serviço | C128: equipexmês
C129: mês | H129: =(D129)/(F129*182.49) -> 
C130: mês | H130: =(D130)/(F130*182.49) -> 
C131: mês | H131: =(D131)/(F131*182.49) -> 
F132: Total de Equipes para Terraplenagem | H132: =SUM(H131:I131) -> 
A134: Parcela Variável - Composição de custo da acompanhamento das frentes de serviço de pavimentação
A135: Código | B135: Discriminação | C135: Unidade | D135: Quantidade | F135: Produção Horária (und/h) | H135: Efs
A136: 5.2 | B136: Equipe de Frente de Serviço | C136: equipe x mês
A137: 36170 | B137: Bloquete/piso intertravado de concreto - modelo onda/16 faces/retangular/t ijolinho/paver/holandes/paralelepipedo, *22 cm x 11* cm, e = 8 cm, resistencia de 35 mpa (nbr 9781), cor natural | C137: ='RESUMO MODULO TOTAL'!I23 -> m² | D137: ='RESUMO MODULO TOTAL'!J23 -> 48021.32 | F137: 99.6 | H137: =(D137)/(F137*182.49) -> 2.642017464
A138: 92404 ADAPTADA | B138: Execução de pavimento em piso intertravado, com bloco 16 faces de 22 x 11 cm, espessura 8 cm. af_10/2022 - exclusive fornecimento de bloquete | C138: ='RESUMO MODULO TOTAL'!I24 -> m² | D138: ='RESUMO MODULO TOTAL'!J24 -> 47830 | F138: 1125 | H138: 0.232974714
A139: 5915014 | B139: =VLOOKUP(A139,'SINTÉTICO SICRO'!A:D,2,0) -> Transporte com caminhão carroceria com capacidade de 11 t e com guindauto de 45 t.m - rodovia pavimentada | C139: ='RESUMO MODULO TOTAL'!I25 -> tkm | D139: ='RESUMO MODULO TOTAL'!J25 -> 252542.4 | F139: 1500 | H139: 0.9225798674
A140: 5915321 | B140: =VLOOKUP(A140,'SINTÉTICO SICRO'!A:D,2,0) -> Transporte com caminhão basculante de 14 m³ - rodovia pavimentada | C140: ='RESUMO MODULO TOTAL'!I26 -> tkm | D140: ='RESUMO MODULO TOTAL'!J26 -> 86094 | F140: 120.7 | H140: =(D140)/(F140*182.49) -> 3.908647853
A141: 5915321 | B141: =VLOOKUP(A141,'SINTÉTICO SICRO'!A:D,2,0) -> Transporte com caminhão basculante de 14 m³ - rodovia pavimentada | C141: ='RESUMO MODULO TOTAL'!I27 -> tkm | D141: ='RESUMO MODULO TOTAL'!J27 -> 19371.15 | F141: 120.7 | H141: 0.8794457669
A142: 4011268 | B142: =VLOOKUP(A142,'SINTÉTICO SICRO'!A:D,2,0) -> Base estabilizada granulometricamente com mistura solo brita (70% - 30%) em usina com material de jazida e brita comercial | C142: ='RESUMO MODULO TOTAL'!I28 -> m³ | D142: ='RESUMO MODULO TOTAL'!J28 -> 7174.5 | F142: 120.7 | H142: 0.3257206544
A143: 4011209 | B143: =VLOOKUP(A143,'SINTÉTICO SICRO'!A:D,2,0) -> Regularização do subleito | C143: ='RESUMO MODULO TOTAL'!I29 -> m² | D143: ='RESUMO MODULO TOTAL'!J29 -> 47830 | F143: 1121.33 | H143: 0.2337372167
F144: Total de Equipes para Pavimentação | H144: =SUM(H137:I143) -> 9.145123536
A146: Parcela Variável - Composição de custo da acompanhamento das frentes de serviço de drenagem
A147: Código | B147: Discriminação | C147: Unidade | D147: Quantidade | F147: Efsdu | H147: Efs
A148: 5.3 | B148: Frentes de Serviço para Drenagem | C148: equipe x mês
A149: 2003373 | B149: =VLOOKUP(A149,'SINTÉTICO SICRO'!$A$4:$D$6373,2,0) -> Meio-fio de concreto - MFC 03 - areia e brita comerciais - fôrma de madeira | C149: m | D149: ='RESUMO MODULO TOTAL'!J36 -> 13665.71429 | F149: 0.00021 | H149: =D149*F149 -> 2.8698
F150: Total de Equipes para Drenagem | H150: =H149 -> 2.8698
A152: Parcela Variável - Composição de custo da acompanhamento das frentes de serviço de sinalização
A153: Código | B153: Discriminação | C153: Unidade | D153: Quantidade | F153: Produção Horária (und/h) | H153: Efs
A154: 5.4 | B154: Frentes de Serviço para Sinalização | C154: equipe x mês
A155: 5213440 | B155: =VLOOKUP(A155,'SINTÉTICO SICRO'!$A$4:$D$6373,2,0) -> Placa de regulamentação em aço D = 0,60 m - película retrorrefletiva tipo I + SI - fornecimento e implantação | C155: ='RESUMO MODULO TOTAL'!I31 -> und | D155: ='RESUMO MODULO TOTAL'!J31 -> 20.49857143 | F155: 3 | H155: =0.2*((D155)/(F155*182.49)) -> 0.00748847295
A156: 5213464 | B156: =VLOOKUP(A156,'SINTÉTICO SICRO'!$A$4:$D$6373,2,0) -> Placa de advertência em aço, lado de 0,60 m - película retrorrefletiva tipo I + SI - fornecimento e implantação | C156: ='RESUMO MODULO TOTAL'!I32 -> und | D156: ='RESUMO MODULO TOTAL'!J32 -> 20.49857143 | F156: 4.1 | H156: =0.2*((D156)/(F156*182.49)) -> 0.005479370451
A157: 5213863 | B157: =VLOOKUP(A157,'SINTÉTICO SICRO'!$A$4:$D$6373,2,0) -> Suporte metálico galvanizado para placa de advertência ou regulamentação - lado ou diâmetro de 0,60 m - fornecimento e implantação | C157: ='RESUMO MODULO TOTAL'!I33 -> und | D157: ='RESUMO MODULO TOTAL'!J33 -> 40.99714286 | F157: 4.1 | H157: =0.2*((D157)/(F157*182.49)) -> 0.0109587409
A158: 5213400 | B158: =VLOOKUP(A158,'SINTÉTICO SICRO'!$A$4:$D$6373,2,0) -> Pintura de faixa com tinta acrílica - espessura de 0,4 mm | C158: ='RESUMO MODULO TOTAL'!I34 -> m² | D158: ='RESUMO MODULO TOTAL'!J34 -> 1639.885714 | F158: 177.07 | H158: 0.01014984756
F159: Total de Equipes para Sinalização | H159: =SUM(H155:I158) -> 0.03407643186
A161: 3. PARCELA VARIÁVEL - EQUIPE DE CONTROLE TECNOLÓGICO
A162: LABORATÓRIO DE SOLOS
A163: Item | B163: Discriminação | F163: Unidade | G163: Quantidade | H163: Custo Unitário (R$) | I163: Custo Total (R$)
B164: Laboratório de Solos (equipe x mês)
B165: Mão de Obra
A166: P9858 | B166: Laboratorista | F166: func./mês | G166: 1 | H166: =VLOOKUP(A166,'Pessoal Sicro'!$A$6:$G$118,6,0) -> 6913.4436 | I166: =TRUNC(G166*H166,2) -> 6913.44
A167: P9833 | B167: Auxiliar de laboratório | F167: func./mês | G167: 1 | H167: =VLOOKUP(A167,'Pessoal Sicro'!$A$6:$G$118,6,0) -> 5242.7905 | I167: =TRUNC(G167*H167,2) -> 5242.79
H168: Subtotal do Item | I168: =SUM(I166:I167) -> 12156.23
A169: Item | B169: Discriminação | C169: Und | D169: Quant | E169: Utilização Produtiva | F169: Utilização Improdutiva | G169: Horário Produtivo (R$) | H169: Horário Improdutivo (R$) | I169: Total (R$)
B170: Equipe de Controle Tecnológico
B171: Veículos
A172: E9125 | B172: Van furgão a diesel - 93 kW | C172: veic./mês | D172: 0.5 | E172: 44 | F172: 176 | G172: =VLOOKUP(A172,Equipamentos!$A$4:$K$533,10,0) -> 81.8078 | H172: =VLOOKUP(A172,Equipamentos!$A$4:$K$533,11,0) -> 45.846 | I172: =D172*((E172*G172)+(F172*H172)) -> 5834.2196
H173: Subtotal do Item | I173: =SUM(I172:I172) -> 5834.2196
H174: Total da Equipe do Laboratório de Solos | I174: =I168+I173 -> 17990.4496
A176: 3. PARCELA VARIÁVEL - EQUIPE DE CONTROLE TECNOLÓGICO
A177: LABORATÓRIO DE CONCRETO
A178: Item | B178: Discriminação | F178: Unidade | G178: Quantidade | H178: Custo Unitário (R$) | I178: Custo Total (R$)
B179: Laboratório de Solos (equipe x mês)
B180: Mão de Obra
A181: P9858 | B181: Laboratorista | F181: func./mês | G181: 1 | H181: =VLOOKUP(A181,'Pessoal Sicro'!$A$6:$G$118,6,0) -> 6913.4436 | I181: =TRUNC(G181*H181,2) -> 6913.44
A182: P9833 | B182: Auxiliar de laboratório | F182: func./mês | G182: 1 | H182: =VLOOKUP(A182,'Pessoal Sicro'!$A$6:$G$118,6,0) -> 5242.7905 | I182: =TRUNC(G182*H182,2) -> 5242.79
H183: Subtotal do Item | I183: =SUM(I181:I182) -> 12156.23
A184: Item | B184: Discriminação | C184: Und | D184: Quant | E184: Utilização Produtiva | F184: Utilização Improdutiva | G184: Horário Produtivo (R$) | H184: Horário Improdutivo (R$) | I184: Total (R$)
B185: Equipe de Controle Tecnológico
B186: Veículos
A187: E9125 | B187: Van furgão a diesel - 93 kW | C187: veic./mês | D187: 0.5 | E187: 44 | F187: 176 | G187: =VLOOKUP(A187,Equipamentos!$A$4:$K$533,10,0) -> 81.8078 | H187: =VLOOKUP(A187,Equipamentos!$A$4:$K$533,11,0) -> 45.846 | I187: =D187*((E187*G187)+(F187*H187)) -> 5834.2196
H188: Subtotal do Item | I188: =SUM(I187:I187) -> 5834.2196
H189: Total da Equipe do Laboratório de Concreto | I189: =I183+I188 -> 17990.4496
A191: Equipes de laboratório de solos para pavimentação
A192: Item | B192: Discriminação | F192: Und | G192: Quant | H192: QE | I192: Els
A193: ='RESUMO MODULO TOTAL'!D28 -> 4011256 | B193: =VLOOKUP(A193,'SINTÉTICO SICRO'!A:D,2,0) -> Base estabilizada granulometricamente com mistura solo brita (70% - 30%) na pista com material de jazida e brita comercial | F193: =VLOOKUP(A193,'SINTÉTICO SICRO'!A:D,3,0) -> m³ | G193: ='RESUMO MODULO TOTAL'!J28 -> 7174.5 | H193: 21900 | I193: =G193/H193 -> 0.3276027397
H194: Total de equipes de Laboratório de Solos para Pavimentação | I194: =I193 -> 0.3276027397
A196: Equipes de laboratório de Concreto
A197: Item | B197: Discriminação | F197: Und | G197: Quant | H197: QE | I197: Ela
A198: ='RESUMO MODULO TOTAL'!D23 -> 36170 | B198: BLOQUETE/PISO INTERTRAVADO DE CONCRETO - MODELO ONDA/16 FACES/RETANGULAR/T IJOLINHO/PAVER/HOLANDES/PARALELEPIPEDO, *22 CM X 11* CM, E = 8 CM, RESISTENCIA DE 35 MPA (NBR 9781), COR NATURAL | F198: ='RESUMO MODULO TOTAL'!I23 -> m² | G198: ='RESUMO MODULO TOTAL'!J23 -> 48021.32 | H198: 9000 | I198: =G198/H198 -> 5.335702222
H199: Total de equipes de Laboratório de Concreto | I199: =SUM(I198:I198) -> 5.335702222
A201: manutenção do canteiro de obras e acampamentos
A202: Código | B202: Discriminação | C202: Unidade | D202: Quantidade | F202: Custo Unitário (R$) | H202: Custo Total (R$)
B203: Manutenção do Canteiro de Obras e Acampamentos
A204: 6.1 | B204: Mão de Obra
A205: P9952 | B205: Pedreiro | C205: mês | D205: 0 | F205: =VLOOKUP(A205,'Pessoal Sicro'!$A$6:$G$118,6,0) -> 4562.1932 | H205: =F205*D205 -> 0
A206: P9954 | B206: Servente | C206: mês | D206: 0 | F206: =VLOOKUP(A206,'Pessoal Sicro'!$A$6:$G$118,6,0) -> 3622.9323 | H206: =F206*D206 -> 0
A207: P9953 | B207: Eletricista | C207: mês | D207: 0 | F207: =VLOOKUP(A207,'Pessoal Sicro'!$A$6:$G$118,6,0) -> 4751.1249 | H207: =F207*D207 -> 0
F208: Subtotal do Item 6.1 | H208: =SUM(H205:I207) -> 0
A210: Código | B210: Discriminação | C210: Unidade | D210: Quantidade | F210: Custo Produtivo (R$) | H210: Custo Total (R$)
A211: 6.2 | B211: Equipamentos
B212: Caminhão guindauto de 6 toneladas | C212: h/mês | D212: 0 | H212: =F212*D212 -> 0
B213: Caminhão tanque de 8.000 litros | C213: h/mês | D213: 0 | H213: =F213*D213 -> 0
A214: E9524 | B214: Motoniveladora | C214: h/mês | D214: 0 | F214: =Equipamentos!J168 -> 279.1558 | H214: =F214*D214 -> 0
F215: Subtotal do Item 6.2 | H215: =SUM(H212:I214) -> 0
G216: Total da Manutenção do Canteiro de Obras e Acampamentos | H216: =H215+H208 -> 0
A220: Resumo das parcelas de administração local
A221: Código | B221: Discriminação | C221: Unidade | D221: Quantidade | F221: Custo Unitário (R$) | H221: Custo Total (R$)
B222: Parcela Fixa
B223: Mão de Obra | C223: mês | D223: 5 | F223: =H14+H18+H26+H30 -> 54720.89235 | H223: =F223*D223 -> 273604.4617
B224: Veículos | C224: mês | D224: 5 | F224: =I47 -> 2601.7288 | H224: =F224*D224 -> 13008.644
... 26 more rows

Sheet Projeto Executivo
A4: COMPOSIÇAO PREÇO PROJETO EXECUTIVO
A6: DISCRIMINAÇAO | F6: Pr. Unit. | G6: Pr. Total
A8: A· EOUIPE TECNICA | G8: =G9+G12 -> 16774.31728
B9: A. 1 - Pessoal de Nível Superior | C9: Unidade | D9: Quantitativo | E9: SICRO e Rel.Custos Gerais | G9: =G10+G11 -> 14028.5097
B10: Engenheiro | C10: mês | D10: 0.5 | E10: P9812 | F10: =VLOOKUP(E10,'Pessoal Sicro'!A:G,6,0) -> 23945.9647 | G10: =F10*D10 -> 11972.98235
B11: Topógrafo | C11: mês | D11: 0.25 | E11: P9949 | F11: =VLOOKUP(E11,'Pessoal Sicro'!A:G,6,0) -> 8222.1094 | G11: =F11*D11 -> 2055.52735
B12: A.2 - Pessoal de Nível Técnico e Aux. | G12: =G13+G14 -> 2745.807575
B13: Auxiliar de topógrafo | C13: mês | D13: 0.125 | E13: P9950 | F13: =VLOOKUP(E13,'Pessoal Sicro'!A:G,6,0) -> 5275.4998 | G13: =F13*D13 -> 659.437475
B14: Auxiliar Técnico/Assistente de Engenharia | C14: mês | D14: 0.5 | E14: P9903 | F14: =VLOOKUP(E14,'Pessoal Sicro'!A:G,6,0) -> 4172.7402 | G14: =F14*D14 -> 2086.3701
A15: B - ENCARGOS SOCIAIS | G15: =G16 -> 0
B16: =CONCATENATE("Taxas ",'ENC. SOCIAIS'!E51,"%") -> Taxas % | C16: JÁ INCLUSAS EM "A"
A17: C - DESPESAS GERAIS | G17: =G18+G20+G19 -> 12454.18502
B18: C.1 - MATERIAIS DE CONSUMO | C18: Estimativa % como referência de equipe técnica com encargos sociais | D18: 0.03 | F18: =G8+G16 -> 16774.31728 | G18: =F18*D18 -> 503.2295183
B19: C.2 - VEÍCULOS (Veículo leve picape 4 x 4 com capacidade de 1,10 t - 147 kW) | C19: h | D19: 110 | E19: E9684 | F19: =VLOOKUP(E19,Equipamentos!A:K,10,0) -> 106.1084 | G19: =F19*D19 -> 11671.924
B20: C.3 - Estação total eletrônica com alcance máximo de 3.000 m | C20: h | D20: 55 | E20: E9553 | F20: =VLOOKUP(E20,Equipamentos!A:K,10,0) -> 5.0733 | G20: =F20*D20 -> 279.0315
A21: D - ENSAIOS | G21: =SUM(G22:G25) -> 3543.550962
B22: Laboratorista | C22: mês | D22: =1/4 -> 0.25 | E22: P9858 | F22: =VLOOKUP(E22,'Pessoal Sicro'!A:G,6,0) -> 6913.4436 | G22: =F22*D22 -> 1728.3609
B23: Auxiliar de Laboratório | C23: mês | D23: =1/8 -> 0.125 | E23: P9833 | F23: =VLOOKUP(E23,'Pessoal Sicro'!A:G,6,0) -> 5242.7905 | G23: =F23*D23 -> 655.3488125
B24: Laboratório de solos | C24: mês | D24: =1/8 -> 0.125 | E24: B8957 | F24: =VLOOKUP(E24,'Tabelas 1 e 2'!C14:G23,5,0) -> 4073.25 | G24: =F24*D24 -> 509.15625
B25: Laboratório de asfalto | C25: mês | D25: 0.125 | E25: B8955 | F25: =VLOOKUP(E25,'Tabelas 1 e 2'!C15:G24,5,0) -> 5205.48 | G25: =F25*D25 -> 650.685
A26: I - SOMA (A+B+C+D) | G26: =G8+G15+G17+G21 -> 32772.05326
A27: II - CUSTOS ADMINISTRATIVOS | D27: =BDI!C17 -> 0.2339 | G27: =D27*G26 -> 7665.383257
A28: TOTAL | G28: =G26+G27 -> 40437.43651
F29: Por m²: | G29: =G28/('MC MODULO'!C1*'MC MODULO'!C2) -> 2.888388322

Sheet CPU CODEVASF
A4: ='RESUMO MODULO TOTAL'!B1 -> CONTRATAÇÃO DE SERVIÇOS DE EXECUÇÃO DE PAVIMENTAÇÃO EM BLOCO INTERTRAVADO DE CONCRETO EM VIAS DE DIVERSOS MUNICÍPIOS INSERIDOS NA ÁREA DE ATUAÇÃO DA 13ª SUPERINTENDÊNCIA REGIONAL DA CODEVASF, NO ESTADO DA PARAÍBA - REGIÃO LITORAL
F5: BDI %: | G5: =BDI!$C$17 -> 0.2339
E6: Encargos Sociais: | G6: Horista | H6: Mensalista
G7: ='ENC. SOCIAIS'!E51/100 -> 0 | H7: ='ENC. SOCIAIS'!F51/100 -> 0
A8: COMPOSIÇÕES DE CUSTO UNITARIO
A9: CPU-02 | B9: CODEVASF | D9: Correção de vazamentos no ramal na rua sem pavimento com fornecimento do material hidráulico | E9: m | F9: COEF. | G9: PRECO UNITÁRIO (R$) | H9: TOTAL (R$)
A11: SICRO | B11: SICRO | C11: P9824 | D11: =VLOOKUP(C11,'Pessoal Sicro'!$A$5:$G$1048576,2,0) -> Servente | E11: H | F11: 0.2 | G11: =VLOOKUP(C11,'Pessoal Sicro'!$A$5:$G$1048576,6,0) -> 19.5534 | H11: =F11*G11 -> 3.91068
A12: SICRO | B12: SICRO | C12: P9807 | D12: =VLOOKUP(C12,'Pessoal Sicro'!$A$5:$G$1048576,2,0) -> Bombeiro hidráulico | E12: H | F12: 0.1 | G12: =VLOOKUP(C12,'Pessoal Sicro'!$A$5:$G$1048576,6,0) -> 29.8003 | H12: 2.98003
A13: INS. SINAPI | B13: SINAPI | C13: 9867 | D13: TUBO PVC, SOLDAVEL, DN 20 MM, AGUA FRIA (NBR-5648) | E13: m | F13: 1 | G13: =IFERROR(VLOOKUP(C13,'INSUMOS SINAPI'!A:E,5,FALSE),VLOOKUP(C13,'COMP Sint. Sinapi'!G:K,5,FALSE)) -> 3.65 | H13: 3.65
A14: INSUMO | B14: ORSE | C14: 10585 | D14: Arco de serra | E14: un | F14: 0.1 | G14: 22.8 | H14: 2.28
A15: INS. SINAPI | B15: SINAPI | C15: 3859 | D15: LUVA SOLDAVEL COM ROSCA, PVC, 20 MM X 1/2", PARA AGUA FRIA PREDIAL | E15: un | F15: 2 | G15: =IFERROR(VLOOKUP(C15,'INSUMOS SINAPI'!A:E,5,FALSE),VLOOKUP(C15,'COMP Sint. Sinapi'!G:K,5,FALSE)) -> 1.31 | H15: 2.62
E16: Sub total: | H16: =SUM(H11:H15) -> 15.44071
F17: BDI | G17: =BDI!$C$17 -> 0.2339 | H17: =H16*G17 -> 3.611582069
G18: Total Serviços: | H18: =H16+H17 -> 19.05229207
E19: =A9 -> CPU-02 | F19: PREÇO UNITÁRIO TOTAL: | H19: =H18 -> 19.05229207 | I19: =H16 -> 15.44071
A21: CPU-04 | B21: CODEVASF | D21: CONTROLE TECNOLÓGICO - PROJETO | E21: m² | F21: COEF. | G21: PRECO UNITÁRIO (R$) | H21: TOTAL (R$)
A23: Insumo | B23: SICRO | C23: P9858 | D23: Laboratorista | E23: mês | F23: =0.15/14000 -> 1.071428571e-05 | G23: 5576.2888 | H23: =F23*G23 -> 0.05974595143
A24: Composição | B24: SICRO | C24: P9833 | D24: Auxiliar de Laboratório | E24: mês | F24: =0.15/14000 -> 1.071428571e-05 | G24: 4221.2468 | H24: 0.04522764429
A25: Composição | B25: SICRO | C25: *B8957 | D25: Laboratório de Solos | E25: mês | F25: 1.071428571e-05 | G25: 4235.59 | H25: 0.04538132143
A26: Composição | B26: SICRO | C26: *B8956 | D26: Laboratório de concreto | E26: mês | F26: 1.071428571e-05 | G26: 4285.23 | H26: 0.04591317857
B27: *Relatório de Custos Gerais do DNIT, página 1 | E27: Sub total: | H27: =SUM(H23:H26) -> 0.1962680957
F28: BDI | G28: =BDI!$C$17 -> 0.2339 | H28: =H27*G28 -> 0.04590710759
E29: CPU-20 | F29: PREÇO UNITÁRIO TOTAL: | H29: =H27+H28 -> 0.2421752033 | I29: =H27 -> 0.1962680957

Sheet CPU SINAPI
A1: SINAPI - SISTEMA NACIONAL DE PESQUISA DE CUSTOS E ÍNDICES DA CONSTRUÇÃO CIVIL | F1: XXXX
A2: PCI.818.01 - COMPOSIÇÕES ATIVAS ANALÍTICAS COM CUSTO | C2: ABRANGENCIA: NACIONAL DATA DE PREÇO : 10/2023 DATA REFERENCIA TECNICA: 16/11/2023
A3: * Composições constantes nos Relatórios publicados de Composições Analíticas para as 27 Unidades da Federação
A4: MACROCLASSE.CLASSE.GRUPO | B4: CÓDIGOS | C4: DESCRIÇÃO | D4: UNIDADE | E4: COEFICIENTE | F4: PREÇO UNITÁRIO | G4: PREÇO TOTAL
A5: 03.PAVI.INTE.004/001 | B5: 92404 ADAPTADA | C5: EXECUÇÃO DE PAVIMENTO EM PISO INTERTRAVADO, COM BLOCO 16 FACES DE 22 X 11 CM, ESPESSURA 8 CM. AF_10/2022 - EXCLUSIVE FORNECIMENTO DE BLOQUETE | D5: M2 | F5: Pavimento Intertravado | G5: =G17 -> 21.67
A6: INSUMO | B6: 370 | C6: AREIA MEDIA - POSTO JAZIDA/FORNECEDOR (RETIRADO NA JAZIDA, SEM TRANSPORTE) | D6: M3 | E6: 0.0568 | F6: =VLOOKUP($B6,'INSUMOS SINAPI'!A8:E5204,5,0) -> 120 | G6: =ROUND(ROUND(E6,5)*ROUND(F6,2),2) -> 6.82
A7: INSUMO | B7: 4741 | C7: PO DE PEDRA (POSTO PEDREIRA/FORNECEDOR, SEM FRETE) | D7: M3 | E7: 0.0098 | F7: =VLOOKUP($B7,'INSUMOS SINAPI'!A10:E5206,5,0) -> 89.26 | G7: =ROUND(ROUND(E7,5)*ROUND(F7,2),2) -> 0.87
A8: INSUMO | B8: 36170 | C8: BLOQUETE/PISO INTERTRAVADO DE CONCRETO - MODELO ONDA/16 FACES/RETANGULAR/T IJOLINHO/PAVER/HOLANDES/PARALELEPIPEDO, *22 CM X 11* CM, E = 8 CM, RESISTENCIA DE 35 MPA (NBR 9781), COR NATURAL | D8: M2 | E8: 1.004 | F8: 0 | G8: 0
A9: COMPOSICAO | B9: 88260 | C9: CALCETEIRO COM ENCARGOS COMPLEMENTARES | D9: H | E9: 0.2129 | F9: =VLOOKUP(B9,'COMP Sint. Sinapi'!G7:K7322,5,0) -> 25.15 | G9: 5.35
A10: COMPOSICAO | B10: 88316 | C10: SERVENTE COM ENCARGOS COMPLEMENTARES | D10: H | E10: 0.2129 | F10: =VLOOKUP(B10,'COMP Sint. Sinapi'!G:K,5,0) -> 19.97 | G10: 4.25
A11: COMPOSICAO | B11: 91277 | C11: PLACA VIBRATÓRIA REVERSÍVEL COM MOTOR 4 TEMPOS A GASOLINA, FORÇA CENTRÍFUG A DE 25 KN (2500 KGF), POTÊNCIA 5,5 CV - CHP DIURNO. AF_08/2015 | D11: CHP | E11: 0.0055 | F11: =VLOOKUP(B11,'COMP Sint. Sinapi'!G9:K7324,5,0) -> 10.23 | G11: 0.06
A12: COMPOSICAO | B12: 91278 | C12: =VLOOKUP(B12,'COMP Sint. Sinapi'!G11:K7326,2,0) -> PLACA VIBRATÓRIA REVERSÍVEL COM MOTOR 4 TEMPOS A GASOLINA, FORÇA CENTRÍFUGA DE 25 KN (2500 KGF), POTÊNCIA 5,5 CV - CHI DIURNO. AF_08/2015 | D12: CHP | E12: 0.101 | F12: =VLOOKUP(B12,'COMP Sint. Sinapi'!G11:K7326,5,0) -> 0.71 | G12: 0.07
A13: COMPOSICAO | B13: 91283 | C13: =VLOOKUP(B13,'COMP Sint. Sinapi'!G12:K7327,2,0) -> CORTADORA DE PISO COM MOTOR 4 TEMPOS A GASOLINA, POTÊNCIA DE 13 HP, COM DISCO DE CORTE DIAMANTADO SEGMENTADO PARA CONCRETO, DIÂMETRO DE 350 MM, FURO DE 1" (14 X 1") - CHP DIURNO. AF_08/2015 | D13: CHI | E13: 0.0038 | F13: =VLOOKUP(B13,'COMP Sint. Sinapi'!G11:K7326,5,0) -> 10.83 | G13: =ROUND(ROUND(E13,5)*ROUND(F13,2),2) -> 0.04
A14: COMPOSICAO | B14: 91285 | C14: =VLOOKUP(B14,'COMP Sint. Sinapi'!G13:K7328,2,0) -> CORTADORA DE PISO COM MOTOR 4 TEMPOS A GASOLINA, POTÊNCIA DE 13 HP, COM DISCO DE CORTE DIAMANTADO SEGMENTADO PARA CONCRETO, DIÂMETRO DE 350 MM, FURO DE 1" (14 X 1") - CHI DIURNO. AF_08/2015 | D14: CHI | E14: 0.1027 | F14: =VLOOKUP(B14,'COMP Sint. Sinapi'!G12:K7327,5,0) -> 0.96 | G14: 0.1
D15: Sub total: | G15: =SUM(G6:G14) -> 17.56
F16: BDI | G16: =BDI!C17 -> 0.2339
D17: Total Serviços: | G17: =ROUND(ROUND(G15,2)*ROUND(1+G16,4),2) -> 21.67

Sheet BDI
A2: OBRA:
A3: LOCAL:
A4: DATA BASE:
A5: DETALHAMENTO DO BDI - SEM DESONERAÇÃO
A6: ='RESUMO MODULO TOTAL'!B1 -> CONTRATAÇÃO DE SERVIÇOS DE EXECUÇÃO DE PAVIMENTAÇÃO EM BLOCO INTERTRAVADO DE CONCRETO EM VIAS DE DIVERSOS MUNICÍPIOS INSERIDOS NA ÁREA DE ATUAÇÃO DA 13ª SUPERINTENDÊNCIA REGIONAL DA CODEVASF, NO ESTADO DA PARAÍBA - REGIÃO LITORAL
A7: DESCRIÇÃO DOS SERVIÇOS | B7: PREÇO DE VENDA (%) | C7: CUSTO DIRETO (%)
A8: ADMINISTRAÇÃO CENTRAL | C8: 0.06
A9: DESPESAS FINANCEIRAS | B9: 0.0102
A10: SEGUROS E GARANTIAS CONTRATUAIS | B10: 0.0025
A11: RISCOS | B11: 0.005
A12: LUCRO OPERACIONAL | C12: 0.07
A13: PIS | B13: 0.0065
A14: COFINS | B14: 0.03
A15: ISSQN | B15: 0.03
A16: Contribuição Previdenciaria | B16: 0
B17: BDI | C17: =ROUND((1+(C8+C12))/(1-(B9+B10+B11+B13+B14+B15+B16))-1,4) -> 0.2339
A18: Observação: O percentual de ISSQN aqui utilizado consiste apenas em um referencial médio.
B19: O valor real do ISSQN a ser adotado deve ser aquele proveniente das alíquotas dos municípios situados na área de
B20: influência das obras.
A59: DETALHAMENTO DO BDI DIFERENCIADO - SEM DESONERAÇÃO
A60: ='RESUMO MODULO TOTAL'!B5 -> CONTRATAÇÃO DE SERVIÇOS DE EXECUÇÃO DE PAVIMENTAÇÃO EM BLOCO INTERTRAVADO DE CONCRETO EM VIAS DE DIVERSOS MUNICÍPIOS INSERIDOS NA ÁREA DE ATUAÇÃO DA 13ª SUPERINTENDÊNCIA REGIONAL DA CODEVASF, NO ESTADO DA PARAÍBA - REGIÃO LITORAL
A62: DESCRIÇÃO DOS SERVIÇOS | B62: PREÇO DE VENDA (%) | C62: CUSTO DIRETO (%)
A63: ADMINISTRAÇÃO CENTRAL | C63: 0.0377
A64: DESPESA FINANCEIRAS | B64: 0.0102
A65: SEGUROS E GARANTIAS CONTRATUAIS | B65: 0.0025
A66: RISCOS | B66: 0.005
A67: LUCRO OPERACIONAL | C67: 0.05
A68: PIS | B68: 0.0065
A69: COFINS | B69: 0.03
A70: ISSQN | B70: 0
A71: Contribuição Previdenciaria | B71: 0
B72: BDI | C72: =ROUND((1+(C63+C67))/(1-(B64+B65+B66+B68+B69+B70+B71))-1,4) -> 0.15
A73: Fonte da composição, valores de referência e fórmula do BDI: Instrução Normativa N° 62/DNIT SEDE

Sheet ENC. SOCIAIS
A5: ='[204]RESUMO MODULO TOTAL'!B1 -> CONTRATAÇÃO DE SERVIÇOS DE EXECUÇÃO CAPA ASFÁLTICA COM CONCRETO BETUMINOSO USINADO A QUENTE (CBUQ) EM VIAS DE DIVERSOS MUNICÍPIOS INSERIDOS NA ÁREA DE ATUAÇÃO DA 13ª SUPERINTENDÊNCIA REGIONAL DA CODEVASF, NO ESTADO DA PARAÍBA - REGIÃO LITORAL
A7: DETALHAMENTO DOS ENCARGOS SOCIAIS (%)
A8: VIGÊNCIA A PARTIR DE 12/2022 | C8: COM DESONERAÇÃO | E8: SEM DESONERAÇÃO
C10: HORISTA | D10: MENSALISTA | E10: HORISTA | F10: MENSALISTA
A12: GRUPO A
A13: A1 | B13: INSS | C13: 0 | D13: 0 | E13: 20 | F13: 20
A14: A2 | B14: SESI | C14: 1.5 | D14: 1.5 | E14: 1.5 | F14: 1.5
A15: A3 | B15: SENAI | C15: 1 | D15: 1 | E15: 1 | F15: 1
A16: A4 | B16: INCRA | C16: 0.2 | D16: 0.2 | E16: 0.2 | F16: 0.2
A17: A5 | B17: SEBRAE | C17: 0.6 | D17: 0.6 | E17: 0.6 | F17: 0.6
A18: A6 | B18: Salário Educação | C18: 2.5 | D18: 2.5 | E18: 2.5 | F18: 2.5
A19: A7 | B19: Seguro Contra Acidentes de Trabalho | C19: 3 | D19: 3 | E19: 3 | F19: 3
A20: A8 | B20: FGTS | C20: 8 | D20: 8 | E20: 8 | F20: 8
A21: A9 | B21: SECONCI | C21: 1 | D21: 1 | E21: 0
A22: A | B22: Total | C22: =SUM(C13:C21) -> 17.8 | D22: =SUM(D13:D21) -> 17.8 | E22: =SUM(E13:E21) -> 36.8 | F22: =SUM(F13:F21) -> 36.8
A23: GRUPO B
A24: B1 | B24: Repouso Semanal Remunerado | C24: 17.88 | D24: - | E24: 18.03 | F24: -
A25: B2 | B25: Feriados | C25: 3.94 | D25: - | E25: 4.31 | F25: -
A26: B3 | B26: Auxílio-enfermidade | C26: 0.91 | D26: 0.69 | E26: 0.85 | F26: 0.64
A27: B4 | B27: 13° salário | C27: 10.98 | D27: 8.33 | E27: 11.06 | F27: 8.33
A28: B5 | B28: Licença-paternidade | C28: 0.07 | D28: 0.06 | E28: 0.06 | F28: 0.04
A29: B6 | B29: Faltas Justificadas | C29: 0.73 | D29: 0.56 | E29: 0.74 | F29: 0.56
A30: B7 | B30: Dias de chuva | C30: 1.45 | D30: - | E30: 2.06 | F30: -
A31: B8 | B31: Auxílio Acidente de Trabalho | C31: 0.11 | D31: 0.09 | E31: 0.1 | F31: 0.08
A32: B9 | B32: Férias Gozadas | C32: 11.35 | D32: 8.62 | E32: 11.29 | F32: 8.51
A33: B10 | B33: Salário Maternidade | C33: 0.03 | D33: 0.03 | E33: 0.04 | F33: 0.03 | L33: =(#REF!)/(1+#REF!) ->  | M33: =(#REF!) -> 
A34: B | B34: Total | C34: =SUM(C24:C33) -> 47.45 | D34: =SUM(D24:D33) -> 18.38 | E34: =SUM(E24:E33) -> 48.54 | F34: =SUM(F24:F33) -> 18.19
A35: GRUPO C
A36: C1 | B36: Aviso Prévio Indenizado | C36: 6.76 | D36: 5.14 | E36: 4.57 | F36: 3.45
A37: C2 | B37: Aviso Prévio Trabalhado | C37: 0.16 | D37: 0.12 | E37: 0.11 | F37: 0.08
A38: C3 | B38: Férias Indenizadas | C38: 2.28 | D38: 1.73 | E38: 3.31 | F38: 2.5
A39: C4 | B39: Depósito Rescisão Sem Justa Causa | C39: 3.81 | D39: 2.89 | E39: 2.61 | F39: 1.96
A40: C5 | B40: Indenização Adicional | C40: 0.57 | D40: 0.43 | E40: 0.38 | F40: 0.29
A41: C | B41: Total | C41: =SUM(C36:C40) -> 13.58 | D41: =SUM(D36:D40) -> 10.31 | E41: =SUM(E36:E40) -> 10.98 | F41: =SUM(F36:F40) -> 8.28
A42: GRUPO D
A43: D1 | B43: Reincidência de A sobre B | C43: 8.45 | D43: 3.27 | E43: 17.86 | F43: 6.69
A44: D2 | B44: Reincidência de Grupo A sobre Aviso Prévio Trabalhado e Reincidência do FGTS sobre Aviso Prévio Indenizado | C44: 0.57 | D44: 0.43 | E44: 0.41 | F44: 0.31
A45: D | B45: Total | C45: =SUM(C43:C44) -> 9.02 | D45: =SUM(D43:D44) -> 3.7 | E45: =SUM(E43:E44) -> 18.27 | F45: =SUM(F43:F44) -> 7
A47: T O T A L (%) | C47: =C22+C34+C41+C45 -> 87.85 | D47: =D22+D34+D41+D45 -> 50.19 | E47: =E22+E34+E41+E45 -> 114.59 | F47: =F22+F34+F41+F45 -> 70.27
H51: Fonte: Sinapi Cálculos e Parâmetros 5ª Edição - Atualizada em Agosto 2023

Sheet MC MODULO
A1: Extensão | B1: = | C1: 2000 | D1: m | F1: QUANTIDADE DE MODULOS | G1: 3.416428571
A2: Largura | B2: = | C2: 7 | D2: m
A4: Extensão | B4: = | C4: 2 | D4: km
B6: MOBUILIZAÇÃO | G6: =C1*C2*G1 -> 47830
A7: 1 | B7: Implantação da obra
B9: Módulos(un) | D9: Módulos(un)
B10: =G1 -> 3.416428571 | C10: = | D10: =B10 -> 3.416428571
A12: 2 | B12: Administração da obra
B14: Módulos(un) | D14: Módulos(un)
B15: =G1 -> 3.416428571 | C15: = | D15: =B15 -> 3.416428571
A17: 3 | B17: Canteiro de Obras e Almoxarifado
B19: Módulos(un) | D19: Módulos(un)
B20: =G1 -> 3.416428571 | C20: = | D20: =B20 -> 3.416428571
A22: 4 | B22: Placa de Obra em Chapa de Aço Galvanizado
B24: Módulos(un) | C24: Comprimento(m) | D24: Largura (m) | H24: Total de Area de placa (m²)
B25: =G1 -> 3.416428571 | C25: 2 | D25: 4 | H25: =C25*D25*B25*2 -> 54.66285714
B27: TERRAPLENAGEM
A29: 5 | B29: serviços topográficos para pavimentação, inclusive notas de serviços, acompanhamento e greide
B31: Extensão (m) | D31: Largura (m) | H31: area (m2)
B32: =C1*$G$1 -> 6832.857143 | C32: x | D32: =$C$2 -> 7 | G32: = | H32: =B32*D32 -> 47830
A34: 6 | B34: Escavação, carga e transporte de material de 1ª categoria - DMT de 1.000 a 1.200 m - caminho de serviço em leito natural - com escavadeira e caminhão basculante de 14 m³
B36: Extensão (m) | D36: Largura (m) | F36: Espessura (m) | H36: Volume (m3)
B37: =C1*$G$1 -> 6832.857143 | C37: x | D37: =$C$2 -> 7 | E37: x | F37: =0.15+0.08+0.04 -> 0.27 | G37: = | H37: =B37*D37*F37 -> 12914.1
A41: 7 | B41: Espalhamento de material em bota-fora
B43: Extensão (m) | D43: Largura (m) | F43: Espessura (m) | H43: Volume (m3)
B44: =C1*$G$1 -> 6832.857143 | C44: x | D44: =$C$2 -> 7 | E44: x | F44: 0.1 | G44: = | H44: =B44*D44*F44 -> 4783
B46: PAVIMENTAÇÃO
A48: 8 | B48: Execução de Pavimento em Piso Intertravado, com Bloco Sextavado de 25 X 25 cm, espessura 8 cm. AF_12/2015
B50: Extensão (m) | C50: Largura (m) | H50: area (m2)
B51: =$C$1*G1 -> 6832.857143 | C51: =$C$2 -> 7 | G51: = | H51: =C51*B51 -> 47830
A53: 8 | B53: TRANSPORTE COM CAMINHÃO CARROCERIA COM GUINDAUTO (MUNCK), MOMENTO MÁXIMO DE CARGA 11,7 TM, EM VIA URBANA PAVIMENTADA, DMT ATÉ 30KM AF_07/2020 (bloquete)
B55: Dimensoes (m³) | C55: Densidade bloco Intertravado (t/m³) | D55: Peso total (t) | E55: Distancia (km) | H55: TKM
B56: =H51*0.08 -> 3826.4 | C56: 2.2 | D56: =C56*B56 -> 8418.08 | E56: 30 | G56: = | H56: =D56*E56 -> 252542.4
A59: 8 | B59: TRANSPORTE COM CAMINHÃO BASCULANTE DE 10 M³, EM VIA URBANA PAVIMENTADA , DMT ATÉ 30 KM (UNIDADE: TXKM). AF_07/2020 (areia) | U59: =7*20 -> 140
U60: =26*5 -> 130
B61: Area | C61: Densidade areia (t/m³) | D61: Peso total (t) | E61: Distancia (km) | H61: TKM | U61: =23*5 -> 115
B62: =H51 -> 47830 | C62: 1.5 | D62: =B62*C62*0.04 -> 2869.8 | E62: 30 | G62: = | H62: =D62*E62 -> 86094 | U62: =U59+U60+U61 -> 385
A64: 8 | B64: TRANSPORTE COM CAMINHÃO BASCULANTE DE 10 M³, EM VIA URBANA PAVIMENTADA , DMT ATÉ 30 KM (UNIDADE: TXKM). AF_07/2020 (PO DE PEDRA) | U64: =7*20 -> 140
D65: 0.009 | U65: =26*5 -> 130
B66: Area | C66: Densidade pó de pedra (t/m³) | D66: Quantidade total de pó de pedra (m³) | E66: Peso total (t) | F66: Distancia (km) | H66: TKM | U66: =23*5 -> 115
B67: =H51 -> 47830 | C67: 1.5 | D67: =B67*D65 -> 430.47 | E67: =D67*C67 -> 645.705 | F67: 30 | G67: = | H67: =E67*F67 -> 19371.15 | U67: =U64+U65+U66 -> 385
A69: 9 | B69: Base ou sub-base de brita graduada com brita comercial
B71: Extensão (m) | D71: Largura (m) | F71: Espessura (m) | H71: Volume (m3)
B72: =C1*$G$1 -> 6832.857143 | C72: x | D72: =$C$2 -> 7 | E72: x | F72: 0.15 | G72: = | H72: =B72*D72*F72 -> 7174.5
A74: 10 | B74: Regularização do subleito
B76: Extensão (m) | D76: Largura (m) | H76: area (m2)
B77: =C1*$G$1 -> 6832.857143 | C77: x | D77: =$C$2 -> 7 | G77: = | H77: =B77*D77 -> 47830
B79: SINALIZAÇÃO
A81: 11 | B81: Fornecimento e implantação de placa de regulamentação em aço D = 0,60 m - película retrorrefletiva tipo I + SI
B83: Extensão (km) | D83: Quant. (un) | H83: Quant. (un)
B84: =$C$4*$G$1 -> 6.832857143 | C84: x | D84: 3 | G84: = | H84: =B84*D84 -> 20.49857143
A86: 11 | B86: Fornecimento e implantação de placa de advertencia
B88: Extensão (km) | D88: Quant. (un) | H88: Quant. (un)
B89: =$C$4*$G$1 -> 6.832857143 | C89: x | D89: 3 | G89: = | H89: =B89*D89 -> 20.49857143
A92: 12 | B92: Fornecimento e implantação de suporte metálico galvanizado para placa de regulamentação - D = 0,60 m
B94: Extensão (km) | D94: Quant. (un) | H94: Quant. (un)
B95: =$C$4*$G$1 -> 6.832857143 | C95: x | D95: 0.5 | G95: = | H95: =H89+H84 -> 40.99714286
A97: 13 | B97: Pintura de faixa com tinta acrílica - espessura de 0,4 mm (bordos)
B99: Extensão (m) | D99: Espessura (m) | H99: Quant. (m²)
B100: =C1*G1 -> 6832.857143 | C100: x | D100: 0.1 | G100: = | H100: =B100*D100*2 -> 1366.571429
B102: Pintura de faixa com tinta acrílica - espessura de 0,4 mm (faixa central)
H104: Quant. (m²)
H105: =B100*D100*0.4 -> 273.3142857
B108: DRENAGEM
A109: 14 | B109: Meio-fio de concreto - MFC 03 - areia e brita comerciais - fôrma de madeira
B111: Extensão (m) | D111: Quant. (un) | H111: Extensão(m)
B112: =$C$1*$G$1 -> 6832.857143 | C112: x | D112: 2 | G112: = | H112: =B112*D112 -> 13665.71429
A114: 19 | B114: Caiação mecanizada com fixador de cal
B116: Extensão (m) | D116: Perimetro (m) | H116: Area (m²)
B117: =$C$1*$G$1 -> 6832.857143 | C117: x | D117: =0.24 -> 0.24 | G117: = | H117: =B117*D117 -> 1639.885714
B120: SERVIÇOS COMPLEMENTARES
A121: 15
B123: Extensão (m) | D123: Largura (m) | G123: 0.1 | H123: extensão (m)
B124: =$C$1*G1 -> 6832.857143 | C124: x | D124: 1 | E124: x | G124: = | H124: =G123*B124 -> 683.2857143
B127: PROJETO EXECUTIVO
A128: 16 | B128: Projeto Executivo
B130: Extensão (m) | D130: Largura (m) | F130: Quant. (un) | H130: Área (m²)
B131: =$C$1*G1 -> 6832.857143 | C131: x | D131: =C2 -> 7 | E131: x | F131: 1 | G131: = | H131: =B131*D131 -> 47830
B133: CONTROLE TECNOLOGICO - OBRA
A134: 17 | B134: Projeto Executivo
B136: Extensão (m) | D136: Largura (m) | F136: Quant. (un) | H136: meses
G137: = | H137: =0.5*G1 -> 1.708214286

Sheet Material Sicro
A1: CGCIT | B1: SISTEMA DE CUSTOS REFERENCIAIS DE OBRAS - SICRO | D1: DNIT
B2: Paraíba - Abril/2024
A3: Código | B3: Descrição | C3: Unidade | D3: Preço Unitário (R$)
A4: M0003 | B4: Aço CA 25 | C4: kg | D4: 6.7944
A5: M0004 | B5: Aço CA 50 | C5: kg | D5: 6.5516
A6: M0005 | B6: Brita 0 | C6: m³ | D6: 171.096
A7: M0006 | B7: Fibra de poliamida para concreto | C7: kg | D7: 27.8401
A8: M0007 | B8: Fibra de aço para concreto | C8: kg | D8: 13.5774
A9: M0008 | B9: Detergente líquido neutro | C9: l | D9: 4.592
A10: M0009 | B10: Aço CP 175 RB | C10: kg | D10: 8.9603
A11: M0010 | B11: Aditivo superplastificante para concreto e argamassa | C11: kg | D11: 16.5911
A12: M0011 | B12: Aditivo modificador de viscosidade para concreto e argamassa | C12: kg | D12: 11.8594
A13: M0012 | B13: Silicato de alumínio | C13: kg | D13: 2.0946
A14: M0013 | B14: Grampo de ancoragem em aço CA 50 - D = 12,5 mm | C14: kg | D14: 6.5516
A15: M0014 | B15: Aço CA 60 | C15: kg | D15: 8.2395
A16: M0015 | B16: Espoleta elétrica Nº 8 - D = 6,0 mm | C16: un | D16: 21.7439
A17: M0016 | B17: Grampo sargento em ferro fundido tipo C com abertura útil de 105 mm (4") | C17: un | D17: 52.5499
A18: M0017 | B18: Saco de aniagem ou de ráfia de 50 kg - C = 95 cm e L = 65 cm | C18: un | D18: 2.8808
A19: M0018 | B19: Grampo pesado em aço-carbono para cabo de aço - D = 13 mm (1/2") | C19: un | D19: 18.7552
A20: M0019 | B20: Esticador em aço tipo olhal x olhal para cabo de aço - D = 13 mm | C20: un | D20: 143.7418
A21: M0020 | B21: Grampo de ancoragem em aço CA 50 - D = 6,3 mm | C21: kg | D21: 6.9557
A22: M0021 | B22: Herbicida glifosato para áreas contínuas | C22: l | D22: 26.779
A23: M0025 | B23: Adesivo plástico para tubos de PVC | C23: kg | D23: 53.8274
A24: M0026 | B24: Aditivo aglutinante para argamassa | C24: l | D24: 8.1595
A25: M0028 | B25: Areia média | C25: m³ | D25: 122.8354
A26: M0029 | B26: Sílica ativa para concreto e argamassa (microssílica) | C26: kg | D26: 1.909
A27: M0030 | B27: Aditivo plastificante e retardador de pega para concreto e argamassa | C27: kg | D27: 7.4095
A28: M0032 | B28: Adesivo de contato para laminado elastoplástico | C28: kg | D28: 47.2725
A29: M0035 | B29: Diluente tipo aguarrás para tintas e vernizes | C29: l | D29: 15.168
A30: M0039 | B30: Gasolina comum | C30: l | D30: 5.0527
A31: M0041 | B31: Contêiner com 2 banheiros - L = 2,44 m e C = 6,09 m (1 TEU) | C31: un | D31: 88578.5978
A32: M0042 | B32: Contêiner com janela - L = 2,44 m e C = 6,09 m (1 TEU) | C32: un | D32: 62222.6016
A33: M0043 | B33: Óleo diesel | C33: l | D33: 5.2109
A34: M0044 | B34: Abrasivo de vidro com granulometria de 210 a 420 micra | C34: kg | D34: 9.46
A35: M0045 | B35: Barreira plástica monobloco para canalização de trânsito - C = 100 cm, L = 50 cm e H = 55 cm | C35: un | D35: 505.0821
A36: M0046 | B36: Barreira plástica para canalização de trânsito - C = 60 cm, L = 45 cm e H = 60 cm | C36: un | D36: 317.8208
A37: M0047 | B37: Cone de sinalização em polietileno - H = 75 cm e base quadrada de 40 x 40 cm | C37: un | D37: 102.95
A38: M0048 | B38: Balizador cônico refletivo em polietileno semiflexível - H = 114 cm e base octogonal de D = 40 cm | C38: un | D38: 147.4254
A39: M0049 | B39: Delimitador de tráfego flexível com chumbador e duas faixas refletivas - H = 77 cm e D = 21 cm | C39: un | D39: 181.8623
A40: M0050 | B40: Aditivo natural tipo goma xantana para hidrossemeadura | C40: kg | D40: 101.9944
A41: M0051 | B41: Cilindro canalizador de tráfego em polietileno - H = 117 cm e base quadrada de 60 x 60 cm | C41: un | D41: 204.9246
A42: M0052 | B42: Fita adesiva de PVC - L = 50 mm e C = 50 m | C42: m | D42: 0.1055
A43: M0053 | B43: Tela plástica em polipropileno na cor laranja para tapume - L = 1,2 m | C43: m | D43: 1.9406
A44: M0054 | B44: Fita zebrada de cor laranja e branca - L = 7 a 8 cm | C44: m | D44: 0.0741
A45: M0055 | B45: Barreira plástica articulável modular - C = 240 cm e H = 100 cm | C45: un | D45: 1279.349
A46: M0056 | B46: Ferramenta de corte para removedora de faixa de sinalização (Smith Cutter) | C46: un | D46: 7235.3347
A47: M0057 | B47: Contêiner com janela - L = 4,88 m e C = 6,09 m (1 TEU duplo) | C47: un | D47: 119782.4619
A48: M0058 | B48: Contêiner com janela e 2 banheiros - L = 4,88 m e C = 6,09 m (1 TEU duplo) | C48: un | D48: 124172.1141
A49: M0059 | B49: Contêiner com revestimento térmico, janela e banheiro - L = 2,44 m e C = 6,09 m (1 TEU) | C49: un | D49: 85857.5141
A50: M0060 | B50: Contêiner com janela - L = 2,44 m e C = 4,58 m (3/4 TEU) | C50: un | D50: 58822.5521
A51: M0065 | B51: Contêiner com janela e banheiro - L = 2,44 m e 4,58 m (3/4 TEU) | C51: un | D51: 71649.355
A52: M0066 | B52: Contêiner com revestimento térmico, janela e banheiro - L = 2,44 m e C = 12,90 m (2 TEU) | C52: un | D52: 117286.1358
A53: M0067 | B53: Tubo PEAD PE 100 PN 10 com flanges - D = 160 mm | C53: m | D53: 175.8702
A54: M0068 | B54: Caibro de pinho - L = 7,5 cm e E = 10,0 cm | C54: m | D54: 23.9333
A55: M0069 | B55: Arame farpado em aço galvanizado - D = 1,60 mm | C55: m | D55: 0.7338
A56: M0071 | B56: Contêiner com 3 janelas para guarita - L = 2,44 m e C = 3,05 m (1/2 TEU) | C56: un | D56: 41649.561
A57: M0072 | B57: Arame liso em aço galvanizado - D = 2,10 mm (14 BWG) | C57: kg | D57: 16.4029
A58: M0073 | B58: Muda de árvore com altura de 0,30 a 0,80 m | C58: un | D58: 14.6944
A59: M0074 | B59: Muda de arbusto com altura até 0,50 m | C59: un | D59: 22.4325
A60: M0075 | B60: Arame liso recozido em aço-carbono - D = 1,24 mm (18 BWG) | C60: kg | D60: 9.2621
A61: M0076 | B61: Disco de corte abrasivo para policorte - D = 300 mm | C61: un | D61: 15.3693
A62: M0080 | B62: Areia fina | C62: m³ | D62: 128.545
A63: M0081 | B63: Areia grossa | C63: m³ | D63: 122.2172
A64: M0082 | B64: Areia média lavada | C64: m³ | D64: 132.139
A65: M0083 | B65: Argamassa pré-dosada para grauteamento | C65: kg | D65: 1.64
A66: M0084 | B66: Argamassa pré-dosada autoadensável para grauteamento | C66: kg | D66: 1.6117
A67: M0085 | B67: Ancoragem ativa para 4 cordoalhas - D = 12,7 mm | C67: un | D67: 382.1852
A68: M0086 | B68: Ancoragem ativa para 6 cordoalhas - D = 12,7 mm | C68: un | D68: 492.9878
A69: M0087 | B69: Ancoragem ativa para 7 cordoalhas - D = 12,7 mm | C69: un | D69: 569.7273
A70: M0088 | B70: Ancoragem ativa para 8 cordoalhas - D = 12,7 mm | C70: un | D70: 665.9752
A71: M0089 | B71: Ancoragem ativa para 9 cordoalhas - D = 12,7 mm | C71: un | D71: 752.4338
A72: M0091 | B72: Ancoragem ativa para 10 cordoalhas - D = 12,7 mm | C72: un | D72: 834.1037
A73: M0092 | B73: Ancoragem ativa para 12 cordoalhas - D = 12,7 mm | C73: un | D73: 1055.2251
A74: M0093 | B74: Ancoragem ativa para 15 cordoalhas - D = 12,7 mm | C74: un | D74: 1463.5647
A75: M0094 | B75: Ancoragem ativa para 19 cordoalhas - D = 12,7 mm | C75: un | D75: 1861.3027
A76: M0098 | B76: Bambu com diâmetro médio de 10 cm | C76: m | D76: 21.3573
A77: M0099 | B77: Equipamentos para a fábrica de dormentes de concreto protendido | C77: ISF | D77: 567.856
A78: M0100 | B78: Ancoragem ativa para 22 cordoalhas - D = 12,7 mm | C78: un | D78: 2409.0187
A79: M0101 | B79: Ancoragem ativa para 27 cordoalhas - D = 12,7 mm | C79: un | D79: 2938.9951
A80: M0102 | B80: Ancoragem ativa para 31 cordoalhas - D = 12,7 mm | C80: un | D80: 3171.7348
A81: M0103 | B81: Aditivo acelerador de pega para concreto e argamassa projetados | C81: kg | D81: 7.1931
A82: M0104 | B82: Asfalto diluído de petróleo - CM-30 | C82: t | D82: -
A83: M0105 | B83: Ancoragem ativa para 4 cordoalhas - D = 15,2 mm | C83: un | D83: 472.9396
A84: M0106 | B84: Ancoragem ativa para 6 cordoalhas - D = 15,2 mm | C84: un | D84: 628.0241
A85: M0107 | B85: Geocomposto para drenagem | C85: m² | D85: 40.3998
A86: M0108 | B86: Ancoragem ativa para 7 cordoalhas - D = 15,2 mm | C86: un | D86: 739.5577
A87: M0109 | B87: Geodreno vertical - L = 10 cm e E = 5 mm | C87: m | D87: 5.18
A88: M0110 | B88: Ancoragem ativa para 10 cordoalhas - D = 15,2 mm | C88: un | D88: 1141.2005
A89: M0111 | B89: Ancoragem ativa para 9 cordoalhas - D = 15,2 mm | C89: un | D89: 1016.648
A90: M0112 | B90: Disco diamantado segmentado para corte de pavimento - D = 1.000 mm | C90: un | D90: 5880.8778
A91: M0113 | B91: Ancoragem ativa para 12 cordoalhas - D = 15,2 mm | C91: un | D91: 1395.471
A92: M0114 | B92: Disco diamantado segmentado para corte de pavimento - D = 1.500 mm | C92: un | D92: 26165.1244
A93: M0115 | B93: Biomanta vegetal de fibras de coco entrelaçadas com fios de polipropileno biodegradáveis - densidade 0,4 kg/m² | C93: m² | D93: 6.51
A94: M0116 | B94: Mangote flangeado de borracha reforçada com lonas sintéticas - C = 1,80 m e D = 0,30 m | C94: un | D94: 16643.989
A95: M0117 | B95: Mangote flangeado de borracha reforçada com lonas sintéticas - C = 1,80 m e D = 0,40 m | C95: un | D95: 22766.6101
A96: M0118 | B96: Mangote flangeado de borracha reforçada com lonas sintéticas - C = 1,80 m e D = 0,45 m | C96: un | D96: 25486.949
A97: M0119 | B97: Mangote flangeado de borracha reforçada com lonas sintéticas - C = 1,80 m e D = 0,50 m | C97: un | D97: 28656.348
A98: M0120 | B98: Tubo PEAD PE 100 PN 8 com flanges - D = 250 mm | C98: m | D98: 315.8007
A99: M0121 | B99: Tubo PEAD PE 100 PN 8 com flanges - D = 400 mm | C99: m | D99: 2026.8896
A100: M0122 | B100: Tubo PEAD PE 100 PN 8 com flanges - D = 450 mm | C100: m | D100: 2545.9211
A101: M0123 | B101: Tubo PEAD PE 100 PN 8 com flanges - D = 500 mm | C101: m | D101: 2850.8636
A102: M0124 | B102: Flutuador bipartido em polietileno com núcleo de espuma em poliuretano para tubos - D = 0,30 m | C102: un | D102: 4346.578
A103: M0125 | B103: Flutuador bipartido em polietileno com núcleo de espuma em poliuretano para tubos - D = 0,40 m | C103: un | D103: 5977.1243
A104: M0126 | B104: Flutuador bipartido em polietileno com núcleo de espuma em poliuretano para tubos - D = 0,45 m | C104: un | D104: 6854.5742
A105: M0127 | B105: Flutuador bipartido em polietileno com núcleo de espuma em poliuretano para tubos - D = 0,50 m | C105: un | D105: 7404.4367
A106: M0128 | B106: Biomanta vegetal de fibras de palha entrelaçadas com fios de polipropileno biodegradáveis - densidade 0,6 kg/m² | C106: m² | D106: 5.71
A107: M0129 | B107: Retentor de sedimento em fibras vegetais - D = 20 cm | C107: m | D107: 59.0583
A108: M0130 | B108: Ancoragem ativa para 15 cordoalhas - D = 15,2 mm | C108: un | D108: 1835.5936
A109: M0131 | B109: Tubo PEAD corrugado com paredes estruturadas para drenagem - D = 400 mm | C109: m | D109: 234.1592
A110: M0132 | B110: Tubo PEAD corrugado com paredes estruturadas para drenagem - D = 450 mm | C110: m | D110: 285.9929
A111: M0133 | B111: Tubo PEAD corrugado com paredes estruturadas para drenagem - D = 500 mm | C111: m | D111: 385.5947
A112: M0134 | B112: Tubo PEAD corrugado com paredes estruturadas para drenagem - D = 600 mm | C112: m | D112: 562.0222
A113: M0135 | B113: Tubo PEAD corrugado com paredes estruturadas para drenagem - D = 750 mm | C113: m | D113: 760.5906
A114: M0136 | B114: Tubo PEAD corrugado com paredes estruturadas para drenagem - D = 800 mm | C114: m | D114: 837.9297
A115: M0137 | B115: Tubo PEAD corrugado com paredes estruturadas para drenagem - D = 900 mm | C115: m | D115: 1112.2623
A116: M0138 | B116: Ancoragem ativa para 19 cordoalhas - D = 15,2 mm | C116: un | D116: 2389.2129
A117: M0139 | B117: Tubo PEAD corrugado com paredes estruturadas para drenagem - D = 1.000 mm | C117: m | D117: 1471.4568
A118: M0140 | B118: Bentonita | C118: kg | D118: 2.6524
A119: M0141 | B119: Tubo PEAD corrugado com paredes estruturadas para drenagem - D = 1.050 mm | C119: m | D119: 1455.728
A120: M0142 | B120: Tubo PEAD corrugado com paredes estruturadas para drenagem - D = 1.200 mm | C120: m | D120: 2062.8705
A121: M0143 | B121: Tubo PEAD corrugado com paredes estruturadas para drenagem - D = 1.500 mm | C121: m | D121: 2379.2935
A122: M0145 | B122: Ancoragem ativa para 22 cordoalhas - D = 15,2 mm | C122: un | D122: 3093.9687
A123: M0146 | B123: Ancoragem ativa para 27 cordoalhas - D = 15,2 mm | C123: un | D123: 4053.2352
A124: M0148 | B124: Ancoragem ativa para lajes para 1 cordoalha - D = 12,7 mm | C124: un | D124: 89.8149
A125: M0151 | B125: Ancoragem ativa para lajes para 2 cordoalhas - D = 12,7 mm | C125: un | D125: 167.0291
A126: M0152 | B126: Ancoragem ativa para lajes para 3 cordoalhas - D = 12,7 mm | C126: un | D126: 232.5884
A127: M0153 | B127: Ancoragem ativa para lajes para 4 cordoalhas - D = 12,7 mm | C127: un | D127: 310.7085
A128: M0156 | B128: Bloco de concreto - L = 19 cm, A = 19 cm e C = 39 cm | C128: un | D128: 4.4308
A129: M0158 | B129: Tela metálica galvanizada dobrada em L - C = 2,0 m, L = 0,4 m e H = 0,4 m | C129: un | D129: 414.1113
A130: M0160 | B130: Extintor de incêndio tipo espuma mecânica - V = 10 l | C130: un | D130: 606.6379
A131: M0161 | B131: Barra de fibra de vidro (vergalhão) - D = 25,0 mm | C131: m | D131: 61.0832
A132: M0162 | B132: Corrente de elo soldado em aço galvanizado com acabamento polido - D = 3,18 mm (1/8") | C132: m | D132: 7.1839
A133: M0163 | B133: Gonzo com aba em aço galvanizado - D = 12,7 mm (1/2") | C133: un | D133: 2.8833
A134: M0164 | B134: Tubo em aço galvanizado - E = 1,50 mm e seção de 20 x 20 mm | C134: m | D134: 12.7369
A135: M0166 | B135: Tubo em aço galvanizado - E = 2,25 mm e D = 20 mm (3/4") | C135: m | D135: 31.0079
A136: M0167 | B136: Tela de poliamida industrial - E = 0,40 mm e malha de 1,6 mm | C136: m² | D136: 15.3381
A137: M0168 | B137: Abraçadeira de poliamida - E = 3,6 mm e C = 200 mm | C137: un | D137: 0.2162
A138: M0169 | B138: Roda em aço e pneu com câmara de ar 83/203 mm (3,25"/8") para carrinho de mão | C138: un | D138: 75.1164
A139: M0173 | B139: Ancoragem ativa para lajes para 1 cordoalha - D = 15,2 mm | C139: un | D139: 100.9319
A140: M0178 | B140: Ancoragem ativa para lajes para 2 cordoalhas - D = 15,2 mm | C140: un | D140: 218.3029
A141: M0181 | B141: Ancoragem ativa para lajes para 3 cordoalhas - D = 15,2 mm | C141: un | D141: 284.4937
A142: M0184 | B142: Ancoragem ativa para lajes para 4 cordoalhas - D = 15,2 mm | C142: un | D142: 375.7093
A143: M0191 | B143: Brita 1 | C143: m³ | D143: 146.2721
A144: M0192 | B144: Brita 2 | C144: m³ | D144: 144.7412
A145: M0193 | B145: Brita 3 | C145: m³ | D145: 143.6236
A146: M0194 | B146: Escória de aciaria | C146: m³ | D146: 13.8369
A147: M0198 | B147: Parafuso de cabeça chata em aço - D = 4,5 mm e bucha plástica - D = 8 mm (S8) | C147: un | D147: 0.3254
A148: M0199 | B148: Coroa de botões cruzados linha R32 - D = 43 mm (1 11/16’’) | C148: un | D148: 321.152
A149: M0201 | B149: Coroa de botões esféricos linha T38 - D = 89 mm (3 1/2") | C149: un | D149: 872.3109
A150: M0202 | B150: Coroa de botões esféricos linha T45 - D = 76 mm (3") | C150: un | D150: 674.2533
A151: M0204 | B151: Instalações físicas para a central de pré-moldagem de dormentes de concreto protendido | C151: CMCC | D151: 1761.58
A152: M0217 | B152: Enxofre | C152: kg | D152: 4.7081
A153: M0220 | B153: Adubo à base de nitrogênio, fósforo e potássio (NPK) | C153: kg | D153: 3.4129
A154: M0222 | B154: Filer calcário | C154: kg | D154: 0.1911
A155: M0223 | B155: Sementes para hidrossemeadura | C155: kg | D155: 30.2855
A156: M0224 | B156: Guia-chapéu pré-moldada - C = 120 cm | C156: un | D156: 65.0621
A157: M0225 | B157: Adubo orgânico composto | C157: kg | D157: 0.2567
A158: M0229 | B158: Gabião tipo colchão em liga de zinco e alumínio revestido com polímero de malha hexagonal - E = 0,17 m | C158: m² | D158: 214.2545
A159: M0230 | B159: Gabião tipo caixa em liga de zinco e alumínio de malha hexagonal - C = 2,00 m, L = 1,00 m e H = 0,50 m | C159: un | D159: 640.2175
A160: M0231 | B160: Gabião tipo caixa em liga de zinco e alumínio de malha hexagonal - C = 2,00 m, L = 1,00 m e H = 1,00 m | C160: un | D160: 984.1986
A161: M0232 | B161: Gabião tipo caixa em liga de zinco e alumínio revestido com polímero de malha hexagonal - C = 2,00 m, L = 1,00 m e H = 0,50 m | C161: un | D161: 793.7563
A162: M0233 | B162: Gabião tipo caixa em liga de zinco e alumínio revestido com polímero de malha hexagonal - C = 2,00 m, L = 1,00 m e H = 1,00 m | C162: un | D162: 1111.6892
A163: M0234 | B163: Gabião tipo saco em liga de zinco e alumínio revestido com polímero de malha hexagonal - D = 0,65 m | C163: m³ | D163: 591.9263
A164: M0235 | B164: Gabião tipo colchão em liga de zinco e alumínio revestido com polímero de malha hexagonal - E = 0,23 m | C164: m² | D164: 224.5746
A165: M0236 | B165: Gabião tipo colchão em liga de zinco e alumínio revestido com polímero de malha hexagonal - E = 0,30 m | C165: m² | D165: 247.0973
A166: M0237 | B166: Energia elétrica | C166: kWh | D166: 0.791
A167: M0253 | B167: Cabo de cobre flexível antichama isolado em PVC - tensão de 450/750 V e seção de 16 mm² | C167: m | D167: 13.512
A168: M0254 | B168: Mistura gasosa de argônio e dióxido de carbono para solda MIG/MAG | C168: m³ | D168: 48.5043
A169: M0256 | B169: Tinta à base de etil silicato de zinco bicomponente para fundo preparador de pintura | C169: l | D169: 87.7584
A170: M0257 | B170: Diluente para tinta à base de etil silicato de zinco | C170: l | D170: 33.1262
A171: M0260 | B171: Cabo de cobre PP flexível isolado em PVC - tensão de 300/500 V e seção de 3 x 1,5 mm² | C171: m | D171: 4.6918
A172: M0264 | B172: Bomba de combustível industrial eletrônica simples | C172: un | D172: 26695.882
A173: M0265 | B173: Tanque de combustível aéreo horizontal com escada para visita - capacidade de 5.000 l | C173: un | D173: 20560.4143
A174: M0266 | B174: Cabo de cobre flexível antichama isolado em PVC - tensão de 0,6/1,0 kV e seção de 240 mm² | C174: m | D174: 166.6155
A175: M0267 | B175: Módulo de torre de elevador de cremalheira | C175: un | D175: 3878.9526
A176: M0268 | B176: Módulo de ancoragem de torre de elevador de cremalheira | C176: un | D176: 2935.8593
A177: M0269 | B177: Cabo de cobre flexível antichama isolado em PVC - tensão de 0,6/1,0 kV e seção de 50 mm² | C177: m | D177: 35.8401
A178: M0284 | B178: Caibro de pinho - L = 7,5 cm e E = 7,5 cm | C178: m | D178: 17.1875
A179: M0285 | B179: Pontalete para escoramento - D = 15 cm | C179: m | D179: 8.54
A180: M0286 | B180: Tábua - E = 2,5 cm e L = 30 cm | C180: m | D180: 17.4713
A181: M0289 | B181: Tábua - E = 2,5 cm e L = 15 cm | C181: m | D181: 8.7356
A182: M0290 | B182: Tábua - E = 2,5 cm e L = 10 cm | C182: m | D182: 5.8238
A183: M0291 | B183: Estrutura modular com 2 banheiros - L = 2,44 m e C = 6,06 m (1 TEU) | C183: un | D183: 72966.5297
A184: M0292 | B184: Estrutura modular com janela - L = 2,44 m e C = 6,06 m (1 TEU) | C184: un | D184: 58642.3377
A185: M0293 | B185: Estrutura modular com janela - L = 4,88 m e C = 6,06 m (1 TEU duplo) | C185: un | D185: 103309.7098
A186: M0294 | B186: Estrutura modular com janela e 2 banheiros - L = 4,88 m e C = 6,06 m (1 TEU duplo) | C186: un | D186: 114835.52
A187: M0295 | B187: Estrutura modular com revestimento térmico, janela e banheiro - L = 2,44 m e C = 6,06 m (1 TEU) | C187: un | D187: 65997.4
A188: M0296 | B188: Estrutura modular com revestimento térmico, janela e banheiro - L = 2,44 m e C = 12,19 m (2 TEU) | C188: un | D188: 122521.1627
A189: M0297 | B189: Estrutura modular com 3 janelas para guarita - L = 2,44 m e C = 3,05 m (1/2 TEU) | C189: un | D189: 41239.2001
A190: M0301 | B190: Pontalete para escoramento - D = 10 cm | C190: m | D190: 3.7974
A191: M0310 | B191: Peça de madeira - L = 7,5 cm e E = 2,5 cm | C191: m | D191: 5.9833
A192: M0311 | B192: Filtro de aspiração de ar externo com capacidade 3,58 l/s para compressor de ar respirável | C192: un | D192: 199.9389
A193: M0312 | B193: Filtro de purificação de ar comprimido com capacidade de 35 MPa para compressor de ar respirável | C193: un | D193: 222.0049
A194: M0344 | B194: Cal hidratada - a granel | C194: kg | D194: 0.5111
A195: M0345 | B195: Cal hidratada - saco | C195: kg | D195: 0.8393
A196: M0346 | B196: Disco de aço para bomba de projeção via seca | C196: un | D196: 330
A197: M0347 | B197: Disco de aço para bomba de projeção via úmida | C197: un | D197: 1262.5862
A198: M0348 | B198: Disco de borracha para bomba de projeção via seca | C198: un | D198: 265
A199: M0349 | B199: Disco de borracha para bomba de projeção via úmida | C199: un | D199: 600.6
A200: M0350 | B200: Bico para bomba de projeção | C200: un | D200: 297.88
... 1476 more rows

Sheet Pessoal Sicro
A1: CGCIT | B1: SISTEMA DE CUSTOS REFERENCIAIS DE OBRAS - SICRO | G1: DNIT
A3: Paraíba - Abril/2024
A4: Sem desoneração
A5: Código | B5: Descrição | C5: Unidade | D5: Salário (R$) | E5: Encargos Totais | F5: Custo (R$) | G5: Periculosidade/ Insalubridade
A6: P9801 | B6: Ajudante | C6: h | D6: 6.8057 | E6: 1.961429 | F6: 20.1545 | G6: 0
A7: P9802 | B7: Ajudante especializado | C7: h | D7: 8.1266 | E7: 1.917171 | F7: 23.7066 | G7: 0
A8: P9803 | B8: Almoxarife | C8: mês | D8: 2699.4 | E8: 1.147135 | F8: 5795.9762 | G8: 0
A9: P9804 | B9: Apontador | C9: mês | D9: 1790.374 | E9: 1.365776 | F9: 4235.6238 | G9: 0
A10: P9805 | B10: Armador | C10: h | D10: 10.8106 | E10: 1.643164 | F10: 28.5741 | G10: 0
A11: P9806 | B11: Auxiliar administrativo | C11: mês | D11: 1966.1179 | E11: 1.299312 | F11: 4520.7184 | G11: 0
A12: P9807 | B12: Bombeiro hidráulico | C12: h | D12: 11.0195 | E12: 1.70433 | F12: 29.8003 | G12: 0
A13: P9808 | B13: Carpinteiro | C13: h | D13: 9.0784 | E13: 1.752498 | F13: 24.9882 | G13: 0
A14: P9809 | B14: Encarregado administrativo | C14: mês | D14: 3743.2324 | E14: 1.013064 | F14: 7535.3663 | G14: 0
A15: P9810 | B15: Eletricista | C15: h | D15: 9.2063 | E15: 1.793541 | F15: 25.7181 | G15: 0
A16: P9811 | B16: Encarregado especializado | C16: mês | D16: 3329.17 | E16: 1.086598 | F16: 6946.6394 | G16: 0
A17: P9812 | B17: Engenheiro | C17: mês | D17: 13036.3226 | E17: 0.836865 | F17: 23945.9647 | G17: 0
A18: P9814 | B18: Operacional | C18: mês | D18: 1570.3441 | E18: 1.489277 | F18: 3909.0214 | G18: 0
A19: P9815 | B19: Jardineiro | C19: h | D19: 9.63 | E19: 1.70592 | F19: 26.058 | G19: 0
A20: P9819 | B20: Engenheiro supervisor | C20: mês | D20: 13036.3226 | E20: 0.836865 | F20: 23945.9647 | G20: 0
A21: P9821 | B21: Pedreiro | C21: h | D21: 8.9038 | E21: 1.761442 | F21: 24.5873 | G21: 0
A22: P9822 | B22: Pintor | C22: h | D22: 10.8106 | E22: 1.649893 | F22: 28.6469 | G22: 0
A23: P9823 | B23: Serralheiro | C23: h | D23: 9.8194 | E23: 1.697771 | F23: 26.4904 | G23: 0
A24: P9824 | B24: Servente | C24: h | D24: 6.5264 | E24: 1.996058 | F24: 19.5534 | G24: 0
A25: P9825 | B25: Soldador | C25: h | D25: 12.6749 | E25: 1.568746 | F25: 32.5585 | G25: 0
A26: P9826 | B26: Chefe setor de finanças | C26: mês | D26: 12413.5749 | E26: 0.841805 | F26: 22863.3843 | G26: 0
A27: P9827 | B27: Vigia | C27: mês | D27: 1475.44 | E27: 1.694732 | F27: 4418.5473 | G27: 0.3
A28: P9830 | B28: Montador | C28: h | D28: 10.835 | E28: 1.718176 | F28: 29.4514 | G28: 0
A29: P9833 | B29: Auxiliar de laboratório | C29: mês | D29: 2378.3386 | E29: 1.204392 | F29: 5242.7905 | G29: 0
A30: P9837 | B30: Oceanógrafo | C30: mês | D30: 5313.4666 | E30: 0.967307 | F30: 10453.22 | G30: 0
A31: P9840 | B31: Encarregado geral | C31: mês | D31: 5552.7043 | E31: 0.960499 | F31: 10886.0712 | G31: 0
A32: P9842 | B32: Faxineiro | C32: mês | D32: 1454.2 | E32: 1.482114 | F32: 3609.4901 | G32: 0
A33: P9843 | B33: Operador de equipamento leve | C33: h | D33: 8.8496 | E33: 1.747207 | F33: 24.3116 | G33: 0
A34: P9845 | B34: Operador de equipamento pesado | C34: h | D34: 12.5278 | E34: 1.555562 | F34: 32.0155 | G34: 0
A35: P9846 | B35: Operador de equipamento especial | C35: h | D35: 17.3701 | E35: 1.417806 | F35: 41.9975 | G35: 0
A36: P9847 | B36: Perfurador de tubulão | C36: h | D36: 6.7945 | E36: 1.957116 | F36: 20.0921 | G36: 0
A37: P9848 | B37: Desenhista | C37: mês | D37: 3282.7894 | E37: 1.057351 | F37: 6753.85 | G37: 0
A38: P9849 | B38: Condutor maquinista fluvial | C38: mês | D38: 2497.4354 | E38: 1.203174 | F38: 5502.2847 | G38: 0
A39: P9850 | B39: Copeiro | C39: mês | D39: 1579.6 | E39: 1.401019 | F39: 3792.6496 | G39: 0
A40: P9851 | B40: Médico do trabalho | C40: mês | D40: 9683.7414 | E40: 0.865632 | F40: 18066.2978 | G40: 0
A41: P9852 | B41: Blaster | C41: h | D41: 11.0884 | E41: 1.972352 | F41: 36.2851 | G41: 0.3
A42: P9853 | B42: Pré-marcador | C42: h | D42: 6.7924 | E42: 1.933647 | F42: 19.9265 | G42: 0
A43: P9854 | B43: Recepcionista | C43: mês | D43: 1633.1119 | E43: 1.352607 | F43: 3842.0704 | G43: 0
A44: P9855 | B44: Marinheiro de máquinas | C44: mês | D44: 2228.695 | E44: 1.253325 | F44: 5021.9741 | G44: 0
A45: P9856 | B45: Marinheiro de convés | C45: h | D45: 9.888 | E45: 1.708729 | F45: 26.7839 | G45: 0
A46: P9857 | B46: Marinheiro de convés - mensalista | C46: mês | D46: 2175.3666 | E46: 1.264919 | F46: 4927.0291 | G46: 0
A47: P9858 | B47: Laboratorista | C47: mês | D47: 3319.8 | E47: 1.082488 | F47: 6913.4436 | G47: 0
A48: P9859 | B48: Trabalhador de via | C48: h | D48: 6.4273 | E48: 2.02087 | F48: 19.416 | G48: 0
A49: P9861 | B49: Selecionador de material pétreo | C49: h | D49: 6.7924 | E49: 1.944359 | F49: 19.9992 | G49: 0
A50: P9864 | B50: Engenheiro de segurança do trabalho | C50: mês | D50: 12257.0437 | E50: 0.84769 | F50: 22647.217 | G50: 0
A51: P9866 | B51: Motorista de caminhão | C51: h | D51: 10.458 | E51: 1.625744 | F51: 27.46 | G51: 0
A52: P9867 | B52: Técnico especializado - mensalista | C52: mês | D52: 3179.151 | E52: 1.092576 | F52: 6652.615 | G52: 0
A53: P9869 | B53: Encarregado de obras de artes especiais | C53: mês | D53: 3329.17 | E53: 1.086598 | F53: 6946.6394 | G53: 0
A54: P9870 | B54: Motorista de veículo leve | C54: h | D54: 10.8106 | E54: 1.606877 | F54: 28.1819 | G54: 0
A55: P9871 | B55: Motorista de veículo especial | C55: h | D55: 11.5651 | E55: 1.574793 | F55: 29.7777 | G55: 0
A56: P9875 | B56: Encarregado de turma | C56: mês | D56: 2040.59 | E56: 1.285447 | F56: 4663.6602 | G56: 0
A57: P9876 | B57: Técnico de segurança do trabalho | C57: mês | D57: 3262.6 | E57: 1.082823 | F57: 6795.4183 | G57: 0
A58: P9878 | B58: Secretária | C58: mês | D58: 2855.4455 | E58: 1.096835 | F58: 5987.398 | G58: 0
A59: P9880 | B59: Piloto fluvial | C59: mês | D59: 3456.53 | E59: 1.073971 | F59: 7168.7429 | G59: 0
A60: P9882 | B60: Técnico especializado | C60: h | D60: 14.4507 | E60: 1.489825 | F60: 35.9797 | G60: 0
A61: P9883 | B61: Chefe do setor administrativo | C61: mês | D61: 3743.085 | E61: 1.013074 | F61: 7535.107 | G61: 0
A62: P9884 | B62: Encarregado de terraplenagem | C62: mês | D62: 3329.17 | E62: 1.086598 | F62: 6946.6394 | G62: 0
A63: P9885 | B63: Frentista de túnel | C63: h | D63: 6.7924 | E63: 2.016863 | F63: 20.4917 | G63: 0
A64: P9889 | B64: Técnico da qualidade | C64: mês | D64: 3566.9485 | E64: 1.05555 | F64: 7332.0409 | G64: 0
A65: P9892 | B65: Auxiliar de blaster | C65: h | D65: 9.7647 | E65: 2.046332 | F65: 32.6759 | G65: 0.3
A66: P9893 | B66: Encarregado de pavimentação | C66: mês | D66: 3329.17 | E66: 1.086598 | F66: 6946.6394 | G66: 0
A67: P9896 | B67: Porteiro | C67: mês | D67: 1454.2 | E67: 1.482093 | F67: 3609.4596 | G67: 0
A68: P9897 | B68: Técnico de meio ambiente | C68: mês | D68: 3587.9112 | E68: 1.065634 | F68: 7411.3113 | G68: 0
A69: P9900 | B69: Comprador | C69: mês | D69: 3365.3083 | E69: 1.067249 | F69: 6956.9302 | G69: 0
A70: P9901 | B70: Encarregado de superestrutura ferroviária | C70: mês | D70: 3329.17 | E70: 1.086598 | F70: 6946.6394 | G70: 0
A71: P9903 | B71: Auxiliar técnico | C71: mês | D71: 1786.8663 | E71: 1.335228 | F71: 4172.7402 | G71: 0
A72: P9907 | B72: Comandante de longo curso | C72: mês | D72: 11259.3057 | E72: 0.85216 | F72: 20854.0356 | G72: 0
A73: P9908 | B73: Imediato | C73: mês | D73: 8904.606 | E73: 0.878143 | F73: 16724.1234 | G73: 0
A74: P9909 | B74: Oficial de náutica | C74: mês | D74: 2834.3491 | E74: 1.14877 | F74: 6090.3643 | G74: 0
A75: P9910 | B75: Oficial de máquinas | C75: mês | D75: 2921.1265 | E75: 1.133052 | F75: 6230.9147 | G75: 0
A76: P9913 | B76: Draguista | C76: mês | D76: 3595.3388 | E76: 1.061613 | F76: 7412.1972 | G76: 0
A77: P9915 | B77: Maquinista | C77: h | D77: 12.7679 | E77: 1.536964 | F77: 32.3917 | G77: 0
A78: P9916 | B78: Encarregado de conservação rodoviária | C78: mês | D78: 3329.17 | E78: 1.086598 | F78: 6946.6394 | G78: 0
A79: P9920 | B79: Mestre fluvial | C79: mês | D79: 4677.0464 | E79: 0.990445 | F79: 9309.4036 | G79: 0
A80: P9921 | B80: Mergulhador raso autônomo de emergência | C80: h | D80: 9.9237 | E80: 2.46323 | F80: 36.9353 | G80: 0.2587
A81: P9922 | B81: Mergulhador raso dependente de emergência | C81: h | D81: 9.9208 | E81: 2.539431 | F81: 38.0902 | G81: 0.3
A82: P9924 | B82: Mergulhador raso dependente | C82: h | D82: 9.9208 | E82: 3.855917 | F82: 51.1508 | G82: 0.3
A83: P9925 | B83: Mergulhador raso autônomo | C83: h | D83: 9.9237 | E83: 3.48923 | F83: 47.117 | G83: 0.2587
A84: P9926 | B84: Mergulhador raso auxiliar de superfície | C84: h | D84: 9.9237 | E84: 2.237032 | F84: 34.6905 | G84: 0.2587
A85: P9927 | B85: Frentista de túnel com periculosidade | C85: h | D85: 6.7924 | E85: 2.34593 | F85: 24.7646 | G85: 0.3
A86: P9930 | B86: Eletricista com periculosidade | C86: h | D86: 9.2063 | E86: 2.121262 | F86: 31.4971 | G86: 0.3
A87: P9931 | B87: Operador de equipamento de mergulho | C87: h | D87: 18.0118 | E87: 1.800995 | F87: 53.0176 | G87: 0.1425
A88: P9932 | B88: Operador de equipamento pesado com periculosidade | C88: h | D88: 12.5278 | E88: 1.884418 | F88: 39.8937 | G88: 0.3
A89: P9933 | B89: Supervisor de mergulho raso | C89: mês | D89: 3962.5981 | E89: 1.326142 | F89: 9782.236 | G89: 0.1425
A90: P9934 | B90: Motorista de veículo especial com periculosidade | C90: h | D90: 11.5651 | E90: 1.90284 | F90: 37.0411 | G90: 0.3
A91: P9938 | B91: Operador de equipamento leve com periculosidade | C91: h | D91: 8.8496 | E91: 2.076069 | F91: 29.8768 | G91: 0.3
A92: P9939 | B92: Operador de equipamento leve com insalubridade | C92: h | D92: 8.8496 | E92: 2.204678 | F92: 30.9273 | G92: 0.2901
A93: P9942 | B93: Marinheiro de convés com periculosidade | C93: h | D93: 9.888 | E93: 2.037139 | F93: 32.9976 | G93: 0.3
A94: P9944 | B94: Operador de equipamento especial com periculosidade | C94: h | D94: 17.3701 | E94: 1.746664 | F94: 52.9208 | G94: 0.3
A95: P9946 | B95: Engenheiro auxiliar | C95: mês | D95: 12002 | E95: 0.843429 | F95: 22124.8348 | G95: 0
A96: P9947 | B96: Técnico florestal | C96: mês | D96: 3587.9112 | E96: 1.065634 | F96: 7411.3113 | G96: 0
A97: P9948 | B97: Motorista de veículo leve - mensalista | C97: mês | D97: 2378.3386 | E97: 1.190402 | F97: 5209.5176 | G97: 0
A98: P9949 | B98: Topógrafo | C98: mês | D98: 4037 | E98: 1.036688 | F98: 8222.1094 | G98: 0
A99: P9950 | B99: Auxiliar de topografia | C99: mês | D99: 2378.3386 | E99: 1.218145 | F99: 5275.4998 | G99: 0
A100: P9951 | B100: Médico de câmara hiperbárica | C100: mês | D100: 9683.7414 | E100: 1.008568 | F100: 20015.0152 | G100: 0.0583
A101: P9952 | B101: Pedreiro - mensalista | C101: mês | D101: 1958.8316 | E101: 1.329038 | F101: 4562.1932 | G101: 0
A102: P9953 | B102: Eletricista - mensalista | C102: mês | D102: 2025.3354 | E102: 1.345846 | F102: 4751.1249 | G102: 0
A103: P9954 | B103: Servente - mensalista | C103: mês | D103: 1435.8164 | E103: 1.523256 | F103: 3622.9323 | G103: 0
A104: P9955 | B104: Engenheiro chefe | C104: mês | D104: 16585.1499 | E104: 0.820568 | F104: 30194.3931 | G104: 0
A105: P9956 | B105: Motorista de caminhão com periculosidade | C105: h | D105: 10.458 | E105: 1.953794 | F105: 34.0281 | G105: 0.3
A106: P9972 | B106: Técnico de batimetria | C106: mês | D106: 3322.76 | E106: 1.108568 | F106: 7006.2654 | G106: 0

Sheet Equipamentos
A1: CGCIT | B1: SISTEMA DE CUSTOS REFERENCIAIS DE OBRAS - SICRO | K1: DNIT
B2: Paraíba - Abril/2024
A3: Código | B3: Descrição | C3: Valor de Aquisição (R$) | D3: Depreciação (R$/h) | E3: Oportunidade de Capital (R$/h) | F3: Seguros e Impostos (R$/h) | G3: Manutenção (R$/h) | H3: Operação (R$/h) | I3: Mão de Obra de Operação (R$/h) | J3: Custo Produtivo (R$/h) | K3: Custo Improdutivo (R$/h)
A4: E9001 | B4: Conjunto vibratório para tubos de concreto com encaixe PB e 3 jogos de fôrmas - D = 0,60 m - 2,20 kW | C4: 67236.18 | D4: 8.9648 | E4: 2.0742 | F4: 0 | G4: 6.7236 | H4: 0 | I4: 0 | J4: 17.7626 | K4: 11.039
A5: E9002 | B5: Conjunto vibratório para tubos de concreto com encaixe PB e 3 jogos de fôrmas - D = 0,80 m - 2,20 kW | C5: 83762.6672 | D5: 11.1684 | E5: 2.5841 | F5: 0 | G5: 8.3763 | H5: 0 | I5: 0 | J5: 22.1288 | K5: 13.7525
A6: E9003 | B6: Conjunto vibratório para tubos de concreto com encaixe PB e 3 jogos de fôrmas - D = 1,00 m - 2,20 kW | C6: 103309.193 | D6: 13.7746 | E6: 3.1871 | F6: 0 | G6: 10.3309 | H6: 0 | I6: 0 | J6: 27.2926 | K6: 16.9617
A7: E9004 | B7: Conjunto vibratório para tubos de concreto com encaixe PB e 3 jogos de fôrmas - D = 1,20 m - 2,20 kW | C7: 109507.9291 | D7: 14.6011 | E7: 3.3783 | F7: 0 | G7: 10.9508 | H7: 0 | I7: 0 | J7: 28.9302 | K7: 17.9794
A8: E9005 | B8: Conjunto vibratório para tubos de concreto com encaixe PB e 3 jogos de fôrmas - D = 1,50 m - 2,20 kW | C8: 114190.7195 | D8: 15.2254 | E8: 3.5228 | F8: 0 | G8: 11.4191 | H8: 0 | I8: 0 | J8: 30.1673 | K8: 18.7482
A9: E9006 | B9: Equipamento para sondagem manual | C9: 3007.4378 | D9: 0.5113 | E9: 0.1113 | F9: 0 | G9: 0.3007 | H9: 0 | I9: 0 | J9: 0.9233 | K9: 0.6226
A10: E9007 | B10: Bomba de pistão triplex com capacidade de 7,80 m³/h (130 l/min) - 8,20 kW | C10: 158120.1714 | D10: 12.6496 | E10: 2.9268 | F10: 0 | G10: 11.0684 | H10: 8.1186 | I10: 0 | J10: 34.7634 | K10: 15.5764
A11: E9008 | B11: Transportador manual de tubos de concreto com capacidade de 1 t | C11: 1856.2088 | D11: 1.6706 | E11: 0.1145 | F11: 0 | G11: 0.9281 | H11: 0 | I11: 0 | J11: 2.7132 | K11: 1.7851
A12: E9009 | B12: Embarcação rebocadora - 268 kW | C12: 629171.7213 | D12: 8.1923 | E12: 3.6506 | F12: 0 | G12: 18.2052 | H12: 265.339 | I12: 135.4673 | J12: 430.8544 | K12: 147.3102
A13: E9010 | B13: Balança plataforma digital à bateria, com mesa de 75 x 75 cm e capacidade de 500 kg | C13: 5084.8275 | D13: 0.7627 | E13: 0.1046 | F13: 0 | G13: 0.4237 | H13: 0 | I13: 0 | J13: 1.291 | K13: 0.8673
A14: E9011 | B14: Carro manual modelo plataforma de 200 x 80 cm com capacidade de 800 kg | C14: 1904.26 | D14: 0.3428 | E14: 0.0705 | F14: 0 | G14: 0.1904 | H14: 0 | I14: 0 | J14: 0.6037 | K14: 0.4133
A15: E9014 | B15: Deflectômetro de impacto (FWD) instalado em picape com reboque e faixa de carga de 7 a 120 kN - 147 kW | C15: 2141825.942 | D15: 171.3461 | E15: 39.6452 | F15: 0 | G15: 107.0913 | H15: 0 | I15: 29.7777 | J15: 347.8603 | K15: 240.769
A16: E9015 | B16: Elevador de obra com capacidade de 1.000 kg - 9 kW | C16: 65864.4441 | D16: 5.2692 | E16: 1.2192 | F16: 0 | G16: 4.6105 | H16: 0 | I16: 24.3116 | J16: 35.4105 | K16: 30.8
A17: E9016 | B17: Usina misturadora móvel de reciclagem a frio com sistema de espuma de asfalto - 129,40 kW | C17: 10043753.34 | D17: 585.8856 | E17: 180.7457 | F17: 0 | G17: 753.2815 | H17: 94.4007 | I17: 41.9975 | J17: 1656.311 | K17: 808.6288
A18: E9017 | B18: Escavadeira hidráulica sobre esteira com capacidade de 0,4 m³ - 64 kW | C18: 717689.3457 | D18: 50.2383 | E18: 13.2844 | F18: 0 | G18: 50.2383 | H18: 43.3547 | I18: 32.0155 | J18: 189.1312 | K18: 95.5382
A19: E9020 | B19: Recicladora a frio - 455 kW | C19: 5013538.385 | D19: 292.4564 | E19: 90.2228 | F19: 0 | G19: 417.7949 | H19: 474.1919 | I19: 41.9975 | J19: 1316.6635 | K19: 424.6767
A20: E9021 | B20: Grupo gerador - 456 kVA | C20: 352906.4781 | D20: 17.6453 | E20: 6.2212 | F20: 0 | G20: 12.6038 | H20: 361.3759 | I20: 0 | J20: 397.8462 | K20: 23.8665
A21: E9022 | B21: Pórtico metálico rolante com capacidade de 25 t - 30 kW | C21: 957274.3193 | D21: 43.0773 | E21: 16.2426 | F21: 0 | G21: 33.5046 | H21: 0 | I21: 24.3116 | J21: 117.1361 | K21: 83.6315
A22: E9023 | B22: Guindaste móvel sobre esteiras com dragline com capacidade de 1,9 a 2,3 m³ - 270 kW | C22: 3554321.23 | D22: 124.4012 | E22: 60.3079 | F22: 0 | G22: 177.7161 | H22: 70.3472 | I22: 41.9975 | J22: 474.7699 | K22: 226.7066
A23: E9024 | B23: Misturador de nata cimento - 1,50 kW | C23: 8119.7884 | D23: 0.6496 | E23: 0.1503 | F23: 0 | G23: 0.5684 | H23: 0 | I23: 24.3116 | J23: 25.6799 | K23: 25.1115
A24: E9025 | B24: Conjunto bomba e macaco hidráulico para protensão com capacidade de 7.000 kN - 15 kW | C24: 100899.196 | D24: 5.7657 | E24: 1.7787 | F24: 0 | G24: 5.7657 | H24: 0 | I24: 41.9975 | J24: 55.3076 | K24: 49.5419
A25: E9026 | B25: Bomba para injeção de nata de cimento com capacidade de 2 MPa - 2,20 kW | C25: 31833.0318 | D25: 2.5466 | E25: 0.5892 | F25: 0 | G25: 2.2283 | H25: 0 | I25: 0 | J25: 5.3641 | K25: 3.1358
A26: E9028 | B26: Bomba de alta pressão para hidrojateamento com capacidade de 18 MPa - 5,20 kW | C26: 4765.2768 | D26: 0.3812 | E26: 0.0882 | F26: 0 | G26: 0.4289 | H26: 9.1959 | I26: 24.3116 | J26: 34.4058 | K26: 24.781
A27: E9029 | B27: Conjunto bomba e macaco hidráulico para protensão com capacidade de 8.000 kN - 20 kW | C27: 128268.7608 | D27: 7.3296 | E27: 2.2612 | F27: 0 | G27: 7.3296 | H27: 0 | I27: 41.9975 | J27: 58.9179 | K27: 51.5883
A28: E9030 | B28: Bomba de protensão com leitura digital para tensionamento de estais - 3 kW | C28: 13858.6109 | D28: 0.7919 | E28: 0.2443 | F28: 0 | G28: 0.7919 | H28: 0 | I28: 0 | J28: 1.8281 | K28: 1.0362
A29: E9031 | B29: Elevador de cremalheira com cabine simples, com capacidade de 1.500 kg e altura de até 100 m - 15 kW | C29: 338876.3195 | D29: 27.1101 | E29: 6.2726 | F29: 0 | G29: 23.7213 | H29: 0 | I29: 24.3116 | J29: 81.4156 | K29: 57.6943
A30: E9032 | B30: Equipamento para regulagem final de estais com até 37 cordoalhas - D = 15,7 mm - 20 kW | C30: 75162.7773 | D30: 4.295 | E30: 1.325 | F30: 0 | G30: 4.295 | H30: 0 | I30: 41.9975 | J30: 51.9125 | K30: 47.6175
A31: E9033 | B31: Equipamento para regulagem final de estais de 38 a 55 cordoalhas - D = 15,7 mm - 30 kW | C31: 107375.3962 | D31: 6.1357 | E31: 1.8929 | F31: 0 | G31: 6.1357 | H31: 0 | I31: 41.9975 | J31: 56.1618 | K31: 50.0261
A32: E9034 | B32: Equipamento para regulagem final de estais de 56 a 73 cordoalhas - D = 15,7 mm - 40 kW | C32: 161063.0944 | D32: 9.2036 | E32: 2.8393 | F32: 0 | G32: 9.2036 | H32: 0 | I32: 41.9975 | J32: 63.244 | K32: 54.0404
A33: E9035 | B33: Equipamento para regulagem final de estais de 74 a 91 cordoalhas - D = 15,7 mm - 50 kW | C33: 214750.7925 | D33: 12.2715 | E33: 3.7857 | F33: 0 | G33: 12.2715 | H33: 0 | I33: 41.9975 | J33: 70.3262 | K33: 58.0547
A34: E9036 | B34: Grua fixa para alturas de 60 a 102 m, com alcance de 60 m com capacidade de 1.500 kg na ponta da lança - 37 kW | C34: 3214869.372 | D34: 160.7435 | E34: 56.6736 | F34: 0 | G34: 183.7068 | H34: 0 | I34: 41.9975 | J34: 443.1214 | K34: 259.4146
A35: E9038 | B35: Macaco hidráulico monocordoalha para tensionamento de estais - 3 kW | C35: 17408.8961 | D35: 0.9948 | E35: 0.3069 | F35: 0 | G35: 0.9948 | H35: 0 | I35: 41.9975 | J35: 44.294 | K35: 43.2992
A36: E9039 | B36: Máquina de solda por termofusão para tubos PEAD com gerador de 4 kW | C36: 117721.315 | D36: 6.7269 | E36: 2.0753 | F36: 0 | G36: 6.7269 | H36: 3.9603 | I36: 41.9975 | J36: 61.4869 | K36: 50.7997
A37: E9040 | B37: Serra mármore - 1,45 kW | C37: 464.4752 | D37: 0.0418 | E37: 0.0086 | F37: 0 | G37: 0.0232 | H37: 0 | I37: 0 | J37: 0.0736 | K37: 0.0504
A38: E9042 | B38: Trator sobre esteiras com lâmina - 97 kW | C38: 1333772.595 | D38: 51.8689 | E38: 22.8594 | F38: 0 | G38: 74.0985 | H38: 70.764 | I38: 32.0155 | J38: 251.6063 | K38: 106.7438
A39: E9043 | B39: Embarcação de alumínio com comprimento de 6 m e motor de popa - 18,60 kW | C39: 25148.1088 | D39: 0.3929 | E39: 0.1482 | F39: 0 | G39: 0.4366 | H39: 37.5921 | I39: 39.2829 | J39: 77.8527 | K39: 39.824
A40: E9044 | B40: Central de concreto com capacidade de 150 m³/h - dosadora e misturadora | C40: 2340557.096 | D40: 133.7461 | E40: 41.2607 | F40: 0 | G40: 117.0279 | H40: 0 | I40: 41.9975 | J40: 334.0322 | K40: 217.0043
A41: E9045 | B41: Conjunto bomba e macaco hidráulico para elevação com capacidade de 496 kN | C41: 60121.1472 | D41: 4.8097 | E41: 1.1128 | F41: 0 | G41: 4.8097 | H41: 5.8207 | I41: 41.9975 | J41: 58.5504 | K41: 47.92
A42: E9046 | B42: Conjunto bomba e macaco hidráulico para elevação com capacidade de 929 kN | C42: 73004.0104 | D42: 5.8403 | E42: 1.3513 | F42: 0 | G42: 5.8403 | H42: 5.8207 | I42: 41.9975 | J42: 60.8501 | K42: 49.1891
A43: E9047 | B43: Conjunto bomba e macaco hidráulico para elevação com capacidade de 1.390 kN | C43: 103676.3842 | D43: 8.2941 | E43: 1.919 | F43: 0 | G43: 8.2941 | H43: 5.8207 | I43: 41.9975 | J43: 66.3254 | K43: 52.2106
A44: E9048 | B44: Conjunto bomba e macaco hidráulico para elevação com capacidade de 1.859 kN | C44: 120355.8796 | D44: 9.6285 | E44: 2.2278 | F44: 0 | G44: 9.6285 | H44: 5.8207 | I44: 41.9975 | J44: 69.303 | K44: 53.8538
A45: E9049 | B45: Bomba de alta pressão para hidrojateamento com capacidade de 250 MPa - 72 kW | C45: 703063.4095 | D45: 56.2451 | E45: 13.0137 | F45: 0 | G45: 63.2757 | H45: 56.2777 | I45: 24.3116 | J45: 213.1238 | K45: 93.5704
A46: E9050 | B46: Guindaste móvel sobre pneus com 2 eixos com capacidade de 18 t - 97 kW | C46: 2837535.571 | D46: 141.8768 | E46: 50.0217 | F46: 0 | G46: 182.413 | H46: 25.2729 | I46: 29.7777 | J46: 429.3621 | K46: 221.6762
A47: E9051 | B47: Máquina levantadora e posicionadora de via - 7,40 kW | C47: 781751.8132 | D47: 62.5401 | E47: 14.4702 | F47: 0 | G47: 54.7226 | H47: 10.4692 | I47: 24.3116 | J47: 166.5137 | K47: 101.3219
A48: E9052 | B48: Empilhadeira a diesel com capacidade de 10 t - 82 kW | C48: 750367.2742 | D48: 60.0294 | E48: 13.8893 | F48: 0 | G48: 52.5257 | H48: 64.0941 | I48: 24.3116 | J48: 214.8501 | K48: 98.2303
A49: E9053 | B49: Perfuratriz hidráulica montada em flutuante - 32 kW | C49: 352717.8547 | D49: 11.0224 | E49: 2.2669 | F49: 0 | G49: 9.7977 | H49: 16.6749 | I49: 29.8768 | J49: 69.6387 | K49: 43.1661
A50: E9054 | B50: Equipamento sobre forma-trilho para execução e acabamento de pavimento de concreto - 13,40 kW | C50: 1377194.078 | D50: 110.1755 | E50: 25.4919 | F50: 0 | G50: 68.8597 | H50: 18.9577 | I50: 24.3116 | J50: 247.7964 | K50: 159.979
A51: E9055 | B51: Guincho pneumático com capacidade de 2,5 t | C51: 526242.5962 | D51: 47.3618 | E51: 9.7408 | F51: 0 | G51: 26.3121 | H51: 0 | I51: 0 | J51: 83.4147 | K51: 57.1026
A52: E9056 | B52: Plataforma autoelevatória de 12 x 24 m com capacidade de 150 t | C52: 846136.8555 | D52: 6.6104 | E52: 4.7584 | F52: 0 | G52: 14.6899 | H52: 0 | I52: 102.2803 | J52: 128.339 | K52: 113.6491
A53: E9057 | B53: Batelão sem propulsão com capacidade de 66 m³ | C53: 226269.8096 | D53: 1.7677 | E53: 1.2725 | F53: 0 | G53: 2.9462 | H53: 0 | I53: 26.7839 | J53: 32.7703 | K53: 29.8241
A54: E9058 | B54: Plataforma flutuante de 12 x 24 x 1,8 m com capacidade de 150 t | C54: 676734.5053 | D54: 5.287 | E54: 3.8058 | F54: 0 | G54: 8.8116 | H54: 0 | I54: 26.7839 | J54: 44.6883 | K54: 35.8767
A55: E9059 | B55: Plataforma autoelevatória de 12 x 24 m montada na obra com capacidade de 150 t | C55: 846136.8555 | D55: 6.6104 | E55: 4.7584 | F55: 0 | G55: 14.6899 | H55: 0 | I55: 102.2803 | J55: 128.339 | K55: 113.6491
A56: E9060 | B56: Perfuratriz pneumática rotopercussiva montada em flutuante com pressão de 0,70 MPa e capacidade de 2.500 gpm | C56: 32255.9661 | D56: 1.008 | E56: 0.2073 | F56: 0 | G56: 0.896 | H56: 0 | I56: 59.7536 | J56: 61.8649 | K56: 60.9689
A57: E9061 | B57: Lixadeira elétrica manual angular - 2 kW | C57: 1387.6316 | D57: 0.111 | E57: 0.0257 | F57: 0 | G57: 0.0694 | H57: 0 | I57: 0 | J57: 0.2061 | K57: 0.1367
A58: E9062 | B58: Soprador de ar quente manual - 1,60 kW | C58: 4563.5123 | D58: 0.6085 | E58: 0.0939 | F58: 0 | G58: 0.3803 | H58: 0 | I58: 0 | J58: 1.0827 | K58: 0.7024
A59: E9063 | B59: Equipamento de estabilização dinâmica da via - 300 kW | C59: 24282063.43 | D59: 971.2825 | E59: 412.0059 | F59: 0 | G59: 971.2825 | H59: 187.5924 | I59: 41.9975 | J59: 2584.1608 | K59: 1425.2859
A60: E9064 | B60: Transportador manual gerica com capacidade de 180 l | C60: 1000.6209 | D60: 1.0006 | E60: 0.0617 | F60: 0 | G60: 0.5003 | H60: 0 | I60: 0 | J60: 1.5626 | K60: 1.0623
A61: E9065 | B61: Carro controle ferroviário - 186 kW | C61: 29560257.5 | D61: 1182.4103 | E61: 501.5637 | F61: 0 | G61: 1034.609 | H61: 116.3073 | I61: 41.9975 | J61: 2876.8878 | K61: 1725.9715
A62: E9066 | B62: Grupo gerador - 14 kVA | C62: 68340.6914 | D62: 3.417 | E62: 1.2047 | F62: 0 | G62: 2.4407 | H62: 10.8908 | I62: 0 | J62: 17.9532 | K62: 4.6217
A63: E9067 | B63: Veículo ferroviário para capina química com capacidade de 12.000 l - 115 kW | C63: 1696812.505 | D63: 67.8725 | E63: 28.7907 | F63: 0 | G63: 42.4203 | H63: 71.9104 | I63: 24.3116 | J63: 235.3055 | K63: 120.9748
A64: E9068 | B64: Perfuratriz hidráulica rotopercussiva para CCPH - 123 kW | C64: 3514363.102 | D64: 234.2909 | E64: 63.2439 | F64: 0 | G64: 234.2909 | H64: 96.1411 | I64: 32.0155 | J64: 659.9823 | K64: 329.5503
A65: E9069 | B65: Vibrador de imersão para concreto - 4,10 kW | C65: 3886.9878 | D65: 0.6219 | E65: 0.1439 | F65: 0 | G65: 0.3887 | H65: 7.2506 | I65: 0 | J65: 8.4051 | K65: 0.7658
A66: E9070 | B66: Ponte rolante com capacidade de 5 t e vão de até 15 m - 10 kW | C66: 331241.6781 | D66: 13.2497 | E66: 5.6203 | F66: 0 | G66: 8.281 | H66: 0 | I66: 24.3116 | J66: 51.4626 | K66: 43.1816
A67: E9071 | B67: Transportador manual carrinho de mão com capacidade de 80 l | C67: 468.1867 | D67: 0.4682 | E67: 0.0289 | F67: 0 | G67: 0.2341 | H67: 0 | I67: 0 | J67: 0.7312 | K67: 0.4971
A68: E9072 | B68: Martelo hidráulico vibratório com unidade hidráulica - 486 kW | C68: 2863510.658 | D68: 190.9007 | E68: 51.5313 | F68: 0 | G68: 167.0381 | H68: 379.8746 | I68: 41.9975 | J68: 831.3422 | K68: 284.4295
A69: E9073 | B69: Bomba de concreto rebocável com capacidade de 30 m³/h - 74 kW | C69: 482895.2781 | D69: 38.6316 | E69: 8.9384 | F69: 0 | G69: 38.6316 | H69: 73.2653 | I69: 24.3116 | J69: 183.7785 | K69: 71.8816
A70: E9074 | B70: Tanque de estocagem de asfalto com agitadores de 60.000 l | C70: 816000 | D70: 34 | E70: 11.8001 | F70: 0 | G70: 21.25 | H70: 0 | I70: 0 | J70: 67.0501 | K70: 45.8001
A71: E9075 | B71: Trado cavadeira de 12" | C71: 143.0174 | D71: 0.0715 | E71: 0.0066 | F71: 0 | G71: 0.0358 | H71: 0 | I71: 0 | J71: 0.1139 | K71: 0.0781
A72: E9076 | B72: Equipamento para pintura eletrostática com cabine dupla de 7,00 kW e estufa de 80.000 kCal | C72: 163987.2016 | D72: 10.542 | E72: 2.8909 | F72: 0 | G72: 5.8567 | H72: 0 | I72: 24.3116 | J72: 43.6012 | K72: 37.7445
A73: E9077 | B73: Perfuratriz de circulação reversa tipo Wirth ou similar com unidade hidráulica (Power Pack) - 273 kW | C73: 4243834.832 | D73: 282.9223 | E73: 76.3713 | F73: 0 | G73: 282.9223 | H73: 142.2576 | I73: 32.0155 | J73: 816.489 | K73: 391.3091
A74: E9078 | B74: Treliça lançadeira com capacidade de carga de 100 a 120 t e vão máximo de 45 m - 110 kW | C74: 3542825.281 | D74: 94.4753 | E74: 58.2913 | F74: 0 | G74: 59.0471 | H74: 0 | I74: 41.9975 | J74: 253.8112 | K74: 194.7641
A75: E9079 | B75: Bomba submersível com capacidade de 360 m³/h - 23 kW | C75: 179820.5478 | D75: 14.3856 | E75: 3.3285 | F75: 0 | G75: 12.5874 | H75: 0 | I75: 0 | J75: 30.3015 | K75: 17.7141
A76: E9080 | B76: Carrelone com capacidade máxima de 70 t | C76: 1766402.012 | D76: 79.4881 | E76: 29.9714 | F76: 0 | G76: 44.1601 | H76: 0 | I76: 24.3116 | J76: 177.9312 | K76: 133.7711
A77: E9081 | B77: Fischietti simples com capacidade de 70 t | C77: 106060.0938 | D77: 4.7727 | E77: 1.7996 | F77: 0 | G77: 2.6515 | H77: 0 | I77: 24.3116 | J77: 33.5354 | K77: 30.8839
A78: E9083 | B78: Vagão fechado FLT com capacidade de 99 t | C78: 800000 | D78: 12.6667 | E78: 12.7513 | F78: 0 | G78: 6.6667 | H78: 0 | I78: 0 | J78: 32.0847 | K78: 25.418
A79: E9084 | B79: Vagão tanque convencional TCT com capacidade de 97 t e 103.000 l | C79: 1195000 | D79: 18.9208 | E79: 19.0473 | F79: 0 | G79: 9.9583 | H79: 0 | I79: 0 | J79: 47.9264 | K79: 37.9681
A80: E9085 | B80: Vagão gôndola GDE com capacidade de 93,5 t / 29 m³ | C80: 620000 | D80: 9.8167 | E80: 9.8823 | F80: 0 | G80: 5.1667 | H80: 0 | I80: 0 | J80: 24.8657 | K80: 19.699
A81: E9086 | B81: Bomba de concreto rebocável com capacidade de 41 m³/h - 74 kW | C81: 533045.2781 | D81: 42.6436 | E81: 9.8667 | F81: 0 | G81: 42.6436 | H81: 73.2653 | I81: 24.3116 | J81: 192.7308 | K81: 76.8219
A82: E9089 | B82: Roçadeira costal - 1,40 kW | C82: 2860.4991 | D82: 0.4291 | E82: 0.0588 | F82: 0 | G82: 0.3337 | H82: 7.7812 | I82: 0 | J82: 8.6028 | K82: 0.4879
A83: E9093 | B83: Veículo leve - 53 kW (sem motorista) | C83: 71479.7124 | D83: 4.2888 | E83: 1.3231 | F83: 0.5361 | G83: 4.2888 | H83: 24.1014 | I83: 0 | J83: 34.5382 | K83: 6.148
A84: E9094 | B84: Guindaste móvel sobre pneus com 6 eixos com capacidade máxima de 350 t - 450 kW | C84: 16354586.77 | D84: 817.7293 | E84: 288.308 | F84: 116.8185 | G84: 1051.3663 | H84: 117.2453 | I84: 29.7777 | J84: 2421.2451 | K84: 1252.6335
A85: E9095 | B85: Guindaste móvel sobre pneus com 8 eixos com capacidade máxima de 500 t - 500 kW | C85: 28682825.67 | D85: 1434.1413 | E85: 505.6372 | F85: 204.8773 | G85: 1843.8959 | H85: 130.2725 | I85: 29.7777 | J85: 4148.6019 | K85: 2174.4335
A86: E9096 | B86: Minicarregadeira de pneus - 45,50 kW | C86: 406346.1845 | D86: 28.4442 | E86: 7.5215 | F86: 0 | G86: 28.4442 | H86: 59.274 | I86: 32.0155 | J86: 155.6994 | K86: 67.9812
A87: E9101 | B87: Removedora de faixas de sinalização viária - 9,69 kW | C87: 50862.5039 | D87: 4.069 | E87: 0.9415 | F87: 0 | G87: 3.5604 | H87: 17.1362 | I87: 0 | J87: 25.7071 | K87: 5.0105
A88: E9102 | B88: Extrusora para sarjeta de concreto - 10,44 kW | C88: 75216.7542 | D88: 6.0173 | E88: 1.3923 | F88: 0 | G88: 5.2652 | H88: 8.1603 | I88: 24.3116 | J88: 45.1467 | K88: 31.7212
A89: E9103 | B89: Extrusora para meio-fio de concreto - 10,44 kW | C89: 63869.3101 | D89: 5.1095 | E89: 1.1822 | F89: 0 | G89: 4.4709 | H89: 8.1603 | I89: 24.3116 | J89: 43.2345 | K89: 30.6033
A90: E9105 | B90: Embarcação empurradora multipropósito - 2 x 186 kW | C90: 4997303.263 | D90: 65.0691 | E90: 28.9955 | F90: 0 | G90: 144.5979 | H90: 368.3064 | I90: 135.4673 | J90: 742.4362 | K90: 229.5319
A91: E9106 | B91: Balsa de convés com capacidade de 200 t | C91: 1937281.585 | D91: 15.135 | E91: 10.8947 | F91: 0 | G91: 25.225 | H91: 0 | I91: 26.7839 | J91: 78.0386 | K91: 52.8136
A92: E9107 | B92: Compactador manual com soquete vibratório - 2,24 kW | C92: 9897.94 | D92: 0.6599 | E92: 0.1781 | F92: 0 | G92: 0.6599 | H92: 3.9613 | I92: 0 | J92: 5.4592 | K92: 0.838
A93: E9108 | B93: Soldadora de trilho por caldeamento na via - 400 kW | C93: 9036682.155 | D93: 144.5869 | E93: 144.9665 | F93: 0 | G93: 180.7336 | H93: 250.1232 | I93: 83.995 | J93: 804.4052 | K93: 373.5484
A94: E9110 | B94: Escavadeira hidráulica sobre esteiras para rocha com caçamba com capacidade de 1,56 m³ - 118 kW | C94: 1082961.412 | D94: 108.2961 | E94: 21.4774 | F94: 0 | G94: 108.2961 | H94: 116.8284 | I94: 32.0155 | J94: 386.9135 | K94: 161.789
A95: E9111 | B95: Jateador abrasivo úmido com capacidade de 350 kg de abrasivo | C95: 247910.6559 | D95: 22.312 | E95: 4.5888 | F95: 0 | G95: 22.312 | H95: 0 | I95: 24.3116 | J95: 73.5244 | K95: 51.2124
A96: E9112 | B96: Sinalizador direcional móvel com sistema fotovoltaico de energia e montado em chassi sobre pneus | C96: 22815.5154 | D96: 2.0534 | E96: 0.4223 | F96: 0 | G96: 1.1408 | H96: 0 | I96: 0 | J96: 3.6165 | K96: 2.4757
A97: E9113 | B97: Painel de Mensagem Variável - PMV móvel, com sistema fotovoltaico de energia e montado em chassi sobre pneus | C97: 171965.2781 | D97: 15.4769 | E97: 3.1831 | F97: 0 | G97: 8.5983 | H97: 0 | I97: 0 | J97: 27.2583 | K97: 18.66
A98: E9116 | B98: Semáforo móvel com 3 lentes e bateria - D = 200 mm | C98: 7782.5237 | D98: 0.7004 | E98: 0.1441 | F98: 0 | G98: 0.3891 | H98: 0 | I98: 0 | J98: 1.2336 | K98: 0.8445
A99: E9117 | B99: Carregadeira de pneus para rocha com capacidade de 2,50 m³ - 105 kW | C99: 1001768.301 | D99: 100.1768 | E99: 19.8672 | F99: 0 | G99: 100.1768 | H99: 103.9575 | I99: 32.0155 | J99: 356.1938 | K99: 152.0595
A100: E9118 | B100: Cortadora de pavimento com disco diamantado de 450 a 1.500 mm - 55,40 kW | C100: 485942.4279 | D100: 38.8754 | E100: 8.9948 | F100: 0 | G100: 38.8754 | H100: 43.3026 | I100: 24.3116 | J100: 154.3598 | K100: 72.1818
A101: E9119 | B101: Minicarregadeira sobre pneus com valetadeira - 55,40 kW | C101: 619501.3925 | D101: 43.3651 | E101: 11.467 | F101: 0 | G101: 43.3651 | H101: 72.171 | I101: 32.0155 | J101: 202.3837 | K101: 86.8476
A102: E9120 | B102: Equipamento de cravação sobre esteira para geodreno com haste para profundidade de até 20 m - 258 kW | C102: 3286949.221 | D102: 230.0864 | E102: 60.8414 | F102: 0 | G102: 230.0864 | H102: 174.7736 | I102: 24.3116 | J102: 720.0994 | K102: 315.2394
A103: E9122 | B103: Perfuratriz tipo Bottom Feed para coluna de brita - 194 kW | C103: 4532715.151 | D103: 302.181 | E103: 81.57 | F103: 0 | G103: 302.181 | H103: 101.0915 | I103: 32.0155 | J103: 819.039 | K103: 415.7665
A104: E9125 | B104: Veículo tipo van furgão com capacidade de 1,54 t - 93 kW | C104: 234621.3081 | D104: 11.7311 | E104: 4.2222 | F104: 1.7108 | G104: 11.7311 | H104: 24.2307 | I104: 28.1819 | J104: 81.8078 | K104: 45.846
A105: E9126 | B105: Draga backhoe com capacidade de 7 m³ - 1.000 kW | C105: 82197311.58 | D105: 924.7198 | E105: 665.6441 | F105: 0 | G105: 2054.9328 | H105: 990.071 | I105: 67.4009 | J105: 4702.7686 | K105: 1657.7648
A106: E9127 | B106: Escavadeira hidráulica com martelo hidráulico de 520 kg - 75 kW | C106: 1112784.937 | D106: 127.1754 | E106: 22.0689 | F106: 0 | G106: 158.9693 | H106: 50.8063 | I106: 32.0155 | J106: 391.0354 | K106: 181.2598
A107: E9134 | B107: Miniônibus com capacidade para 30 passageiros - 111 kW | C107: 641416.5047 | D107: 27.4893 | E107: 11.3073 | F107: 4.5815 | G107: 41.2339 | H107: 109.8979 | I107: 27.46 | J107: 221.9699 | K107: 70.8381
A108: E9141 | B108: Rebarbador hidráulico com bomba manual com capacidade de força de 9.000 kgf | C108: 93426.8471 | D108: 7.4741 | E108: 1.7293 | F108: 0 | G108: 4.6713 | H108: 0 | I108: 0 | J108: 13.8747 | K108: 9.2034
A109: E9144 | B109: Pórtico metálico rolante com talha com capacidade de 5 t - 10 kW | C109: 303950.5328 | D109: 12.158 | E109: 5.1573 | F109: 0 | G109: 7.5988 | H109: 0 | I109: 24.3116 | J109: 49.2257 | K109: 41.6269
A110: E9148 | B110: Macaco de protensão de fios com bomba - 3,72 kW | C110: 101542.0922 | D110: 5.8024 | E110: 1.79 | F110: 0 | G110: 5.8024 | H110: 0 | I110: 41.9975 | J110: 55.3923 | K110: 49.5899
A111: E9149 | B111: Máquina de aplicação e extração de grampo elástico tipo Pandrol - 6,70 kW | C111: 265395.3142 | D111: 21.2316 | E111: 4.9125 | F111: 0 | G111: 21.2316 | H111: 9.4789 | I111: 0 | J111: 56.8546 | K111: 26.1441
A112: E9151 | B112: Britador de mandíbulas móvel sobre esteiras, sem peneira, com capacidade de 140 m³/h - 170 kW | C112: 2972019.082 | D112: 169.8297 | E112: 52.3925 | F112: 0 | G112: 169.8297 | H112: 159.4535 | I112: 41.9975 | J112: 593.5029 | K112: 264.2197
A113: E9152 | B113: Ferramenta de fixação à pólvora de ação direta | C113: 1051.6809 | D113: 0.0894 | E113: 0.0195 | F113: 0 | G113: 0.0841 | H113: 0 | I113: 0 | J113: 0.193 | K113: 0.1089
A114: E9153 | B114: Ferramenta de fixação à pólvora e sistema à pistão | C114: 992.8606 | D114: 0.0844 | E114: 0.0184 | F114: 0 | G114: 0.0794 | H114: 0 | I114: 0 | J114: 0.1822 | K114: 0.1028
A115: E9154 | B115: Equipamento para selagem com material asfáltico rebocável com capacidade de 370 l - 35 kW | C115: 463344.4272 | D115: 29.7864 | E115: 8.1681 | F115: 0 | G115: 9.9288 | H115: 27.3572 | I115: 24.3116 | J115: 99.5521 | K115: 62.2661
A116: E9155 | B116: Caldeira de asfalto rebocável com capacidade de 600 l - 5,20 kW | C116: 136554.261 | D116: 8.7785 | E116: 2.4073 | F116: 0 | G116: 2.9262 | H116: 3.7935 | I116: 0 | J116: 17.9055 | K116: 11.1858
A117: E9156 | B117: Soprador de ar costal - 2,6 kW | C117: 2535.7624 | D117: 0.4057 | E117: 0.0939 | F117: 0 | G117: 0.355 | H117: 4.598 | I117: 0 | J117: 5.4526 | K117: 0.4996
A118: E9157 | B118: Locomotiva diesel-elétrica CC - bitola métrica - 2.237 kW | C118: 8250000 | D118: 132 | E118: 132.3465 | F118: 0 | G118: 165 | H118: 1398.814 | I118: 32.3917 | J118: 1860.5522 | K118: 296.7382
A119: E9158 | B119: Locomotiva diesel-elétrica CC - bitola larga - 2.237 kW | C119: 8250000 | D119: 132 | E119: 132.3465 | F119: 0 | G119: 165 | H119: 1398.814 | I119: 32.3917 | J119: 1860.5522 | K119: 296.7382
A120: E9159 | B120: Vagão plataforma PNE com capacidade de 82 t - bitola métrica | C120: 736000 | D120: 11.6533 | E120: 11.7312 | F120: 0 | G120: 6.1333 | H120: 0 | I120: 0 | J120: 29.5178 | K120: 23.3845
A121: E9160 | B121: Vagão plataforma PNT com capacidade de 98 t - bitola larga | C121: 842000 | D121: 13.3317 | E121: 13.4208 | F121: 0 | G121: 7.0167 | H121: 0 | I121: 0 | J121: 33.7692 | K121: 26.7525
A122: E9161 | B122: Vagão fechado com porta para carga e descarga de paletes FLD com capacidade de 64 t - bitola métrica | C122: 730000 | D122: 11.5583 | E122: 11.6356 | F122: 0 | G122: 6.0833 | H122: 0 | I122: 0 | J122: 29.2772 | K122: 23.1939
A123: E9162 | B123: Vagão fechado com porta para carga e descarga de paletes FLT com capacidade de 99 t - bitola larga | C123: 800000 | D123: 12.6667 | E123: 12.7513 | F123: 0 | G123: 6.6667 | H123: 0 | I123: 0 | J123: 32.0847 | K123: 25.418
A124: E9163 | B124: Vagão hopper aberto com descarga automática HNE com capacidade de 45 m³ - bitola métrica | C124: 880000 | D124: 13.9333 | E124: 14.0265 | F124: 0 | G124: 7.3333 | H124: 0 | I124: 0 | J124: 35.2931 | K124: 27.9598
A125: E9164 | B125: Vagão hopper aberto com descarga automática HNT com capacidade de 63 m³ - bitola larga | C125: 915000 | D125: 14.4875 | E125: 14.5843 | F125: 0 | G125: 7.625 | H125: 0 | I125: 0 | J125: 36.6968 | K125: 29.0718
A126: E9167 | B126: Equipamento para carga e descarga de TLS de até 250 m - 90 kW | C126: 2825740.139 | D126: 45.2118 | E126: 45.3305 | F126: 0 | G126: 56.5148 | H126: 56.2777 | I126: 41.9975 | J126: 245.3323 | K126: 132.5398
A127: E9168 | B127: Carregadeira de pneus com implemento de garfo - 195 kW | C127: 1734451.005 | D127: 121.4116 | E127: 32.1047 | F127: 0 | G127: 121.4116 | H127: 81.29 | I127: 32.0155 | J127: 388.2334 | K127: 185.5318
A128: E9200 | B128: Carregadeira de pneus para rocha com capacidade de 2,50 m³ - 105 kW com periculosidade | C128: 1001768.301 | D128: 100.1768 | E128: 19.8672 | F128: 0 | G128: 100.1768 | H128: 103.9575 | I128: 39.8937 | J128: 364.072 | K128: 159.9377
A129: E9203 | B129: Escavadeira hidráulica com martelo hidráulico de 1.700 kg - 103 kW com periculosidade | C129: 1920422.634 | D129: 219.4769 | E129: 38.0861 | F129: 0 | G129: 274.3461 | H129: 69.774 | I129: 39.8937 | J129: 641.5768 | K129: 297.4567
A130: E9204 | B130: Perfuratriz sobre esteiras - 145 kW com periculosidade | C130: 1699933.669 | D130: 113.3289 | E130: 30.5917 | F130: 0 | G130: 113.3289 | H130: 113.3371 | I130: 39.8937 | J130: 410.4803 | K130: 183.8143
A131: E9205 | B131: Equipamento de corte a plasma CNC - 12.000 x 5.500 mm - 19,5 kW | C131: 1071449.344 | D131: 85.7159 | E131: 19.8325 | F131: 0 | G131: 64.287 | H131: 0 | I131: 0 | J131: 169.8354 | K131: 105.5484
A132: E9206 | B132: Equipamento de solda MIG automática com acessórios - 14,6 kVA | C132: 83502.7552 | D132: 6.6802 | E132: 1.5456 | F132: 0 | G132: 6.6802 | H132: 0 | I132: 0 | J132: 14.906 | K132: 8.2258
A133: E9207 | B133: Máquina de solda elétrica retificadora 425 A - 18,70 kW | C133: 5937.6044 | D133: 0.475 | E133: 0.1099 | F133: 0 | G133: 0.475 | H133: 0 | I133: 0 | J133: 1.0599 | K133: 0.5849
A134: E9209 | B134: Martelete perfurador/rompedor a ar comprimido de 25 kg para rocha, com insalubridade, com capacidade de 2.040 gpm | C134: 27731.7032 | D134: 2.2185 | E134: 0.5133 | F134: 0 | G134: 2.2185 | H134: 0 | I134: 30.9273 | J134: 35.8776 | K134: 33.6591
A135: E9213 | B135: Jumbo eletro-hidráulico com 3 braços - 155 kW/237 kW com periculosidade | C135: 11633741.9 | D135: 775.5828 | E135: 209.3589 | F135: 0 | G135: 969.4785 | H135: 169.6148 | I135: 52.9208 | J135: 2176.9558 | K135: 1037.8625
A136: E9231 | B136: Maçarico lança-chamas a gás liquefeito de petróleo (GLP) | C136: 86.171 | D136: 0.0069 | E136: 0.0016 | F136: 0 | G136: 0.0069 | H136: 0 | I136: 0 | J136: 0.0154 | K136: 0.0085
A137: E9242 | B137: Estação transmissora de superfície para televisionamento | C137: 12122.8698 | D137: 0.7793 | E137: 0.2137 | F137: 0 | G137: 0.433 | H137: 0 | I137: 0 | J137: 1.426 | K137: 0.993
A138: E9243 | B138: Câmara hiperbárica com filtro, serpentina e reservatório de ar para mergulho raso - D = 1,80 m e H = 2,22 m. | C138: 427989.1894 | D138: 7.4898 | E138: 6.9318 | F138: 0 | G138: 10.6997 | H138: 0 | I138: 53.0176 | J138: 78.1389 | K138: 67.4392
A139: E9244 | B139: Estação transmissora de superfície para comunicação sem fio | C139: 38565.8635 | D139: 2.4792 | E139: 0.6799 | F139: 0 | G139: 1.3774 | H139: 0 | I139: 0 | J139: 4.5365 | K139: 3.1591
A140: E9245 | B140: Estação transmissora de superfície para comunicação com fio | C140: 6463.8225 | D140: 0.4155 | E140: 0.1139 | F140: 0 | G140: 0.2309 | H140: 0 | I140: 0 | J140: 0.7603 | K140: 0.5294
A141: E9246 | B141: Painel de controle de ar com manômetros e pneufatômetros | C141: 12404.1952 | D141: 0.7974 | E141: 0.2187 | F141: 0 | G141: 0.443 | H141: 0 | I141: 0 | J141: 1.4591 | K141: 1.0161
A142: E9247 | B142: Sistema de Sino aberto (sinete) para mergulho até 50 m - 33,50 kW | C142: 550152.4773 | D142: 14.6707 | E142: 9.0518 | F142: 0 | G142: 14.6707 | H142: 0 | I142: 53.0176 | J142: 91.4108 | K142: 76.7401
A143: E9248 | B143: Sistema de ar comprimido para mergulho até 30 m com pressão de trabalho de 1,4 MPa - 7,46 kW | C143: 51858.1983 | D143: 3.4572 | E143: 0.9332 | F143: 0 | G143: 3.4572 | H143: 6.6085 | I143: 0 | J143: 14.4561 | K143: 4.3904
A144: E9249 | B144: Sistema de ar comprimido para mergulho até 50 m com pressão de trabalho de 1,7 MPa - 16,18 kW | C144: 78694.0046 | D144: 5.2463 | E144: 1.4162 | F144: 0 | G144: 5.2463 | H144: 14.3331 | I144: 0 | J144: 26.2419 | K144: 6.6625
A145: E9251 | B145: Fonte de plasma para corte manual - 65A - 15 kW | C145: 32637.9426 | D145: 2.611 | E145: 0.6041 | F145: 0 | G145: 2.611 | H145: 0 | I145: 0 | J145: 5.8261 | K145: 3.2151
A146: E9252 | B146: Serra de esquadria com braço telescópico - D = 250 mm (10") - 1,80 kW | C146: 5308.7136 | D146: 0.4778 | E146: 0.0983 | F146: 0 | G146: 0.2654 | H146: 0 | I146: 0 | J146: 0.8415 | K146: 0.5761
A147: E9253 | B147: Rebordeadeira diâmetro máximo 3,00 m - 4,85 kW | C147: 68746.4771 | D147: 2.7499 | E147: 1.1665 | F147: 0 | G147: 2.4061 | H147: 0 | I147: 0 | J147: 6.3225 | K147: 3.9164
A148: E9254 | B148: Dobradeira viradeira manual comprimento máximo de dobra de até 2.000 mm | C148: 19006.2137 | D148: 0.7602 | E148: 0.3225 | F148: 0 | G148: 0.6652 | H148: 0 | I148: 0 | J148: 1.7479 | K148: 1.0827
A149: E9255 | B149: Fonte de plasma para corte manual - 45A - 10 kW | C149: 21805.5426 | D149: 1.7444 | E149: 0.4036 | F149: 0 | G149: 1.7444 | H149: 0 | I149: 0 | J149: 3.8924 | K149: 2.148
A150: E9256 | B150: Equipamento para pintura com cal rebocável com dois bicos aplicadores e capacidade de 2.200 l | C150: 71280.3267 | D150: 4.0732 | E150: 1.2566 | F150: 0 | G150: 4.0732 | H150: 0 | I150: 24.3116 | J150: 33.7146 | K150: 29.6414
A151: E9259 | B151: Ventilador centrífugo média pressão com capacidade de 38 m³/min - 2,21 kW | C151: 17180 | D151: 1.5462 | E151: 0.318 | F151: 0 | G151: 1.0308 | H151: 0 | I151: 0 | J151: 2.895 | K151: 1.8642
A152: E9260 | B152: Detector de gases com bomba elétrica para espaço confinado | C152: 4049 | D152: 0.3239 | E152: 0.0749 | F152: 0 | G152: 0.2025 | H152: 0 | I152: 0 | J152: 0.6013 | K152: 0.3988
A153: E9261 | B153: Equipamento de pintura com pistola airless - 0,90 kW | C153: 2439.45 | D153: 0.2196 | E153: 0.0452 | F153: 0 | G153: 0.122 | H153: 0 | I153: 0 | J153: 0.3868 | K153: 0.2648
A154: E9262 | B154: Escova rotativa com cerdas de aço para tratamento de superfície - 0,91 kW | C154: 19452 | D154: 1.5562 | E154: 0.3601 | F154: 0 | G154: 0.9726 | H154: 0 | I154: 24.3116 | J154: 27.2005 | K154: 26.2279
A155: E9263 | B155: Tripé com guincho para espaço confinado | C155: 9781.53 | D155: 0.7825 | E155: 0.1811 | F155: 0 | G155: 0.5869 | H155: 0 | I155: 0 | J155: 1.5505 | K155: 0.9636
A156: E9264 | B156: Respirador purificador de ar motorizado | C156: 8510.04 | D156: 0.6808 | E156: 0.1575 | F156: 0 | G156: 0.4255 | H156: 0 | I156: 0 | J156: 1.2638 | K156: 0.8383
A157: E9265 | B157: Respirador de adução de ar tipo linha de ar comprimido para jateamento | C157: 17371.8396 | D157: 1.3897 | E157: 0.3216 | F157: 0 | G157: 0.8686 | H157: 0 | I157: 0 | J157: 2.5799 | K157: 1.7113
A158: E9267 | B158: Exaustor centrífugo alta pressão com capacidade de 35 m³/min - 1,47 kW | C158: 5444.14 | D158: 0.49 | E158: 0.1008 | F158: 0 | G158: 0.3266 | H158: 0 | I158: 0 | J158: 0.9174 | K158: 0.5908
A159: E9501 | B159: Ventilador axial para ventilação forçada com velocidade de saída de 32,8 m/s - D = 1.000 mm - 30 kW | C159: 441390.8015 | D159: 39.7252 | E159: 8.1701 | F159: 0 | G159: 26.4834 | H159: 0 | I159: 0 | J159: 74.3787 | K159: 47.8953
A160: E9502 | B160: Bate-estaca de gravidade para 6 t - 119 kW | C160: 938230.532 | D160: 53.6132 | E160: 16.5397 | F160: 0 | G160: 40.2099 | H160: 80.6126 | I160: 32.0155 | J160: 222.9909 | K160: 102.1684
A161: E9503 | B161: Guilhotina hidráulica 16 x 6.100 mm - 30 kW | C161: 1296743.441 | D161: 51.8697 | E161: 22.0025 | F161: 0 | G161: 45.386 | H161: 0 | I161: 24.3116 | J161: 143.5698 | K161: 98.1838
A162: E9505 | B162: Prensa dobradeira capacidade 320 t - comprimento até 3.100 mm - 30 kW | C162: 841226.0273 | D162: 33.649 | E162: 14.2735 | F162: 0 | G162: 29.4429 | H162: 0 | I162: 24.3116 | J162: 101.677 | K162: 72.2341
A163: E9507 | B163: Plotadora de recorte com computador e programa computacional | C163: 87567.3635 | D163: 13.1351 | E163: 1.801 | F163: 0 | G163: 8.7567 | H163: 0 | I163: 0 | J163: 23.6928 | K163: 14.9361
A164: E9510 | B164: Ventilador centrífugo baixa pressão com capacidade de 58 m³/min - 3,68 kW | C164: 13175.8263 | D164: 1.1858 | E164: 0.2439 | F164: 0 | G164: 0.7905 | H164: 0 | I164: 0 | J164: 2.2202 | K164: 1.4297
A165: E9511 | B165: Carregadeira de pneus com capacidade de 3,40 m³ - 195 kW | C165: 2046726.647 | D165: 143.2709 | E165: 37.8849 | F165: 0 | G165: 143.2709 | H165: 81.29 | I165: 32.0155 | J165: 437.7322 | K165: 213.1713
A166: E9512 | B166: Veículo leve - 53 kW | C166: 71479.7124 | D166: 4.2888 | E166: 1.3231 | F166: 0.5361 | G166: 4.2888 | H166: 24.1014 | I166: 28.1819 | J166: 62.7201 | K166: 34.3299
A167: E9513 | B167: Compressor de ar portátil de 160,46 l/s (340 PCM) - 81 kW | C167: 321577.992 | D167: 21.4385 | E167: 5.7871 | F167: 0 | G167: 21.4385 | H167: 71.7541 | I167: 0 | J167: 120.4182 | K167: 27.2256
A168: E9514 | B168: Distribuidor de agregados sobre pneus autopropelido - 130 kW | C168: 949183.705 | D168: 54.2391 | E168: 16.7328 | F168: 0 | G168: 47.4592 | H168: 128.7092 | I168: 32.0155 | J168: 279.1558 | K168: 102.9874
A169: E9515 | B169: Escavadeira hidráulica sobre esteiras com caçamba com capacidade de 1,56 m³ - 118 kW | C169: 1082961.412 | D169: 75.8073 | E169: 20.0456 | F169: 0 | G169: 75.8073 | H169: 79.9352 | I169: 32.0155 | J169: 283.6109 | K169: 127.8684
A170: E9516 | B170: Perfuratriz hidráulica sobre esteiras - 283 kW | C170: 5000787.999 | D170: 333.3859 | E170: 89.9933 | F170: 0 | G170: 333.3859 | H170: 147.4685 | I170: 32.0155 | J170: 936.2491 | K170: 455.3947
A171: E9518 | B171: Grade de 24 discos rebocável de D = 60 cm (24") | C171: 41615.5234 | D171: 2.6753 | E171: 0.7336 | F171: 0 | G171: 1.4863 | H171: 0 | I171: 0 | J171: 4.8952 | K171: 3.4089
A172: E9519 | B172: Betoneira com motor a gasolina com capacidade de 600 l - 10 kW | C172: 37003.9089 | D172: 2.9603 | E172: 0.6849 | F172: 0 | G172: 2.2202 | H172: 17.6845 | I172: 24.3116 | J172: 47.8615 | K172: 27.9568
A173: E9521 | B173: Grupo gerador - 3,2 kVA | C173: 3560.2233 | D173: 0.178 | E173: 0.0628 | F173: 0 | G173: 0.1272 | H173: 4.2038 | I173: 0 | J173: 4.5718 | K173: 0.2408
A174: E9522 | B174: Caldeira de asfalto rebocável com capacidade de 1.500 l - 6,5 kW | C174: 185476.9112 | D174: 11.9235 | E174: 3.2697 | F174: 0 | G174: 3.9745 | H174: 4.7419 | I174: 0 | J174: 23.9096 | K174: 15.1932
A175: E9523 | B175: Motoscraper - 304 kW | C175: 5536117.953 | D175: 260.5232 | E175: 95.441 | F175: 0 | G175: 293.0886 | H175: 253.4582 | I175: 32.0155 | J175: 934.5265 | K175: 387.9797
A176: E9524 | B176: Motoniveladora - 93 kW | C176: 1363078.35 | D176: 68.1539 | E176: 24.0291 | F176: 0 | G176: 87.6265 | H176: 72.6921 | I176: 32.0155 | J176: 284.5171 | K176: 124.1985
A177: E9525 | B177: Ponte rolante com capacidade de 15 t e vão de até 15 m - 20 kW | C177: 3369751.602 | D177: 134.7901 | E177: 57.1763 | F177: 0 | G177: 84.2438 | H177: 0 | I177: 48.6232 | J177: 324.8334 | K177: 240.5896
A178: E9526 | B178: Retroescavadeira de pneus - capacidade da caçamba da pá-carregadeira de 0,76 m³ e da retroescavadeira de 0,29 m³ - 58 kW | C178: 468592.3632 | D178: 32.8015 | E178: 8.6736 | F178: 0 | G178: 32.8015 | H178: 39.2902 | I178: 32.0155 | J178: 145.5823 | K178: 73.4906
A179: E9527 | B179: Martelete perfurador/rompedor a ar comprimido de 25 kg para rocha com capacidade de 2.040 gpm | C179: 27731.7032 | D179: 2.2185 | E179: 0.5133 | F179: 0 | G179: 2.2185 | H179: 0 | I179: 24.3116 | J179: 29.2619 | K179: 27.0434
A180: E9528 | B180: Empilhadeira a diesel com capacidade de 4 t - 60 kW | C180: 487876.4003 | D180: 39.0301 | E180: 9.0306 | F180: 0 | G180: 34.1513 | H180: 46.8981 | I180: 24.3116 | J180: 153.4217 | K180: 72.3723
A181: E9529 | B181: Jateador para estruturas metálicas com transportador a roletes - 22 kW | C181: 4119925.814 | D181: 274.6617 | E181: 74.1415 | F181: 0 | G181: 205.9963 | H181: 0 | I181: 24.3116 | J181: 579.1111 | K181: 373.1148
A182: E9530 | B182: Rolo compactador liso vibratório autopropelido por pneus de 11 t - 97 kW | C182: 880061.1302 | D182: 58.6707 | E182: 15.8374 | F182: 0 | G182: 58.6707 | H182: 80.8732 | I182: 32.0155 | J182: 246.0675 | K182: 106.5236
A183: E9532 | B183: Equipamento de solda MIG com acessórios - 14,6 kVA | C183: 80266.5006 | D183: 6.4213 | E183: 1.4857 | F183: 0 | G183: 6.4213 | H183: 0 | I183: 0 | J183: 14.3283 | K183: 7.907
A184: E9535 | B184: Serra circular com bancada - D = 30 cm - 4 kW | C184: 7194.5374 | D184: 0.6475 | E184: 0.1332 | F184: 0 | G184: 0.3597 | H184: 0 | I184: 24.3116 | J184: 25.452 | K184: 25.0923
A185: E9536 | B185: Embarcação de transporte de pessoal e apoio logístico - 30 kW | C185: 121207.6949 | D185: 1.8939 | E185: 0.7141 | F185: 0 | G185: 2.1043 | H185: 60.6324 | I185: 39.2829 | J185: 104.6276 | K185: 41.8909
A186: E9538 | B186: Conjunto vibratório para meio tubo de concreto com encaixe PB e 3 jogos de fôrmas - D = 0,30 m - 2,20 kW | C186: 16586.3286 | D186: 2.2115 | E186: 0.5117 | F186: 0 | G186: 1.6586 | H186: 0 | I186: 0 | J186: 4.3818 | K186: 2.7232
A187: E9539 | B187: Equipamento de batimetria monofeixe | C187: 98769.0577 | D187: 6.3494 | E187: 1.7412 | F187: 0 | G187: 3.5275 | H187: 0 | I187: 38.3925 | J187: 50.0106 | K187: 46.4831
A188: E9540 | B188: Trator sobre esteiras com lâmina - 127 kW | C188: 1726907.091 | D188: 67.1575 | E188: 29.5973 | F188: 0 | G188: 95.9393 | H188: 92.6498 | I188: 32.0155 | J188: 317.3594 | K188: 128.7703
A189: E9541 | B189: Trator sobre esteiras com lâmina - 259 kW | C189: 4801316.863 | D189: 186.7179 | E189: 82.2892 | F189: 0 | G189: 266.7398 | H189: 188.9472 | I189: 32.0155 | J189: 756.7096 | K189: 301.0226
A190: E9543 | B190: Compressor de ar respirável com capacidade de até 35 MPa e 3,58 l/s - 5,52 kW | C190: 50645.2956 | D190: 3.3764 | E190: 0.9114 | F190: 0 | G190: 3.3764 | H190: 0 | I190: 0 | J190: 7.6642 | K190: 4.2878
A191: E9544 | B191: Vassoura mecânica rebocável com largura de 2,44 m | C191: 74400.0886 | D191: 6.696 | E191: 1.3771 | F191: 0 | G191: 4.464 | H191: 0 | I191: 0 | J191: 12.5371 | K191: 8.0731
A192: E9545 | B192: Vibroacabadora de asfalto sobre esteiras - 82 kW | C192: 3671380.036 | D192: 183.569 | E192: 64.7212 | F192: 0 | G192: 236.0173 | H192: 81.1858 | I192: 41.9975 | J192: 607.4908 | K192: 290.2877
A193: E9547 | B193: Máquina de solda elétrica transformadora 250 A - 9,20 kW | C193: 1380.0017 | D193: 0.1104 | E193: 0.0255 | F193: 0 | G193: 0.1104 | H193: 0 | I193: 0 | J193: 0.2463 | K193: 0.1359
A194: E9548 | B194: Bomba centrífuga com capacidade de 7,1 a 22 m³/h - 1,50 kW | C194: 2494.7172 | D194: 0.1996 | E194: 0.0462 | F194: 0 | G194: 0.1746 | H194: 0 | I194: 0 | J194: 0.4204 | K194: 0.2458
A195: E9551 | B195: Obturador mecânico simples com extensão de 12 m | C195: 4892.9047 | D195: 0.4404 | E195: 0.0906 | F195: 0 | G195: 0.2446 | H195: 0 | I195: 0 | J195: 0.7756 | K195: 0.531
A196: E9552 | B196: Nível ótico com capacidade de aumento de 32x | C196: 15448.7976 | D196: 1.2359 | E196: 0.286 | F196: 0 | G196: 0.7724 | H196: 0 | I196: 0 | J196: 2.2943 | K196: 1.5219
A197: E9553 | B197: Estação total eletrônica com alcance máximo de 3.000 m | C197: 32006.9021 | D197: 2.8806 | E197: 0.5924 | F197: 0 | G197: 1.6003 | H197: 0 | I197: 0 | J197: 5.0733 | K197: 3.473
A198: E9556 | B198: Compactador manual de placa vibratória - 3,00 kW | C198: 10833.2547 | D198: 0.7222 | E198: 0.195 | F198: 0 | G198: 0.7222 | H198: 5.3053 | I198: 0 | J198: 6.9447 | K198: 0.9172
A199: E9558 | B199: Tanque de estocagem de asfalto com capacidade de 30.000 l | C199: 688115.1294 | D199: 28.6715 | E199: 9.9508 | F199: 0 | G199: 17.9197 | H199: 0 | I199: 0 | J199: 56.542 | K199: 38.6223
A200: E9559 | B200: Aquecedor de fluido térmico - 12 kW | C200: 687732.7585 | D200: 30.948 | E200: 9.5475 | F200: 0 | G200: 20.632 | H200: 9.3796 | I200: 0 | J200: 70.5071 | K200: 40.4955
... 341 more rows

Sheet SINTÉTICO SICRO
A1: CGCIT | B1: SISTEMA DE CUSTOS REFERENCIAIS DE OBRAS - SICRO | D1: DNIT
B2: Paraíba - Abril/2024
A3: Código | B3: Descrição do Serviço | C3: Unidade | D3: Custo Unitário (R$)
A4: 307731 | B4: Aparelho de apoio de neoprene fretado para estruturas moldadas no local - fornecimento e instalação | C4: dm³ | D4: 125.07
A5: 307732 | B5: Aparelho de apoio de neoprene fretado para estruturas pré-moldadas - fornecimento e instalação | C5: dm³ | D5: 102.48
A6: 308308 | B6: Aparelho de apoio metálico elastomérico fixo com capacidade de 1.500 kN - fornecimento e instalação | C6: un | D6: 7323.31
A7: 308313 | B7: Aparelho de apoio metálico elastomérico fixo com capacidade de 10.000 kN - fornecimento e instalação | C7: un | D7: 46789.74
A8: 308309 | B8: Aparelho de apoio metálico elastomérico fixo com capacidade de 2.500 kN - fornecimento e instalação | C8: un | D8: 11901.25
A9: 308310 | B9: Aparelho de apoio metálico elastomérico fixo com capacidade de 4.000 kN - fornecimento e instalação | C9: un | D9: 17910.01
A10: 308311 | B10: Aparelho de apoio metálico elastomérico fixo com capacidade de 5.500 kN - fornecimento e instalação | C10: un | D10: 24607.83
A11: 308312 | B11: Aparelho de apoio metálico elastomérico fixo com capacidade de 7.500 kN - fornecimento e instalação | C11: un | D11: 34046.81
A12: 308307 | B12: Aparelho de apoio metálico elastomérico fixo com capacidade de 700 kN - fornecimento e instalação | C12: un | D12: 4867.55
A13: 308322 | B13: Aparelho de apoio metálico elastomérico multidirecional com capacidade de 1.500 kN - fornecimento e instalação | C13: un | D13: 5793.39
A14: 308327 | B14: Aparelho de apoio metálico elastomérico multidirecional com capacidade de 10.000 kN - fornecimento e instalação | C14: un | D14: 36021.42
A15: 308323 | B15: Aparelho de apoio metálico elastomérico multidirecional com capacidade de 2.500 kN - fornecimento e instalação | C15: un | D15: 8483.91
A16: 308324 | B16: Aparelho de apoio metálico elastomérico multidirecional com capacidade de 4.000 kN - fornecimento e instalação | C16: un | D16: 13308.8
A17: 308325 | B17: Aparelho de apoio metálico elastomérico multidirecional com capacidade de 5.500 kN - fornecimento e instalação | C17: un | D17: 18845.2
A18: 308326 | B18: Aparelho de apoio metálico elastomérico multidirecional com capacidade de 7.500 kN - fornecimento e instalação | C18: un | D18: 26602.13
A19: 308321 | B19: Aparelho de apoio metálico elastomérico multidirecional com capacidade de 700 kN - fornecimento e instalação | C19: un | D19: 3975.53
A20: 308315 | B20: Aparelho de apoio metálico elastomérico unidirecional com capacidade de 1.500 kN - fornecimento e instalação | C20: un | D20: 7139.32
A21: 308320 | B21: Aparelho de apoio metálico elastomérico unidirecional com capacidade de 10.000 kN - fornecimento e instalação | C21: un | D21: 45664.93
A22: 308316 | B22: Aparelho de apoio metálico elastomérico unidirecional com capacidade de 2.500 kN - fornecimento e instalação | C22: un | D22: 10195.5
A23: 308317 | B23: Aparelho de apoio metálico elastomérico unidirecional com capacidade de 4.000 kN - fornecimento e instalação | C23: un | D23: 17692.85
A24: 308318 | B24: Aparelho de apoio metálico elastomérico unidirecional com capacidade de 5.500 kN - fornecimento e instalação | C24: un | D24: 24027.43
A25: 308319 | B25: Aparelho de apoio metálico elastomérico unidirecional com capacidade de 7.500 kN - fornecimento e instalação | C25: un | D25: 30123.7
A26: 308314 | B26: Aparelho de apoio metálico elastomérico unidirecional com capacidade de 700 kN - fornecimento e instalação | C26: un | D26: 4795.89
A27: 308250 | B27: Aparelho de apoio metálico esférico fixo com capacidade de 1.000 kN - fornecimento e instalação | C27: un | D27: 6108.56
A28: 308251 | B28: Aparelho de apoio metálico esférico fixo com capacidade de 1.500 kN - fornecimento e instalação | C28: un | D28: 9374.67
A29: 308268 | B29: Aparelho de apoio metálico esférico fixo com capacidade de 10.000 kN - fornecimento e instalação | C29: un | D29: 79195.48
A30: 308252 | B30: Aparelho de apoio metálico esférico fixo com capacidade de 2.000 kN - fornecimento e instalação | C30: un | D30: 11525.11
A31: 308253 | B31: Aparelho de apoio metálico esférico fixo com capacidade de 2.500 kN - fornecimento e instalação | C31: un | D31: 14233.51
A32: 308254 | B32: Aparelho de apoio metálico esférico fixo com capacidade de 3.000 kN - fornecimento e instalação | C32: un | D32: 16020.29
A33: 308255 | B33: Aparelho de apoio metálico esférico fixo com capacidade de 3.500 kN - fornecimento e instalação | C33: un | D33: 19650.54
A34: 308256 | B34: Aparelho de apoio metálico esférico fixo com capacidade de 4.000 kN - fornecimento e instalação | C34: un | D34: 25099.04
A35: 308257 | B35: Aparelho de apoio metálico esférico fixo com capacidade de 4.500 kN - fornecimento e instalação | C35: un | D35: 32505.73
A36: 308258 | B36: Aparelho de apoio metálico esférico fixo com capacidade de 5.000 kN - fornecimento e instalação | C36: un | D36: 36225.96
A37: 308259 | B37: Aparelho de apoio metálico esférico fixo com capacidade de 5.500 kN - fornecimento e instalação | C37: un | D37: 41052.98
A38: 308260 | B38: Aparelho de apoio metálico esférico fixo com capacidade de 6.000 kN - fornecimento e instalação | C38: un | D38: 45295.34
A39: 308261 | B39: Aparelho de apoio metálico esférico fixo com capacidade de 6.500 kN - fornecimento e instalação | C39: un | D39: 50078.8
A40: 308262 | B40: Aparelho de apoio metálico esférico fixo com capacidade de 7.000 kN - fornecimento e instalação | C40: un | D40: 55064.25
A41: 308263 | B41: Aparelho de apoio metálico esférico fixo com capacidade de 7.500 kN - fornecimento e instalação | C41: un | D41: 56012.35
A42: 308264 | B42: Aparelho de apoio metálico esférico fixo com capacidade de 8.000 kN - fornecimento e instalação | C42: un | D42: 61974.59
A43: 308265 | B43: Aparelho de apoio metálico esférico fixo com capacidade de 8.500 kN - fornecimento e instalação | C43: un | D43: 63556.34
A44: 308266 | B44: Aparelho de apoio metálico esférico fixo com capacidade de 9.000 kN - fornecimento e instalação | C44: un | D44: 70894.58
A45: 308267 | B45: Aparelho de apoio metálico esférico fixo com capacidade de 9.500 kN - fornecimento e instalação | C45: un | D45: 75000.52
A46: 308288 | B46: Aparelho de apoio metálico esférico multidirecional com capacidade de 1.000 kN - fornecimento e instalação | C46: un | D46: 8792.88
A47: 308289 | B47: Aparelho de apoio metálico esférico multidirecional com capacidade de 1.500 kN - fornecimento e instalação | C47: un | D47: 12510.86
A48: 308306 | B48: Aparelho de apoio metálico esférico multidirecional com capacidade de 10.000 kN - fornecimento e instalação | C48: un | D48: 84026.97
A49: 308290 | B49: Aparelho de apoio metálico esférico multidirecional com capacidade de 2.000 kN - fornecimento e instalação | C49: un | D49: 16231.26
A50: 308291 | B50: Aparelho de apoio metálico esférico multidirecional com capacidade de 2.500 kN - fornecimento e instalação | C50: un | D50: 19716.5
A51: 308292 | B51: Aparelho de apoio metálico esférico multidirecional com capacidade de 3.000 kN - fornecimento e instalação | C51: un | D51: 22198.5
A52: 308293 | B52: Aparelho de apoio metálico esférico multidirecional com capacidade de 3.500 kN - fornecimento e instalação | C52: un | D52: 25543.46
A53: 308294 | B53: Aparelho de apoio metálico esférico multidirecional com capacidade de 4.000 kN - fornecimento e instalação | C53: un | D53: 27834
A54: 308295 | B54: Aparelho de apoio metálico esférico multidirecional com capacidade de 4.500 kN - fornecimento e instalação | C54: un | D54: 34194.66
A55: 308296 | B55: Aparelho de apoio metálico esférico multidirecional com capacidade de 5.000 kN - fornecimento e instalação | C55: un | D55: 37395.39
A56: 308297 | B56: Aparelho de apoio metálico esférico multidirecional com capacidade de 5.500 kN - fornecimento e instalação | C56: un | D56: 41243.66
A57: 308298 | B57: Aparelho de apoio metálico esférico multidirecional com capacidade de 6.000 kN - fornecimento e instalação | C57: un | D57: 46862.72
A58: 308299 | B58: Aparelho de apoio metálico esférico multidirecional com capacidade de 6.500 kN - fornecimento e instalação | C58: un | D58: 50621.16
A59: 308300 | B59: Aparelho de apoio metálico esférico multidirecional com capacidade de 7.000 kN - fornecimento e instalação | C59: un | D59: 54481.85
A60: 308301 | B60: Aparelho de apoio metálico esférico multidirecional com capacidade de 7.500 kN - fornecimento e instalação | C60: un | D60: 58772.3
A61: 308302 | B61: Aparelho de apoio metálico esférico multidirecional com capacidade de 8.000 kN - fornecimento e instalação | C61: un | D61: 65207.61
A62: 308303 | B62: Aparelho de apoio metálico esférico multidirecional com capacidade de 8.500 kN - fornecimento e instalação | C62: un | D62: 71462.21
A63: 308304 | B63: Aparelho de apoio metálico esférico multidirecional com capacidade de 9.000 kN - fornecimento e instalação | C63: un | D63: 75374.82
A64: 308305 | B64: Aparelho de apoio metálico esférico multidirecional com capacidade de 9.500 kN - fornecimento e instalação | C64: un | D64: 80022.17
A65: 308269 | B65: Aparelho de apoio metálico esférico unidirecional com capacidade de 1.000 kN - fornecimento e instalação | C65: un | D65: 9349.77
A66: 308270 | B66: Aparelho de apoio metálico esférico unidirecional com capacidade de 1.500 kN - fornecimento e instalação | C66: un | D66: 12874.39
A67: 308287 | B67: Aparelho de apoio metálico esférico unidirecional com capacidade de 10.000 kN - fornecimento e instalação | C67: un | D67: 85155.27
A68: 308271 | B68: Aparelho de apoio metálico esférico unidirecional com capacidade de 2.000 kN - fornecimento e instalação | C68: un | D68: 16071.64
A69: 308272 | B69: Aparelho de apoio metálico esférico unidirecional com capacidade de 2.500 kN - fornecimento e instalação | C69: un | D69: 18661.59
A70: 308273 | B70: Aparelho de apoio metálico esférico unidirecional com capacidade de 3.000 kN - fornecimento e instalação | C70: un | D70: 22304.7
A71: 308274 | B71: Aparelho de apoio metálico esférico unidirecional com capacidade de 3.500 kN - fornecimento e instalação | C71: un | D71: 25776.01
A72: 308275 | B72: Aparelho de apoio metálico esférico unidirecional com capacidade de 4.000 kN - fornecimento e instalação | C72: un | D72: 30401.15
A73: 308276 | B73: Aparelho de apoio metálico esférico unidirecional com capacidade de 4.500 kN - fornecimento e instalação | C73: un | D73: 40451.16
A74: 308277 | B74: Aparelho de apoio metálico esférico unidirecional com capacidade de 5.000 kN - fornecimento e instalação | C74: un | D74: 44763.15
A75: 308278 | B75: Aparelho de apoio metálico esférico unidirecional com capacidade de 5.500 kN - fornecimento e instalação | C75: un | D75: 48540.38
A76: 308279 | B76: Aparelho de apoio metálico esférico unidirecional com capacidade de 6.000 kN - fornecimento e instalação | C76: un | D76: 50468.69
A77: 308280 | B77: Aparelho de apoio metálico esférico unidirecional com capacidade de 6.500 kN - fornecimento e instalação | C77: un | D77: 54568.37
A78: 308281 | B78: Aparelho de apoio metálico esférico unidirecional com capacidade de 7.000 kN - fornecimento e instalação | C78: un | D78: 58620.1
A79: 308282 | B79: Aparelho de apoio metálico esférico unidirecional com capacidade de 7.500 kN - fornecimento e instalação | C79: un | D79: 62939.91
A80: 308283 | B80: Aparelho de apoio metálico esférico unidirecional com capacidade de 8.000 kN - fornecimento e instalação | C80: un | D80: 66908.16
A81: 308284 | B81: Aparelho de apoio metálico esférico unidirecional com capacidade de 8.500 kN - fornecimento e instalação | C81: un | D81: 72184.25
A82: 308285 | B82: Aparelho de apoio metálico esférico unidirecional com capacidade de 9.000 kN - fornecimento e instalação | C82: un | D82: 76508.14
A83: 308286 | B83: Aparelho de apoio metálico esférico unidirecional com capacidade de 9.500 kN - fornecimento e instalação | C83: un | D83: 80939.14
A84: 307733 | B84: Junta de dilatação em elastômero e perfil VV - L = 20 mm e H = 40 mm - fornecimento e instalação | C84: m | D84: 260.12
A85: 307734 | B85: Junta de dilatação em elastômero e perfil VV - L = 25 mm e H = 50 mm - fornecimento e instalação | C85: m | D85: 313.41
A86: 307735 | B86: Junta de dilatação em elastômero e perfil VV - L = 35 mm e H = 60 mm - fornecimento e instalação | C86: m | D86: 411.54
A87: 307736 | B87: Junta de dilatação em elastômero e perfil VV - L = 40 mm e H = 70 mm - fornecimento e instalação | C87: m | D87: 549.79
A88: 307737 | B88: Junta de dilatação em elastômero e perfil VV - L = 50 mm e H = 80 mm - fornecimento e instalação | C88: m | D88: 580.64
A89: 307730 | B89: Junta de dilatação em perfil extrudado de borracha vulcanizada | C89: m | D89: 0
A90: 307084 | B90: Lábios poliméricos em junta de pavimento de concreto - L = 20 mm e H = 30 mm - confecção e assentamento | C90: m | D90: 31.43
A91: 407818 | B91: Armação em aço CA-25 - fornecimento, preparo e colocação | C91: kg | D91: 11.55
A92: 407819 | B92: Armação em aço CA-50 - fornecimento, preparo e colocação | C92: kg | D92: 11.77
A93: 407820 | B93: Armação em aço CA-60 - fornecimento, preparo e colocação | C93: kg | D93: 13.14
A94: 407740 | B94: Chumbador tipo espera em aço CA-25 para fixação de estrutura metálica em concreto - fornecimento e instalação | C94: kg | D94: 14.09
A95: 408037 | B95: Luva de emenda com rosca cônica para aço CA-50 - D = 12,5 mm - fornecimento e instalação | C95: un | D95: 21.31
A96: 408038 | B96: Luva de emenda com rosca cônica para aço CA-50 - D = 16 mm - fornecimento e instalação | C96: un | D96: 34.82
A97: 408039 | B97: Luva de emenda com rosca cônica para aço CA-50 - D = 20 mm - fornecimento e instalação | C97: un | D97: 45.62
A98: 408041 | B98: Luva de emenda com rosca cônica para aço CA-50 - D = 25 mm - fornecimento e instalação | C98: un | D98: 61.83
A99: 408042 | B99: Luva de emenda com rosca cônica para aço CA-50 - D = 32 mm - fornecimento e instalação | C99: un | D99: 86.72
A100: 408031 | B100: Luva de emenda prensada para aço CA-50 - D = 12,5 mm - fornecimento e instalação | C100: un | D100: 22.72
A101: 408032 | B101: Luva de emenda prensada para aço CA-50 - D = 16 mm - fornecimento e instalação | C101: un | D101: 30.94
A102: 408033 | B102: Luva de emenda prensada para aço CA-50 - D = 20 mm - fornecimento e instalação | C102: un | D102: 42.18
A103: 408035 | B103: Luva de emenda prensada para aço CA-50 - D = 25 mm - fornecimento e instalação | C103: un | D103: 78.2
A104: 408036 | B104: Luva de emenda prensada para aço CA-50 - D = 32 mm - fornecimento e instalação | C104: un | D104: 157.76
A105: 408067 | B105: Tela de aço eletrossoldada - fornecimento, preparo e colocação | C105: kg | D105: 11.25
A106: 407743 | B106: Treliça nervurada três barras longitudinais interligadas por duas diagonais sinusoidal - fornecimento e instalação | C106: kg | D106: 12.41
A107: 607137 | B107: Arco metálico galvanizado tipo MP 152S - arco alto - vão = 10,08 m e altura = 6,12 m - aterro rodoviário mínimo = 0,90 m e máximo = 5,00 m - areia e brita comerciais | C107: m | D107: 60283.8
A108: 606785 | B108: Arco metálico galvanizado tipo MP 152S - arco alto - vão = 10,08 m e altura = 6,12 m - aterro rodoviário mínimo = 0,90 m e máximo = 5,00 m - areia extraída e brita produzida | C108: m | D108: 59613.96
A109: 607139 | B109: Arco metálico galvanizado tipo MP 152S - arco alto - vão = 10,31 m e altura = 6,17 m - aterro rodoviário mínimo = 0,90 m e máximo = 4,90 m - areia e brita comerciais | C109: m | D109: 61087.14
A110: 606787 | B110: Arco metálico galvanizado tipo MP 152S - arco alto - vão = 10,31 m e altura = 6,17 m - aterro rodoviário mínimo = 0,90 m e máximo = 4,90 m - areia extraída e brita produzida | C110: m | D110: 60104.71
A111: 607140 | B111: Arco metálico galvanizado tipo MP 152S - arco alto - vão = 10,36 m e altura = 5,38 m - aterro rodoviário mínimo = 1,20 m e máximo = 3,60 m - areia e brita comerciais | C111: m | D111: 55842.66
A112: 606788 | B112: Arco metálico galvanizado tipo MP 152S - arco alto - vão = 10,36 m e altura = 5,38 m - aterro rodoviário mínimo = 1,20 m e máximo = 3,60 m - areia extraída e brita produzida | C112: m | D112: 55548.88
A113: 607141 | B113: Arco metálico galvanizado tipo MP 152S - arco alto - vão = 10,54 m e altura = 6,05 m - aterro rodoviário mínimo = 1,20 m e máximo = 4,20 m - areia e brita comerciais | C113: m | D113: 62133.73
A114: 606789 | B114: Arco metálico galvanizado tipo MP 152S - arco alto - vão = 10,54 m e altura = 6,05 m - aterro rodoviário mínimo = 1,20 m e máximo = 4,20 m - areia extraída e brita produzida | C114: m | D114: 61437.59
A115: 607144 | B115: Arco metálico galvanizado tipo MP 152S - arco alto - vão = 10,57 m e altura = 5,41 m - aterro rodoviário mínimo = 1,20 m e máximo = 4,10 m - areia e brita comerciais | C115: m | D115: 72986.71
A116: 606792 | B116: Arco metálico galvanizado tipo MP 152S - arco alto - vão = 10,57 m e altura = 5,41 m - aterro rodoviário mínimo = 1,20 m e máximo = 4,10 m - areia extraída e brita produzida | C116: m | D116: 72350.87
A117: 607142 | B117: Arco metálico galvanizado tipo MP 152S - arco alto - vão = 10,74 m e altura = 6,48 m - aterro rodoviário mínimo = 1,20 m e máximo = 4,70 m - areia e brita comerciais | C117: m | D117: 65145.09
A118: 606790 | B118: Arco metálico galvanizado tipo MP 152S - arco alto - vão = 10,74 m e altura = 6,48 m - aterro rodoviário mínimo = 1,20 m e máximo = 4,70 m - areia extraída e brita produzida | C118: m | D118: 64396.32
A119: 607145 | B119: Arco metálico galvanizado tipo MP 152S - arco alto - vão = 10,77 m e altura = 6,10 m - aterro rodoviário mínimo = 1,20 m e máximo = 4,70 m - areia e brita comerciais | C119: m | D119: 80491.05
A120: 606793 | B120: Arco metálico galvanizado tipo MP 152S - arco alto - vão = 10,77 m e altura = 6,10 m - aterro rodoviário mínimo = 1,20 m e máximo = 4,70 m - areia extraída e brita produzida | C120: m | D120: 79779.91
A121: 607146 | B121: Arco metálico galvanizado tipo MP 152S - arco alto - vão = 10,97 m e altura = 6,53 m - aterro rodoviário mínimo = 1,20 m e máximo = 4,70 m - areia e brita comerciais | C121: m | D121: 83969.1
A122: 606794 | B122: Arco metálico galvanizado tipo MP 152S - arco alto - vão = 10,97 m e altura = 6,53 m - aterro rodoviário mínimo = 1,20 m e máximo = 4,70 m - areia extraída e brita produzida | C122: m | D122: 83197.26
A123: 607143 | B123: Arco metálico galvanizado tipo MP 152S - arco alto - vão = 11,35 m e altura = 7,12 m - aterro rodoviário mínimo = 1,20 m e máximo = 4,70 m - areia e brita comerciais | C123: m | D123: 70354.65
A124: 606791 | B124: Arco metálico galvanizado tipo MP 152S - arco alto - vão = 11,35 m e altura = 7,12 m - aterro rodoviário mínimo = 1,20 m e máximo = 4,70 m - areia extraída e brita produzida | C124: m | D124: 69492.6
A125: 607147 | B125: Arco metálico galvanizado tipo MP 152S - arco alto - vão = 11,58 m e altura = 7,16 m - aterro rodoviário mínimo = 1,20 m e máximo = 6,40 m - areia e brita comerciais | C125: m | D125: 90573.24
A126: 606795 | B126: Arco metálico galvanizado tipo MP 152S - arco alto - vão = 11,58 m e altura = 7,16 m - aterro rodoviário mínimo = 1,20 m e máximo = 6,40 m - areia extraída e brita produzida | C126: m | D126: 89683.84
A127: 607112 | B127: Arco metálico galvanizado tipo MP 152S - arco alto - vão = 6,12 m e altura = 2,77 m - aterro rodoviário mínimo = 0,75 m e máximo = 5,40 m - areia e brita comerciais | C127: m | D127: 29522.62
A128: 606760 | B128: Arco metálico galvanizado tipo MP 152S - arco alto - vão = 6,12 m e altura = 2,77 m - aterro rodoviário mínimo = 0,75 m e máximo = 5,40 m - areia extraída e brita produzida | C128: m | D128: 29289.47
A129: 607113 | B129: Arco metálico galvanizado tipo MP 152S - arco alto - vão = 6,30 m e altura = 3,68 m - aterro rodoviário mínimo = 0,75 m e máximo = 7,50 m - areia e brita comerciais | C129: m | D129: 34673.78
A130: 606761 | B130: Arco metálico galvanizado tipo MP 152S - arco alto - vão = 6,30 m e altura = 3,68 m - aterro rodoviário mínimo = 0,75 m e máximo = 7,50 m - areia extraída e brita produzida | C130: m | D130: 34405.79
A131: 606762 | B131: Arco metálico galvanizado tipo MP 152S - arco alto - vão = 6,55 m e altura = 3,56 m - aterro rodoviário mínimo = 0,75 m e máximo = 4,9 m - areia extraída e brita produzida | C131: m | D131: 34197.89
A132: 607114 | B132: Arco metálico galvanizado tipo MP 152S - arco alto - vão = 6,55 m e altura = 3,56 m - aterro rodoviário mínimo = 0,75 m e máximo = 4,90 m - areia e brita comerciais | C132: m | D132: 34470.95
A133: 607116 | B133: Arco metálico galvanizado tipo MP 152S - arco alto - vão = 6,78 m e altura = 3,61 m - aterro rodoviário mínimo = 0,75 m e máximo = 4,80 m - areia e brita comerciais | C133: m | D133: 36376.35
A134: 606764 | B134: Arco metálico galvanizado tipo MP 152S - arco alto - vão = 6,78 m e altura = 3,61 m - aterro rodoviário mínimo = 0,75 m e máximo = 4,80 m - areia extraída e brita produzida | C134: m | D134: 36091.79
A135: 607115 | B135: Arco metálico galvanizado tipo MP 152S - arco alto - vão = 6,96 m e altura = 4,42 m - aterro rodoviário mínimo = 0,75 m e máximo = 8,10 m - areia e brita comerciais | C135: m | D135: 41293.61
A136: 606763 | B136: Arco metálico galvanizado tipo MP 152S - arco alto - vão = 6,96 m e altura = 4,42 m - aterro rodoviário mínimo = 0,75 m e máximo = 8,10 m - areia extraída e brita produzida | C136: m | D136: 40951.27
A137: 607117 | B137: Arco metálico galvanizado tipo MP 152S - arco alto - vão = 6,99 m e altura = 4,27 m - aterro rodoviário mínimo = 0,75 m e máximo = 5,70 m - areia e brita comerciais | C137: m | D137: 41274.4
A138: 606765 | B138: Arco metálico galvanizado tipo MP 152S - arco alto - vão = 6,99 m e altura = 4,27 m - aterro rodoviário mínimo = 0,75 m e máximo = 5,70 m - areia extraída e brita produzida | C138: m | D138: 40941.46
A139: 607118 | B139: Arco metálico galvanizado tipo MP 152S - arco alto - vão = 7,01 m e altura = 3,63 m - aterro rodoviário mínimo = 0,75 m e máximo = 4,60 m - areia e brita comerciais | C139: m | D139: 37014.48
A140: 606766 | B140: Arco metálico galvanizado tipo MP 152S - arco alto - vão = 7,01 m e altura = 3,63 m - aterro rodoviário mínimo = 0,75 m e máximo = 4,60 m - areia extraída e brita produzida | C140: m | D140: 36720.72
A141: 607120 | B141: Arco metálico galvanizado tipo MP 152S - arco alto - vão = 7,24 m e altura = 3,68 m - aterro rodoviário mínimo = 0,90 m e máximo = 4,4 m - areia e brita comerciais | C141: m | D141: 37689.67
A142: 606768 | B142: Arco metálico galvanizado tipo MP 152S - arco alto - vão = 7,24 m e altura = 3,68 m - aterro rodoviário mínimo = 0,90 m e máximo = 4,40 m - areia extraída e brita produzida | C142: m | D142: 37380.32
A143: 607119 | B143: Arco metálico galvanizado tipo MP 152S - arco alto - vão = 7,42 m e altura = 4,52 m - aterro rodoviário mínimo = 0,90 m e máximo = 6,40 m - areia e brita comerciais | C143: m | D143: 43295.66
A144: 606767 | B144: Arco metálico galvanizado tipo MP 152S - arco alto - vão = 7,42 m e altura = 4,52 m - aterro rodoviário mínimo = 0,90 m e máximo = 6,40 m - areia extraída e brita produzida | C144: m | D144: 42918.4
A145: 607121 | B145: Arco metálico galvanizado tipo MP 152S - arco alto - vão = 7,47 m e altura = 4,19 m - aterro rodoviário mínimo = 0,90 m e máximo = 4,30 m - areia e brita comerciais | C145: m | D145: 40809.25
A146: 606769 | B146: Arco metálico galvanizado tipo MP 152S - arco alto - vão = 7,47 m e altura = 4,19 m - aterro rodoviário mínimo = 0,90 m e máximo = 4,30 m - areia extraída e brita produzida | C146: m | D146: 40456.57
A147: 607123 | B147: Arco metálico galvanizado tipo MP 152S - arco alto - vão = 7,67 m e altura = 3,99 m - aterro rodoviário mínimo = 0,90 m e máximo = 4,10 m - areia e brita comerciais | C147: m | D147: 40262.36
A148: 606771 | B148: Arco metálico galvanizado tipo MP 152S - arco alto - vão = 7,67 m e altura = 3,99 m - aterro rodoviário mínimo = 0,90 m e máximo = 4,10 m - areia extraída e brita produzida | C148: m | D148: 39910.99
A149: 607122 | B149: Arco metálico galvanizado tipo MP 152S - arco alto - vão = 7,85 m e altura = 4,60 m - aterro rodoviário mínimo = 0,90 m e máximo = 6,00 m - areia e brita comerciais | C149: m | D149: 44645.38
A150: 606770 | B150: Arco metálico galvanizado tipo MP 152S - arco alto - vão = 7,85 m e altura = 4,60 m - aterro rodoviário mínimo = 0,90 m e máximo = 6,00 m - areia extraída e brita produzida | C150: m | D150: 44240.14
A151: 607125 | B151: Arco metálico galvanizado tipo MP 152S - arco alto - vão = 7,90 m e altura = 4,04 m - aterro rodoviário mínimo = 0,90 m e máximo = 4,00 m - areia e brita comerciais | C151: m | D151: 41601.15
A152: 606773 | B152: Arco metálico galvanizado tipo MP 152S - arco alto - vão = 7,90 m e altura = 4,04 m - aterro rodoviário mínimo = 0,90 m e máximo = 4,00 m - areia extraída e brita produzida | C152: m | D152: 41231.45
A153: 607124 | B153: Arco metálico galvanizado tipo MP 152S - arco alto - vão = 8,08 m e altura = 4,65 m - aterro rodoviário mínimo = 0,90 m e máximo = 5,80 m - areia e brita comerciais | C153: m | D153: 45313.36
A154: 606772 | B154: Arco metálico galvanizado tipo MP 152S - arco alto - vão = 8,08 m e altura = 4,65 m - aterro rodoviário mínimo = 0,90 m e máximo = 5,80 m - areia extraída e brita produzida | C154: m | D154: 44895.16
A155: 607126 | B155: Arco metálico galvanizado tipo MP 152S - arco alto - vão = 8,31 m e altura = 4,70 m - aterro rodoviário mínimo = 0,90 m e máximo = 5,60 m - areia e brita comerciais | C155: m | D155: 46559.12
A156: 606774 | B156: Arco metálico galvanizado tipo MP 152S - arco alto - vão = 8,31 m e altura = 4,70 m - aterro rodoviário mínimo = 0,90 m e máximo = 5,60 m - areia extraída e brita produzida | C156: m | D156: 46120.77
A157: 607127 | B157: Arco metálico galvanizado tipo MP 152S - arco alto - vão = 8,36 m e altura = 4,11 m - aterro rodoviário mínimo = 0,90 m e máximo = 3,70 m - areia e brita comerciais | C157: m | D157: 42884.31
A158: 606775 | B158: Arco metálico galvanizado tipo MP 152S - arco alto - vão = 8,36 m e altura = 4,11 m - aterro rodoviário mínimo = 0,90 m e máximo = 3,70 m - areia extraída e brita produzida | C158: m | D158: 42492.4
A159: 607129 | B159: Arco metálico galvanizado tipo MP 152S - arco alto - vão = 8,59 m e altura = 4,39 m - aterro rodoviário mínimo = 0,90 m e máximo = 3,60 m - areia e brita comerciais | C159: m | D159: 44871.24
A160: 606777 | B160: Arco metálico galvanizado tipo MP 152S - arco alto - vão = 8,59 m e altura = 4,39 m - aterro rodoviário mínimo = 0,90 m e máximo = 3,60 m - areia extraída e brita produzida | C160: m | D160: 44442.03
A161: 607128 | B161: Arco metálico galvanizado tipo MP 152S - arco alto - vão = 8,97 m e altura = 5,00 m - aterro rodoviário mínimo = 0,90 m e máximo = 5,80 m - areia e brita comerciais | C161: m | D161: 49326.49
A162: 606776 | B162: Arco metálico galvanizado tipo MP 152S - arco alto - vão = 8,97 m e altura = 5,00 m - aterro rodoviário mínimo = 0,90 m e máximo = 5,80 m - areia extraída e brita produzida | C162: m | D162: 48825
A163: 607130 | B163: Arco metálico galvanizado tipo MP 152S - arco alto - vão = 9,17 m e altura = 5,49 m - aterro rodoviário mínimo = 0,90 m e máximo = 5,60 m - areia e brita comerciais | C163: m | D163: 52566.03
A164: 606778 | B164: Arco metálico galvanizado tipo MP 152S - arco alto - vão = 9,17 m e altura = 5,49 m - aterro rodoviário mínimo = 0,90 m e máximo = 5,60 m - areia extraída e brita produzida | C164: m | D164: 52014.8
A165: 607131 | B165: Arco metálico galvanizado tipo MP 152S - arco alto - vão = 9,22 m e altura = 4,70 m - aterro rodoviário mínimo = 0,90 m e máximo = 4,10 m - areia e brita comerciais | C165: m | D165: 49323.39
A166: 606779 | B166: Arco metálico galvanizado tipo MP 152S - arco alto - vão = 9,22 m e altura = 4,70 m - aterro rodoviário mínimo = 0,90 m e máximo = 4,10 m - areia extraída e brita produzida | C166: m | D166: 48835.72
A167: 607133 | B167: Arco metálico galvanizado tipo MP 152S - arco alto - vão = 9,45 m e altura = 4,75 m - aterro rodoviário mínimo = 0,90 m e máximo = 4,00 m - areia e brita comerciais | C167: m | D167: 50060.91
A168: 606781 | B168: Arco metálico galvanizado tipo MP 152S - arco alto - vão = 9,45 m e altura = 4,75 m - aterro rodoviário mínimo = 0,90 m e máximo = 4,00 m - areia extraída e brita produzida | C168: m | D168: 49558.58
A169: 607132 | B169: Arco metálico galvanizado tipo MP 152S - arco alto - vão = 9,63 m e altura = 5,59 m - aterro rodoviário mínimo = 0,90 m e máximo = 5,30 m - areia e brita comerciais | C169: m | D169: 54582.25
A170: 606780 | B170: Arco metálico galvanizado tipo MP 152S - arco alto - vão = 9,63 m e altura = 5,59 m - aterro rodoviário mínimo = 0,90 m e máximo = 5,30 m - areia extraída e brita produzida | C170: m | D170: 53992.38
A171: 607134 | B171: Arco metálico galvanizado tipo MP 152S - arco alto - vão = 9,65 m e altura = 5,41 m - aterro rodoviário mínimo = 0,90 m e máximo = 4,70 m - areia e brita comerciais | C171: m | D171: 54039.51
A172: 606782 | B172: Arco metálico galvanizado tipo MP 152S - arco alto - vão = 9,65 m e altura = 5,41 m - aterro rodoviário mínimo = 0,90 m e máximo = 4,70 m - areia extraída e brita produzida | C172: m | D172: 53463.13
A173: 607136 | B173: Arco metálico galvanizado tipo MP 152S - arco alto - vão = 9,68 m e altura = 5,23 m - aterro rodoviário mínimo = 0,90 m e máximo = 3,90 m - areia e brita comerciais | C173: m | D173: 53319.02
A174: 606784 | B174: Arco metálico galvanizado tipo MP 152S - arco alto - vão = 9,68 m e altura = 5,23 m - aterro rodoviário mínimo = 0,90 m e máximo = 3,90 m - areia extraída e brita produzida | C174: m | D174: 52761.04
A175: 607135 | B175: Arco metálico galvanizado tipo MP 152S - arco alto - vão = 9,86 m e altura = 6,07 m - aterro rodoviário mínimo = 0,90 m e máximo = 5,20 m - areia e brita comerciais | C175: m | D175: 59435.36
A176: 606783 | B176: Arco metálico galvanizado tipo MP 152S - arco alto - vão = 9,86 m e altura = 6,07 m - aterro rodoviário mínimo = 0,90 m e máximo = 5,20 m - areia extraída e brita produzida | C176: m | D176: 58788.52
A177: 607138 | B177: Arco metálico galvanizado tipo MP 152S - arco alto - vão = 9,91 m e altura = 5,28 m - aterro rodoviário mínimo = 0,90 m e máximo = 3,80 m - areia e brita comerciais | C177: m | D177: 54225.75
A178: 606786 | B178: Arco metálico galvanizado tipo MP 152S - arco alto - vão = 9,91 m e altura = 5,28 m - aterro rodoviário mínimo = 0,90 m e máximo = 3,80 m - areia extraída e brita produzida | C178: m | D178: 53631.35
A179: 606842 | B179: Arco metálico galvanizado tipo MP 152S - ovoide - vão = 7,21 m e altura = 7,82 m - aterro rodoviário mínimo = 0,75 m e máximo = 6,70 m - areia e brita comerciais | C179: m | D179: 67640.3
A180: 606832 | B180: Arco metálico galvanizado tipo MP 152S - ovoide - vão = 7,21 m e altura = 7,82 m - aterro rodoviário mínimo = 0,75 m e máximo = 6,70 m - areia extraída e brita produzida | C180: m | D180: 67275.42
A181: 606843 | B181: Arco metálico galvanizado tipo MP 152S - ovoide - vão = 7,31 m e altura = 7,87 m - aterro rodoviário mínimo = 0,90 m e máximo = 6,80 m - areia e brita comerciais | C181: m | D181: 70274.19
A182: 606833 | B182: Arco metálico galvanizado tipo MP 152S - ovoide - vão = 7,31 m e altura = 7,87 m - aterro rodoviário mínimo = 0,90 m e máximo = 6,80 m - areia extraída e brita produzida | C182: m | D182: 69891.91
A183: 606845 | B183: Arco metálico galvanizado tipo MP 152S - ovoide - vão = 7,57 m e altura = 8,44 m - aterro rodoviário mínimo = 0,90 m e máximo = 5,60 m - areia e brita comerciais | C183: m | D183: 72844.89
A184: 606835 | B184: Arco metálico galvanizado tipo MP 152S - ovoide - vão = 7,57 m e altura = 8,44 m - aterro rodoviário mínimo = 0,90 m e máximo = 5,60 m - areia extraída e brita produzida | C184: m | D184: 72462.93
A185: 606844 | B185: Arco metálico galvanizado tipo MP 152S - ovoide - vão = 7,77 m e altura = 7,90 m - aterro rodoviário mínimo = 0,90 m e máximo = 6,80 m - areia e brita comerciais | C185: m | D185: 71370.02
A186: 606834 | B186: Arco metálico galvanizado tipo MP 152S - ovoide - vão = 7,77 m e altura = 7,90 m - aterro rodoviário mínimo = 0,90 m e máximo = 6,80 m - areia extraída e brita produzida | C186: m | D186: 70977.07
A187: 606847 | B187: Arco metálico galvanizado tipo MP 152S - ovoide - vão = 8,13 m e altura = 8,01 m - aterro rodoviário mínimo = 0,90 m e máximo = 3,50 m - areia e brita comerciais | C187: m | D187: 76188.08
A188: 606837 | B188: Arco metálico galvanizado tipo MP 152S - ovoide - vão = 8,13 m e altura = 8,01 m - aterro rodoviário mínimo = 0,90 m e máximo = 3,50 m - areia extraída e brita produzida | C188: m | D188: 75760.2
A189: 606846 | B189: Arco metálico galvanizado tipo MP 152S - ovoide - vão = 8,36 m e altura = 8,23 m - aterro rodoviário mínimo = 0,90 m e máximo = 4,30 m - areia e brita comerciais | C189: m | D189: 76845.87
A190: 606836 | B190: Arco metálico galvanizado tipo MP 152S - ovoide - vão = 8,36 m e altura = 8,23 m - aterro rodoviário mínimo = 0,90 m e máximo = 4,30 m - areia extraída e brita produzida | C190: m | D190: 76412.89
A191: 606848 | B191: Arco metálico galvanizado tipo MP 152S - ovoide - vão = 8,56 m e altura = 8,48 m - aterro rodoviário mínimo = 0,90 m e máximo = 5,30 m - areia e brita comerciais | C191: m | D191: 76919.19
A192: 606838 | B192: Arco metálico galvanizado tipo MP 152S - ovoide - vão = 8,56 m e altura = 8,48 m - aterro rodoviário mínimo = 0,90 m e máximo = 5,30 m - areia extraída e brita produzida | C192: m | D192: 76469.49
A193: 606849 | B193: Arco metálico galvanizado tipo MP 152S - ovoide - vão = 8,71 m e altura = 9,32 m - aterro rodoviário mínimo = 0,90 m e máximo = 6,00 m - areia e brita comerciais | C193: m | D193: 83087.78
A194: 606839 | B194: Arco metálico galvanizado tipo MP 152S - ovoide - vão = 8,71 m e altura = 9,32 m - aterro rodoviário mínimo = 0,90 m e máximo = 6,00 m - areia extraída e brita produzida | C194: m | D194: 82647.84
A195: 606850 | B195: Arco metálico galvanizado tipo MP 152S - ovoide - vão = 9,15 m e altura = 9,04 m - aterro rodoviário mínimo = 0,90 m e máximo = 4,70 m - areia e brita comerciais | C195: m | D195: 83780.19
A196: 606840 | B196: Arco metálico galvanizado tipo MP 152S - ovoide - vão = 9,15 m e altura = 9,04 m - aterro rodoviário mínimo = 0,90 m e máximo = 4,70 m - areia extraída e brita produzida | C196: m | D196: 83300.78
A197: 606851 | B197: Arco metálico galvanizado tipo MP 152S - ovoide - vão = 9,15 m e altura = 9,50 m - aterro rodoviário mínimo = 0,90 m e máximo = 5,70 m - areia e brita comerciais | C197: m | D197: 84535.36
A198: 606841 | B198: Arco metálico galvanizado tipo MP 152S - ovoide - vão = 9,15 m e altura = 9,50 m - aterro rodoviário mínimo = 0,90 m e máximo = 5,70 m - areia extraída e brita produzida | C198: m | D198: 84074.93
A199: 605604 | B199: Argamassa de solo-cimento com 10% de cimento e material de jazida - preparo e injeção em tunnel liner | C199: m³ | D199: 281.32
A200: 605695 | B200: Bueiro metálico com chapas múltiplas MP 100 com revestimento em epóxi - D = 0,60 m - brita comercial | C200: m | D200: 1614.57
... 6202 more rows

Sheet INSUMOS SINAPI
A1: PRECOS DE INSUMOS - BANCO NACIONAL
A3: MES DE COLETA: 08/2024
A4: LOCALIDADE: 1070 - JOAO PESSOA
A5: ENCARGOS SOCIAIS (%) HORISTA 114,59 MENSALISTA 70,27
A7: CODIGO | B7: DESCRICAO DO INSUMO | C7: UNIDADE DE MEDIDA | D7: ORIGEM DO PRECO | E7: PRECO MEDIANO R$
A8: 38605 | B8: ABERTURA PARA ENCAIXE DE CUBA OU LAVATORIO EM BANCADA DE MARMORE/ GRANITO OU OUTRO TIPO DE PEDRA NATURAL | C8: UN | D8: CR | E8: 166.04
A9: 11270 | B9: ABRACADEIRA DE LATAO PARA FIXACAO DE CABO PARA-RAIO, DIMENSOES 32 X 24 X 24 MM | C9: UN | D9: AS | E9: 2.74
A10: 412 | B10: ABRACADEIRA DE NYLON PARA AMARRACAO DE CABOS, COMPRIMENTO DE *230* X *7,6* MM | C10: UN | D10: CR | E10: 0.87
A11: 414 | B11: ABRACADEIRA DE NYLON PARA AMARRACAO DE CABOS, COMPRIMENTO DE 100 X 2,5 MM | C11: UN | D11: CR | E11: 0.05
A12: 410 | B12: ABRACADEIRA DE NYLON PARA AMARRACAO DE CABOS, COMPRIMENTO DE 150 X *3,6* MM | C12: UN | D12: CR | E12: 0.13
A13: 411 | B13: ABRACADEIRA DE NYLON PARA AMARRACAO DE CABOS, COMPRIMENTO DE 200 X *4,6* MM | C13: UN | D13: C | E13: 0.17
A14: 408 | B14: ABRACADEIRA DE NYLON PARA AMARRACAO DE CABOS, COMPRIMENTO DE 390 X *4,6* MM | C14: UN | D14: CR | E14: 0.84
A15: 39131 | B15: ABRACADEIRA EM ACO PARA AMARRACAO DE ELETRODUTOS, TIPO D, COM 1 1/2" E CUNHA DE FIXACAO | C15: UN | D15: CR | E15: 4.42
A16: 394 | B16: ABRACADEIRA EM ACO PARA AMARRACAO DE ELETRODUTOS, TIPO D, COM 1 1/2" E PARAFUSO DE FIXACAO | C16: UN | D16: CR | E16: 4.48
A17: 39130 | B17: ABRACADEIRA EM ACO PARA AMARRACAO DE ELETRODUTOS, TIPO D, COM 1 1/4" E CUNHA DE FIXACAO | C17: UN | D17: CR | E17: 4.03
A18: 395 | B18: ABRACADEIRA EM ACO PARA AMARRACAO DE ELETRODUTOS, TIPO D, COM 1 1/4" E PARAFUSO DE FIXACAO | C18: UN | D18: CR | E18: 4.31
A19: 39127 | B19: ABRACADEIRA EM ACO PARA AMARRACAO DE ELETRODUTOS, TIPO D, COM 1/2" E CUNHA DE FIXACAO | C19: UN | D19: CR | E19: 2.12
A20: 392 | B20: ABRACADEIRA EM ACO PARA AMARRACAO DE ELETRODUTOS, TIPO D, COM 1/2" E PARAFUSO DE FIXACAO | C20: UN | D20: CR | E20: 2.18
A21: 39129 | B21: ABRACADEIRA EM ACO PARA AMARRACAO DE ELETRODUTOS, TIPO D, COM 1" E CUNHA DE FIXACAO | C21: UN | D21: CR | E21: 2.48
A22: 393 | B22: ABRACADEIRA EM ACO PARA AMARRACAO DE ELETRODUTOS, TIPO D, COM 1" E PARAFUSO DE FIXACAO | C22: UN | D22: C | E22: 2.6
A23: 39133 | B23: ABRACADEIRA EM ACO PARA AMARRACAO DE ELETRODUTOS, TIPO D, COM 2 1/2" E CUNHA DE FIXACAO | C23: UN | D23: CR | E23: 5.8
A24: 397 | B24: ABRACADEIRA EM ACO PARA AMARRACAO DE ELETRODUTOS, TIPO D, COM 2 1/2" E PARAFUSO DE FIXACAO | C24: UN | D24: CR | E24: 6.41
A25: 39132 | B25: ABRACADEIRA EM ACO PARA AMARRACAO DE ELETRODUTOS, TIPO D, COM 2" E CUNHA DE FIXACAO | C25: UN | D25: CR | E25: 4.64
A26: 396 | B26: ABRACADEIRA EM ACO PARA AMARRACAO DE ELETRODUTOS, TIPO D, COM 2" E PARAFUSO DE FIXACAO | C26: UN | D26: CR | E26: 4.97
A27: 39135 | B27: ABRACADEIRA EM ACO PARA AMARRACAO DE ELETRODUTOS, TIPO D, COM 3 1/2" E CUNHA DE FIXACAO | C27: UN | D27: CR | E27: 9.29
A28: 39128 | B28: ABRACADEIRA EM ACO PARA AMARRACAO DE ELETRODUTOS, TIPO D, COM 3/4" E CUNHA DE FIXACAO | C28: UN | D28: CR | E28: 2.32
A29: 400 | B29: ABRACADEIRA EM ACO PARA AMARRACAO DE ELETRODUTOS, TIPO D, COM 3/4" E PARAFUSO DE FIXACAO | C29: UN | D29: CR | E29: 2.26
A30: 39125 | B30: ABRACADEIRA EM ACO PARA AMARRACAO DE ELETRODUTOS, TIPO D, COM 3/8" E PARAFUSO DE FIXACAO | C30: UN | D30: CR | E30: 2.32
A31: 39134 | B31: ABRACADEIRA EM ACO PARA AMARRACAO DE ELETRODUTOS, TIPO D, COM 3" E CUNHA DE FIXACAO | C31: UN | D31: CR | E31: 7.74
A32: 398 | B32: ABRACADEIRA EM ACO PARA AMARRACAO DE ELETRODUTOS, TIPO D, COM 3" E PARAFUSO DE FIXACAO | C32: UN | D32: CR | E32: 7.13
A33: 39126 | B33: ABRACADEIRA EM ACO PARA AMARRACAO DE ELETRODUTOS, TIPO D, COM 4" E CUNHA DE FIXACAO | C33: UN | D33: CR | E33: 10.45
A34: 399 | B34: ABRACADEIRA EM ACO PARA AMARRACAO DE ELETRODUTOS, TIPO D, COM 4" E PARAFUSO DE FIXACAO | C34: UN | D34: CR | E34: 9.21
A35: 39158 | B35: ABRACADEIRA EM ACO PARA AMARRACAO DE ELETRODUTOS, TIPO ECONOMICA (GOTA), COM 8" | C35: UN | D35: CR | E35: 24.72
A36: 39141 | B36: ABRACADEIRA EM ACO PARA AMARRACAO DE ELETRODUTOS, TIPO U SIMPLES, COM 1 1/2" | C36: UN | D36: CR | E36: 1.79
A37: 39140 | B37: ABRACADEIRA EM ACO PARA AMARRACAO DE ELETRODUTOS, TIPO U SIMPLES, COM 1 1/4" | C37: UN | D37: CR | E37: 1.63
A38: 39137 | B38: ABRACADEIRA EM ACO PARA AMARRACAO DE ELETRODUTOS, TIPO U SIMPLES, COM 1/2" | C38: UN | D38: CR | E38: 0.94
A39: 39139 | B39: ABRACADEIRA EM ACO PARA AMARRACAO DE ELETRODUTOS, TIPO U SIMPLES, COM 1" | C39: UN | D39: CR | E39: 1.35
A40: 39143 | B40: ABRACADEIRA EM ACO PARA AMARRACAO DE ELETRODUTOS, TIPO U SIMPLES, COM 2 1/2" | C40: UN | D40: CR | E40: 3.7
A41: 39142 | B41: ABRACADEIRA EM ACO PARA AMARRACAO DE ELETRODUTOS, TIPO U SIMPLES, COM 2" | C41: UN | D41: CR | E41: 2.65
A42: 39138 | B42: ABRACADEIRA EM ACO PARA AMARRACAO DE ELETRODUTOS, TIPO U SIMPLES, COM 3/4" | C42: UN | D42: CR | E42: 0.99
A43: 39136 | B43: ABRACADEIRA EM ACO PARA AMARRACAO DE ELETRODUTOS, TIPO U SIMPLES, COM 3/8" | C43: UN | D43: CR | E43: 0.66
A44: 39144 | B44: ABRACADEIRA EM ACO PARA AMARRACAO DE ELETRODUTOS, TIPO U SIMPLES, COM 3" | C44: UN | D44: CR | E44: 4.31
A45: 39145 | B45: ABRACADEIRA EM ACO PARA AMARRACAO DE ELETRODUTOS, TIPO U SIMPLES, COM 4" | C45: UN | D45: CR | E45: 7.1
A46: 12615 | B46: ABRACADEIRA PVC, PARA CALHA PLUVIAL, DIAMETRO ENTRE *80 E 100* MM, PARA DRENAGEM PLUVIAL PREDIAL | C46: UN | D46: CR | E46: 11.05
A47: 11927 | B47: ABRACADEIRA, GALVANIZADA/ZINCADA, ROSCA SEM FIM, PARAFUSO INOX, LARGURA FITA *12,6 A *14 MM, D = 2" A 2 1/2" | C47: UN | D47: AS | E47: 8.2
A48: 11928 | B48: ABRACADEIRA, GALVANIZADA/ZINCADA, ROSCA SEM FIM, PARAFUSO INOX, LARGURA FITA *12,6 A *14 MM, D = 3" A 3 3/4" | C48: UN | D48: AS | E48: 9.39
A49: 11929 | B49: ABRACADEIRA, GALVANIZADA/ZINCADA, ROSCA SEM FIM, PARAFUSO INOX, LARGURA FITA *12,6 A *14 MM, D = 4" A 4 3/4" | C49: UN | D49: AS | E49: 14.53
A50: 36801 | B50: ACABAMENTO DE METAL CROMADO PARA REGISTRO PEQUENO, DE PAREDE, 1/2" OU 3/4" | C50: UN | D50: CR | E50: 32.36
A51: 36246 | B51: ACABAMENTO SIMPLES/CONVENCIONAL PARA FORRO PVC, TIPO "U" OU "C", COR BRANCA, COMPRIMENTO 6 M | C51: M | D51: AS | E51: 4.15
A52: 37600 | B52: ACESSORIO DE LIGACAO NAO ELETRICO PARA CARGAS EXPLOSIVAS, TUBO DE 6 M | C52: UN | D52: AS | E52: 104.86
A53: 37599 | B53: ACESSORIO INICIADOR NAO ELETRICO, TUBO DE 6 M, TEMPO DE RETARDO DE *160* MS | C53: UN | D53: AS | E53: 97.6
A54: 1 | B54: ACETILENO (RECARGA DE GAS ACETILENO PARA CILINDRO DE CONJUNTO OXICORTE GRANDE) NAO INCLUI TROCA/MANUTENCAO DO CILINDRO | C54: KG | D54: C | E54: 94.44
A55: 3 | B55: ACIDO CLORIDRICO / ACIDO MURIATICO, DILUICAO 10% A 12% PARA USO EM LIMPEZA | C55: L | D55: CR | E55: 14.96
A56: 43054 | B56: ACO CA-25, 10,0 MM, OU 12,5 MM, OU 16,0 MM, OU 20,0 MM, OU 25,0 MM, VERGALHAO | C56: KG | D56: CR | E56: 8.17
A57: 42402 | B57: ACO CA-25, 16,0 MM, BARRA DE TRANSFERENCIA | C57: KG | D57: CR | E57: 7.81
A58: 42403 | B58: ACO CA-25, 20,0 MM, BARRA DE TRANSFERENCIA | C58: KG | D58: CR | E58: 10.02
A59: 42404 | B59: ACO CA-25, 25,0 MM, BARRA DE TRANSFERENCIA | C59: KG | D59: CR | E59: 9.96
A60: 42405 | B60: ACO CA-25, 32,0 MM, BARRA DE TRANSFERENCIA | C60: KG | D60: CR | E60: 10.61
A61: 34341 | B61: ACO CA-25, 32,0 MM, VERGALHAO | C61: KG | D61: CR | E61: 9.21
A62: 43053 | B62: ACO CA-25, 6,3 MM OU 8,0 MM, VERGALHAO | C62: KG | D62: CR | E62: 7.3
A63: 43058 | B63: ACO CA-50, 10,0 MM, OU 12,5 MM, OU 16,0 MM, OU 20,0 MM, DOBRADO E CORTADO | C63: KG | D63: CR | E63: 7.57
A64: 34 | B64: ACO CA-50, 10,0 MM, VERGALHAO | C64: KG | D64: CR | E64: 7.61
A65: 43055 | B65: ACO CA-50, 12,5 MM OU 16,0 MM, VERGALHAO | C65: KG | D65: C | E65: 6.59
A66: 43056 | B66: ACO CA-50, 20,0 MM OU 25,0 MM, VERGALHAO | C66: KG | D66: CR | E66: 7.6
A67: 43057 | B67: ACO CA-50, 32,0 MM, VERGALHAO | C67: KG | D67: CR | E67: 8.35
A68: 34449 | B68: ACO CA-50, 6,3 MM, DOBRADO E CORTADO | C68: KG | D68: CR | E68: 8.92
A69: 32 | B69: ACO CA-50, 6,3 MM, VERGALHAO | C69: KG | D69: CR | E69: 8.02
A70: 33 | B70: ACO CA-50, 8,0 MM, VERGALHAO | C70: KG | D70: CR | E70: 8.07
A71: 43061 | B71: ACO CA-60, 4,2 MM OU 5,0 MM, DOBRADO E CORTADO | C71: KG | D71: CR | E71: 7.54
A72: 43059 | B72: ACO CA-60, 4,2 MM, OU 5,0 MM, OU 6,0 MM, OU 7,0 MM, VERGALHAO | C72: KG | D72: CR | E72: 7.2
A73: 43062 | B73: ACO CA-60, 6,0 MM OU 7,0 MM, DOBRADO E CORTADO | C73: KG | D73: CR | E73: 7.98
A74: 43060 | B74: ACO CA-60, 8,0 MM OU 9,5 MM, VERGALHAO | C74: KG | D74: CR | E74: 6.27
A75: 40410 | B75: ACOPLAMENTO RIGIDO EM FERRO FUNDIDO PARA SISTEMA DE TUBULACAO RANHURADA, DN 50 MM (2") | C75: UN | D75: AS | E75: 19.19
A76: 40411 | B76: ACOPLAMENTO RIGIDO EM FERRO FUNDIDO PARA SISTEMA DE TUBULACAO RANHURADA, DN 65 MM (2 1/2") | C76: UN | D76: AS | E76: 20.82
A77: 40412 | B77: ACOPLAMENTO RIGIDO EM FERRO FUNDIDO PARA SISTEMA DE TUBULACAO RANHURADA, DN 80 MM (3") | C77: UN | D77: AS | E77: 23.37
A78: 44254 | B78: ADAPTADOR CPVC, ROSCAVEL, COM FLANGES E ANEL DE VEDACAO, 15 MM, CAIXA D'AGUA PARA AGUA QUENTE | C78: UN | D78: CR | E78: 31.59
A79: 44255 | B79: ADAPTADOR CPVC, ROSCAVEL, COM FLANGES E ANEL DE VEDACAO, 22 MM, CAIXA D'AGUA PARA AGUA QUENTE | C79: UN | D79: CR | E79: 35.01
A80: 44256 | B80: ADAPTADOR CPVC, ROSCAVEL, COM FLANGES E ANEL DE VEDACAO, 28 MM, CAIXA D'AGUA PARA AGUA QUENTE | C80: UN | D80: CR | E80: 39.54
A81: 44257 | B81: ADAPTADOR CPVC, ROSCAVEL, COM FLANGES E ANEL DE VEDACAO, 35 MM, CAIXA D'AGUA PARA AGUA QUENTE | C81: UN | D81: CR | E81: 62.56
A82: 44258 | B82: ADAPTADOR CPVC, ROSCAVEL, COM FLANGES E ANEL DE VEDACAO, 42 MM, CAIXA D'AGUA PARA AGUA QUENTE | C82: UN | D82: CR | E82: 71.49
A83: 44259 | B83: ADAPTADOR CPVC, ROSCAVEL, COM FLANGES E ANEL DE VEDACAO, 54 MM, CAIXA D'AGUA PARA AGUA QUENTE | C83: UN | D83: CR | E83: 98.13
A84: 37997 | B84: ADAPTADOR CPVC, SOLDAVEL, 15 MM, PARA AGUA QUENTE | C84: UN | D84: CR | E84: 18.82
A85: 37998 | B85: ADAPTADOR CPVC, SOLDAVEL, 22 MM, PARA AGUA QUENTE | C85: UN | D85: CR | E85: 25.19
A86: 55 | B86: ADAPTADOR DE COMPRESSAO EM POLIPROPILENO (PP), PARA TUBO EM PEAD, 20 MM X 1/2", PARA LIGACAO PREDIAL DE AGUA (NTS 179) | C86: UN | D86: AS | E86: 4.17
A87: 61 | B87: ADAPTADOR DE COMPRESSAO EM POLIPROPILENO (PP), PARA TUBO EM PEAD, 20 MM X 3/4", PARA LIGACAO PREDIAL DE AGUA (NTS 179) | C87: UN | D87: AS | E87: 3.94
A88: 62 | B88: ADAPTADOR DE COMPRESSAO EM POLIPROPILENO (PP), PARA TUBO EM PEAD, 32 MM X 1", PARA LIGACAO PREDIAL DE AGUA (NTS 179) | C88: UN | D88: AS | E88: 8.17
A89: 10899 | B89: ADAPTADOR EM LATAO, ENGATE RAPIDO 2 1/2" X ROSCA INTERNA 5 FIOS 2 1/2", PARA INSTALACAO PREDIAL DE COMBATE A INCENDIO | C89: UN | D89: CR | E89: 87.61
A90: 10900 | B90: ADAPTADOR EM LATAO, ENGATE RAPIDO1 1/2" X ROSCA INTERNA 5 FIOS 2 1/2", PARA INSTALACAO PREDIAL DE COMBATE A INCENDIO | C90: UN | D90: CR | E90: 68.57
A91: 47 | B91: ADAPTADOR PVC PBA, BOLSA/ROSCA, JE, DN 100 / DE 110 MM | C91: UN | D91: AS | E91: 60.45
A92: 48 | B92: ADAPTADOR PVC PBA, BOLSA/ROSCA, JE, DN 50 / DE 60 MM | C92: UN | D92: AS | E92: 15.77
A93: 46 | B93: ADAPTADOR PVC PBA, BOLSA/ROSCA, JE, DN 75 / DE 85 MM | C93: UN | D93: AS | E93: 35.35
A94: 52 | B94: ADAPTADOR PVC PBA, PONTA/ROSCA, JE, DN 50 / DE 60 MM | C94: UN | D94: AS | E94: 11.98
A95: 43 | B95: ADAPTADOR PVC PBA, PONTA/ROSCA, JE, DN 75 / DE 85 MM | C95: UN | D95: AS | E95: 40.43
A96: 103 | B96: ADAPTADOR PVC SOLDAVEL CURTO COM BOLSA E ROSCA, 110 MM X 4", PARA AGUA FRIA | C96: UN | D96: CR | E96: 42.91
A97: 107 | B97: ADAPTADOR PVC SOLDAVEL CURTO COM BOLSA E ROSCA, 20 MM X 1/2", PARA AGUA FRIA | C97: UN | D97: CR | E97: 0.8
A98: 65 | B98: ADAPTADOR PVC SOLDAVEL CURTO COM BOLSA E ROSCA, 25 MM X 3/4", PARA AGUA FRIA | C98: UN | D98: CR | E98: 0.88
A99: 108 | B99: ADAPTADOR PVC SOLDAVEL CURTO COM BOLSA E ROSCA, 32 MM X 1", PARA AGUA FRIA | C99: UN | D99: CR | E99: 1.78
A100: 110 | B100: ADAPTADOR PVC SOLDAVEL CURTO COM BOLSA E ROSCA, 40 MM X 1 1/2", PARA AGUA FRIA | C100: UN | D100: CR | E100: 6.17
A101: 109 | B101: ADAPTADOR PVC SOLDAVEL CURTO COM BOLSA E ROSCA, 40 MM X 1 1/4", PARA AGUA FRIA | C101: UN | D101: CR | E101: 3.67
A102: 111 | B102: ADAPTADOR PVC SOLDAVEL CURTO COM BOLSA E ROSCA, 50 MM X 1 1/4", PARA AGUA FRIA | C102: UN | D102: CR | E102: 8.35
A103: 112 | B103: ADAPTADOR PVC SOLDAVEL CURTO COM BOLSA E ROSCA, 50 MM X1 1/2", PARA AGUA FRIA | C103: UN | D103: CR | E103: 4.42
A104: 113 | B104: ADAPTADOR PVC SOLDAVEL CURTO COM BOLSA E ROSCA, 60 MM X 2", PARA AGUA FRIA | C104: UN | D104: CR | E104: 11.08
A105: 104 | B105: ADAPTADOR PVC SOLDAVEL CURTO COM BOLSA E ROSCA, 75 MM X 2 1/2", PARA AGUA FRIA | C105: UN | D105: CR | E105: 19.29
A106: 102 | B106: ADAPTADOR PVC SOLDAVEL CURTO COM BOLSA E ROSCA, 85 MM X 3", PARA AGUA FRIA | C106: UN | D106: CR | E106: 26.59
A107: 95 | B107: ADAPTADOR PVC SOLDAVEL, COM FLANGE E ANEL DE VEDACAO, 20 MM X 1/2", PARA CAIXA D'AGUA | C107: UN | D107: CR | E107: 11.24
A108: 96 | B108: ADAPTADOR PVC SOLDAVEL, COM FLANGE E ANEL DE VEDACAO, 25 MM X 3/4", PARA CAIXA D'AGUA | C108: UN | D108: CR | E108: 12.22
A109: 97 | B109: ADAPTADOR PVC SOLDAVEL, COM FLANGE E ANEL DE VEDACAO, 32 MM X 1", PARA CAIXA D'AGUA | C109: UN | D109: CR | E109: 18.39
A110: 98 | B110: ADAPTADOR PVC SOLDAVEL, COM FLANGE E ANEL DE VEDACAO, 40 MM X 1 1/4", PARA CAIXA D'AGUA | C110: UN | D110: CR | E110: 27.53
A111: 99 | B111: ADAPTADOR PVC SOLDAVEL, COM FLANGE E ANEL DE VEDACAO, 50 MM X 1 1/2", PARA CAIXA D'AGUA | C111: UN | D111: CR | E111: 26.01
A112: 60 | B112: ADAPTADOR PVC, COM REGISTRO, PARA PEAD, 20 MM X 3/4", PARA LIGACAO PREDIAL DE AGUA | C112: UN | D112: AS | E112: 5.41
A113: 72 | B113: ADAPTADOR PVC, ROSCAVEL, COM FLANGES E ANEL DE VEDACAO, 1 1/2", PARA CAIXA D'AGUA | C113: UN | D113: CR | E113: 49.89
A114: 67 | B114: ADAPTADOR PVC, ROSCAVEL, COM FLANGES E ANEL DE VEDACAO, 1/2", PARA CAIXA D'AGUA | C114: UN | D114: CR | E114: 16.13
A115: 71 | B115: ADAPTADOR PVC, ROSCAVEL, COM FLANGES E ANEL DE VEDACAO, 1", PARA CAIXA D'AGUA | C115: UN | D115: CR | E115: 30.81
A116: 73 | B116: ADAPTADOR PVC, ROSCAVEL, COM FLANGES E ANEL DE VEDACAO, 3/4", PARA CAIXA D'AGUA | C116: UN | D116: CR | E116: 15.44
A117: 100 | B117: ADAPTADOR PVC, SOLDAVEL, COM FLANGES E ANEL DE VEDACAO, 60 MM X 2", PARA CAIXA D'AGUA | C117: UN | D117: CR | E117: 45.45
A118: 75 | B118: ADAPTADOR PVC, SOLDAVEL, COM FLANGES LIVRES, 110 MM X 4", PARA CAIXA D'AGUA | C118: UN | D118: CR | E118: 265
A119: 83 | B119: ADAPTADOR PVC, SOLDAVEL, COM FLANGES LIVRES, 75 MM X 2 1/2", PARA CAIXA D'AGUA | C119: UN | D119: CR | E119: 211.86
A120: 74 | B120: ADAPTADOR PVC, SOLDAVEL, COM FLANGES LIVRES, 85 MM X 3", PARA CAIXA D'AGUA | C120: UN | D120: CR | E120: 302.9
A121: 106 | B121: ADAPTADOR PVC, SOLDAVEL, LONGO, COM FLANGE LIVRE, 110 MM X 4", PARA CAIXA D'AGUA | C121: UN | D121: CR | E121: 383.03
A122: 88 | B122: ADAPTADOR PVC, SOLDAVEL, LONGO, COM FLANGE LIVRE, 32 MM X 1", PARA CAIXA D'AGUA | C122: UN | D122: CR | E122: 10.76
A123: 82 | B123: ADAPTADOR PVC, SOLDAVEL, LONGO, COM FLANGE LIVRE, 75 MM X 2 1/2", PARA CAIXA D'AGUA | C123: UN | D123: CR | E123: 201.57
A124: 105 | B124: ADAPTADOR PVC, SOLDAVEL, LONGO, COM FLANGE LIVRE, 85 MM X 3", PARA CAIXA D'AGUA | C124: UN | D124: CR | E124: 285.62
A125: 39719 | B125: ADESIVO / COLA DE CONTATO LIQUIDO, A BASE DE RESINAS, PARA COLAGEM DE ESPUMA PARA ISOLAMENTO TERMICO FLEXIVEL | C125: L | D125: CR | E125: 135.1
A126: 3410 | B126: ADESIVO / COLA PARA EPS (ISOPOR) E OUTROS MATERIAIS | C126: KG | D126: CR | E126: 30.39
A127: 4791 | B127: ADESIVO ACRILICO DE BASE AQUOSA / COLA DE CONTATO | C127: KG | D127: CR | E127: 40.58
A128: 157 | B128: ADESIVO ESTRUTURAL A BASE DE RESINA EPOXI PARA INJECAO EM TRINCAS, BICOMPONENTE, BAIXA VISCOSIDADE | C128: KG | D128: CR | E128: 202.74
A129: 156 | B129: ADESIVO ESTRUTURAL A BASE DE RESINA EPOXI, BICOMPONENTE, FLUIDO | C129: KG | D129: CR | E129: 72.19
A130: 131 | B130: ADESIVO ESTRUTURAL A BASE DE RESINA EPOXI, BICOMPONENTE, PASTOSO (TIXOTROPICO) | C130: KG | D130: CR | E130: 61.73
A131: 21114 | B131: ADESIVO PARA TUBOS CPVC, *75* G | C131: UN | D131: CR | E131: 26.63
A132: 119 | B132: ADESIVO PLASTICO PARA PVC, BISNAGA COM 75 GR | C132: UN | D132: C | E132: 6.75
A133: 122 | B133: ADESIVO PLASTICO PARA PVC, FRASCO COM *850* GR | C133: UN | D133: CR | E133: 51.93
A134: 20080 | B134: ADESIVO PLASTICO PARA PVC, FRASCO COM 175 GR | C134: UN | D134: CR | E134: 16.95
A135: 124 | B135: ADITIVO ACELERADOR DE PEGA E ENDURECIMENTO PARA ARGAMASSAS E CONCRETOS, LIQUIDO E ISENTO DE CLORETOS | C135: L | D135: CR | E135: 23.81
A136: 7334 | B136: ADITIVO ADESIVO LIQUIDO PARA ARGAMASSAS DE REVESTIMENTOS CIMENTICIOS | C136: L | D136: CR | E136: 17.62
A137: 45146 | B137: ADITIVO IMPERMEABILIZANTE CRISTALIZANTE PARA CONCRETO | C137: KG | D137: CR | E137: 45.65
A138: 123 | B138: ADITIVO IMPERMEABILIZANTE DE PEGA NORMAL PARA ARGAMASSAS E CONCRETOS SEM ARMACAO, LIQUIDO E ISENTO DE CLORETOS | C138: L | D138: C | E138: 9.74
A139: 127 | B139: ADITIVO IMPERMEABILIZANTE DE PEGA ULTRARRAPIDA, LIQUIDO E ISENTO DE CLORETOS | C139: L | D139: CR | E139: 23.25
A140: 133 | B140: ADITIVO LIQUIDO INCORPORADOR DE AR PARA CONCRETO E ARGAMASSA, LIQUIDO E ISENTO DE CLORETOS | C140: L | D140: CR | E140: 9.66
A141: 43617 | B141: ADITIVO PLASTIFICANTE E ESTABILIZADOR PARA ARGAMASSAS DE ASSENTAMENTO E REBOCO, LIQUIDO E ISENTO DE CLORETOS | C141: L | D141: CR | E141: 10.79
A142: 132 | B142: ADITIVO PLASTIFICANTE RETARDADOR DE PEGA E REDUTOR DE AGUA PARA CONCRETO, LIQUIDO E ISENTO DE CLORETOS | C142: L | D142: CR | E142: 10.01
A143: 43618 | B143: ADITIVO SUPERPLASTIFICANTE DE PEGA NORMAL PARA CONCRETO, LIQUIDO E ISENTO DE CLORETOS | C143: KG | D143: CR | E143: 25.2
A144: 37476 | B144: ADUELA/ GALERIA PRE-MOLDADA DE CONCRETO ARMADO, SECAO QUADRADA INTERNA DE 1,50 X 1,50 M (L X A), MISULA DE 20 X 20 CM, C = 1,00 M, ESPESSURA MIN = 15 CM, TB-45 E FCK DO CONCRETO = 30 MPA | C144: UN | D144: AS | E144: 3753.18
A145: 37478 | B145: ADUELA/ GALERIA PRE-MOLDADA DE CONCRETO ARMADO, SECAO RETANGULAR INTERNA DE 2,00 X 2,00 M (L X A), MISULA DE 20 X 20 CM, C = 1,00 M, ESPESSURA MIN = 15 CM, TB-45 E FCK DO CONCRETO = 30 MPA | C145: UN | D145: AS | E145: 4700.95
A146: 37477 | B146: ADUELA/ GALERIA PRE-MOLDADA DE CONCRETO ARMADO, SECAO RETANGULAR INTERNA DE 2,50 X 2,50 M (L X A), MISULA DE 20 X 20 CM, C = 1,00 M, ESPESSURA MIN = 15 CM, TB-45 E FCK DO CONCRETO = 30 MPA | C146: UN | D146: AS | E146: 6369.03
A147: 37479 | B147: ADUELA/ GALERIA PRE-MOLDADA DE CONCRETO ARMADO, SECAO RETANGULAR INTERNA DE 3,00 X 3,00 M (L X A), MISULA DE 20 X 20 CM, C = 1.00 M, ESPESSURA MIN = 20 CM, TB-45 E FCK DO CONCRETO = 30 MPA | C147: UN | D147: AS | E147: 7553.75
A148: 4319 | B148: AFASTADOR PARA TELHA DE FIBROCIMENTO CANALETE 90 OU KALHETAO | C148: UN | D148: CR | E148: 2.03
A149: 42409 | B149: AGENTE DE CURA, PROTETOR DA EVAPORACAO DA AGUA DE HIDRATACAO DO CONCRETO | C149: KG | D149: CR | E149: 15.87
A150: 40553 | B150: AGREGADO RECICLADO, TIPO RACHAO RECICLADO CINZA, CLASSE A | C150: M3 | D150: AS | E150: 60
A151: 6114 | B151: AJUDANTE DE ARMADOR (HORISTA) | C151: H | D151: CR | E151: 15.34
A152: 40912 | B152: AJUDANTE DE ARMADOR (MENSALISTA) | C152: MES | D152: CR | E152: 2680.79
A153: 247 | B153: AJUDANTE DE ELETRICISTA (HORISTA) | C153: H | D153: CR | E153: 15.34
A154: 40919 | B154: AJUDANTE DE ELETRICISTA (MENSALISTA) | C154: MES | D154: CR | E154: 2680.79
A155: 44499 | B155: AJUDANTE DE ESTRUTURAS METALICAS (HORISTA) | C155: H | D155: CR | E155: 15.34
A156: 40984 | B156: AJUDANTE DE ESTRUTURAS METALICAS (MENSALISTA) | C156: MES | D156: CR | E156: 2680.79
A157: 248 | B157: AJUDANTE DE OPERACAO EM GERAL (HORISTA) | C157: H | D157: CR | E157: 15.53
A158: 41086 | B158: AJUDANTE DE OPERACAO EM GERAL (MENSALISTA) | C158: MES | D158: CR | E158: 2715.29
A159: 34466 | B159: AJUDANTE DE PINTOR (HORISTA) | C159: H | D159: CR | E159: 15.34
A160: 41083 | B160: AJUDANTE DE PINTOR (MENSALISTA) | C160: MES | D160: CR | E160: 2680.79
A161: 252 | B161: AJUDANTE DE SERRALHEIRO (HORISTA) | C161: H | D161: CR | E161: 15.34
A162: 40909 | B162: AJUDANTE DE SERRALHEIRO (MENSALISTA) | C162: MES | D162: CR | E162: 2680.79
A163: 242 | B163: AJUDANTE ESPECIALIZADO (HORISTA) | C163: H | D163: CR | E163: 15.53
A164: 41085 | B164: AJUDANTE ESPECIALIZADO (MENSALISTA) | C164: MES | D164: CR | E164: 2715.29
A165: 427 | B165: ALCA PREFORMADA DE CONTRA POSTE, EM ACO GALVANIZADO, PARA CABO 3/16", COMPRIMENTO *860* MM | C165: UN | D165: CR | E165: 8.63
A166: 417 | B166: ALCA PREFORMADA DE DISTRIBUICAO, EM ACO GALVANIZADO, PARA CABO DE ALUMINIO DIAMETRO 16 A 25 MM | C166: UN | D166: CR | E166: 4.07
A167: 11273 | B167: ALCA PREFORMADA DE DISTRIBUICAO, EM ACO GALVANIZADO, PARA CONDUTORES DE ALUMINIO AWG 1/0 (CAA 6/1 OU CA 7 FIOS) | C167: UN | D167: CR | E167: 12.63
A168: 11272 | B168: ALCA PREFORMADA DE DISTRIBUICAO, EM ACO GALVANIZADO, PARA CONDUTORES DE ALUMINIO AWG 2 (CAA 6/1 OU CA 7 FIOS) | C168: UN | D168: CR | E168: 7.62
A169: 11275 | B169: ALCA PREFORMADA DE SERVICO, EM ACO GALVANIZADO, PARA CONDUTORES DE ALUMINIO AWG 4 (CAA 6/1) | C169: UN | D169: CR | E169: 3.06
A170: 11274 | B170: ALCA PREFORMADA DE SERVICO, EM ACO GALVANIZADO, PARA CONDUTORES DE ALUMINIO AWG 6 (CAA 6/1) | C170: UN | D170: CR | E170: 2.33
A171: 38470 | B171: ALICATE DE CORTE DIAGONAL 6" COM ISOLAMENTO | C171: UN | D171: C | E171: 39.15
A172: 38547 | B172: ALICATE DE CRIMPAR RJ11, RJ12 E RJ45 | C172: UN | D172: CR | E172: 106.83
A173: 38469 | B173: ALICATE DE PRESSAO PARA SOLDA DE CHAPA 18" | C173: UN | D173: CR | E173: 114.87
A174: 38467 | B174: ALICATE DE PRESSAO 11" PARA SOLDA, TIPO C | C174: UN | D174: CR | E174: 64.63
A175: 38468 | B175: ALICATE DE PRESSAO 11" PARA SOLDA, TIPO U | C175: UN | D175: CR | E175: 71.12
A176: 38471 | B176: ALICATE PARA ANEIS DE PISTAO, CAPACIDADE 50 A 100 MM | C176: UN | D176: CR | E176: 92.36
A177: 37370 | B177: ALIMENTACAO - HORISTA (COLETADO CAIXA - ENCARGOS COMPLEMENTARES) | C177: H | D177: C | E177: 1.04
A178: 40862 | B178: ALIMENTACAO - MENSALISTA (COLETADO CAIXA - ENCARGOS COMPLEMENTARES) | C178: MES | D178: C | E178: 196.54
A179: 10658 | B179: ALISADORA DE CONCRETO COM MOTOR A GASOLINA DE 5,5 HP, PESO COM MOTOR DE 78 KG, 4 PAS | C179: UN | D179: AS | E179: 7709
A180: 253 | B180: ALMOXARIFE (HORISTA) | C180: H | D180: C | E180: 19.76
A181: 40809 | B181: ALMOXARIFE (MENSALISTA) | C181: MES | D181: CR | E181: 3450.01
A182: 42428 | B182: ALONGADOR COM TRES ALTURAS, EM TUBO DE ACO CARBONO, PINTURA NO PROCESSO ELETROSTATICO - EQUIPAMENTO DE GINASTICA PARA ACADEMIA AO AR LIVRE / ACADEMIA DA TERCEIRA IDADE - ATI | C182: UN | D182: AS | E182: 2271
A183: 301 | B183: ANEL BORRACHA PARA TUBO ESGOTO PREDIAL, DN 100 MM (NBR 5688) | C183: UN | D183: C | E183: 3.33
A184: 296 | B184: ANEL BORRACHA PARA TUBO ESGOTO PREDIAL, DN 50 MM (NBR 5688) | C184: UN | D184: CR | E184: 1.88
A185: 297 | B185: ANEL BORRACHA PARA TUBO ESGOTO PREDIAL, DN 75 MM (NBR 5688) | C185: UN | D185: CR | E185: 2.76
A186: 299 | B186: ANEL BORRACHA, DN 100 MM, PARA TUBO SERIE REFORCADA ESGOTO PREDIAL | C186: UN | D186: CR | E186: 3.91
A187: 300 | B187: ANEL BORRACHA, DN 150 MM, PARA TUBO SERIE REFORCADA ESGOTO PREDIAL | C187: UN | D187: CR | E187: 13.51
A188: 20085 | B188: ANEL BORRACHA, DN 50 MM, PARA TUBO SERIE REFORCADA ESGOTO PREDIAL | C188: UN | D188: CR | E188: 2.47
A189: 298 | B189: ANEL BORRACHA, DN 75 MM, PARA TUBO SERIE REFORCADA ESGOTO PREDIAL | C189: UN | D189: CR | E189: 3
A190: 311 | B190: ANEL BORRACHA, PARA TUBO PVC DEFOFO, DN 100 MM (NBR 7665) | C190: UN | D190: CR | E190: 11.15
A191: 318 | B191: ANEL BORRACHA, PARA TUBO PVC DEFOFO, DN 150 MM (NBR 7665) | C191: UN | D191: CR | E191: 22.45
A192: 319 | B192: ANEL BORRACHA, PARA TUBO PVC DEFOFO, DN 200 MM (NBR 7665) | C192: UN | D192: CR | E192: 35.2
A193: 303 | B193: ANEL BORRACHA, PARA TUBO PVC, REDE COLETOR ESGOTO, DN 100 MM (NBR 7362) | C193: UN | D193: CR | E193: 3.69
A194: 305 | B194: ANEL BORRACHA, PARA TUBO PVC, REDE COLETOR ESGOTO, DN 150 MM (NBR 7362) | C194: UN | D194: CR | E194: 11.6
A195: 306 | B195: ANEL BORRACHA, PARA TUBO PVC, REDE COLETOR ESGOTO, DN 200 MM (NBR 7362) | C195: UN | D195: CR | E195: 17.6
A196: 307 | B196: ANEL BORRACHA, PARA TUBO PVC, REDE COLETOR ESGOTO, DN 250 MM (NBR 7362) | C196: UN | D196: CR | E196: 44.46
A197: 309 | B197: ANEL BORRACHA, PARA TUBO PVC, REDE COLETOR ESGOTO, DN 350 MM (NBR 7362) | C197: UN | D197: CR | E197: 72.84
A198: 310 | B198: ANEL BORRACHA, PARA TUBO PVC, REDE COLETOR ESGOTO, DN 400 MM (NBR 7362) | C198: UN | D198: CR | E198: 100.95
A199: 328 | B199: ANEL BORRACHA, PARA TUBO/CONEXAO PVC PBA, DN 100 MM, PARA REDE AGUA | C199: UN | D199: CR | E199: 8.82
A200: 325 | B200: ANEL BORRACHA, PARA TUBO/CONEXAO PVC PBA, DN 50 MM, PARA REDE AGUA | C200: UN | D200: CR | E200: 2.6
A201: 20326 | B201: ANEL BORRACHA, PARA TUBO/CONEXAO PVC PBA, DN 60 MM, PARA REDE AGUA | C201: UN | D201: CR | E201: 4.76
A202: 329 | B202: ANEL BORRACHA, PARA TUBO/CONEXAO PVC PBA, DN 75 MM, PARA REDE AGUA | C202: UN | D202: CR | E202: 7.38
... 4622 more rows

Sheet COMP Sint. Sinapi
A1: PCI.817.01 - CUSTO DE COMPOSIÇÕES - SINTÉTICO DATA DE EMISSÃO: 11/09/2024 23:43:37 DATA DE RT: 11/09/2024
A2: ENCARGOS SOCIAIS SOBRE PREÇOS DA MÃO-DE-OBRA: 114,59%(HORA) 70,27%(MÊS)
A3: ABRANGÊNCIA : NACIONAL LOCALIDADE : JOAO PESSOA DATA DE PREÇO : 08/2024 REFERÊNCIA COLETA : MEDIANO
A5: DESCRICAO DA CLASSE | B5: SIGLA DA CLASSE | C5: DESCRICAO DO TIPO 1 | D5: SIGLA DO TIPO 1 | E5: CODIGO DO AGRUPADOR | F5: DESCRICAO DO AGRUPADOR | G5: CODIGO DA COMPOSICAO | H5: DESCRICAO DA COMPOSICAO | I5: UNIDADE | J5: ORIGEM DE PREÇO | K5: CUSTO TOTAL | L5: VINCULO
A7: ASSENTAMENTO DE TUBOS E PECAS | B7: ASTU | C7: FORNEC E/OU ASSENT DE TUBO DE FERRO FUNDIDO JUNTA ELASTICA | D7: 0045 | G7: 97141 | H7: ASSENTAMENTO DE TUBO DE FERRO FUNDIDO PARA REDE DE ÁGUA, DN 80 MM, JUNTA ELÁSTICA, INSTALADO EM LOCAL COM NÍVEL ALTO DE INTERFERÊNCIAS (NÃO INCLUI FORNECIMENTO). AF_05/2024 | I7: M | J7: ATRIBUÍDO SÃO PAULO | K7: 4.02 | L7: CAIXA REFERENCIAL
A8: ASSENTAMENTO DE TUBOS E PECAS | B8: ASTU | C8: FORNEC E/OU ASSENT DE TUBO DE FERRO FUNDIDO JUNTA ELASTICA | D8: 0045 | G8: 97142 | H8: ASSENTAMENTO DE TUBO DE FERRO FUNDIDO PARA REDE DE ÁGUA, DN 100 MM, JUNTA ELÁSTICA, INSTALADO EM LOCAL COM NÍVEL ALTO DE INTERFERÊNCIAS (NÃO INCLUI FORNECIMENTO). AF_05/2024 | I8: M | J8: ATRIBUÍDO SÃO PAULO | K8: 4.64 | L8: CAIXA REFERENCIAL
A9: ASSENTAMENTO DE TUBOS E PECAS | B9: ASTU | C9: FORNEC E/OU ASSENT DE TUBO DE FERRO FUNDIDO JUNTA ELASTICA | D9: 0045 | G9: 97143 | H9: ASSENTAMENTO DE TUBO DE FERRO FUNDIDO PARA REDE DE ÁGUA, DN 150 MM, JUNTA ELÁSTICA, INSTALADO EM LOCAL COM NÍVEL ALTO DE INTERFERÊNCIAS (NÃO INCLUI FORNECIMENTO). AF_05/2024 | I9: M | J9: ATRIBUÍDO SÃO PAULO | K9: 6.13 | L9: CAIXA REFERENCIAL
A10: ASSENTAMENTO DE TUBOS E PECAS | B10: ASTU | C10: FORNEC E/OU ASSENT DE TUBO DE FERRO FUNDIDO JUNTA ELASTICA | D10: 0045 | G10: 97144 | H10: ASSENTAMENTO DE TUBO DE FERRO FUNDIDO PARA REDE DE ÁGUA, DN 200 MM, JUNTA ELÁSTICA, INSTALADO EM LOCAL COM NÍVEL ALTO DE INTERFERÊNCIAS (NÃO INCLUI FORNECIMENTO). AF_05/2024 | I10: M | J10: ATRIBUÍDO SÃO PAULO | K10: 7.6 | L10: CAIXA REFERENCIAL
A11: ASSENTAMENTO DE TUBOS E PECAS | B11: ASTU | C11: FORNEC E/OU ASSENT DE TUBO DE FERRO FUNDIDO JUNTA ELASTICA | D11: 0045 | G11: 97145 | H11: ASSENTAMENTO DE TUBO DE FERRO FUNDIDO PARA REDE DE ÁGUA, DN 250 MM, JUNTA ELÁSTICA, INSTALADO EM LOCAL COM NÍVEL ALTO DE INTERFERÊNCIAS (NÃO INCLUI FORNECIMENTO). AF_05/2024 | I11: M | J11: ATRIBUÍDO SÃO PAULO | K11: 9.12 | L11: CAIXA REFERENCIAL
A12: ASSENTAMENTO DE TUBOS E PECAS | B12: ASTU | C12: FORNEC E/OU ASSENT DE TUBO DE FERRO FUNDIDO JUNTA ELASTICA | D12: 0045 | G12: 97146 | H12: ASSENTAMENTO DE TUBO DE FERRO FUNDIDO PARA REDE DE ÁGUA, DN 300 MM, JUNTA ELÁSTICA, INSTALADO EM LOCAL COM NÍVEL ALTO DE INTERFERÊNCIAS (NÃO INCLUI FORNECIMENTO). AF_05/2024 | I12: M | J12: ATRIBUÍDO SÃO PAULO | K12: 10.62 | L12: CAIXA REFERENCIAL
A13: ASSENTAMENTO DE TUBOS E PECAS | B13: ASTU | C13: FORNEC E/OU ASSENT DE TUBO DE FERRO FUNDIDO JUNTA ELASTICA | D13: 0045 | G13: 97147 | H13: ASSENTAMENTO DE TUBO DE FERRO FUNDIDO PARA REDE DE ÁGUA, DN 350 MM, JUNTA ELÁSTICA, INSTALADO EM LOCAL COM NÍVEL ALTO DE INTERFERÊNCIAS (NÃO INCLUI FORNECIMENTO). AF_05/2024 | I13: M | J13: ATRIBUÍDO SÃO PAULO | K13: 12.12 | L13: CAIXA REFERENCIAL
A14: ASSENTAMENTO DE TUBOS E PECAS | B14: ASTU | C14: FORNEC E/OU ASSENT DE TUBO DE FERRO FUNDIDO JUNTA ELASTICA | D14: 0045 | G14: 97148 | H14: ASSENTAMENTO DE TUBO DE FERRO FUNDIDO PARA REDE DE ÁGUA, DN 400 MM, JUNTA ELÁSTICA, INSTALADO EM LOCAL COM NÍVEL ALTO DE INTERFERÊNCIAS (NÃO INCLUI FORNECIMENTO). AF_05/2024 | I14: M | J14: ATRIBUÍDO SÃO PAULO | K14: 13.61 | L14: CAIXA REFERENCIAL
A15: ASSENTAMENTO DE TUBOS E PECAS | B15: ASTU | C15: FORNEC E/OU ASSENT DE TUBO DE FERRO FUNDIDO JUNTA ELASTICA | D15: 0045 | G15: 97149 | H15: ASSENTAMENTO DE TUBO DE FERRO FUNDIDO PARA REDE DE ÁGUA, DN 450 MM, JUNTA ELÁSTICA, INSTALADO EM LOCAL COM NÍVEL ALTO DE INTERFERÊNCIAS (NÃO INCLUI FORNECIMENTO). AF_05/2024 | I15: M | J15: ATRIBUÍDO SÃO PAULO | K15: 15.14 | L15: CAIXA REFERENCIAL
A16: ASSENTAMENTO DE TUBOS E PECAS | B16: ASTU | C16: FORNEC E/OU ASSENT DE TUBO DE FERRO FUNDIDO JUNTA ELASTICA | D16: 0045 | G16: 97150 | H16: ASSENTAMENTO DE TUBO DE FERRO FUNDIDO PARA REDE DE ÁGUA, DN 500 MM, JUNTA ELÁSTICA, INSTALADO EM LOCAL COM NÍVEL ALTO DE INTERFERÊNCIAS (NÃO INCLUI FORNECIMENTO). AF_05/2024 | I16: M | J16: ATRIBUÍDO SÃO PAULO | K16: 19.97 | L16: CAIXA REFERENCIAL
A17: ASSENTAMENTO DE TUBOS E PECAS | B17: ASTU | C17: FORNEC E/OU ASSENT DE TUBO DE FERRO FUNDIDO JUNTA ELASTICA | D17: 0045 | G17: 97151 | H17: ASSENTAMENTO DE TUBO DE FERRO FUNDIDO PARA REDE DE ÁGUA, DN 600 MM, JUNTA ELÁSTICA, INSTALADO EM LOCAL COM NÍVEL ALTO DE INTERFERÊNCIAS (NÃO INCLUI FORNECIMENTO). AF_05/2024 | I17: M | J17: ATRIBUÍDO SÃO PAULO | K17: 23.51 | L17: CAIXA REFERENCIAL
A18: ASSENTAMENTO DE TUBOS E PECAS | B18: ASTU | C18: FORNEC E/OU ASSENT DE TUBO DE FERRO FUNDIDO JUNTA ELASTICA | D18: 0045 | G18: 97152 | H18: ASSENTAMENTO DE TUBO DE FERRO FUNDIDO PARA REDE DE ÁGUA, DN 700 MM, JUNTA ELÁSTICA, INSTALADO EM LOCAL COM NÍVEL ALTO DE INTERFERÊNCIAS (NÃO INCLUI FORNECIMENTO). AF_05/2024 | I18: M | J18: ATRIBUÍDO SÃO PAULO | K18: 26.83 | L18: CAIXA REFERENCIAL
A19: ASSENTAMENTO DE TUBOS E PECAS | B19: ASTU | C19: FORNEC E/OU ASSENT DE TUBO DE FERRO FUNDIDO JUNTA ELASTICA | D19: 0045 | G19: 97153 | H19: ASSENTAMENTO DE TUBO DE FERRO FUNDIDO PARA REDE DE ÁGUA, DN 800 MM, JUNTA ELÁSTICA, INSTALADO EM LOCAL COM NÍVEL ALTO DE INTERFERÊNCIAS (NÃO INCLUI FORNECIMENTO). AF_05/2024 | I19: M | J19: ATRIBUÍDO SÃO PAULO | K19: 30.3 | L19: CAIXA REFERENCIAL
A20: ASSENTAMENTO DE TUBOS E PECAS | B20: ASTU | C20: FORNEC E/OU ASSENT DE TUBO DE FERRO FUNDIDO JUNTA ELASTICA | D20: 0045 | G20: 97154 | H20: ASSENTAMENTO DE TUBO DE FERRO FUNDIDO PARA REDE DE ÁGUA, DN 900 MM, JUNTA ELÁSTICA, INSTALADO EM LOCAL COM NÍVEL ALTO DE INTERFERÊNCIAS (NÃO INCLUI FORNECIMENTO). AF_05/2024 | I20: M | J20: ATRIBUÍDO SÃO PAULO | K20: 33.79 | L20: CAIXA REFERENCIAL
A21: ASSENTAMENTO DE TUBOS E PECAS | B21: ASTU | C21: FORNEC E/OU ASSENT DE TUBO DE FERRO FUNDIDO JUNTA ELASTICA | D21: 0045 | G21: 97155 | H21: ASSENTAMENTO DE TUBO DE FERRO FUNDIDO PARA REDE DE ÁGUA, DN 1000 MM, JUNTA ELÁSTICA, INSTALADO EM LOCAL COM NÍVEL ALTO DE INTERFERÊNCIAS (NÃO INCLUI FORNECIMENTO). AF_05/2024 | I21: M | J21: ATRIBUÍDO SÃO PAULO | K21: 37.28 | L21: CAIXA REFERENCIAL
A22: ASSENTAMENTO DE TUBOS E PECAS | B22: ASTU | C22: FORNEC E/OU ASSENT DE TUBO DE FERRO FUNDIDO JUNTA ELASTICA | D22: 0045 | G22: 97156 | H22: ASSENTAMENTO DE TUBO DE FERRO FUNDIDO PARA REDE DE ÁGUA, DN 1200 MM, JUNTA ELÁSTICA, INSTALADO EM LOCAL COM NÍVEL ALTO DE INTERFERÊNCIAS (NÃO INCLUI FORNECIMENTO). AF_05/2024 | I22: M | J22: ATRIBUÍDO SÃO PAULO | K22: 44.6 | L22: CAIXA REFERENCIAL
A23: ASSENTAMENTO DE TUBOS E PECAS | B23: ASTU | C23: FORNEC E/OU ASSENT DE TUBO DE FERRO FUNDIDO JUNTA ELASTICA | D23: 0045 | G23: 97157 | H23: ASSENTAMENTO DE TUBO DE FERRO FUNDIDO PARA REDE DE ÁGUA, DN 80 MM, JUNTA ELÁSTICA, INSTALADO EM LOCAL COM NÍVEL BAIXO DE INTERFERÊNCIAS (NÃO INCLUI FORNECIMENTO). AF_05/2024 | I23: M | J23: ATRIBUÍDO SÃO PAULO | K23: 3.05 | L23: CAIXA REFERENCIAL
A24: ASSENTAMENTO DE TUBOS E PECAS | B24: ASTU | C24: FORNEC E/OU ASSENT DE TUBO DE FERRO FUNDIDO JUNTA ELASTICA | D24: 0045 | G24: 97158 | H24: ASSENTAMENTO DE TUBO DE FERRO FUNDIDO PARA REDE DE ÁGUA, DN 100 MM, JUNTA ELÁSTICA, INSTALADO EM LOCAL COM NÍVEL BAIXO DE INTERFERÊNCIAS (NÃO INCLUI FORNECIMENTO). AF_05/2024 | I24: M | J24: ATRIBUÍDO SÃO PAULO | K24: 3.55 | L24: CAIXA REFERENCIAL
A25: ASSENTAMENTO DE TUBOS E PECAS | B25: ASTU | C25: FORNEC E/OU ASSENT DE TUBO DE FERRO FUNDIDO JUNTA ELASTICA | D25: 0045 | G25: 97159 | H25: ASSENTAMENTO DE TUBO DE FERRO FUNDIDO PARA REDE DE ÁGUA, DN 150 MM, JUNTA ELÁSTICA, INSTALADO EM LOCAL COM NÍVEL BAIXO DE INTERFERÊNCIAS (NÃO INCLUI FORNECIMENTO). AF_05/2024 | I25: M | J25: ATRIBUÍDO SÃO PAULO | K25: 4.79 | L25: CAIXA REFERENCIAL
A26: ASSENTAMENTO DE TUBOS E PECAS | B26: ASTU | C26: FORNEC E/OU ASSENT DE TUBO DE FERRO FUNDIDO JUNTA ELASTICA | D26: 0045 | G26: 97160 | H26: ASSENTAMENTO DE TUBO DE FERRO FUNDIDO PARA REDE DE ÁGUA, DN 200 MM, JUNTA ELÁSTICA, INSTALADO EM LOCAL COM NÍVEL BAIXO DE INTERFERÊNCIAS (NÃO INCLUI FORNECIMENTO). AF_05/2024 | I26: M | J26: ATRIBUÍDO SÃO PAULO | K26: 5.99 | L26: CAIXA REFERENCIAL
A27: ASSENTAMENTO DE TUBOS E PECAS | B27: ASTU | C27: FORNEC E/OU ASSENT DE TUBO DE FERRO FUNDIDO JUNTA ELASTICA | D27: 0045 | G27: 97161 | H27: ASSENTAMENTO DE TUBO DE FERRO FUNDIDO PARA REDE DE ÁGUA, DN 250 MM, JUNTA ELÁSTICA, INSTALADO EM LOCAL COM NÍVEL BAIXO DE INTERFERÊNCIAS (NÃO INCLUI FORNECIMENTO). AF_05/2024 | I27: M | J27: ATRIBUÍDO SÃO PAULO | K27: 7.25 | L27: CAIXA REFERENCIAL
A28: ASSENTAMENTO DE TUBOS E PECAS | B28: ASTU | C28: FORNEC E/OU ASSENT DE TUBO DE FERRO FUNDIDO JUNTA ELASTICA | D28: 0045 | G28: 97162 | H28: ASSENTAMENTO DE TUBO DE FERRO FUNDIDO PARA REDE DE ÁGUA, DN 300 MM, JUNTA ELÁSTICA, INSTALADO EM LOCAL COM NÍVEL BAIXO DE INTERFERÊNCIAS (NÃO INCLUI FORNECIMENTO). AF_05/2024 | I28: M | J28: ATRIBUÍDO SÃO PAULO | K28: 8.49 | L28: CAIXA REFERENCIAL
A29: ASSENTAMENTO DE TUBOS E PECAS | B29: ASTU | C29: FORNEC E/OU ASSENT DE TUBO DE FERRO FUNDIDO JUNTA ELASTICA | D29: 0045 | G29: 97163 | H29: ASSENTAMENTO DE TUBO DE FERRO FUNDIDO PARA REDE DE ÁGUA, DN 350 MM, JUNTA ELÁSTICA, INSTALADO EM LOCAL COM NÍVEL BAIXO DE INTERFERÊNCIAS (NÃO INCLUI FORNECIMENTO). AF_05/2024 | I29: M | J29: ATRIBUÍDO SÃO PAULO | K29: 9.72 | L29: CAIXA REFERENCIAL
A30: ASSENTAMENTO DE TUBOS E PECAS | B30: ASTU | C30: FORNEC E/OU ASSENT DE TUBO DE FERRO FUNDIDO JUNTA ELASTICA | D30: 0045 | G30: 97164 | H30: ASSENTAMENTO DE TUBO DE FERRO FUNDIDO PARA REDE DE ÁGUA, DN 400 MM, JUNTA ELÁSTICA, INSTALADO EM LOCAL COM NÍVEL BAIXO DE INTERFERÊNCIAS (NÃO INCLUI FORNECIMENTO). AF_05/2024 | I30: M | J30: ATRIBUÍDO SÃO PAULO | K30: 10.97 | L30: CAIXA REFERENCIAL
A31: ASSENTAMENTO DE TUBOS E PECAS | B31: ASTU | C31: FORNEC E/OU ASSENT DE TUBO DE FERRO FUNDIDO JUNTA ELASTICA | D31: 0045 | G31: 97165 | H31: ASSENTAMENTO DE TUBO DE FERRO FUNDIDO PARA REDE DE ÁGUA, DN 450 MM, JUNTA ELÁSTICA, INSTALADO EM LOCAL COM NÍVEL BAIXO DE INTERFERÊNCIAS (NÃO INCLUI FORNECIMENTO). AF_05/2024 | I31: M | J31: ATRIBUÍDO SÃO PAULO | K31: 12.22 | L31: CAIXA REFERENCIAL
A32: ASSENTAMENTO DE TUBOS E PECAS | B32: ASTU | C32: FORNEC E/OU ASSENT DE TUBO DE FERRO FUNDIDO JUNTA ELASTICA | D32: 0045 | G32: 97166 | H32: ASSENTAMENTO DE TUBO DE FERRO FUNDIDO PARA REDE DE ÁGUA, DN 500 MM, JUNTA ELÁSTICA, INSTALADO EM LOCAL COM NÍVEL BAIXO DE INTERFERÊNCIAS (NÃO INCLUI FORNECIMENTO). AF_05/2024 | I32: M | J32: ATRIBUÍDO SÃO PAULO | K32: 15.71 | L32: CAIXA REFERENCIAL
A33: ASSENTAMENTO DE TUBOS E PECAS | B33: ASTU | C33: FORNEC E/OU ASSENT DE TUBO DE FERRO FUNDIDO JUNTA ELASTICA | D33: 0045 | G33: 97167 | H33: ASSENTAMENTO DE TUBO DE FERRO FUNDIDO PARA REDE DE ÁGUA, DN 600 MM, JUNTA ELÁSTICA, INSTALADO EM LOCAL COM NÍVEL BAIXO DE INTERFERÊNCIAS (NÃO INCLUI FORNECIMENTO). AF_05/2024 | I33: M | J33: ATRIBUÍDO SÃO PAULO | K33: 18.56 | L33: CAIXA REFERENCIAL
A34: ASSENTAMENTO DE TUBOS E PECAS | B34: ASTU | C34: FORNEC E/OU ASSENT DE TUBO DE FERRO FUNDIDO JUNTA ELASTICA | D34: 0045 | G34: 97168 | H34: ASSENTAMENTO DE TUBO DE FERRO FUNDIDO PARA REDE DE ÁGUA, DN 700 MM, JUNTA ELÁSTICA, INSTALADO EM LOCAL COM NÍVEL BAIXO DE INTERFERÊNCIAS (NÃO INCLUI FORNECIMENTO). AF_05/2024 | I34: M | J34: ATRIBUÍDO SÃO PAULO | K34: 21.19 | L34: CAIXA REFERENCIAL
A35: ASSENTAMENTO DE TUBOS E PECAS | B35: ASTU | C35: FORNEC E/OU ASSENT DE TUBO DE FERRO FUNDIDO JUNTA ELASTICA | D35: 0045 | G35: 97169 | H35: ASSENTAMENTO DE TUBO DE FERRO FUNDIDO PARA REDE DE ÁGUA, DN 800 MM, JUNTA ELÁSTICA, INSTALADO EM LOCAL COM NÍVEL BAIXO DE INTERFERÊNCIAS (NÃO INCLUI FORNECIMENTO). AF_05/2024 | I35: M | J35: ATRIBUÍDO SÃO PAULO | K35: 23.97 | L35: CAIXA REFERENCIAL
A36: ASSENTAMENTO DE TUBOS E PECAS | B36: ASTU | C36: FORNEC E/OU ASSENT DE TUBO DE FERRO FUNDIDO JUNTA ELASTICA | D36: 0045 | G36: 97170 | H36: ASSENTAMENTO DE TUBO DE FERRO FUNDIDO PARA REDE DE ÁGUA, DN 900 MM, JUNTA ELÁSTICA, INSTALADO EM LOCAL COM NÍVEL BAIXO DE INTERFERÊNCIAS (NÃO INCLUI FORNECIMENTO). AF_05/2024 | I36: M | J36: ATRIBUÍDO SÃO PAULO | K36: 26.77 | L36: CAIXA REFERENCIAL
A37: ASSENTAMENTO DE TUBOS E PECAS | B37: ASTU | C37: FORNEC E/OU ASSENT DE TUBO DE FERRO FUNDIDO JUNTA ELASTICA | D37: 0045 | G37: 97171 | H37: ASSENTAMENTO DE TUBO DE FERRO FUNDIDO PARA REDE DE ÁGUA, DN 1000 MM, JUNTA ELÁSTICA, INSTALADO EM LOCAL COM NÍVEL BAIXO DE INTERFERÊNCIAS (NÃO INCLUI FORNECIMENTO). AF_05/2024 | I37: M | J37: ATRIBUÍDO SÃO PAULO | K37: 29.58 | L37: CAIXA REFERENCIAL
A38: ASSENTAMENTO DE TUBOS E PECAS | B38: ASTU | C38: FORNEC E/OU ASSENT DE TUBO DE FERRO FUNDIDO JUNTA ELASTICA | D38: 0045 | G38: 97172 | H38: ASSENTAMENTO DE TUBO DE FERRO FUNDIDO PARA REDE DE ÁGUA, DN 1200 MM, JUNTA ELÁSTICA, INSTALADO EM LOCAL COM NÍVEL BAIXO DE INTERFERÊNCIAS (NÃO INCLUI FORNECIMENTO). AF_05/2024 | I38: M | J38: ATRIBUÍDO SÃO PAULO | K38: 35.53 | L38: CAIXA REFERENCIAL
A39: ASSENTAMENTO DE TUBOS E PECAS | B39: ASTU | C39: FORNEC E/OU ASSENT DE TUBO DE FERRO FUNDIDO JUNTA ELASTICA | D39: 0045 | G39: 105249 | H39: ASSENTAMENTO DE CONEXÃO 2 ACESSOS ALINHADOS DE FERRO FUNDIDO PARA REDE DE ÁGUA, DN 1200, JUNTA ELÁSTICA, INSTALADO EM LOCAL COM NÍVEL ALTO DE INTERFERÊNCIAS (NÃO INCLUI FORNECIMENTO). AF_05/2024 | I39: UN | J39: ATRIBUÍDO SÃO PAULO | K39: 98.37 | L39: CAIXA REFERENCIAL
A40: ASSENTAMENTO DE TUBOS E PECAS | B40: ASTU | C40: FORNEC E/OU ASSENT DE TUBO DE FERRO FUNDIDO JUNTA ELASTICA | D40: 0045 | G40: 105250 | H40: ASSENTAMENTO DE CONEXÃO 2 ACESSOS INCLINADOS DE FERRO FUNDIDO PARA REDE DE ÁGUA, DN 80, JUNTA ELÁSTICA, INSTALADO EM LOCAL COM NÍVEL ALTO DE INTERFERÊNCIAS (NÃO INCLUI FORNECIMENTO). AF_05/2024 | I40: UN | J40: ATRIBUÍDO SÃO PAULO | K40: 12.76 | L40: CAIXA REFERENCIAL
A41: ASSENTAMENTO DE TUBOS E PECAS | B41: ASTU | C41: FORNEC E/OU ASSENT DE TUBO DE FERRO FUNDIDO JUNTA ELASTICA | D41: 0045 | G41: 105251 | H41: ASSENTAMENTO DE CONEXÃO 2 ACESSOS INCLINADOS DE FERRO FUNDIDO PARA REDE DE ÁGUA, DN 100, JUNTA ELÁSTICA, INSTALADO EM LOCAL COM NÍVEL ALTO DE INTERFERÊNCIAS (NÃO INCLUI FORNECIMENTO). AF_05/2024 | I41: UN | J41: ATRIBUÍDO SÃO PAULO | K41: 14.66 | L41: CAIXA REFERENCIAL
A42: ASSENTAMENTO DE TUBOS E PECAS | B42: ASTU | C42: FORNEC E/OU ASSENT DE TUBO DE FERRO FUNDIDO JUNTA ELASTICA | D42: 0045 | G42: 105252 | H42: ASSENTAMENTO DE CONEXÃO 2 ACESSOS INCLINADOS DE FERRO FUNDIDO PARA REDE DE ÁGUA, DN 150, JUNTA ELÁSTICA, INSTALADO EM LOCAL COM NÍVEL ALTO DE INTERFERÊNCIAS (NÃO INCLUI FORNECIMENTO). AF_05/2024 | I42: UN | J42: ATRIBUÍDO SÃO PAULO | K42: 19.35 | L42: CAIXA REFERENCIAL
A43: ASSENTAMENTO DE TUBOS E PECAS | B43: ASTU | C43: FORNEC E/OU ASSENT DE TUBO DE FERRO FUNDIDO JUNTA ELASTICA | D43: 0045 | G43: 105253 | H43: ASSENTAMENTO DE CONEXÃO 2 ACESSOS INCLINADOS DE FERRO FUNDIDO PARA REDE DE ÁGUA, DN 200, JUNTA ELÁSTICA, INSTALADO EM LOCAL COM NÍVEL ALTO DE INTERFERÊNCIAS (NÃO INCLUI FORNECIMENTO). AF_05/2024 | I43: UN | J43: ATRIBUÍDO SÃO PAULO | K43: 24.01 | L43: CAIXA REFERENCIAL
A44: ASSENTAMENTO DE TUBOS E PECAS | B44: ASTU | C44: FORNEC E/OU ASSENT DE TUBO DE FERRO FUNDIDO JUNTA ELASTICA | D44: 0045 | G44: 105254 | H44: ASSENTAMENTO DE CONEXÃO 2 ACESSOS INCLINADOS DE FERRO FUNDIDO PARA REDE DE ÁGUA, DN 250, JUNTA ELÁSTICA, INSTALADO EM LOCAL COM NÍVEL ALTO DE INTERFERÊNCIAS (NÃO INCLUI FORNECIMENTO). AF_05/2024 | I44: UN | J44: ATRIBUÍDO SÃO PAULO | K44: 28.8 | L44: CAIXA REFERENCIAL
A45: ASSENTAMENTO DE TUBOS E PECAS | B45: ASTU | C45: FORNEC E/OU ASSENT DE TUBO DE FERRO FUNDIDO JUNTA ELASTICA | D45: 0045 | G45: 105255 | H45: ASSENTAMENTO DE CONEXÃO 2 ACESSOS INCLINADOS DE FERRO FUNDIDO PARA REDE DE ÁGUA, DN 300, JUNTA ELÁSTICA, INSTALADO EM LOCAL COM NÍVEL ALTO DE INTERFERÊNCIAS (NÃO INCLUI FORNECIMENTO). AF_05/2024 | I45: UN | J45: ATRIBUÍDO SÃO PAULO | K45: 33.56 | L45: CAIXA REFERENCIAL
A46: ASSENTAMENTO DE TUBOS E PECAS | B46: ASTU | C46: FORNEC E/OU ASSENT DE TUBO DE FERRO FUNDIDO JUNTA ELASTICA | D46: 0045 | G46: 105256 | H46: ASSENTAMENTO DE CONEXÃO 2 ACESSOS INCLINADOS DE FERRO FUNDIDO PARA REDE DE ÁGUA, DN 350, JUNTA ELÁSTICA, INSTALADO EM LOCAL COM NÍVEL ALTO DE INTERFERÊNCIAS (NÃO INCLUI FORNECIMENTO). AF_05/2024 | I46: UN | J46: ATRIBUÍDO SÃO PAULO | K46: 38.34 | L46: CAIXA REFERENCIAL
A47: ASSENTAMENTO DE TUBOS E PECAS | B47: ASTU | C47: FORNEC E/OU ASSENT DE TUBO DE FERRO FUNDIDO JUNTA ELASTICA | D47: 0045 | G47: 105257 | H47: ASSENTAMENTO DE CONEXÃO 2 ACESSOS INCLINADOS DE FERRO FUNDIDO PARA REDE DE ÁGUA, DN 400, JUNTA ELÁSTICA, INSTALADO EM LOCAL COM NÍVEL ALTO DE INTERFERÊNCIAS (NÃO INCLUI FORNECIMENTO). AF_05/2024 | I47: UN | J47: ATRIBUÍDO SÃO PAULO | K47: 43.12 | L47: CAIXA REFERENCIAL
A48: ASSENTAMENTO DE TUBOS E PECAS | B48: ASTU | C48: FORNEC E/OU ASSENT DE TUBO DE FERRO FUNDIDO JUNTA ELASTICA | D48: 0045 | G48: 105258 | H48: ASSENTAMENTO DE CONEXÃO 2 ACESSOS ALINHADOS DE FERRO FUNDIDO PARA REDE DE ÁGUA, DN 400, JUNTA ELÁSTICA, INSTALADO EM LOCAL COM NÍVEL BAIXO DE INTERFERÊNCIAS (NÃO INCLUI FORNECIMENTO). AF_05/2024 | I48: UN | J48: ATRIBUÍDO SÃO PAULO | K48: 24.1 | L48: CAIXA REFERENCIAL
A49: ASSENTAMENTO DE TUBOS E PECAS | B49: ASTU | C49: FORNEC E/OU ASSENT DE TUBO DE FERRO FUNDIDO JUNTA ELASTICA | D49: 0045 | G49: 105259 | H49: ASSENTAMENTO DE CONEXÃO 3 ACESSOS DE FERRO FUNDIDO PARA REDE DE ÁGUA, DN 100, JUNTA ELÁSTICA, INSTALADO EM LOCAL COM NÍVEL BAIXO DE INTERFERÊNCIAS (NÃO INCLUI FORNECIMENTO). AF_05/2024 | I49: UN | J49: ATRIBUÍDO SÃO PAULO | K49: 15.59 | L49: CAIXA REFERENCIAL
A50: ASSENTAMENTO DE TUBOS E PECAS | B50: ASTU | C50: FORNEC E/OU ASSENT DE TUBO DE FERRO FUNDIDO JUNTA ELASTICA | D50: 0045 | G50: 105261 | H50: ASSENTAMENTO DE CONEXÃO 2 ACESSOS ALINHADOS DE FERRO FUNDIDO PARA REDE DE ÁGUA, DN 450, JUNTA ELÁSTICA, INSTALADO EM LOCAL COM NÍVEL BAIXO DE INTERFERÊNCIAS (NÃO INCLUI FORNECIMENTO). AF_05/2024 | I50: UN | J50: ATRIBUÍDO SÃO PAULO | K50: 26.94 | L50: CAIXA REFERENCIAL
A51: ASSENTAMENTO DE TUBOS E PECAS | B51: ASTU | C51: FORNEC E/OU ASSENT DE TUBO DE FERRO FUNDIDO JUNTA ELASTICA | D51: 0045 | G51: 105262 | H51: ASSENTAMENTO DE CONEXÃO 2 ACESSOS ALINHADOS DE FERRO FUNDIDO PARA REDE DE ÁGUA, DN 500, JUNTA ELÁSTICA, INSTALADO EM LOCAL COM NÍVEL BAIXO DE INTERFERÊNCIAS (NÃO INCLUI FORNECIMENTO). AF_05/2024 | I51: UN | J51: ATRIBUÍDO SÃO PAULO | K51: 34.32 | L51: CAIXA REFERENCIAL
A52: ASSENTAMENTO DE TUBOS E PECAS | B52: ASTU | C52: FORNEC E/OU ASSENT DE TUBO DE FERRO FUNDIDO JUNTA ELASTICA | D52: 0045 | G52: 105263 | H52: ASSENTAMENTO DE CONEXÃO 2 ACESSOS ALINHADOS DE FERRO FUNDIDO PARA REDE DE ÁGUA, DN 600, JUNTA ELÁSTICA, INSTALADO EM LOCAL COM NÍVEL BAIXO DE INTERFERÊNCIAS (NÃO INCLUI FORNECIMENTO). AF_05/2024 | I52: UN | J52: ATRIBUÍDO SÃO PAULO | K52: 40.71 | L52: CAIXA REFERENCIAL
A53: ASSENTAMENTO DE TUBOS E PECAS | B53: ASTU | C53: FORNEC E/OU ASSENT DE TUBO DE FERRO FUNDIDO JUNTA ELASTICA | D53: 0045 | G53: 105264 | H53: ASSENTAMENTO DE CONEXÃO 2 ACESSOS ALINHADOS DE FERRO FUNDIDO PARA REDE DE ÁGUA, DN 700, JUNTA ELÁSTICA, INSTALADO EM LOCAL COM NÍVEL BAIXO DE INTERFERÊNCIAS (NÃO INCLUI FORNECIMENTO). AF_05/2024 | I53: UN | J53: ATRIBUÍDO SÃO PAULO | K53: 46.51 | L53: CAIXA REFERENCIAL
A54: ASSENTAMENTO DE TUBOS E PECAS | B54: ASTU | C54: FORNEC E/OU ASSENT DE TUBO DE FERRO FUNDIDO JUNTA ELASTICA | D54: 0045 | G54: 105265 | H54: ASSENTAMENTO DE CONEXÃO 2 ACESSOS ALINHADOS DE FERRO FUNDIDO PARA REDE DE ÁGUA, DN 800, JUNTA ELÁSTICA, INSTALADO EM LOCAL COM NÍVEL BAIXO DE INTERFERÊNCIAS (NÃO INCLUI FORNECIMENTO). AF_05/2024 | I54: UN | J54: ATRIBUÍDO SÃO PAULO | K54: 52.53 | L54: CAIXA REFERENCIAL
A55: ASSENTAMENTO DE TUBOS E PECAS | B55: ASTU | C55: FORNEC E/OU ASSENT DE TUBO DE FERRO FUNDIDO JUNTA ELASTICA | D55: 0045 | G55: 105266 | H55: ASSENTAMENTO DE CONEXÃO 2 ACESSOS ALINHADOS DE FERRO FUNDIDO PARA REDE DE ÁGUA, DN 900, JUNTA ELÁSTICA, INSTALADO EM LOCAL COM NÍVEL BAIXO DE INTERFERÊNCIAS (NÃO INCLUI FORNECIMENTO). AF_05/2024 | I55: UN | J55: ATRIBUÍDO SÃO PAULO | K55: 58.72 | L55: CAIXA REFERENCIAL
A56: ASSENTAMENTO DE TUBOS E PECAS | B56: ASTU | C56: FORNEC E/OU ASSENT DE TUBO DE FERRO FUNDIDO JUNTA ELASTICA | D56: 0045 | G56: 105267 | H56: ASSENTAMENTO DE CONEXÃO 2 ACESSOS ALINHADOS DE FERRO FUNDIDO PARA REDE DE ÁGUA, DN 1000, JUNTA ELÁSTICA, INSTALADO EM LOCAL COM NÍVEL BAIXO DE INTERFERÊNCIAS (NÃO INCLUI FORNECIMENTO). AF_05/2024 | I56: UN | J56: ATRIBUÍDO SÃO PAULO | K56: 64.98 | L56: CAIXA REFERENCIAL
A57: ASSENTAMENTO DE TUBOS E PECAS | B57: ASTU | C57: FORNEC E/OU ASSENT DE TUBO DE FERRO FUNDIDO JUNTA ELASTICA | D57: 0045 | G57: 105268 | H57: ASSENTAMENTO DE CONEXÃO 2 ACESSOS ALINHADOS DE FERRO FUNDIDO PARA REDE DE ÁGUA, DN 1200, JUNTA ELÁSTICA, INSTALADO EM LOCAL COM NÍVEL BAIXO DE INTERFERÊNCIAS (NÃO INCLUI FORNECIMENTO). AF_05/2024 | I57: UN | J57: ATRIBUÍDO SÃO PAULO | K57: 79.75 | L57: CAIXA REFERENCIAL
A58: ASSENTAMENTO DE TUBOS E PECAS | B58: ASTU | C58: FORNEC E/OU ASSENT DE TUBO DE FERRO FUNDIDO JUNTA ELASTICA | D58: 0045 | G58: 105269 | H58: ASSENTAMENTO DE CONEXÃO 2 ACESSOS INCLINADOS DE FERRO FUNDIDO PARA REDE DE ÁGUA, DN 80, JUNTA ELÁSTICA, INSTALADO EM LOCAL COM NÍVEL BAIXO DE INTERFERÊNCIAS (NÃO INCLUI FORNECIMENTO). AF_05/2024 | I58: UN | J58: ATRIBUÍDO SÃO PAULO | K58: 9.76 | L58: CAIXA REFERENCIAL
A59: ASSENTAMENTO DE TUBOS E PECAS | B59: ASTU | C59: FORNEC E/OU ASSENT DE TUBO DE FERRO FUNDIDO JUNTA ELASTICA | D59: 0045 | G59: 105270 | H59: ASSENTAMENTO DE CONEXÃO 2 ACESSOS INCLINADOS DE FERRO FUNDIDO PARA REDE DE ÁGUA, DN 450, JUNTA ELÁSTICA, INSTALADO EM LOCAL COM NÍVEL ALTO DE INTERFERÊNCIAS (NÃO INCLUI FORNECIMENTO). AF_05/2024 | I59: UN | J59: ATRIBUÍDO SÃO PAULO | K59: 48 | L59: CAIXA REFERENCIAL
A60: ASSENTAMENTO DE TUBOS E PECAS | B60: ASTU | C60: FORNEC E/OU ASSENT DE TUBO DE FERRO FUNDIDO JUNTA ELASTICA | D60: 0045 | G60: 105271 | H60: ASSENTAMENTO DE CONEXÃO 2 ACESSOS INCLINADOS DE FERRO FUNDIDO PARA REDE DE ÁGUA, DN 500, JUNTA ELÁSTICA, INSTALADO EM LOCAL COM NÍVEL ALTO DE INTERFERÊNCIAS (NÃO INCLUI FORNECIMENTO). AF_05/2024 | I60: UN | J60: ATRIBUÍDO SÃO PAULO | K60: 63.02 | L60: CAIXA REFERENCIAL
A61: ASSENTAMENTO DE TUBOS E PECAS | B61: ASTU | C61: FORNEC E/OU ASSENT DE TUBO DE FERRO FUNDIDO JUNTA ELASTICA | D61: 0045 | G61: 105272 | H61: ASSENTAMENTO DE CONEXÃO 2 ACESSOS INCLINADOS DE FERRO FUNDIDO PARA REDE DE ÁGUA, DN 600, JUNTA ELÁSTICA, INSTALADO EM LOCAL COM NÍVEL ALTO DE INTERFERÊNCIAS (NÃO INCLUI FORNECIMENTO). AF_05/2024 | I61: UN | J61: ATRIBUÍDO SÃO PAULO | K61: 74.31 | L61: CAIXA REFERENCIAL
A62: ASSENTAMENTO DE TUBOS E PECAS | B62: ASTU | C62: FORNEC E/OU ASSENT DE TUBO DE FERRO FUNDIDO JUNTA ELASTICA | D62: 0045 | G62: 105273 | H62: ASSENTAMENTO DE CONEXÃO 2 ACESSOS INCLINADOS DE FERRO FUNDIDO PARA REDE DE ÁGUA, DN 700, JUNTA ELÁSTICA, INSTALADO EM LOCAL COM NÍVEL ALTO DE INTERFERÊNCIAS (NÃO INCLUI FORNECIMENTO). AF_05/2024 | I62: UN | J62: ATRIBUÍDO SÃO PAULO | K62: 85 | L62: CAIXA REFERENCIAL
A63: ASSENTAMENTO DE TUBOS E PECAS | B63: ASTU | C63: FORNEC E/OU ASSENT DE TUBO DE FERRO FUNDIDO JUNTA ELASTICA | D63: 0045 | G63: 105274 | H63: ASSENTAMENTO DE CONEXÃO 2 ACESSOS INCLINADOS DE FERRO FUNDIDO PARA REDE DE ÁGUA, DN 800, JUNTA ELÁSTICA, INSTALADO EM LOCAL COM NÍVEL ALTO DE INTERFERÊNCIAS (NÃO INCLUI FORNECIMENTO). AF_05/2024 | I63: UN | J63: ATRIBUÍDO SÃO PAULO | K63: 95.91 | L63: CAIXA REFERENCIAL
A64: ASSENTAMENTO DE TUBOS E PECAS | B64: ASTU | C64: FORNEC E/OU ASSENT DE TUBO DE FERRO FUNDIDO JUNTA ELASTICA | D64: 0045 | G64: 105275 | H64: ASSENTAMENTO DE CONEXÃO 2 ACESSOS INCLINADOS DE FERRO FUNDIDO PARA REDE DE ÁGUA, DN 900, JUNTA ELÁSTICA, INSTALADO EM LOCAL COM NÍVEL ALTO DE INTERFERÊNCIAS (NÃO INCLUI FORNECIMENTO). AF_05/2024 | I64: UN | J64: ATRIBUÍDO SÃO PAULO | K64: 106.98 | L64: CAIXA REFERENCIAL
A65: ASSENTAMENTO DE TUBOS E PECAS | B65: ASTU | C65: FORNEC E/OU ASSENT DE TUBO DE FERRO FUNDIDO JUNTA ELASTICA | D65: 0045 | G65: 105276 | H65: ASSENTAMENTO DE CONEXÃO 2 ACESSOS INCLINADOS DE FERRO FUNDIDO PARA REDE DE ÁGUA, DN 1000, JUNTA ELÁSTICA, INSTALADO EM LOCAL COM NÍVEL ALTO DE INTERFERÊNCIAS (NÃO INCLUI FORNECIMENTO). AF_05/2024 | I65: UN | J65: ATRIBUÍDO SÃO PAULO | K65: 118.15 | L65: CAIXA REFERENCIAL
A66: ASSENTAMENTO DE TUBOS E PECAS | B66: ASTU | C66: FORNEC E/OU ASSENT DE TUBO DE FERRO FUNDIDO JUNTA ELASTICA | D66: 0045 | G66: 105277 | H66: ASSENTAMENTO DE CONEXÃO 2 ACESSOS INCLINADOS DE FERRO FUNDIDO PARA REDE DE ÁGUA, DN 1200, JUNTA ELÁSTICA, INSTALADO EM LOCAL COM NÍVEL ALTO DE INTERFERÊNCIAS (NÃO INCLUI FORNECIMENTO). AF_05/2024 | I66: UN | J66: ATRIBUÍDO SÃO PAULO | K66: 142.7 | L66: CAIXA REFERENCIAL
A67: ASSENTAMENTO DE TUBOS E PECAS | B67: ASTU | C67: FORNEC E/OU ASSENT DE TUBO DE FERRO FUNDIDO JUNTA ELASTICA | D67: 0045 | G67: 105278 | H67: ASSENTAMENTO DE CONEXÃO 3 ACESSOS DE FERRO FUNDIDO PARA REDE DE ÁGUA, DN 80, JUNTA ELÁSTICA, INSTALADO EM LOCAL COM NÍVEL ALTO DE INTERFERÊNCIAS (NÃO INCLUI FORNECIMENTO). AF_05/2024 | I67: UN | J67: ATRIBUÍDO SÃO PAULO | K67: 17.43 | L67: CAIXA REFERENCIAL
A68: ASSENTAMENTO DE TUBOS E PECAS | B68: ASTU | C68: FORNEC E/OU ASSENT DE TUBO DE FERRO FUNDIDO JUNTA ELASTICA | D68: 0045 | G68: 105279 | H68: ASSENTAMENTO DE CONEXÃO 3 ACESSOS DE FERRO FUNDIDO PARA REDE DE ÁGUA, DN 100, JUNTA ELÁSTICA, INSTALADO EM LOCAL COM NÍVEL ALTO DE INTERFERÊNCIAS (NÃO INCLUI FORNECIMENTO). AF_05/2024 | I68: UN | J68: ATRIBUÍDO SÃO PAULO | K68: 20.03 | L68: CAIXA REFERENCIAL
A69: ASSENTAMENTO DE TUBOS E PECAS | B69: ASTU | C69: FORNEC E/OU ASSENT DE TUBO DE FERRO FUNDIDO JUNTA ELASTICA | D69: 0045 | G69: 105280 | H69: ASSENTAMENTO DE CONEXÃO 3 ACESSOS DE FERRO FUNDIDO PARA REDE DE ÁGUA, DN 150, JUNTA ELÁSTICA, INSTALADO EM LOCAL COM NÍVEL ALTO DE INTERFERÊNCIAS (NÃO INCLUI FORNECIMENTO). AF_05/2024 | I69: UN | J69: ATRIBUÍDO SÃO PAULO | K69: 26.4 | L69: CAIXA REFERENCIAL
A70: ASSENTAMENTO DE TUBOS E PECAS | B70: ASTU | C70: FORNEC E/OU ASSENT DE TUBO DE FERRO FUNDIDO JUNTA ELASTICA | D70: 0045 | G70: 105281 | H70: ASSENTAMENTO DE CONEXÃO 3 ACESSOS DE FERRO FUNDIDO PARA REDE DE ÁGUA, DN 200, JUNTA ELÁSTICA, INSTALADO EM LOCAL COM NÍVEL ALTO DE INTERFERÊNCIAS (NÃO INCLUI FORNECIMENTO). AF_05/2024 | I70: UN | J70: ATRIBUÍDO SÃO PAULO | K70: 32.76 | L70: CAIXA REFERENCIAL
A71: ASSENTAMENTO DE TUBOS E PECAS | B71: ASTU | C71: FORNEC E/OU ASSENT DE TUBO DE FERRO FUNDIDO JUNTA ELASTICA | D71: 0045 | G71: 105282 | H71: ASSENTAMENTO DE CONEXÃO 2 ACESSOS INCLINADOS DE FERRO FUNDIDO PARA REDE DE ÁGUA, DN 100, JUNTA ELÁSTICA, INSTALADO EM LOCAL COM NÍVEL BAIXO DE INTERFERÊNCIAS (NÃO INCLUI FORNECIMENTO). AF_05/2024 | I71: UN | J71: ATRIBUÍDO SÃO PAULO | K71: 11.34 | L71: CAIXA REFERENCIAL
A72: ASSENTAMENTO DE TUBOS E PECAS | B72: ASTU | C72: FORNEC E/OU ASSENT DE TUBO DE FERRO FUNDIDO JUNTA ELASTICA | D72: 0045 | G72: 105283 | H72: ASSENTAMENTO DE CONEXÃO 3 ACESSOS DE FERRO FUNDIDO PARA REDE DE ÁGUA, DN 150, JUNTA ELÁSTICA, INSTALADO EM LOCAL COM NÍVEL BAIXO DE INTERFERÊNCIAS (NÃO INCLUI FORNECIMENTO). AF_05/2024 | I72: UN | J72: ATRIBUÍDO SÃO PAULO | K72: 20.88 | L72: CAIXA REFERENCIAL
A73: ASSENTAMENTO DE TUBOS E PECAS | B73: ASTU | C73: FORNEC E/OU ASSENT DE TUBO DE FERRO FUNDIDO JUNTA ELASTICA | D73: 0045 | G73: 105284 | H73: ASSENTAMENTO DE CONEXÃO 3 ACESSOS DE FERRO FUNDIDO PARA REDE DE ÁGUA, DN 250, JUNTA ELÁSTICA, INSTALADO EM LOCAL COM NÍVEL ALTO DE INTERFERÊNCIAS (NÃO INCLUI FORNECIMENTO). AF_05/2024 | I73: UN | J73: ATRIBUÍDO SÃO PAULO | K73: 39.37 | L73: CAIXA REFERENCIAL
A74: ASSENTAMENTO DE TUBOS E PECAS | B74: ASTU | C74: FORNEC E/OU ASSENT DE TUBO DE FERRO FUNDIDO JUNTA ELASTICA | D74: 0045 | G74: 105297 | H74: ASSENTAMENTO DE CONEXÃO 2 ACESSOS ALINHADOS DE FERRO FUNDIDO PARA REDE DE ÁGUA, DN 80, JUNTA ELÁSTICA, INSTALADO EM LOCAL COM NÍVEL ALTO DE INTERFERÊNCIAS (NÃO INCLUI FORNECIMENTO). AF_05/2024 | I74: UN | J74: ATRIBUÍDO SÃO PAULO | K74: 8.7 | L74: CAIXA REFERENCIAL
A75: ASSENTAMENTO DE TUBOS E PECAS | B75: ASTU | C75: FORNEC E/OU ASSENT DE TUBO DE FERRO FUNDIDO JUNTA ELASTICA | D75: 0045 | G75: 105298 | H75: ASSENTAMENTO DE CONEXÃO 2 ACESSOS INCLINADOS DE FERRO FUNDIDO PARA REDE DE ÁGUA, DN 150, JUNTA ELÁSTICA, INSTALADO EM LOCAL COM NÍVEL BAIXO DE INTERFERÊNCIAS (NÃO INCLUI FORNECIMENTO). AF_05/2024 | I75: UN | J75: ATRIBUÍDO SÃO PAULO | K75: 15.2 | L75: CAIXA REFERENCIAL
A76: ASSENTAMENTO DE TUBOS E PECAS | B76: ASTU | C76: FORNEC E/OU ASSENT DE TUBO DE FERRO FUNDIDO JUNTA ELASTICA | D76: 0045 | G76: 105299 | H76: ASSENTAMENTO DE CONEXÃO 2 ACESSOS INCLINADOS DE FERRO FUNDIDO PARA REDE DE ÁGUA, DN 200, JUNTA ELÁSTICA, INSTALADO EM LOCAL COM NÍVEL BAIXO DE INTERFERÊNCIAS (NÃO INCLUI FORNECIMENTO). AF_05/2024 | I76: UN | J76: ATRIBUÍDO SÃO PAULO | K76: 19.06 | L76: CAIXA REFERENCIAL
A77: ASSENTAMENTO DE TUBOS E PECAS | B77: ASTU | C77: FORNEC E/OU ASSENT DE TUBO DE FERRO FUNDIDO JUNTA ELASTICA | D77: 0045 | G77: 105300 | H77: ASSENTAMENTO DE CONEXÃO 2 ACESSOS INCLINADOS DE FERRO FUNDIDO PARA REDE DE ÁGUA, DN 250, JUNTA ELÁSTICA, INSTALADO EM LOCAL COM NÍVEL BAIXO DE INTERFERÊNCIAS (NÃO INCLUI FORNECIMENTO). AF_05/2024 | I77: UN | J77: ATRIBUÍDO SÃO PAULO | K77: 23.04 | L77: CAIXA REFERENCIAL
A78: ASSENTAMENTO DE TUBOS E PECAS | B78: ASTU | C78: FORNEC E/OU ASSENT DE TUBO DE FERRO FUNDIDO JUNTA ELASTICA | D78: 0045 | G78: 105301 | H78: ASSENTAMENTO DE CONEXÃO 2 ACESSOS INCLINADOS DE FERRO FUNDIDO PARA REDE DE ÁGUA, DN 300, JUNTA ELÁSTICA, INSTALADO EM LOCAL COM NÍVEL BAIXO DE INTERFERÊNCIAS (NÃO INCLUI FORNECIMENTO). AF_05/2024 | I78: UN | J78: ATRIBUÍDO SÃO PAULO | K78: 27.01 | L78: CAIXA REFERENCIAL
A79: ASSENTAMENTO DE TUBOS E PECAS | B79: ASTU | C79: FORNEC E/OU ASSENT DE TUBO DE FERRO FUNDIDO JUNTA ELASTICA | D79: 0045 | G79: 105302 | H79: ASSENTAMENTO DE CONEXÃO 2 ACESSOS INCLINADOS DE FERRO FUNDIDO PARA REDE DE ÁGUA, DN 350, JUNTA ELÁSTICA, INSTALADO EM LOCAL COM NÍVEL BAIXO DE INTERFERÊNCIAS (NÃO INCLUI FORNECIMENTO). AF_05/2024 | I79: UN | J79: ATRIBUÍDO SÃO PAULO | K79: 30.98 | L79: CAIXA REFERENCIAL
A80: ASSENTAMENTO DE TUBOS E PECAS | B80: ASTU | C80: FORNEC E/OU ASSENT DE TUBO DE FERRO FUNDIDO JUNTA ELASTICA | D80: 0045 | G80: 105303 | H80: ASSENTAMENTO DE CONEXÃO 2 ACESSOS INCLINADOS DE FERRO FUNDIDO PARA REDE DE ÁGUA, DN 400, JUNTA ELÁSTICA, INSTALADO EM LOCAL COM NÍVEL BAIXO DE INTERFERÊNCIAS (NÃO INCLUI FORNECIMENTO). AF_05/2024 | I80: UN | J80: ATRIBUÍDO SÃO PAULO | K80: 34.96 | L80: CAIXA REFERENCIAL
A81: ASSENTAMENTO DE TUBOS E PECAS | B81: ASTU | C81: FORNEC E/OU ASSENT DE TUBO DE FERRO FUNDIDO JUNTA ELASTICA | D81: 0045 | G81: 105304 | H81: ASSENTAMENTO DE CONEXÃO 2 ACESSOS INCLINADOS DE FERRO FUNDIDO PARA REDE DE ÁGUA, DN 450, JUNTA ELÁSTICA, INSTALADO EM LOCAL COM NÍVEL BAIXO DE INTERFERÊNCIAS (NÃO INCLUI FORNECIMENTO). AF_05/2024 | I81: UN | J81: ATRIBUÍDO SÃO PAULO | K81: 39.02 | L81: CAIXA REFERENCIAL
A82: ASSENTAMENTO DE TUBOS E PECAS | B82: ASTU | C82: FORNEC E/OU ASSENT DE TUBO DE FERRO FUNDIDO JUNTA ELASTICA | D82: 0045 | G82: 105305 | H82: ASSENTAMENTO DE CONEXÃO 2 ACESSOS INCLINADOS DE FERRO FUNDIDO PARA REDE DE ÁGUA, DN 500, JUNTA ELÁSTICA, INSTALADO EM LOCAL COM NÍVEL BAIXO DE INTERFERÊNCIAS (NÃO INCLUI FORNECIMENTO). AF_05/2024 | I82: UN | J82: ATRIBUÍDO SÃO PAULO | K82: 49.9 | L82: CAIXA REFERENCIAL
A83: ASSENTAMENTO DE TUBOS E PECAS | B83: ASTU | C83: FORNEC E/OU ASSENT DE TUBO DE FERRO FUNDIDO JUNTA ELASTICA | D83: 0045 | G83: 105306 | H83: ASSENTAMENTO DE CONEXÃO 2 ACESSOS INCLINADOS DE FERRO FUNDIDO PARA REDE DE ÁGUA, DN 600, JUNTA ELÁSTICA, INSTALADO EM LOCAL COM NÍVEL BAIXO DE INTERFERÊNCIAS (NÃO INCLUI FORNECIMENTO). AF_05/2024 | I83: UN | J83: ATRIBUÍDO SÃO PAULO | K83: 59.06 | L83: CAIXA REFERENCIAL
A84: ASSENTAMENTO DE TUBOS E PECAS | B84: ASTU | C84: FORNEC E/OU ASSENT DE TUBO DE FERRO FUNDIDO JUNTA ELASTICA | D84: 0045 | G84: 105307 | H84: ASSENTAMENTO DE CONEXÃO 2 ACESSOS INCLINADOS DE FERRO FUNDIDO PARA REDE DE ÁGUA, DN 700, JUNTA ELÁSTICA, INSTALADO EM LOCAL COM NÍVEL BAIXO DE INTERFERÊNCIAS (NÃO INCLUI FORNECIMENTO). AF_05/2024 | I84: UN | J84: ATRIBUÍDO SÃO PAULO | K84: 67.64 | L84: CAIXA REFERENCIAL
A85: ASSENTAMENTO DE TUBOS E PECAS | B85: ASTU | C85: FORNEC E/OU ASSENT DE TUBO DE FERRO FUNDIDO JUNTA ELASTICA | D85: 0045 | G85: 105317 | H85: ASSENTAMENTO DE CONEXÃO 2 ACESSOS ALINHADOS DE FERRO FUNDIDO PARA REDE DE ÁGUA, DN 300, JUNTA ELÁSTICA, INSTALADO EM LOCAL COM NÍVEL BAIXO DE INTERFERÊNCIAS (NÃO INCLUI FORNECIMENTO). AF_05/2024 | I85: UN | J85: ATRIBUÍDO SÃO PAULO | K85: 18.59 | L85: CAIXA REFERENCIAL
A86: ASSENTAMENTO DE TUBOS E PECAS | B86: ASTU | C86: FORNEC E/OU ASSENT DE TUBO DE FERRO FUNDIDO JUNTA ELASTICA | D86: 0045 | G86: 105318 | H86: ASSENTAMENTO DE CONEXÃO 2 ACESSOS ALINHADOS DE FERRO FUNDIDO PARA REDE DE ÁGUA, DN 350, JUNTA ELÁSTICA, INSTALADO EM LOCAL COM NÍVEL BAIXO DE INTERFERÊNCIAS (NÃO INCLUI FORNECIMENTO). AF_05/2024 | I86: UN | J86: ATRIBUÍDO SÃO PAULO | K86: 21.34 | L86: CAIXA REFERENCIAL
A87: ASSENTAMENTO DE TUBOS E PECAS | B87: ASTU | C87: FORNEC E/OU ASSENT DE TUBO DE FERRO FUNDIDO JUNTA ELASTICA | D87: 0045 | G87: 105319 | H87: ASSENTAMENTO DE CONEXÃO 3 ACESSOS DE FERRO FUNDIDO PARA REDE DE ÁGUA, DN 200, JUNTA ELÁSTICA, INSTALADO EM LOCAL COM NÍVEL BAIXO DE INTERFERÊNCIAS (NÃO INCLUI FORNECIMENTO). AF_05/2024 | I87: UN | J87: ATRIBUÍDO SÃO PAULO | K87: 26.17 | L87: CAIXA REFERENCIAL
A88: ASSENTAMENTO DE TUBOS E PECAS | B88: ASTU | C88: FORNEC E/OU ASSENT DE TUBO DE FERRO FUNDIDO JUNTA ELASTICA | D88: 0045 | G88: 105320 | H88: ASSENTAMENTO DE CONEXÃO 3 ACESSOS DE FERRO FUNDIDO PARA REDE DE ÁGUA, DN 250, JUNTA ELÁSTICA, INSTALADO EM LOCAL COM NÍVEL BAIXO DE INTERFERÊNCIAS (NÃO INCLUI FORNECIMENTO). AF_05/2024 | I88: UN | J88: ATRIBUÍDO SÃO PAULO | K88: 31.69 | L88: CAIXA REFERENCIAL
A89: ASSENTAMENTO DE TUBOS E PECAS | B89: ASTU | C89: FORNEC E/OU ASSENT DE TUBO DE FERRO FUNDIDO JUNTA ELASTICA | D89: 0045 | G89: 105321 | H89: ASSENTAMENTO DE CONEXÃO 3 ACESSOS DE FERRO FUNDIDO PARA REDE DE ÁGUA, DN 300, JUNTA ELÁSTICA, INSTALADO EM LOCAL COM NÍVEL BAIXO DE INTERFERÊNCIAS (NÃO INCLUI FORNECIMENTO). AF_05/2024 | I89: UN | J89: ATRIBUÍDO SÃO PAULO | K89: 37.21 | L89: CAIXA REFERENCIAL
A90: ASSENTAMENTO DE TUBOS E PECAS | B90: ASTU | C90: FORNEC E/OU ASSENT DE TUBO DE FERRO FUNDIDO JUNTA ELASTICA | D90: 0045 | G90: 105322 | H90: ASSENTAMENTO DE CONEXÃO 3 ACESSOS DE FERRO FUNDIDO PARA REDE DE ÁGUA, DN 350, JUNTA ELÁSTICA, INSTALADO EM LOCAL COM NÍVEL BAIXO DE INTERFERÊNCIAS (NÃO INCLUI FORNECIMENTO). AF_05/2024 | I90: UN | J90: ATRIBUÍDO SÃO PAULO | K90: 42.71 | L90: CAIXA REFERENCIAL
A91: ASSENTAMENTO DE TUBOS E PECAS | B91: ASTU | C91: FORNEC E/OU ASSENT DE TUBO DE FERRO FUNDIDO JUNTA ELASTICA | D91: 0045 | G91: 105323 | H91: ASSENTAMENTO DE CONEXÃO 3 ACESSOS DE FERRO FUNDIDO PARA REDE DE ÁGUA, DN 400, JUNTA ELÁSTICA, INSTALADO EM LOCAL COM NÍVEL BAIXO DE INTERFERÊNCIAS (NÃO INCLUI FORNECIMENTO). AF_05/2024 | I91: UN | J91: ATRIBUÍDO SÃO PAULO | K91: 48.21 | L91: CAIXA REFERENCIAL
A92: ASSENTAMENTO DE TUBOS E PECAS | B92: ASTU | C92: FORNEC E/OU ASSENT DE TUBO DE FERRO FUNDIDO JUNTA ELASTICA | D92: 0045 | G92: 105324 | H92: ASSENTAMENTO DE CONEXÃO 3 ACESSOS DE FERRO FUNDIDO PARA REDE DE ÁGUA, DN 450, JUNTA ELÁSTICA, INSTALADO EM LOCAL COM NÍVEL BAIXO DE INTERFERÊNCIAS (NÃO INCLUI FORNECIMENTO). AF_05/2024 | I92: UN | J92: ATRIBUÍDO SÃO PAULO | K92: 53.93 | L92: CAIXA REFERENCIAL
A93: ASSENTAMENTO DE TUBOS E PECAS | B93: ASTU | C93: FORNEC E/OU ASSENT DE TUBO DE FERRO FUNDIDO JUNTA ELASTICA | D93: 0045 | G93: 105325 | H93: ASSENTAMENTO DE CONEXÃO 3 ACESSOS DE FERRO FUNDIDO PARA REDE DE ÁGUA, DN 500, JUNTA ELÁSTICA, INSTALADO EM LOCAL COM NÍVEL BAIXO DE INTERFERÊNCIAS (NÃO INCLUI FORNECIMENTO). AF_05/2024 | I93: UN | J93: ATRIBUÍDO SÃO PAULO | K93: 68.67 | L93: CAIXA REFERENCIAL
A94: ASSENTAMENTO DE TUBOS E PECAS | B94: ASTU | C94: FORNEC E/OU ASSENT DE TUBO DE FERRO FUNDIDO JUNTA ELASTICA | D94: 0045 | G94: 105326 | H94: ASSENTAMENTO DE CONEXÃO 3 ACESSOS DE FERRO FUNDIDO PARA REDE DE ÁGUA, DN 600, JUNTA ELÁSTICA, INSTALADO EM LOCAL COM NÍVEL BAIXO DE INTERFERÊNCIAS (NÃO INCLUI FORNECIMENTO). AF_05/2024 | I94: UN | J94: ATRIBUÍDO SÃO PAULO | K94: 81.46 | L94: CAIXA REFERENCIAL
A95: ASSENTAMENTO DE TUBOS E PECAS | B95: ASTU | C95: FORNEC E/OU ASSENT DE TUBO DE FERRO FUNDIDO JUNTA ELASTICA | D95: 0045 | G95: 105340 | H95: ASSENTAMENTO DE CONEXÃO 2 ACESSOS INCLINADOS DE FERRO FUNDIDO PARA REDE DE ÁGUA, DN 800, JUNTA ELÁSTICA, INSTALADO EM LOCAL COM NÍVEL BAIXO DE INTERFERÊNCIAS (NÃO INCLUI FORNECIMENTO). AF_05/2024 | I95: UN | J95: ATRIBUÍDO SÃO PAULO | K95: 76.45 | L95: CAIXA REFERENCIAL
A96: ASSENTAMENTO DE TUBOS E PECAS | B96: ASTU | C96: FORNEC E/OU ASSENT DE TUBO DE FERRO FUNDIDO JUNTA ELASTICA | D96: 0045 | G96: 105341 | H96: ASSENTAMENTO DE CONEXÃO 2 ACESSOS INCLINADOS DE FERRO FUNDIDO PARA REDE DE ÁGUA, DN 1000, JUNTA ELÁSTICA, INSTALADO EM LOCAL COM NÍVEL BAIXO DE INTERFERÊNCIAS (NÃO INCLUI FORNECIMENTO). AF_05/2024 | I96: UN | J96: ATRIBUÍDO SÃO PAULO | K96: 94.45 | L96: CAIXA REFERENCIAL
A97: ASSENTAMENTO DE TUBOS E PECAS | B97: ASTU | C97: FORNEC E/OU ASSENT DE TUBO DE FERRO FUNDIDO JUNTA ELASTICA | D97: 0045 | G97: 105342 | H97: ASSENTAMENTO DE CONEXÃO 2 ACESSOS INCLINADOS DE FERRO FUNDIDO PARA REDE DE ÁGUA, DN 1200, JUNTA ELÁSTICA, INSTALADO EM LOCAL COM NÍVEL BAIXO DE INTERFERÊNCIAS (NÃO INCLUI FORNECIMENTO). AF_05/2024 | I97: UN | J97: ATRIBUÍDO SÃO PAULO | K97: 114.78 | L97: CAIXA REFERENCIAL
A98: ASSENTAMENTO DE TUBOS E PECAS | B98: ASTU | C98: FORNEC E/OU ASSENT DE TUBO DE FERRO FUNDIDO JUNTA ELASTICA | D98: 0045 | G98: 105343 | H98: ASSENTAMENTO DE CONEXÃO 3 ACESSOS DE FERRO FUNDIDO PARA REDE DE ÁGUA, DN 80, JUNTA ELÁSTICA, INSTALADO EM LOCAL COM NÍVEL BAIXO DE INTERFERÊNCIAS (NÃO INCLUI FORNECIMENTO). AF_05/2024 | I98: UN | J98: ATRIBUÍDO SÃO PAULO | K98: 13.41 | L98: CAIXA REFERENCIAL
A99: ASSENTAMENTO DE TUBOS E PECAS | B99: ASTU | C99: FORNEC E/OU ASSENT DE TUBO DE FERRO FUNDIDO JUNTA ELASTICA | D99: 0045 | G99: 105344 | H99: ASSENTAMENTO DE CONEXÃO 3 ACESSOS DE FERRO FUNDIDO PARA REDE DE ÁGUA, DN 700, JUNTA ELÁSTICA, INSTALADO EM LOCAL COM NÍVEL BAIXO DE INTERFERÊNCIAS (NÃO INCLUI FORNECIMENTO). AF_05/2024 | I99: UN | J99: ATRIBUÍDO SÃO PAULO | K99: 93.04 | L99: CAIXA REFERENCIAL
A100: ASSENTAMENTO DE TUBOS E PECAS | B100: ASTU | C100: FORNEC E/OU ASSENT DE TUBO DE FERRO FUNDIDO JUNTA ELASTICA | D100: 0045 | G100: 105345 | H100: ASSENTAMENTO DE CONEXÃO 3 ACESSOS DE FERRO FUNDIDO PARA REDE DE ÁGUA, DN 900, JUNTA ELÁSTICA, INSTALADO EM LOCAL COM NÍVEL BAIXO DE INTERFERÊNCIAS (NÃO INCLUI FORNECIMENTO). AF_05/2024 | I100: UN | J100: ATRIBUÍDO SÃO PAULO | K100: 117.44 | L100: CAIXA REFERENCIAL
A101: ASSENTAMENTO DE TUBOS E PECAS | B101: ASTU | C101: FORNEC E/OU ASSENT DE TUBO DE FERRO FUNDIDO JUNTA ELASTICA | D101: 0045 | G101: 105346 | H101: ASSENTAMENTO DE CONEXÃO 3 ACESSOS DE FERRO FUNDIDO PARA REDE DE ÁGUA, DN 1000, JUNTA ELÁSTICA, INSTALADO EM LOCAL COM NÍVEL BAIXO DE INTERFERÊNCIAS (NÃO INCLUI FORNECIMENTO). AF_05/2024 | I101: UN | J101: ATRIBUÍDO SÃO PAULO | K101: 129.98 | L101: CAIXA REFERENCIAL
A102: ASSENTAMENTO DE TUBOS E PECAS | B102: ASTU | C102: FORNEC E/OU ASSENT DE TUBO DE FERRO FUNDIDO JUNTA ELASTICA | D102: 0045 | G102: 105347 | H102: ASSENTAMENTO DE CONEXÃO 3 ACESSOS DE FERRO FUNDIDO PARA REDE DE ÁGUA, DN 1200, JUNTA ELÁSTICA, INSTALADO EM LOCAL COM NÍVEL BAIXO DE INTERFERÊNCIAS (NÃO INCLUI FORNECIMENTO). AF_05/2024 | I102: UN | J102: ATRIBUÍDO SÃO PAULO | K102: 159.52 | L102: CAIXA REFERENCIAL
A103: ASSENTAMENTO DE TUBOS E PECAS | B103: ASTU | C103: FORNEC E/OU ASSENT DE TUBO DE FERRO FUNDIDO JUNTA ELASTICA | D103: 0045 | G103: 105348 | H103: ASSENTAMENTO DE CONEXÃO 3 ACESSOS DE FERRO FUNDIDO PARA REDE DE ÁGUA, DN 300, JUNTA ELÁSTICA, INSTALADO EM LOCAL COM NÍVEL ALTO DE INTERFERÊNCIAS (NÃO INCLUI FORNECIMENTO). AF_05/2024 | I103: UN | J103: ATRIBUÍDO SÃO PAULO | K103: 45.96 | L103: CAIXA REFERENCIAL
A104: ASSENTAMENTO DE TUBOS E PECAS | B104: ASTU | C104: FORNEC E/OU ASSENT DE TUBO DE FERRO FUNDIDO JUNTA ELASTICA | D104: 0045 | G104: 105349 | H104: ASSENTAMENTO DE CONEXÃO 3 ACESSOS DE FERRO FUNDIDO PARA REDE DE ÁGUA, DN 350, JUNTA ELÁSTICA, INSTALADO EM LOCAL COM NÍVEL ALTO DE INTERFERÊNCIAS (NÃO INCLUI FORNECIMENTO). AF_05/2024 | I104: UN | J104: ATRIBUÍDO SÃO PAULO | K104: 52.54 | L104: CAIXA REFERENCIAL
A105: ASSENTAMENTO DE TUBOS E PECAS | B105: ASTU | C105: FORNEC E/OU ASSENT DE TUBO DE FERRO FUNDIDO JUNTA ELASTICA | D105: 0045 | G105: 105350 | H105: ASSENTAMENTO DE CONEXÃO 3 ACESSOS DE FERRO FUNDIDO PARA REDE DE ÁGUA, DN 400, JUNTA ELÁSTICA, INSTALADO EM LOCAL COM NÍVEL ALTO DE INTERFERÊNCIAS (NÃO INCLUI FORNECIMENTO). AF_05/2024 | I105: UN | J105: ATRIBUÍDO SÃO PAULO | K105: 59.12 | L105: CAIXA REFERENCIAL
A106: ASSENTAMENTO DE TUBOS E PECAS | B106: ASTU | C106: FORNEC E/OU ASSENT DE TUBO DE FERRO FUNDIDO JUNTA ELASTICA | D106: 0045 | G106: 105351 | H106: ASSENTAMENTO DE CONEXÃO 3 ACESSOS DE FERRO FUNDIDO PARA REDE DE ÁGUA, DN 450, JUNTA ELÁSTICA, INSTALADO EM LOCAL COM NÍVEL ALTO DE INTERFERÊNCIAS (NÃO INCLUI FORNECIMENTO). AF_05/2024 | I106: UN | J106: ATRIBUÍDO SÃO PAULO | K106: 65.91 | L106: CAIXA REFERENCIAL
A107: ASSENTAMENTO DE TUBOS E PECAS | B107: ASTU | C107: FORNEC E/OU ASSENT DE TUBO DE FERRO FUNDIDO JUNTA ELASTICA | D107: 0045 | G107: 105352 | H107: ASSENTAMENTO DE CONEXÃO 3 ACESSOS DE FERRO FUNDIDO PARA REDE DE ÁGUA, DN 500, JUNTA ELÁSTICA, INSTALADO EM LOCAL COM NÍVEL ALTO DE INTERFERÊNCIAS (NÃO INCLUI FORNECIMENTO). AF_05/2024 | I107: UN | J107: ATRIBUÍDO SÃO PAULO | K107: 86.18 | L107: CAIXA REFERENCIAL
A108: ASSENTAMENTO DE TUBOS E PECAS | B108: ASTU | C108: FORNEC E/OU ASSENT DE TUBO DE FERRO FUNDIDO JUNTA ELASTICA | D108: 0045 | G108: 105353 | H108: ASSENTAMENTO DE CONEXÃO 3 ACESSOS DE FERRO FUNDIDO PARA REDE DE ÁGUA, DN 600, JUNTA ELÁSTICA, INSTALADO EM LOCAL COM NÍVEL ALTO DE INTERFERÊNCIAS (NÃO INCLUI FORNECIMENTO). AF_05/2024 | I108: UN | J108: ATRIBUÍDO SÃO PAULO | K108: 101.78 | L108: CAIXA REFERENCIAL
A109: ASSENTAMENTO DE TUBOS E PECAS | B109: ASTU | C109: FORNEC E/OU ASSENT DE TUBO DE FERRO FUNDIDO JUNTA ELASTICA | D109: 0045 | G109: 105354 | H109: ASSENTAMENTO DE CONEXÃO 3 ACESSOS DE FERRO FUNDIDO PARA REDE DE ÁGUA, DN 700, JUNTA ELÁSTICA, INSTALADO EM LOCAL COM NÍVEL ALTO DE INTERFERÊNCIAS (NÃO INCLUI FORNECIMENTO). AF_05/2024 | I109: UN | J109: ATRIBUÍDO SÃO PAULO | K109: 116.19 | L109: CAIXA REFERENCIAL
A110: ASSENTAMENTO DE TUBOS E PECAS | B110: ASTU | C110: FORNEC E/OU ASSENT DE TUBO DE FERRO FUNDIDO JUNTA ELASTICA | D110: 0045 | G110: 105355 | H110: ASSENTAMENTO DE CONEXÃO 3 ACESSOS DE FERRO FUNDIDO PARA REDE DE ÁGUA, DN 800, JUNTA ELÁSTICA, INSTALADO EM LOCAL COM NÍVEL ALTO DE INTERFERÊNCIAS (NÃO INCLUI FORNECIMENTO). AF_05/2024 | I110: UN | J110: ATRIBUÍDO SÃO PAULO | K110: 131.03 | L110: CAIXA REFERENCIAL
A111: ASSENTAMENTO DE TUBOS E PECAS | B111: ASTU | C111: FORNEC E/OU ASSENT DE TUBO DE FERRO FUNDIDO JUNTA ELASTICA | D111: 0045 | G111: 105356 | H111: ASSENTAMENTO DE CONEXÃO 3 ACESSOS DE FERRO FUNDIDO PARA REDE DE ÁGUA, DN 900, JUNTA ELÁSTICA, INSTALADO EM LOCAL COM NÍVEL ALTO DE INTERFERÊNCIAS (NÃO INCLUI FORNECIMENTO). AF_05/2024 | I111: UN | J111: ATRIBUÍDO SÃO PAULO | K111: 146.22 | L111: CAIXA REFERENCIAL
A112: ASSENTAMENTO DE TUBOS E PECAS | B112: ASTU | C112: FORNEC E/OU ASSENT DE TUBO DE FERRO FUNDIDO JUNTA ELASTICA | D112: 0045 | G112: 105357 | H112: ASSENTAMENTO DE CONEXÃO 3 ACESSOS DE FERRO FUNDIDO PARA REDE DE ÁGUA, DN 1000, JUNTA ELÁSTICA, INSTALADO EM LOCAL COM NÍVEL ALTO DE INTERFERÊNCIAS (NÃO INCLUI FORNECIMENTO). AF_05/2024 | I112: UN | J112: ATRIBUÍDO SÃO PAULO | K112: 161.58 | L112: CAIXA REFERENCIAL
A113: ASSENTAMENTO DE TUBOS E PECAS | B113: ASTU | C113: FORNEC E/OU ASSENT DE TUBO DE FERRO FUNDIDO JUNTA ELASTICA | D113: 0045 | G113: 105358 | H113: ASSENTAMENTO DE CONEXÃO 3 ACESSOS DE FERRO FUNDIDO PARA REDE DE ÁGUA, DN 1200, JUNTA ELÁSTICA, INSTALADO EM LOCAL COM NÍVEL ALTO DE INTERFERÊNCIAS (NÃO INCLUI FORNECIMENTO). AF_05/2024 | I113: UN | J113: ATRIBUÍDO SÃO PAULO | K113: 196.76 | L113: CAIXA REFERENCIAL
A114: ASSENTAMENTO DE TUBOS E PECAS | B114: ASTU | C114: FORNEC E/OU ASSENT DE TUBO DE FERRO FUNDIDO JUNTA ELASTICA | D114: 0045 | G114: 105369 | H114: FORNECIMENTO E ASSENTAMENTO DE TE RANHURADO EM FERRO FUNDIDO, DN 80 (3") PARA REDE DE ÁGUA, INSTALADO EM LOCAL COM NÍVEL ALTO DE INTERFERÊNCIAS (INCLUI FORNECIMENTO). AF_05/2024 | I114: UN | J114: ATRIBUÍDO SÃO PAULO | K114: 63.86 | L114: CAIXA REFERENCIAL
A115: ASSENTAMENTO DE TUBOS E PECAS | B115: ASTU | C115: FORNEC E/OU ASSENT DE TUBO DE FERRO FUNDIDO JUNTA ELASTICA | D115: 0045 | G115: 105377 | H115: FORNECIMENTO E ASSENTAMENTO DE CURVA 45 GRAUS RANHURADA EM FERRO FUNDIDO, DN 80 MM (3") PARA REDE DE ÁGUA, INSTALADO EM LOCAL COM NÍVEL ALTO DE INTERFERÊNCIAS (INCLUI FORNECIMENTO). AF_05/2024 | I115: UN | J115: ATRIBUÍDO SÃO PAULO | K115: 40.46 | L115: CAIXA REFERENCIAL
A116: ASSENTAMENTO DE TUBOS E PECAS | B116: ASTU | C116: FORNEC E/OU ASSENT DE TUBO DE FERRO FUNDIDO JUNTA ELASTICA | D116: 0045 | G116: 105378 | H116: ASSENTAMENTO DE CONEXÃO 2 ACESSOS ALINHADOS DE FERRO FUNDIDO PARA REDE DE ÁGUA, DN 100, JUNTA ELÁSTICA, INSTALADO EM LOCAL COM NÍVEL ALTO DE INTERFERÊNCIAS (NÃO INCLUI FORNECIMENTO). AF_05/2024 | I116: UN | J116: ATRIBUÍDO SÃO PAULO | K116: 10.01 | L116: CAIXA REFERENCIAL
A117: ASSENTAMENTO DE TUBOS E PECAS | B117: ASTU | C117: FORNEC E/OU ASSENT DE TUBO DE FERRO FUNDIDO JUNTA ELASTICA | D117: 0045 | G117: 105379 | H117: ASSENTAMENTO DE CONEXÃO 2 ACESSOS ALINHADOS DE FERRO FUNDIDO PARA REDE DE ÁGUA, DN 150, JUNTA ELÁSTICA, INSTALADO EM LOCAL COM NÍVEL ALTO DE INTERFERÊNCIAS (NÃO INCLUI FORNECIMENTO). AF_05/2024 | I117: UN | J117: ATRIBUÍDO SÃO PAULO | K117: 13.18 | L117: CAIXA REFERENCIAL
A118: ASSENTAMENTO DE TUBOS E PECAS | B118: ASTU | C118: FORNEC E/OU ASSENT DE TUBO DE FERRO FUNDIDO JUNTA ELASTICA | D118: 0045 | G118: 105380 | H118: ASSENTAMENTO DE CONEXÃO 2 ACESSOS ALINHADOS DE FERRO FUNDIDO PARA REDE DE ÁGUA, DN 1000, JUNTA ELÁSTICA, INSTALADO EM LOCAL COM NÍVEL ALTO DE INTERFERÊNCIAS (NÃO INCLUI FORNECIMENTO). AF_05/2024 | I118: UN | J118: ATRIBUÍDO SÃO PAULO | K118: 80.77 | L118: CAIXA REFERENCIAL
A119: ASSENTAMENTO DE TUBOS E PECAS | B119: ASTU | C119: FORNEC E/OU ASSENT DE TUBO DE FERRO FUNDIDO JUNTA ELASTICA | D119: 0045 | G119: 105388 | H119: ASSENTAMENTO DE CONEXÃO 2 ACESSOS ALINHADOS DE FERRO FUNDIDO PARA REDE DE ÁGUA, DN 150, JUNTA ELÁSTICA, INSTALADO EM LOCAL COM NÍVEL BAIXO DE INTERFERÊNCIAS (NÃO INCLUI FORNECIMENTO). AF_05/2024 | I119: UN | J119: ATRIBUÍDO SÃO PAULO | K119: 10.43 | L119: CAIXA REFERENCIAL
A120: ASSENTAMENTO DE TUBOS E PECAS | B120: ASTU | C120: FORNEC E/OU ASSENT DE TUBO DE FERRO FUNDIDO JUNTA ELASTICA | D120: 0045 | G120: 105389 | H120: ASSENTAMENTO DE CONEXÃO 2 ACESSOS ALINHADOS DE FERRO FUNDIDO PARA REDE DE ÁGUA, DN 200, JUNTA ELÁSTICA, INSTALADO EM LOCAL COM NÍVEL BAIXO DE INTERFERÊNCIAS (NÃO INCLUI FORNECIMENTO). AF_05/2024 | I120: UN | J120: ATRIBUÍDO SÃO PAULO | K120: 13.06 | L120: CAIXA REFERENCIAL
A121: ASSENTAMENTO DE TUBOS E PECAS | B121: ASTU | C121: FORNEC E/OU ASSENT DE TUBO DE FERRO FUNDIDO JUNTA ELASTICA | D121: 0045 | G121: 105390 | H121: ASSENTAMENTO DE CONEXÃO 2 ACESSOS INCLINADOS DE FERRO FUNDIDO PARA REDE DE ÁGUA, DN 900, JUNTA ELÁSTICA, INSTALADO EM LOCAL COM NÍVEL BAIXO DE INTERFERÊNCIAS (NÃO INCLUI FORNECIMENTO). AF_05/2024 | I121: UN | J121: ATRIBUÍDO SÃO PAULO | K121: 85.39 | L121: CAIXA REFERENCIAL
A122: ASSENTAMENTO DE TUBOS E PECAS | B122: ASTU | C122: FORNEC E/OU ASSENT DE TUBO DE FERRO FUNDIDO JUNTA ELASTICA | D122: 0045 | G122: 105391 | H122: ASSENTAMENTO DE CONEXÃO 3 ACESSOS DE FERRO FUNDIDO PARA REDE DE ÁGUA, DN 800, JUNTA ELÁSTICA, INSTALADO EM LOCAL COM NÍVEL BAIXO DE INTERFERÊNCIAS (NÃO INCLUI FORNECIMENTO). AF_05/2024 | I122: UN | J122: ATRIBUÍDO SÃO PAULO | K122: 105.08 | L122: CAIXA REFERENCIAL
A123: ASSENTAMENTO DE TUBOS E PECAS | B123: ASTU | C123: FORNEC E/OU ASSENT DE TUBO DE FERRO FUNDIDO JUNTA ELASTICA | D123: 0045 | G123: 105392 | H123: ASSENTAMENTO DE CONEXÃO 2 ACESSOS ALINHADOS DE FERRO FUNDIDO PARA REDE DE ÁGUA, DN 200, JUNTA ELÁSTICA, INSTALADO EM LOCAL COM NÍVEL ALTO DE INTERFERÊNCIAS (NÃO INCLUI FORNECIMENTO). AF_05/2024 | I123: UN | J123: ATRIBUÍDO SÃO PAULO | K123: 16.38 | L123: CAIXA REFERENCIAL
A124: ASSENTAMENTO DE TUBOS E PECAS | B124: ASTU | C124: FORNEC E/OU ASSENT DE TUBO DE FERRO FUNDIDO JUNTA ELASTICA | D124: 0045 | G124: 105393 | H124: ASSENTAMENTO DE CONEXÃO 2 ACESSOS ALINHADOS DE FERRO FUNDIDO PARA REDE DE ÁGUA, DN 250, JUNTA ELÁSTICA, INSTALADO EM LOCAL COM NÍVEL ALTO DE INTERFERÊNCIAS (NÃO INCLUI FORNECIMENTO). AF_05/2024 | I124: UN | J124: ATRIBUÍDO SÃO PAULO | K124: 19.67 | L124: CAIXA REFERENCIAL
A125: ASSENTAMENTO DE TUBOS E PECAS | B125: ASTU | C125: FORNEC E/OU ASSENT DE TUBO DE FERRO FUNDIDO JUNTA ELASTICA | D125: 0045 | G125: 105394 | H125: ASSENTAMENTO DE CONEXÃO 2 ACESSOS ALINHADOS DE FERRO FUNDIDO PARA REDE DE ÁGUA, DN 300, JUNTA ELÁSTICA, INSTALADO EM LOCAL COM NÍVEL ALTO DE INTERFERÊNCIAS (NÃO INCLUI FORNECIMENTO). AF_05/2024 | I125: UN | J125: ATRIBUÍDO SÃO PAULO | K125: 22.97 | L125: CAIXA REFERENCIAL
A126: ASSENTAMENTO DE TUBOS E PECAS | B126: ASTU | C126: FORNEC E/OU ASSENT DE TUBO DE FERRO FUNDIDO JUNTA ELASTICA | D126: 0045 | G126: 105395 | H126: ASSENTAMENTO DE CONEXÃO 2 ACESSOS ALINHADOS DE FERRO FUNDIDO PARA REDE DE ÁGUA, DN 350, JUNTA ELÁSTICA, INSTALADO EM LOCAL COM NÍVEL ALTO DE INTERFERÊNCIAS (NÃO INCLUI FORNECIMENTO). AF_05/2024 | I126: UN | J126: ATRIBUÍDO SÃO PAULO | K126: 26.25 | L126: CAIXA REFERENCIAL
A127: ASSENTAMENTO DE TUBOS E PECAS | B127: ASTU | C127: FORNEC E/OU ASSENT DE TUBO DE FERRO FUNDIDO JUNTA ELASTICA | D127: 0045 | G127: 105396 | H127: ASSENTAMENTO DE CONEXÃO 2 ACESSOS ALINHADOS DE FERRO FUNDIDO PARA REDE DE ÁGUA, DN 400, JUNTA ELÁSTICA, INSTALADO EM LOCAL COM NÍVEL ALTO DE INTERFERÊNCIAS (NÃO INCLUI FORNECIMENTO). AF_05/2024 | I127: UN | J127: ATRIBUÍDO SÃO PAULO | K127: 29.56 | L127: CAIXA REFERENCIAL
